Workbook

Sheet Instructivo
B2: Tablero de control de vacunas del Programa Ampliado de Inmunizaciones -PAI- Período 2020
B4: Acerca de la versión
B5: 1. CELDAS BLOQUEADAS: Todas las celdas están bloqueadas con excepción de las celdas donde se digitan las dosis aplicadas de cada mes, es decir, las columnas de la F a la Q. Es responsabilidad de la Coordinadora o Coordinador PAI de cada localidad la calidad y seguridad de la información allí registrada. Los datos de las dosis mensuales deben ser auditables y confiables.
B6: 2. PARA AGREGAR O RETITAR IPS: Debe reportar los datos por medio de correo electrónico a la SDS (sdspai@saludcapital.gov.co)
B7: 3. MEJORAS O MODIFICACIONES: Esta versión del tablero de control está totalmente estandarizada, por lo tanto no está autorizado a personalizar, adaptar, o modificar el Tablero de Control, en ningún aspecto, fórmulas, escenario, columnas, títulos, distribución, etc. Si requiere alguna adaptación o mejora para el tablero de control, escriba su sugerencia a la SDS (sdspai@saludcapital.gov.co)
B8: 4. VERSIÓN DE OFFICE: Este tablero fue creado con la versión Microsoft Office 2007.
B9: 5. FILTRO: Para hacer uso eficiente del tablero de control, en el filtro de las columnas: - "Localidad " realice la selección de su predilección. Ejemplo: en la columna "Localidad", en el filtro seleccionó "01-USAQUEN". Resultado: Despliega la información de las IPS públicas y privadas de la localidad de Usaquén. - "EAPB o ESE" realice la selección de su predilección. Ejemplo: en la columna "EAPB o ESE", en el filtro seleccionó "COMPENSAR". Resultado: Despliega la información de las IPS de esta aseguradora
B11: Acerca del diligenciamiento por biológico
B12: 1. BCG: Del informe mensual SIS 151 tome el total de dosis aplicadas por IPS y localidad, regístrelas y súmelas así: POS: BCG en niño o niña recién nacido (de 0 hasta 28 días)
B13: 2. HEPATITIS B: Del informe mensual SIS 151 tome el total de dosis aplicadas por IPS y localidad, regístrelas y súmelas así: POS: HB en niño o niña Recién nacido (hasta las primeras 12 horas) y Recién nacido (Entre 12 horas y 28 dias)
B14: 3. PENTA1: Del informe mensual tome el total de dosis aplicadas y súmelas, así: - POS: PENTAVALENTE (DPT - HB - Hib) - < DE 1 AÑO - primera dosis; DTP - < DE 1 AÑO - primera dosis; DTPa acelular pediatrica - < DE 1 AÑO - primera dosis; TOXOIDE TETANICO-DIFTERICO PEDIATRICO (TD) - < DE 1 AÑO - primera dosis - NO POS: PENTAVALENTE (DPTa -HiB-VPI) - < DE 1 AÑO - primera dosis; HEXAVALENTE (DPTa -HB-HiB-VIP) - < DE 1 AÑO primera dosis - TETRAVALENTE (DPTa - VPI) - < DE 1 AÑO primera dosis; DPTaceluar pediátrica (DPTa) - < DE 1 AÑO primera dosis y TOXOIDE TETÁNICO-DIFTERICO DE NIÑOS (TD) - MENOR DE 1 AÑO - primera dosis
B15: 4. PENTA2: Del informe mensual tome el total de dosis aplicadas y súmelas, así: - POS: PENTAVALENTE (DPT - HB - Hib) - < DE 1 AÑO - segunda dosis; DTP - < DE 1 AÑO - segunda dosis; DTPa acelular pediatrica - < DE 1 AÑO - segunda dosis; TOXOIDE TETANICO-DIFTERICO PEDIATRICO (TD) - < DE 1 AÑO - segunda dosis - NO POS: PENTAVALENTE (DPTa -HiB-VPI) - < DE 1 AÑO - segunda dosis; HEXAVALENTE (DPTa -HB-HiB-VIP) - < DE 1 AÑO segunda dosis - TETRAVALENTE (DPTa - VPI) - < DE 1 AÑO segunda dosis; DPTaceluar pediátrica (DPTa) - < DE 1 AÑO segunda dosis y TOXOIDE TETÁNICO-DIFTERICO DE NIÑOS (TD) - MENOR DE 1 AÑO - segunda dosis
B16: 5. PENTA3: Del informe mensual tome el total de dosis aplicadas y súmelas, así: - POS: PENTAVALENTE (DPT - HB - Hib) - < DE 1 AÑO - tercera dosis; DTP - < DE 1 AÑO - tercera dosis; DTPa acelular pediatrica - < DE 1 AÑO - tercera dosis; TOXOIDE TETANICO-DIFTERICO PEDIATRICO (TD) - < DE 1 AÑO - tercera dosis - NO POS: PENTAVALENTE (DPTa -HiB-VPI) - < DE 1 AÑO - tercera dosis; HEXAVALENTE (DPTa -HB-HiB-VIP) - < DE 1 AÑO tercera dosis - TETRAVALENTE (DPTa - VPI) - < DE 1 AÑO tercera dosis; DPTaceluar pediátrica (DPTa) - < DE 1 AÑO tercera dosis y TOXOIDE TETÁNICO-DIFTERICO DE NIÑOS (TD) - MENOR DE 1 AÑO - tercera dosis
B17: 6. ROTAVIRUS1: Del informe mensual tome el total de dosis aplicadas y súmelas, así: - POS: ROTAVIRUS - DE 2 MESES A 3 MESES y 21 DIAS - Primera dosis - NO POS: ROTAVIRUS - < DE 1 AÑO - Primera dosis
B18: 7. ROTAVIRUS2: Del informe mensual tome el total de dosis aplicadas y súmelas, así: - POS: ROTAVIRUS - DE 4 MESES A 11 MESES y 29 DIAS - Segundas dosis - NO POS: ROTAVIRUS - < DE 1 AÑO - Terceras dosis
B19: 8. NEUMOCOCO1: Del informe mensual tome el total de dosis aplicadas y súmelas, así: - POS: NEUMOCOCO CONJUGADA - DE 2 MESES A 11 MESES 29 DIAS - Primera dosis - NO POS: NEUMOCOCO CONJUGADA-DE 2 MESES A 11 MESES 29 DIAS - Primera dosis
B20: 9. NEUMOCOCO2: Del informe mensual tome el total de dosis aplicadas y súmelas, así: - POS: NEUMOCOCO CONJUGADA - DE 2 MESES A 11 MESES 29 DIAS - Segundas dosis - NO POS: NEUMOCOCO CONJUGADA-DE 2 MESES A 11 MESES 29 DIAS - Segundas dosis
B21: 10. TRIPLE VIRAL: Del informe mensual tome el total de dosis aplicadas y súmelas , así: - POS: SRP (TRIPLE VIRAL) - Primera dosis - De 1 año - NO POS: SRP (TRIPLE VIRAL) - Dosis única - Un año de edad; y TRIPLE VIRAL + VARICELA - Un año - Dosis única
B22: 11. VARICELA: Del informe mensual tome el total de dosis aplicadas y súmelas , así: - POS: VARICELA - DE 1 AÑO - Primera Dosis - NO POS: VARICELA - DE 1 AÑO - Primera Dosis; y TRIPLE VIRAL + VARICELA - Un año - Primera dosis
B23: 12. HEPATITIS A: Del informe mensual tome el total de dosis aplicadas y súmelas , así: - POS: HEPATITIS A - DOSIS ÚNICA - DE 1 AÑO - NO POS: HEPATITIS A - DE 1 AÑO - Primera Dosis
B24: 13. R. NEUMOCOCO CONJUGADA: Del informe mensual tome el total de dosis aplicadas y súmelas , así: - POS: NEUMOCOCO CONJUGADA - DE 12 MESES A 23 MESES - DE 1 AÑO - Refuerzo. - NO POS: NEUMOCOCO CONJUGADA - DE 12 MESES A 23 MESES - Refuerzo
B25: 14. R1 DPT: Del informe mensual tome el total de dosis aplicadas y súmelas , así: - POS: PENTAVALENTE DPT - HB - Hib (CUANDO EL MINISTERIO LA AUTORICE) - 1er REF; DPT - AL AÑO DE LA 3ra DOSIS (De 18 a 23 meses) - 1er REF; DTPa acelular pediátrica - AL AÑO DE LA 3ra DOSIS (De 18 a 23 meses) - 1er REF; TOXOIDE TETANICO-DIFTERICO PEDIATRICO (TD) - AL AÑO DE LA 3ra DOSIS (De 18 a 23 meses) - 1er REF. - NO POS: PENTAVALENTE (DPTa -HiB-VPI) - AL AÑO DE LA 3ra DOSIS (De 18 a 23 meses) - 1er REF; HEXAVALENTE (DPTa -HB-HiB-VIP) - AL AÑO DE LA 3ra DOSIS (De 18 a 23 meses) - 1er REF - TETRAVALENTE (DPTa - VPI) - AL AÑO DE LA 3ra DOSIS (De 18 a 23 meses) - 1er REF; DPTaceluar pediátrica (DPTa) - AL AÑO DE LA 3ra DOSIS (De 18 a 23 meses) - 1er REF.; TOXOIDE TETÁNICO-DIFTERICO DE NIÑOS (TD) - DE 1 A 4 AÑOS - REF. 1;
B26: 15. F.AMARILLA: Del informe mensual tome el total de dosis aplicadas y súmelas , así: - POS: FIEBRE AMARILLA - DE 1 AÑO - NO POS: FIEBRE AMARILLA - DE 1 AÑO
B27: 16. R2. TRIPLE VIRAL: Del informe mensual tome el total de dosis aplicadas y súmelas , así: - POS: SRP (TRIPLE VIRAL) - REFUERZO DE 5 AÑOS - NO POS: SRP (TRIPLE VIRAL) - REFUERZO DE 5 AÑOS; Y TRIPLE VIRAL + VARICELA - REFUERZO DE 5 AÑOS

Sheet METAS 2020
A1: Metas de población PAI por localidad. Año 2020
A2: Localidad | B2: Menor de un año | C2: Un año | D2: Cinco años
A3: 01-USAQUEN | B3: 8,126 | C3: 7,777 | D3: 7,262
A4: 02-CHAPINERO | B4: 6,147 | C4: 5,477 | D4: 4,846
A5: 03-SANTA FE | B5: 881 | C5: 993 | D5: 814
A6: 04-SAN CRISTOBAL | B6: 3,776 | C6: 3,865 | D6: 3,369
A7: 05-USME | B7: 4,928 | C7: 5,014 | D7: 4,698
A8: 06-TUNJUELITO | B8: 2,568 | C8: 2,618 | D8: 2,609
A9: 07-BOSA | B9: 8,949 | C9: 9,693 | D9: 9,047
A10: 08-KENNEDY | B10: 12,334 | C10: 12,690 | D10: 12,781
A11: 09-FONTIBON | B11: 4,076 | C11: 4,267 | D11: 4,026
A12: 10-ENGATIVA | B12: 6,290 | C12: 6,839 | D12: 6,800
A13: 11-SUBA | B13: 10,787 | C13: 10,905 | D13: 10,886
A14: 12-BARRIOS UNIDOS | B14: 3,230 | C14: 2,676 | D14: 2,354
A15: 13-TEUSAQUILLO | B15: 3,285 | C15: 3,025 | D15: 3,442
A16: 14-MARTIRES | B16: 769 | C16: 1,039 | D16: 689
A17: 15-ANTONIO NARIÑO | B17: 3,008 | C17: 3,016 | D17: 4,179
A18: 16-PUENTE ARANDA | B18: 5,153 | C18: 4,531 | D18: 4,718
A19: 17-CANDELARIA | B19: 154 | C19: 130 | D19: 179
A20: 18-RAFAEL URIBE URIBE | B20: 5,460 | C20: 5,653 | D20: 5,967
A21: 19-CIUDAD BOLIVAR | B21: 9,595 | C21: 9,172 | D21: 8,436
A22: 20-SUMAPAZ | B22: 34 | C22: 45 | D22: 37
A23: Bogotá | B23: =SUM(B3:B22) -> 99,552 | C23: =SUM(C3:C22) -> 99,424 | D23: =SUM(D3:D22) -> 97,140
A25: Metas de población PAI por Subred. Año 2020
A26: Localidad | B26: Menor de un año | C26: Un año | D26: Cinco años
A27: 01-USAQUEN | B27: =B3 -> 8,126 | C27: 7,777 | D27: 7,262
A28: 02-CHAPINERO | B28: 6,147 | C28: 5,477 | D28: 4,846
A29: 10-ENGATIVA | B29: =B12 -> 6,290 | C29: 6,839 | D29: 6,800
A30: 11-SUBA | B30: 10,787 | C30: 10,905 | D30: 10,886
A31: 12-BARRIOS UNIDOS | B31: 3,230 | C31: 2,676 | D31: 2,354
A32: 13-TEUSAQUILLO | B32: 3,285 | C32: 3,025 | D32: 3,442
A33: SUBRED NORTE | B33: =SUM(B27:B32) -> 37,866 | C33: =SUM(C27:C32) -> 36,699 | D33: =SUM(D27:D32) -> 35,591
A34: 03-SANTA FE | B34: =B5 -> 881 | C34: 993 | D34: 814
A35: 04-SAN CRISTOBAL | B35: 3,776 | C35: 3,865 | D35: 3,369
A36: 14-MARTIRES | B36: =B16 -> 769 | C36: 1,039 | D36: 689
A37: 15-ANTONIO NARIÑO | B37: 3,008 | C37: 3,016 | D37: 4,179
A38: 17-CANDELARIA | B38: =B19 -> 154 | C38: 130 | D38: 179
A39: 18-RAFAEL URIBE URIBE | B39: 5,460 | C39: 5,653 | D39: 5,967
A40: SUBRED CENTRO ORIENTE | B40: =SUM(B34:B39) -> 14,049 | C40: =SUM(C34:C39) -> 14,696 | D40: =SUM(D34:D39) -> 15,197
A41: 05-USME | B41: =B7 -> 4,928 | C41: 5,014 | D41: 4,698
A42: 06-TUNJUELITO | B42: 2,568 | C42: 2,618 | D42: 2,609
A43: 19-CIUDAD BOLIVAR | B43: =B21 -> 9,595 | C43: 9,172 | D43: 8,436
A44: 20-SUMAPAZ | B44: 34 | C44: 45 | D44: 37
A45: SUBRED SUR | B45: =SUM(B41:B44) -> 17,125 | C45: =SUM(C41:C44) -> 16,849 | D45: =SUM(D41:D44) -> 15,781
A46: 07-BOSA | B46: =B9 -> 8,949 | C46: 9,693 | D46: 9,047
A47: 08-KENNEDY | B47: 12,334 | C47: 12,690 | D47: 12,781
A48: 09-FONTIBON | B48: 4,076 | C48: 4,267 | D48: 4,026
A49: 16-PUENTE ARANDA | B49: =B18 -> 5,153 | C49: =C18 -> 4,531 | D49: =D18 -> 4,718
A50: SUBRED SUR OCCIDENTE | B50: =SUM(B46:B49) -> 30,512 | C50: =SUM(C46:C49) -> 31,181 | D50: =SUM(D46:D49) -> 30,571
A51: Bogotá | B51: =B33+B40+B45+B50 -> 99,552 | C51: =C33+C40+C45+C50 -> 99,424 | D51: =D33+D40+D45+D50 -> 97,140
A54: Metas de población PAI por aseguradora / subred. Año 2020
A55: Aeguradora/ subred | B55: Menor de un año | C55: Un año | D55: Cinco años
A56: Aliansalud | B56: 1,665 | C56: 2,013 | D56: 2,326
A57: Medimás | B57: 1,721 | C57: 1,991 | D57: 2,192
A58: Compensar | B58: 12,896 | C58: 14,515 | D58: 15,820
A59: Coomeva | B59: 814 | C59: 862 | D59: 923
A60: Famisanar | B60: 13,333 | C60: 14,847 | D60: 16,783
A61: Fuerzas Militares | B61: 974 | C61: 1,240 | D61: 1,629
A62: Policía Nacional | B62: 1,156 | C62: 1,037 | D62: 1,106
A63: Nueva EPS | B63: 3,722 | C63: 3,700 | D63: 4,105
A64: Sanitas | B64: 12,048 | C64: 13,636 | D64: 14,738
A65: Salud Total | B65: 8,782 | C65: 9,391 | D65: 10,369
A66: Sura | B66: 3,934 | C66: 4,406 | D66: 4,777
A67: Ecopetrol | B67: 87 | C67: 93 | D67: 180
A68: Magisterio | B68: 270 | C68: 302 | D68: 502
A69: SOS** | B69: 37 | C69: 38 | D69: 53
A70: Unisalud | B70: 16 | C70: 26 | D70: 56
A71: Ferrocarriles Nales | B71: 1 | C71: 5 | D71: 1
A72: Coosalud | B72: 60 | C72: 102 | D72: 135
A73: Unicajas | B73: 1,637 | C73: 1,670 | D73: 1,833
A74: Capital Salud | B74: 11,424 | C74: 12,234 | D74: 11,130
A75: Sub red Centro oriente | B75: 3,880 | C75: 2,544 | D75: 1,344
A76: Sub red Norte | B76: =8412-B72 -> 8,352 | C76: =6388-C72 -> 6,286 | D76: =3154-D72 -> 3,019
A77: Sub red Sur | B77: 5,057 | C77: 2,925 | D77: 1,409
A78: Sub red Sur occidente | B78: 7,686 | C78: 5,561 | D78: 2,710
A79: Bogotá | B79: =SUM(B56:B78) -> 99,552 | C79: =SUM(C56:C78) -> 99,424 | D79: =SUM(D56:D78) -> 97,140

Sheet BCG
A1: EPS O ESE | B1: IPS | C1: Localidad | D1: Meta Anual Menor de 1 Año | E1: Meta Mensual | F1: Enero | G1: Febrero | H1: Marzo | I1: Abril | J1: Mayo | K1: Junio | L1: Julio | M1: Agosto | N1: Septiembre | O1: Octubre | P1: Noviembre | Q1: Diciembre | R1: Total | S1: % Cobertura | T1: Deficit
A2: COMPENSAR | B2: CLINICA LOS COBOS | C2: 01-USAQUEN | D2: 0 | E2: 0 | F2: 87 | G2: 102 | R2: =SUM(F2:Q2) -> 189 | S2: =IF(D2=0,0,+R2/D2) -> 0.0% | T2: =IF(COUNT(F2:Q2)*(D2/12)-R2<0,"",COUNT(F2:Q2)*(D2/12)-R2) -> 
A3: SANITAS | B3: CLINICA REINA SOFIA | C3: 01-USAQUEN | D3: 0 | E3: 0 | F3: 96 | G3: 78 | R3: 174 | S3: 0.0%
A4: PARTICULAR | B4: FUNDACION SANTA FE | C4: 01-USAQUEN | D4: 0 | E4: 0 | F4: 107 | G4: 108 | R4: 215 | S4: 0.0%
A5: 01-USAQUEN | B5: HOSPITAL SIMON BOLIVAR | C5: 01-USAQUEN | D5: 0 | E5: 0 | F5: 136 | G5: 95 | R5: 231 | S5: 0.0%
A6: PARTICULAR | B6: CLINICA DE LA MUJER | C6: 02-CHAPINERO | D6: 0 | E6: 0 | F6: 169 | G6: 151 | R6: 320 | S6: 0.0%
A7: PARTICULAR | B7: CLINICA DE MARLY S.A | C7: 02-CHAPINERO | D7: 0 | E7: 0 | F7: 55 | G7: 51 | R7: 106 | S7: 0.0%
A8: PARTICULAR | B8: CLINICA DEL COUNTRY | C8: 02-CHAPINERO | D8: 0 | E8: 0 | F8: 218 | G8: 218 | R8: 436 | S8: 0.0%
A9: MILITAR | B9: HOSPITAL MILITAR CENTRAL | C9: 02-CHAPINERO | D9: 0 | E9: 0 | F9: 50 | G9: 62 | R9: 112 | S9: 0.0%
A10: PARTICULAR | B10: HOSPITAL SAN IGNACIO | C10: 02-CHAPINERO | D10: 0 | E10: 0 | F10: 89 | G10: 88 | R10: 177 | S10: 0.0%
A11: UNICAJAS | B11: EXTRAMURAL SANTA FE | C11: 03-SANTA FE | D11: 0 | E11: 0 | F11: 0 | G11: 0 | R11: =SUM(F11:Q11) -> 0 | S11: =IF(D11=0,0,+R11/D11) -> 0.0% | T11: =IF(COUNT(F11:Q11)*(D11/12)-R11<0,"",COUNT(F11:Q11)*(D11/12)-R11) -> 0.0
A12: 04-SAN CRISTOBAL | B12: CAMI ALTAMIRA | C12: 04-SAN CRISTOBAL | D12: 0 | E12: 0 | F12: 0 | G12: 1 | R12: 1 | S12: 0.0%
A13: PARTICULAR | B13: CLINICA SAN RAFAEL | C13: 04-SAN CRISTOBAL | D13: 1216 | E13: 101 | F13: 449 | G13: 406 | R13: 855 | S13: 70.3%
A14: 04-SAN CRISTOBAL | B14: HOSPITAL LA VICTORIA | C14: 04-SAN CRISTOBAL | D14: 1216 | E14: 101 | F14: 225 | G14: 161 | R14: 386 | S14: 31.7%
A15: 04-SAN CRISTOBAL | B15: INSTITUTO MATERNO INFANTIL LA VICTORIA SEDE II | C15: 04-SAN CRISTOBAL | D15: 1216 | E15: 101 | F15: 359 | G15: 408 | R15: 767 | S15: 63.1%
A16: 07-BOSA | B16: CAMI PABLO VI BOSA | C16: 07-BOSA | D16: 0 | E16: 0 | F16: 0 | G16: 0 | R16: 0 | S16: 0.0% | T16: 0.0
A17: 07-BOSA | B17: HOSPITAL DE BOSA II NIVEL | C17: 07-BOSA | D17: 0 | E17: 0 | F17: 174 | G17: 154 | R17: 328 | S17: 0.0%
A18: 08-KENNEDY | B18: CAFAM KENNEDY | C18: 08-KENNEDY | E18: 0 | F18: 0 | G18: 0 | R18: 0 | S18: 0.0% | T18: 0.0
A19: 08-KENNEDY | B19: CAPS PATIO BONITO | C19: 08-KENNEDY | E19: 0 | F19: 0 | G19: 0 | R19: 0 | S19: 0.0% | T19: 0.0
A20: 08-KENNEDY | B20: CLINICA COLSUBSIDIO ROMA | C20: 08-KENNEDY | E20: 0 | F20: 0 | G20: 0 | R20: 0 | S20: 0.0% | T20: 0.0
A21: 08-KENNEDY | B21: CLINICA DEL OCCIDENTE LTDA | C21: 08-KENNEDY | D21: 0 | E21: 0 | F21: 92 | G21: 82 | R21: 174 | S21: 0.0%
A22: 08-KENNEDY | B22: COMPENSAR KENNEDY | C22: 08-KENNEDY | D22: 0 | E22: 0 | F22: 0 | G22: 0 | R22: 0 | S22: 0.0% | T22: 0.0
A23: 08-KENNEDY | B23: HOSPITAL OCCIDENTE DE KENNEDY | C23: 08-KENNEDY | D23: 0 | E23: 0 | F23: 406 | G23: 349 | R23: 755 | S23: 0.0%
A24: 08-KENNEDY | B24: USS TINTAL PATIO BONITO | C24: 08-KENNEDY | F24: 0 | G24: 0 | R24: 0 | S24: 0.0% | T24: 0.0
A25: 09-FONTIBON | B25: CAMI II CENTRO DE ESPECIALISTAS | C25: 09-FONTIBON | D25: 0 | E25: 0 | F25: 86 | G25: 91 | R25: 177 | S25: 0.0%
A26: 09-FONTIBON | B26: CENTRO DIA | C26: 09-FONTIBON | F26: 0 | G26: 0 | R26: 0 | S26: 0.0% | T26: 0.0
A27: 10-ENGATIVA | B27: HOSPITAL ENGATIVA II SEDE PRINCIPAL CALLE 80 | C27: 10-ENGATIVA | D27: 0 | E27: 0 | F27: 176 | G27: 161 | R27: 337 | S27: 0.0%
A28: 11-SUBA | B28: CENTRO DE SERVICIOS ESPECIALIZADOS | C28: 11-SUBA | D28: 0 | E28: 0 | F28: 214 | G28: 213 | R28: 427 | S28: 0.0%
A29: PARTICULAR | B29: CLINICA COLINA | C29: 11-SUBA | D29: 0 | E29: 0 | F29: 65 | G29: 51 | R29: 116 | S29: 0.0%
A30: PARTICULAR | B30: FUNDACION CLINICA CORPAS | C30: 11-SUBA | D30: 0 | E30: 0 | F30: 350 | G30: 390 | R30: 740 | S30: 0.0%
A31: PARTICULAR | B31: CLINICA COLSUBSIDIO CALLE 94 | C31: 12-BARRIOS UNIDOS | D31: 0 | E31: 0 | F31: 302 | G31: 290 | R31: 592 | S31: 0.0%
A32: CRUZ BLANCA | B32: HOSPITAL UNIVERSITARIO INFANTIL SAN JOSE | C32: 12-BARRIOS UNIDOS | D32: 0 | E32: 0 | F32: 369 | G32: 348 | R32: 717 | S32: 0.0%
A33: FAMI- CAFAM | B33: CLINICA CAFAM CALLE 51 | C33: 13-TEUSAQUILLO | D33: 0 | E33: 0 | F33: 472 | G33: 398 | R33: 870 | S33: 0.0%
A34: PARTICULAR | B34: CLINICA EUSALUD | C34: 13-TEUSAQUILLO | D34: 0 | E34: 0 | F34: 383 | G34: 381 | R34: 764 | S34: 0.0%
A35: PARTICULAR | B35: CLINICA FEDERMAN | C35: 13-TEUSAQUILLO | D35: 0 | E35: 0 | F35: 0 | G35: 0 | R35: 0 | S35: 0.0% | T35: 0.0
A36: PARTICULAR | B36: CLINICA PALERMO | C36: 13-TEUSAQUILLO | D36: 0 | E36: 0 | F36: 533 | G36: 438 | R36: 971 | S36: 0.0%
A37: SANITAS | B37: CLINICA UNIVERSITARIA COLOMBIA | C37: 13-TEUSAQUILLO | D37: 0 | E37: 0 | F37: 6 | G37: 16 | R37: 22 | S37: 0.0%
A38: POLICIA | B38: HOSPITAL CENTRAL DE LA POLICIA | C38: 13-TEUSAQUILLO | D38: 0 | E38: 0 | F38: 86 | G38: 77 | R38: 163 | S38: 0.0%
A39: PARTICULAR | B39: MEDICA MAGDALENA LTDA | C39: 13-TEUSAQUILLO | D39: 0 | E39: 0 | F39: 519 | G39: 520 | R39: 1039 | S39: 0.0%
A40: PARTICULAR | B40: HOSPITAL UNIVERSITARIO MAYOR | C40: 14-LOS MARTIRES | D40: 299 | E40: 25 | F40: 359 | G40: 408 | R40: 767 | S40: 256.5%
A41: PARTICULAR | B41: SOCIEDAD DE CIRUGIA HOSPITAL SAN JOSE | C41: 14-LOS MARTIRES | D41: 299 | E41: 25 | F41: 268 | G41: 332 | R41: 600 | S41: 200.7%
A42: 14-LOS MARTIRES | B42: USS SAMPER MENDOZA | C42: 14-LOS MARTIRES | D42: 0 | E42: 0 | F42: 0 | G42: 0 | R42: 0 | S42: 0.0% | T42: 0.0
A43: COMPENSAR | B43: USS 1 DE MAYO | C43: 15-ANTONIO NARIÑO | D43: 0 | E43: 0 | F43: 0 | G43: 1 | R43: 1 | S43: 0.0%
A44: FAMI- COLSB | B44: CENTRO MEDICO COLSUBSIDIO QUIROGA | C44: 18-RAFAEL URIBE URIBE | D44: 0 | E44: 0 | F44: 0 | G44: 0 | R44: 0 | S44: 0.0% | T44: 0.0
A45: PARTICULAR | B45: CENTRO POLICLINICO DEL OLAYA | C45: 18-RAFAEL URIBE URIBE | D45: 5526 | E45: 461 | F45: 365 | G45: 355 | R45: 720 | S45: 13.0% | T45: 201.0
A46: 19-CIUDAD BOLIVAR | B46: USS MEISSEN | C46: 19-CIUDAD BOLIVAR | D46: 0 | E46: =D46/12 -> 0 | F46: 553 | G46: 461 | R46: 1014 | S46: 0.0%
C57: Localidad | D57: Enero | E57: Febrero | F57: Marzo | G57: Abril | H57: Mayo | I57: Junio | J57: Julio | K57: Agosto | L57: Septiembre | M57: Octubre | N57: Noviembre | O57: Diciembre | P57: Total TC
C58: 01-USAQUEN | D58: =SUMIF($C$2:$C$49,$C58,F$2:F$49) -> 426 | E58: 383 | F58: 0 | G58: 0 | H58: 0 | I58: 0 | J58: 0 | K58: 0 | L58: 0 | M58: 0 | N58: 0 | O58: 0 | P58: =SUM(D58:O58) -> 809
C59: 02-CHAPINERO | D59: 581 | E59: 570 | F59: 0 | G59: 0 | H59: 0 | I59: 0 | J59: 0 | K59: 0 | L59: 0 | M59: 0 | N59: 0 | O59: 0 | P59: =SUM(D59:O59) -> 1,151
C60: 10-ENGATIVA | D60: 176 | E60: 161 | F60: 0 | G60: 0 | H60: 0 | I60: 0 | J60: 0 | K60: 0 | L60: 0 | M60: 0 | N60: 0 | O60: 0 | P60: 337
C61: 11-SUBA | D61: 629 | E61: 654 | F61: 0 | G61: 0 | H61: 0 | I61: 0 | J61: 0 | K61: 0 | L61: 0 | M61: 0 | N61: 0 | O61: 0 | P61: 1,283
C62: 12-BARRIOS UNIDOS | D62: 671 | E62: 638 | F62: 0 | G62: 0 | H62: 0 | I62: 0 | J62: 0 | K62: 0 | L62: 0 | M62: 0 | N62: 0 | O62: 0 | P62: 1,309
C63: 13-TEUSAQUILLO | D63: 1,999 | E63: 1,830 | F63: 0 | G63: 0 | H63: 0 | I63: 0 | J63: 0 | K63: 0 | L63: 0 | M63: 0 | N63: 0 | O63: 0 | P63: 3,829
C64: TOTAL TC SUBRED NORTE | D64: =SUM(D58:D63) -> 4,482 | E64: =SUM(E58:E63) -> 4,236 | F64: 0 | G64: 0 | H64: 0 | I64: 0 | J64: 0 | K64: 0 | L64: 0 | M64: 0 | N64: 0 | O64: 0 | P64: 8,718
C65: TOTAL INFORME SIS 151 SUBRED NORTE
C66: DIFERENCIA | D66: =+D64-D65 -> 4,482 | E66: =+E64-E65 -> 4,236 | F66: 0 | G66: 0 | H66: 0 | I66: 0 | J66: 0 | K66: 0 | L66: 0 | M66: 0 | N66: 0 | O66: 0 | P66: 8,718
C69: Localidad | D69: Enero | E69: Febrero | F69: Marzo | G69: Abril | H69: Mayo | I69: Junio | J69: Julio | K69: Agosto | L69: Septiembre | M69: Octubre | N69: Noviembre | O69: Diciembre | P69: Total TC
C70: 07-BOSA | D70: =SUMIF($C$2:$DC$49,$C70,F$2:F$49) -> 174 | E70: 154 | F70: 0 | G70: 0 | H70: 0 | I70: 0 | J70: 0 | K70: 0 | L70: 0 | M70: 0 | N70: 0 | O70: 0 | P70: 328
C71: 08-KENNEDY | D71: 498 | E71: 431 | F71: 0 | G71: 0 | H71: 0 | I71: 0 | J71: 0 | K71: 0 | L71: 0 | M71: 0 | N71: 0 | O71: 0 | P71: 929
C72: 09-FONTIBON | D72: 86 | E72: 91 | F72: 0 | G72: 0 | H72: 0 | I72: 0 | J72: 0 | K72: 0 | L72: 0 | M72: 0 | N72: 0 | O72: 0 | P72: 177
C73: 16-PUENTE ARANDA | D73: 0 | E73: 0 | F73: 0 | G73: 0 | H73: 0 | I73: 0 | J73: 0 | K73: 0 | L73: 0 | M73: 0 | N73: 0 | O73: 0 | P73: 0
C74: TOTAL TC SUBRED SUROCCIDENTE | D74: =SUM(D70:D73) -> 758 | E74: =SUM(E70:E73) -> 676 | F74: 0 | G74: 0 | H74: 0 | I74: 0 | J74: 0 | K74: 0 | L74: 0 | M74: 0 | N74: 0 | O74: 0 | P74: 1,434
C75: TOTAL INFORME SIS 151 SUBRED SUROCCIDENTE
C76: DIFERENCIA | D76: =+D74-D75 -> 758 | E76: =+E74-E75 -> 676 | F76: 0 | G76: 0 | H76: 0 | I76: 0 | J76: 0 | K76: 0 | L76: 0 | M76: 0 | N76: 0 | O76: 0 | P76: 1,434
C79: Localidad | D79: Enero | E79: Febrero | F79: Marzo | G79: Abril | H79: Mayo | I79: Junio | J79: Julio | K79: Agosto | L79: Septiembre | M79: Octubre | N79: Noviembre | O79: Diciembre | P79: Total TC
C80: 03-SANTA FE | D80: =SUMIF($C$2:$C$49,$C80,F$2:F$49) -> 0 | E80: 0 | F80: 0 | G80: 0 | H80: 0 | I80: 0 | J80: 0 | K80: 0 | L80: 0 | M80: 0 | N80: 0 | O80: 0 | P80: 0
C81: 04-SAN CRISTOBAL | D81: 1,033 | E81: 976 | F81: 0 | G81: 0 | H81: 0 | I81: 0 | J81: 0 | K81: 0 | L81: 0 | M81: 0 | N81: 0 | O81: 0 | P81: 2,009
C82: 14-LOS MARTIRES | D82: 627 | E82: 740 | F82: 0 | G82: 0 | H82: 0 | I82: 0 | J82: 0 | K82: 0 | L82: 0 | M82: 0 | N82: 0 | O82: 0 | P82: 1,367
C83: 15-ANTONIO NARIÑO | D83: 0 | E83: 1 | F83: 0 | G83: 0 | H83: 0 | I83: 0 | J83: 0 | K83: 0 | L83: 0 | M83: 0 | N83: 0 | O83: 0 | P83: 1
C84: 17-LA CANDELARIA | D84: 0 | E84: 0 | F84: 0 | G84: 0 | H84: 0 | I84: 0 | J84: 0 | K84: 0 | L84: 0 | M84: 0 | N84: 0 | O84: 0 | P84: 0
C85: 18-RAFAEL URIBE URIBE | D85: 365 | E85: 355 | F85: 0 | G85: 0 | H85: 0 | I85: 0 | J85: 0 | K85: 0 | L85: 0 | M85: 0 | N85: 0 | O85: 0 | P85: 720
C86: TOTAL TC SUBRED CENTRO ORIENTE | D86: =SUM(D80:D85) -> 2,025 | E86: =SUM(E80:E85) -> 2,072 | F86: 0 | G86: 0 | H86: 0 | I86: 0 | J86: 0 | K86: 0 | L86: 0 | M86: 0 | N86: 0 | O86: 0 | P86: 4,097
C87: TOTAL INFORME SIS 151 SUBRED CENTRO ORIENTE
C88: DIFERENCIA | D88: =+D86-D87 -> 2,025 | E88: =+E86-E87 -> 2,072 | F88: 0 | G88: 0 | H88: 0 | I88: 0 | J88: 0 | K88: 0 | L88: 0 | M88: 0 | N88: 0 | O88: 0 | P88: 4,097
C91: Localidad | D91: Enero | E91: Febrero | F91: Marzo | G91: Abril | H91: Mayo | I91: Junio | J91: Julio | K91: Agosto | L91: Septiembre | M91: Octubre | N91: Noviembre | O91: Diciembre | P91: Total TC
C92: 05-USME | D92: =SUMIF($C$2:$C$49,$C92,F$2:F$49) -> 0 | E92: 0 | F92: 0 | G92: 0 | H92: 0 | I92: 0 | J92: 0 | K92: 0 | L92: 0 | M92: 0 | N92: 0 | O92: 0 | P92: 0
C93: 06-TUNJUELITO | D93: 0 | E93: 0 | F93: 0 | G93: 0 | H93: 0 | I93: 0 | J93: 0 | K93: 0 | L93: 0 | M93: 0 | N93: 0 | O93: 0 | P93: 0
C94: 19-CIUDAD BOLIVAR | D94: 553 | E94: 461 | F94: 0 | G94: 0 | H94: 0 | I94: 0 | J94: 0 | K94: 0 | L94: 0 | M94: 0 | N94: 0 | O94: 0 | P94: 1,014
C95: 20-SUMAPAZ | D95: 0 | E95: 0 | F95: 0 | G95: 0 | H95: 0 | I95: 0 | J95: 0 | K95: 0 | L95: 0 | M95: 0 | N95: 0 | O95: 0 | P95: =SUM(D95:O95) -> 0
C96: TOTAL TC SUBRED SUR | D96: =SUM(D92:D95) -> 553 | E96: =SUM(E92:E95) -> 461 | F96: 0 | G96: 0 | H96: 0 | I96: 0 | J96: 0 | K96: 0 | L96: 0 | M96: 0 | N96: 0 | O96: 0 | P96: 1,014
C97: TOTAL INFORME SIS 151 SUBRED SUR
C98: DIFERENCIA | D98: =+D96-D97 -> 553 | E98: =+E96-E97 -> 461 | F98: 0 | G98: 0 | H98: 0 | I98: 0 | J98: 0 | K98: 0 | L98: 0 | M98: 0 | N98: 0 | O98: 0 | P98: 1,014
C102: TOTAL LOCALIDADES | D102: =+D64+D74+D86+D96 -> 7,818 | E102: 7,445 | F102: 0 | G102: 0 | H102: 0 | I102: 0 | J102: 0 | K102: 0 | L102: 0 | M102: 0 | N102: 0 | O102: 0 | P102: =SUM(P58:P101) -> 45,789
D104: =SUM(F2:F49) -> 7818 | E104: =SUM(G2:G49) -> 7445 | F104: 0 | G104: 0 | H104: 0 | I104: 0 | J104: 0 | K104: 0 | L104: 0 | M104: 0 | N104: 0 | O104: 0

Sheet HEPATITIS_B
A1: EPS O ESE | B1: IPS | C1: Localidad | D1: Meta Anual Menor de 1 Año | E1: Meta Mensual | F1: Enero | G1: Febrero | H1: Marzo | I1: Abril | J1: Mayo | K1: Junio | L1: Julio | M1: Agosto | N1: Septiembre | O1: Octubre | P1: Noviembre | Q1: Diciembre | R1: Total | S1: % Cobertura | T1: Deficit
A2: COMPENSAR | B2: CLINICA LOS COBOS | C2: 01-USAQUEN | D2: 0 | E2: 0 | F2: 88 | G2: 109 | R2: =SUM(F2:Q2) -> 197 | S2: =IF(D2=0,0,+R2/D2) -> 0.0% | T2: =IF(COUNT(F2:Q2)*(D2/12)-R2<0,"",COUNT(F2:Q2)*(D2/12)-R2) -> 
A3: SANITAS | B3: CLINICA REINA SOFIA | C3: 01-USAQUEN | D3: 0 | E3: 0 | F3: 96 | G3: 81 | R3: 177 | S3: 0.0%
A4: PARTICULAR | B4: FUNDACION SANTA FE | C4: 01-USAQUEN | D4: 0 | E4: 0 | F4: 111 | G4: 106 | R4: 217 | S4: 0.0%
A5: 01-USAQUEN | B5: HOSPITAL SIMON BOLIVAR | C5: 01-USAQUEN | D5: 0 | E5: 0 | F5: 142 | G5: 101 | R5: 243 | S5: 0.0%
A6: PARTICULAR | B6: CLINICA DE LA MUJER | C6: 02-CHAPINERO | D6: 0 | E6: 0 | F6: 175 | G6: 153 | R6: 328 | S6: 0.0%
A7: PARTICULAR | B7: CLINICA DE MARLY S.A | C7: 02-CHAPINERO | D7: 0 | E7: 0 | F7: 56 | G7: 52 | R7: 108 | S7: 0.0%
A8: PARTICULAR | B8: CLINICA DEL COUNTRY | C8: 02-CHAPINERO | D8: 0 | E8: 0 | F8: 219 | G8: 231 | R8: 450 | S8: 0.0%
A9: MILITAR | B9: HOSPITAL MILITAR CENTRAL | C9: 02-CHAPINERO | D9: 0 | E9: 0 | F9: 55 | G9: 66 | R9: 121 | S9: 0.0%
A10: PARTICULAR | B10: HOSPITAL SAN IGNACIO | C10: 02-CHAPINERO | D10: 0 | E10: 0 | F10: 95 | G10: 80 | R10: 175 | S10: 0.0%
A11: UNICAJAS | B11: EXTRAMURAL SANTA FE | C11: 03-SANTA FE | D11: 0 | E11: 0 | F11: 0 | G11: 0 | R11: =SUM(F11:Q11) -> 0 | S11: =IF(D11=0,0,+R11/D11) -> 0.0% | T11: =IF(COUNT(F11:Q11)*(D11/12)-R11<0,"",COUNT(F11:Q11)*(D11/12)-R11) -> 0.0
A12: 04-SAN CRISTOBAL | B12: CAMI ALTAMIRA | C12: 04-SAN CRISTOBAL | D12: 1216 | E12: 101 | F12: 0 | G12: 0 | R12: 0 | S12: 0.0% | T12: 202.7
A13: PARTICULAR | B13: CLINICA SAN RAFAEL | C13: 04-SAN CRISTOBAL | D13: 0 | E13: 0 | F13: 469 | G13: 420 | R13: 889 | S13: 0.0%
A14: 04-SAN CRISTOBAL | B14: HOSPITAL LA VICTORIA | C14: 04-SAN CRISTOBAL | D14: 1216 | E14: 101 | F14: 238 | G14: 417 | R14: 655 | S14: 53.9%
A15: 04-SAN CRISTOBAL | B15: INSTITUTO MATERNO INFANTIL LA VICTORIA SEDE II | C15: 04-SAN CRISTOBAL | D15: 1216 | E15: 101 | F15: 362 | G15: 384 | R15: 746 | S15: 61.3%
A16: 07-BOSA | B16: CAMI PABLO VI BOSA | C16: 07-BOSA | D16: 0 | E16: 0 | F16: 0 | G16: 0 | R16: 0 | S16: 0.0% | T16: 0.0
A17: 07-BOSA | B17: HOSPITAL DE BOSA II NIVEL | C17: 07-BOSA | D17: 0 | E17: 0 | F17: 174 | G17: 154 | R17: 328 | S17: 0.0%
A18: 08-KENNEDY | B18: CAFAM KENNEDY | C18: 08-KENNEDY | D18: 0 | F18: 0 | G18: 0 | R18: 0 | S18: 0.0% | T18: 0.0
A19: 08-KENNEDY | B19: CAPS PATIO BONITO | C19: 08-KENNEDY | D19: 0 | F19: 0 | G19: 0 | R19: 0 | S19: 0.0% | T19: 0.0
A20: 08-KENNEDY | B20: CLINICA COLSUBSIDIO ROMA | C20: 08-KENNEDY | D20: 0 | F20: 0 | G20: 0 | R20: 0 | S20: 0.0% | T20: 0.0
A21: 08-KENNEDY | B21: CLINICA DEL OCCIDENTE LTDA | C21: 08-KENNEDY | D21: 0 | E21: 0 | F21: 92 | G21: 86 | R21: 178 | S21: 0.0%
A22: 08-KENNEDY | B22: COMPENSAR KENNEDY | C22: 08-KENNEDY | D22: 0 | F22: 0 | G22: 0 | R22: 0 | S22: 0.0% | T22: 0.0
A23: 08-KENNEDY | B23: HOSPITAL OCCIDENTE DE KENNEDY | C23: 08-KENNEDY | D23: 0 | E23: 0 | F23: 419 | G23: 269 | R23: 688 | S23: 0.0%
A24: 08-KENNEDY | B24: USS TINTAL PATIO BONITO | C24: 08-KENNEDY | D24: 0 | F24: 0 | G24: 0 | R24: 0 | S24: 0.0% | T24: 0.0
A25: 09-FONTIBON | B25: CAMI II CENTRO DE ESPECIALISTAS | C25: 09-FONTIBON | D25: 0 | E25: 0 | F25: 86 | G25: 87 | R25: 173 | S25: 0.0%
A26: 09-FONTIBON | B26: CENTRO DIA | C26: 09-FONTIBON | D26: 0 | F26: 0 | G26: 0 | R26: 0 | S26: 0.0% | T26: 0.0
A27: 10-ENGATIVA | B27: HOSPITAL ENGATIVA II SEDE PRINCIPAL CALLE 80 | C27: 10-ENGATIVA | D27: 0 | E27: 0 | F27: 182 | G27: 159 | R27: 341 | S27: 0.0%
A28: 11-SUBA | B28: CENTRO DE SERVICIOS ESPECIALIZADOS | C28: 11-SUBA | D28: 0 | E28: 0 | F28: 215 | G28: 217 | R28: 432 | S28: 0.0%
A29: PARTICULAR | B29: CLINICA COLINA | C29: 11-SUBA | D29: 0 | E29: 0 | F29: 63 | G29: 52 | R29: 115 | S29: 0.0%
A30: PARTICULAR | B30: FUNDACION CLINICA CORPAS | C30: 11-SUBA | D30: 0 | E30: 0 | F30: 367 | G30: 397 | R30: 764 | S30: 0.0%
A31: PARTICULAR | B31: CLINICA COLSUBSIDIO CALLE 94 | C31: 12-BARRIOS UNIDOS | D31: 0 | E31: 0 | F31: 306 | G31: 298 | R31: 604 | S31: 0.0%
A32: CRUZ BLANCA | B32: HOSPITAL UNIVERSITARIO INFANTIL SAN JOSE | C32: 12-BARRIOS UNIDOS | D32: 0 | E32: 0 | F32: 383 | G32: 350 | R32: 733 | S32: 0.0%
A33: FAMI- CAFAM | B33: CLINICA CAFAM CALLE 51 | C33: 13-TEUSAQUILLO | D33: 0 | E33: 0 | F33: 481 | G33: 397 | R33: 878 | S33: 0.0%
A34: PARTICULAR | B34: CLINICA EUSALUD | C34: 13-TEUSAQUILLO | D34: 0 | E34: 0 | F34: 394 | G34: 397 | R34: 791 | S34: 0.0%
A35: PARTICULAR | B35: CLINICA FEDERMAN | C35: 13-TEUSAQUILLO | D35: 0 | E35: 0 | F35: 0 | G35: 0 | R35: 0 | S35: 0.0% | T35: 0.0
A36: PARTICULAR | B36: CLINICA PALERMO | C36: 13-TEUSAQUILLO | D36: 0 | E36: 0 | F36: 546 | G36: 450 | R36: 996 | S36: 0.0%
A37: SANITAS | B37: CLINICA UNIVERSITARIA COLOMBIA | C37: 13-TEUSAQUILLO | D37: 0 | E37: 0 | F37: 3 | G37: 6 | R37: 9 | S37: 0.0%
A38: POLICIA | B38: HOSPITAL CENTRAL DE LA POLICIA | C38: 13-TEUSAQUILLO | D38: 0 | E38: 0 | F38: 89 | G38: 78 | R38: 167 | S38: 0.0%
A39: PARTICULAR | B39: MEDICA MAGDALENA LTDA | C39: 13-TEUSAQUILLO | D39: 0 | E39: 0 | F39: 537 | G39: 538 | R39: 1075 | S39: 0.0%
A40: PARTICULAR | B40: HOSPITAL UNIVERSITARIO MAYOR | C40: 14-LOS MARTIRES | D40: 299 | E40: 25 | F40: 394 | G40: 308 | R40: 702 | S40: 234.8%
A41: PARTICULAR | B41: SOCIEDAD DE CIRUGIA HOSPITAL SAN JOSE | C41: 14-LOS MARTIRES | D41: 0 | E41: 0 | F41: 279 | G41: 349 | R41: 628 | S41: 0.0%
A42: 14-LOS MARTIRES | B42: USS SAMPER MENDOZA | C42: 14-LOS MARTIRES | D42: 299 | E42: 25 | F42: 0 | G42: 0 | R42: 0 | S42: 0.0% | T42: 49.8
A43: COMPENSAR | B43: USS 1 DE MAYO | C43: 15-ANTONIO NARIÑO | D43: 0 | E43: 0 | F43: 0 | G43: 0 | R43: 0 | S43: 0.0% | T43: 0.0
A44: FAMI- COLSB | B44: CENTRO MEDICO COLSUBSIDIO QUIROGA | C44: 18-RAFAEL URIBE URIBE | D44: 5526 | E44: 461 | F44: 0 | G44: 0 | R44: 0 | S44: 0.0% | T44: 921.0
A45: PARTICULAR | B45: CENTRO POLICLINICO DEL OLAYA | C45: 18-RAFAEL URIBE URIBE | D45: 0 | E45: 0 | F45: 373 | G45: 356 | R45: 729 | S45: 0.0%
A46: 19-CIUDAD BOLIVAR | B46: USS MEISSEN | C46: 19-CIUDAD BOLIVAR | D46: 0 | E46: =D46/12 -> 0 | F46: 556 | G46: 477 | R46: 1033 | S46: 0.0%
C57: Localidad | D57: Enero | E57: Febrero | F57: Marzo | G57: Abril | H57: Mayo | I57: Junio | J57: Julio | K57: Agosto | L57: Septiembre | M57: Octubre | N57: Noviembre | O57: Diciembre | P57: Total TC
C58: 01-USAQUEN | D58: =SUMIF($C$2:$C$49,$C58,F$2:F$49) -> 437 | E58: 397 | F58: 0 | G58: 0 | H58: 0 | I58: 0 | J58: 0 | K58: 0 | L58: 0 | M58: 0 | N58: 0 | O58: 0 | P58: =SUM(D58:O58) -> 834
C59: 02-CHAPINERO | D59: 600 | E59: 582 | F59: 0 | G59: 0 | H59: 0 | I59: 0 | J59: 0 | K59: 0 | L59: 0 | M59: 0 | N59: 0 | O59: 0 | P59: =SUM(D59:O59) -> 1,182
C60: 10-ENGATIVA | D60: 182 | E60: 159 | F60: 0 | G60: 0 | H60: 0 | I60: 0 | J60: 0 | K60: 0 | L60: 0 | M60: 0 | N60: 0 | O60: 0 | P60: 341
C61: 11-SUBA | D61: 645 | E61: 666 | F61: 0 | G61: 0 | H61: 0 | I61: 0 | J61: 0 | K61: 0 | L61: 0 | M61: 0 | N61: 0 | O61: 0 | P61: 1,311
C62: 12-BARRIOS UNIDOS | D62: 689 | E62: 648 | F62: 0 | G62: 0 | H62: 0 | I62: 0 | J62: 0 | K62: 0 | L62: 0 | M62: 0 | N62: 0 | O62: 0 | P62: 1,337
C63: 13-TEUSAQUILLO | D63: 2,050 | E63: 1,866 | F63: 0 | G63: 0 | H63: 0 | I63: 0 | J63: 0 | K63: 0 | L63: 0 | M63: 0 | N63: 0 | O63: 0 | P63: 3,916
C64: TOTAL TC SUBRED NORTE | D64: =SUM(D58:D63) -> 4,603 | E64: =SUM(E58:E63) -> 4,318 | F64: 0 | G64: 0 | H64: 0 | I64: 0 | J64: 0 | K64: 0 | L64: 0 | M64: 0 | N64: 0 | O64: 0 | P64: 8,921
C65: TOTAL INFORME SIS 151 SUBRED NORTE
C66: DIFERENCIA | D66: =+D64-D65 -> 4,603 | E66: =+E64-E65 -> 4,318 | F66: 0 | G66: 0 | H66: 0 | I66: 0 | J66: 0 | K66: 0 | L66: 0 | M66: 0 | N66: 0 | O66: 0 | P66: 8,921
C69: Localidad | D69: Enero | E69: Febrero | F69: Marzo | G69: Abril | H69: Mayo | I69: Junio | J69: Julio | K69: Agosto | L69: Septiembre | M69: Octubre | N69: Noviembre | O69: Diciembre | P69: Total TC
C70: 07-BOSA | D70: =SUMIF($C$2:$DC$49,$C70,F$2:F$49) -> 174 | E70: 154 | F70: 0 | G70: 0 | H70: 0 | I70: 0 | J70: 0 | K70: 0 | L70: 0 | M70: 0 | N70: 0 | O70: 0 | P70: 328
C71: 08-KENNEDY | D71: 511 | E71: 355 | F71: 0 | G71: 0 | H71: 0 | I71: 0 | J71: 0 | K71: 0 | L71: 0 | M71: 0 | N71: 0 | O71: 0 | P71: 866
C72: 09-FONTIBON | D72: 86 | E72: 87 | F72: 0 | G72: 0 | H72: 0 | I72: 0 | J72: 0 | K72: 0 | L72: 0 | M72: 0 | N72: 0 | O72: 0 | P72: 173
C73: 16-PUENTE ARANDA | D73: 0 | E73: 0 | F73: 0 | G73: 0 | H73: 0 | I73: 0 | J73: 0 | K73: 0 | L73: 0 | M73: 0 | N73: 0 | O73: 0 | P73: 0
C74: TOTAL TC SUBRED SUROCCIDENTE | D74: =SUM(D70:D73) -> 771 | E74: =SUM(E70:E73) -> 596 | F74: 0 | G74: 0 | H74: 0 | I74: 0 | J74: 0 | K74: 0 | L74: 0 | M74: 0 | N74: 0 | O74: 0 | P74: 1,367
C75: TOTAL INFORME SIS 151 SUBRED SUROCCIDENTE
C76: DIFERENCIA | D76: =+D74-D75 -> 771 | E76: =+E74-E75 -> 596 | F76: 0 | G76: 0 | H76: 0 | I76: 0 | J76: 0 | K76: 0 | L76: 0 | M76: 0 | N76: 0 | O76: 0 | P76: 1,367
C79: Localidad | D79: Enero | E79: Febrero | F79: Marzo | G79: Abril | H79: Mayo | I79: Junio | J79: Julio | K79: Agosto | L79: Septiembre | M79: Octubre | N79: Noviembre | O79: Diciembre | P79: Total TC
C80: 03-SANTA FE | D80: =SUMIF($C$2:$C$49,$C80,F$2:F$49) -> 0 | E80: 0 | F80: 0 | G80: 0 | H80: 0 | I80: 0 | J80: 0 | K80: 0 | L80: 0 | M80: 0 | N80: 0 | O80: 0 | P80: 0
C81: 04-SAN CRISTOBAL | D81: 1,069 | E81: 1,221 | F81: 0 | G81: 0 | H81: 0 | I81: 0 | J81: 0 | K81: 0 | L81: 0 | M81: 0 | N81: 0 | O81: 0 | P81: 2,290
C82: 14-LOS MARTIRES | D82: 673 | E82: 657 | F82: 0 | G82: 0 | H82: 0 | I82: 0 | J82: 0 | K82: 0 | L82: 0 | M82: 0 | N82: 0 | O82: 0 | P82: 1,330
C83: 15-ANTONIO NARIÑO | D83: 0 | E83: 0 | F83: 0 | G83: 0 | H83: 0 | I83: 0 | J83: 0 | K83: 0 | L83: 0 | M83: 0 | N83: 0 | O83: 0 | P83: 0
C84: 17-LA CANDELARIA | D84: 0 | E84: 0 | F84: 0 | G84: 0 | H84: 0 | I84: 0 | J84: 0 | K84: 0 | L84: 0 | M84: 0 | N84: 0 | O84: 0 | P84: 0
C85: 18-RAFAEL URIBE URIBE | D85: 373 | E85: 356 | F85: 0 | G85: 0 | H85: 0 | I85: 0 | J85: 0 | K85: 0 | L85: 0 | M85: 0 | N85: 0 | O85: 0 | P85: 729
C86: TOTAL TC SUBRED CENTRO ORIENTE | D86: =SUM(D80:D85) -> 2,115 | E86: =SUM(E80:E85) -> 2,234 | F86: 0 | G86: 0 | H86: 0 | I86: 0 | J86: 0 | K86: 0 | L86: 0 | M86: 0 | N86: 0 | O86: 0 | P86: 4,349
C87: TOTAL INFORME SIS 151 SUBRED CENTRO ORIENTE
C88: DIFERENCIA | D88: =+D86-D87 -> 2,115 | E88: =+E86-E87 -> 2,234 | F88: 0 | G88: 0 | H88: 0 | I88: 0 | J88: 0 | K88: 0 | L88: 0 | M88: 0 | N88: 0 | O88: 0 | P88: 4,349
C91: Localidad | D91: Enero | E91: Febrero | F91: Marzo | G91: Abril | H91: Mayo | I91: Junio | J91: Julio | K91: Agosto | L91: Septiembre | M91: Octubre | N91: Noviembre | O91: Diciembre | P91: Total TC
C92: 05-USME | D92: =SUMIF($C$2:$C$49,$C92,F$2:F$49) -> 0 | E92: 0 | F92: 0 | G92: 0 | H92: 0 | I92: 0 | J92: 0 | K92: 0 | L92: 0 | M92: 0 | N92: 0 | O92: 0 | P92: 0
C93: 06-TUNJUELITO | D93: 0 | E93: 0 | F93: 0 | G93: 0 | H93: 0 | I93: 0 | J93: 0 | K93: 0 | L93: 0 | M93: 0 | N93: 0 | O93: 0 | P93: 0
C94: 19-CIUDAD BOLIVAR | D94: 556 | E94: 477 | F94: 0 | G94: 0 | H94: 0 | I94: 0 | J94: 0 | K94: 0 | L94: 0 | M94: 0 | N94: 0 | O94: 0 | P94: 1,033
C95: 20-SUMAPAZ | D95: 0 | E95: 0 | F95: 0 | G95: 0 | H95: 0 | I95: 0 | J95: 0 | K95: 0 | L95: 0 | M95: 0 | N95: 0 | O95: 0 | P95: =SUM(D95:O95) -> 0
C96: TOTAL TC SUBRED SUR | D96: =SUM(D92:D95) -> 556 | E96: =SUM(E92:E95) -> 477 | F96: 0 | G96: 0 | H96: 0 | I96: 0 | J96: 0 | K96: 0 | L96: 0 | M96: 0 | N96: 0 | O96: 0 | P96: 1,033
C97: TOTAL INFORME SIS 151 SUBRED SUR
C98: DIFERENCIA | D98: =+D96-D97 -> 556 | E98: =+E96-E97 -> 477 | F98: 0 | G98: 0 | H98: 0 | I98: 0 | J98: 0 | K98: 0 | L98: 0 | M98: 0 | N98: 0 | O98: 0 | P98: 1,033
C102: TOTAL LOCALIDADES | D102: =+D64+D74+D86+D96 -> 8,045 | E102: 7,625 | F102: 0 | G102: 0 | H102: 0 | I102: 0 | J102: 0 | K102: 0 | L102: 0 | M102: 0 | N102: 0 | O102: 0 | P102: =SUM(P58:P101) -> 47,010
D104: =SUM(F2:F49) -> 8045 | E104: =SUM(G2:G49) -> 7625 | F104: 0 | G104: 0 | H104: 0 | I104: 0 | J104: 0 | K104: 0 | L104: 0 | M104: 0 | N104: 0 | O104: 0

Sheet PENTA1
A1: EAPB | B1: EPS O ESE | C1: IPS | D1: Localidad | E1: Meta Anual Menor de 1 Año | F1: Meta Mensual | G1: Enero | H1: Febrero | I1: Marzo | J1: Abril | K1: Mayo | L1: Junio | M1: Julio | N1: Agosto | O1: Septiembre | P1: Octubre | Q1: Noviembre | R1: Diciembre | S1: Total | T1: % Cobertura | U1: Deficit
A2: CAPITAL SALUD | B2: CAPITAL SALUD | C2: UPA SAN CRISTOBAL | D2: 01-USAQUEN | E2: 124 | F2: =+E2/12 -> 10 | G2: 7 | H2: 7 | S2: =SUM(G2:R2) -> 14 | T2: =IF(E2=0,0,+S2/E2) -> 11.3% | U2: =IF(COUNT(G2:R2)*(E2/12)-S2<0,"",COUNT(G2:R2)*(E2/12)-S2) -> 7
A3: CAPITAL SALUD | B3: CAPITAL SALUD | C3: UPA USAQUEN | D3: 01-USAQUEN | E3: 10 | F3: =+E3/12 -> 1 | G3: 0 | H3: 1 | S3: =SUM(G3:R3) -> 1 | T3: 10.0% | U3: 1
A4: CAPITAL SALUD | B4: CAPITAL SALUD | C4: UPA ORQUIDEAS | D4: 01-USAQUEN | E4: 11 | F4: 1 | G4: 1 | H4: 3 | S4: 4 | T4: 36.4%
A5: CAPITAL SALUD | B5: CAPITAL SALUD | C5: UPA CODITO | D5: 01-USAQUEN | E5: 107 | F5: 9 | G5: 7 | H5: 4 | S5: 11 | T5: 10.3% | U5: 7
A6: CAPITAL SALUD | B6: CAPITAL SALUD | C6: CAMI VERBENAL | D6: 01-USAQUEN | E6: 87 | F6: 7 | G6: 10 | H6: 4 | S6: 14 | T6: 16.1% | U6: 1
A7: CAPITAL SALUD | B7: CAPITAL SALUD | C7: HOSPITAL SIMON BOLIVAR | D7: 01-USAQUEN | E7: 36 | F7: 3 | G7: 22 | H7: 11 | S7: 33 | T7: 91.7%
A8: 01-USAQUEN | B8: 01-USAQUEN | C8: EXTRAMURAL USAQUEN | D8: 01-USAQUEN | E8: 0 | F8: 0 | G8: 5 | H8: 6 | S8: 11 | T8: 0.0%
A9: ALIANSALUD | B9: ALIANSALUD | C9: CENTRO MEDICO COLMEDICA SANTA BARBARA | D9: 01-USAQUEN | E9: 580 | F9: 48 | G9: 63 | H9: 43 | S9: 106 | T9: 18.3%
A10: COMPENSAR | B10: COMPENSAR | C10: USS CALLE 134 | D10: 01-USAQUEN | E10: 372 | F10: 31 | G10: 17 | H10: 21 | S10: 38 | T10: 10.2% | U10: 24
A11: COMPENSAR | B11: COMPENSAR | C11: USS CALLE 145 | D11: 01-USAQUEN | E11: 173 | F11: 14 | G11: 11 | H11: 10 | S11: 21 | T11: 12.1% | U11: 8
A12: COMPENSAR | B12: COMPENSAR | C12: JAVESALUD TOBERIN | D12: 01-USAQUEN | E12: 372 | F12: 31 | G12: 6 | H12: 12 | S12: 18 | T12: 4.8% | U12: 44
A13: COOMEVA | B13: COOMEVA | C13: SINERGIA UNIDAD INTEGRAL EN SALUD | D13: 01-USAQUEN | E13: 44 | F13: 4 | G13: 5 | H13: 4 | S13: 9 | T13: 20.5%
A14: FAMISANAR | B14: FAMI- COLSB | C14: CENTRO MEDICO COLSUBSIDIO USAQUEN | D14: 01-USAQUEN | E14: 298 | F14: 25 | G14: 38 | H14: 45 | S14: 83 | T14: 27.9%
A15: MILITAR | B15: MILITAR | C15: DISPENSARIO MEDICO CANTON NORTE | D15: 01-USAQUEN | E15: 205 | F15: 17 | G15: 8 | H15: 4 | S15: 12 | T15: 5.9% | U15: 22
A16: NUEVA EPS | B16: NUEVA EPS | C16: IPS VIVA 1A SEDE TOBERIN | D16: 01-USAQUEN | E16: 147 | F16: 12 | G16: 9 | H16: 9 | S16: 18 | T16: 12.2% | U16: 7
A17: NUEVA EPS | B17: NUEVA EPS | C17: CAFAM GRANADA HILLS | D17: 01-USAQUEN | E17: 44 | F17: 4 | G17: 2 | H17: 2 | S17: 4 | T17: 9.1% | U17: 3
A18: SANITAS | B18: SANITAS | C18: UAP SANITAS TOBERIN | D18: 01-USAQUEN | E18: 511 | F18: 43 | G18: 26 | H18: 38 | S18: 64 | T18: 12.5% | U18: 21
A19: SANITAS | B19: SANITAS | C19: MEDIKA IPS SANITAS UAP USAQUEN | D19: 01-USAQUEN | E19: 188 | F19: 16 | G19: 4 | H19: 2 | S19: 6 | T19: 3.2% | U19: 25
A20: SANITAS | B20: SANITAS | C20: UAP SANTA BARBARA | D20: 01-USAQUEN | E20: 796 | F20: 66 | G20: 92 | H20: 113 | S20: 205 | T20: 25.8%
A21: SANITAS | B21: SANITAS | C21: SANITAS BANCO DE LA REPUBLICA | D21: 01-USAQUEN | E21: 0 | F21: 0 | G21: 3 | H21: 3 | S21: 6 | T21: 0.0%
A22: SALUD TOTAL | B22: SALUD TOTAL | C22: VIRREY SOLIS TOBERÍN | D22: 01-USAQUEN | E22: 384 | F22: 32 | G22: 24 | H22: 13 | S22: 37 | T22: 9.6% | U22: 27
A23: SURA | B23: SURA | C23: IPS JAVESALUD SANTA BEATRIZ | D23: 01-USAQUEN | E23: 355 | F23: 30 | G23: 20 | H23: 14 | S23: 34 | T23: 9.6% | U23: 25
A24: ECOPETROL | B24: ECOPETROL | C24: IPS CLINICOS PALATINO | D24: 01-USAQUEN | E24: 87 | F24: 7 | G24: 6 | H24: 10 | S24: 16 | T24: 18.4%
A25: PARTICULAR | B25: PARTICULAR | C25: CLINICA PEDIATRICA COLSANITAS | D25: 01-USAQUEN | E25: 830 | F25: 69 | G25: 58 | H25: 57 | S25: 115 | T25: 13.9% | U25: 23
A26: PARTICULAR | B26: PARTICULAR | C26: CENTRO MEDICO COLSANITAS LA CALLEJA | D26: 01-USAQUEN | E26: 120 | F26: 10 | G26: 5 | H26: 15 | S26: 20 | T26: 16.7% | U26: 0
A27: PARTICULAR | B27: PARTICULAR | C27: CENTRO MEDICO COLSANITAS 108 | D27: 01-USAQUEN | E27: 40 | F27: 3 | G27: 5 | H27: 3 | S27: 8 | T27: 20.0%
A28: PARTICULAR | B28: PARTICULAR | C28: CENTRO MEDICO COLSANITAS SANTA ANA | D28: 01-USAQUEN | E28: 4 | F28: 0 | G28: 1 | H28: 3 | S28: 4 | T28: 100.0%
A29: PARTICULAR | B29: PARTICULAR | C29: FUNDACIÓN CARDIO INFANTIL | D29: 01-USAQUEN | E29: 0 | F29: 0 | G29: 7 | H29: 19 | S29: 26 | T29: 0.0%
A30: PARTICULAR | B30: PARTICULAR | C30: ENFASO USAQUEN | D30: 01-USAQUEN | E30: 0 | F30: 0 | G30: 9 | H30: 13 | S30: 22 | T30: 0.0%
A31: PARTICULAR | B31: PARTICULAR | C31: UNIDAD DE VACUNACIÓN INTERNACIONAL | D31: 01-USAQUEN | E31: 0 | F31: 0 | G31: 6 | H31: 6 | S31: 12 | T31: 0.0%
A32: PARTICULAR | B32: PARTICULAR | C32: INMUNOLOGÍA Y DIAGNÓSTICO ESPECIALIZADO LTDA. | D32: 01-USAQUEN | E32: 0 | F32: 0 | G32: 2 | H32: 0 | S32: 2 | T32: 0.0%
A33: PARTICULAR | B33: PARTICULAR | C33: PROTEGER HEALHT CARE | D33: 01-USAQUEN | E33: 0 | F33: 0 | G33: 2 | H33: 6 | S33: 8 | T33: 0.0%
A34: PARTICULAR | B34: PARTICULAR | C34: FUNDACION SANTA FE DE BOGOTA | D34: 01-USAQUEN | E34: 0 | F34: 0 | G34: 4 | H34: 2 | S34: 6 | T34: 0.0%
A35: PARTICULAR | B35: PARTICULAR | C35: IPS CRUZ ROJA SEDE UNICENTRO | D35: 01-USAQUEN | E35: 0 | F35: 0 | G35: 0 | H35: 0 | S35: 0 | T35: 0.0% | U35: 0
A36: PARTICULAR | B36: PARTICULAR | C36: IPS CRUZ ROJA SAMU CALLE 145 | D36: 01-USAQUEN | E36: 0 | F36: 0 | G36: 0 | H36: 0 | S36: 0 | T36: 0.0% | U36: 0
A37: PEDIATRAS | B37: PEDIATRAS | C37: DR. ALEJANDRO LÓPEZ | D37: 01-USAQUEN | E37: 0 | F37: 0 | G37: 0 | H37: 3 | S37: 3 | T37: 0.0%
A38: PEDIATRAS | B38: PEDIATRAS | C38: DR. CARLOS NEFTALI TORRES | D38: 01-USAQUEN | E38: 0 | F38: 0 | G38: 0 | H38: 4 | S38: 4 | T38: 0.0%
A39: PEDIATRAS | B39: PEDIATRAS | C39: DR. FRANCISCO NUÑEZ | D39: 01-USAQUEN | E39: 0 | F39: 0 | G39: 4 | H39: 1 | S39: 5 | T39: 0.0%
A40: PEDIATRAS | B40: PEDIATRAS | C40: DR. FERNANDO GOMEZ | D40: 01-USAQUEN | E40: 0 | F40: 0 | G40: 0 | H40: 0 | S40: 0 | T40: 0.0% | U40: 0
A41: PEDIATRAS | B41: PEDIATRAS | C41: DR. FERNANDO ZARATE MORENO | D41: 01-USAQUEN | E41: 0 | F41: 0 | G41: 1 | H41: 1 | S41: 2 | T41: 0.0%
A42: PEDIATRAS | B42: PEDIATRAS | C42: DR. GONZALO GARCIA | D42: 01-USAQUEN | E42: 0 | F42: 0 | G42: 1 | H42: 0 | S42: 1 | T42: 0.0%
A43: PEDIATRAS | B43: PEDIATRAS | C43: DR. GUSTAVO MORALES | D43: 01-USAQUEN | E43: 0 | F43: 0 | G43: 2 | H43: 1 | S43: 3 | T43: 0.0%
A44: PEDIATRAS | B44: PEDIATRAS | C44: DR. JAIME OSPINA | D44: 01-USAQUEN | E44: 0 | F44: 0 | G44: 1 | H44: 0 | S44: 1 | T44: 0.0%
A45: PEDIATRAS | B45: PEDIATRAS | C45: DR. JORGE URIBE | D45: 01-USAQUEN | E45: 0 | F45: 0 | G45: 0 | H45: 0 | S45: 0 | T45: 0.0% | U45: 0
A46: PEDIATRAS | B46: PEDIATRAS | C46: DR. JUAN LUIS FIGUEROA | D46: 01-USAQUEN | E46: 0 | F46: 0 | G46: 2 | H46: 0 | S46: 2 | T46: 0.0%
A47: PEDIATRAS | B47: PEDIATRAS | C47: DR. LUIS AUGUSTO PERNA | D47: 01-USAQUEN | E47: 0 | F47: 0 | G47: 4 | H47: 1 | S47: 5 | T47: 0.0%
A48: PEDIATRAS | B48: PEDIATRAS | C48: DR. LIBARDO ELI TRIANA | D48: 01-USAQUEN | E48: 0 | F48: 0 | G48: 0 | H48: 1 | S48: 1 | T48: 0.0%
A49: PEDIATRAS | B49: PEDIATRAS | C49: DR. OSWALDO MERCADO HOYOS | D49: 01-USAQUEN | E49: 0 | F49: 0 | G49: 2 | H49: 3 | S49: 5 | T49: 0.0%
A50: PEDIATRAS | B50: PEDIATRAS | C50: DR. ROBERTO BENIRO | D50: 01-USAQUEN | E50: 0 | F50: 0 | G50: 0 | H50: 0 | S50: 0 | T50: 0.0% | U50: 0
A51: PEDIATRAS | B51: PEDIATRAS | C51: DR. SERGIO ISAZA | D51: 01-USAQUEN | E51: 0 | F51: 0 | G51: 0 | H51: 0 | S51: 0 | T51: 0.0% | U51: 0
A52: PEDIATRAS | B52: PEDIATRAS | C52: DR. SANTIAGO UCROS | D52: 01-USAQUEN | E52: 0 | F52: 0 | G52: 0 | H52: 0 | S52: 0 | T52: 0.0% | U52: 0
A53: PEDIATRAS | B53: PEDIATRAS | C53: DR. GERMAN SILVA | D53: 01-USAQUEN | E53: 0 | F53: 0 | G53: 0 | H53: 0 | S53: 0 | T53: 0.0% | U53: 0
A54: PEDIATRAS | B54: PEDIATRAS | C54: DR. DANIEL ABRIL | D54: 01-USAQUEN | E54: 0 | F54: 0 | G54: 0 | H54: 0 | S54: 0 | T54: 0.0% | U54: 0
A55: PEDIATRAS | B55: PEDIATRAS | C55: DR. CARLOS EDUARDO OLMOS | D55: 01-USAQUEN | E55: 0 | F55: 0 | G55: 0 | H55: 0 | S55: 0 | T55: 0.0% | U55: 0
A56: PEDIATRAS | B56: PEDIATRAS | C56: DR. EDGARDO CHATMAN | D56: 01-USAQUEN | E56: 0 | F56: 0 | G56: 0 | H56: 0 | S56: 0 | T56: 0.0% | U56: 0
A57: PEDIATRAS | B57: PEDIATRAS | C57: DR. JORGE FLOREZ OTERO | D57: 01-USAQUEN | E57: 0 | F57: 0 | G57: 0 | H57: 0 | S57: 0 | T57: 0.0% | U57: 0
A58: PEDIATRAS | B58: PEDIATRAS | C58: DRA. ALEJANDRA MARIA VALENCIA | D58: 01-USAQUEN | E58: 0 | F58: 0 | G58: 0 | H58: 0 | S58: 0 | T58: 0.0% | U58: 0
A59: PEDIATRAS | B59: PEDIATRAS | C59: DRA. ANA MARIA GOYENECHE | D59: 01-USAQUEN | E59: 0 | F59: 0 | G59: 0 | H59: 0 | S59: 0 | T59: 0.0% | U59: 0
A60: PEDIATRAS | B60: PEDIATRAS | C60: DRA. JIMENA VARELA | D60: 01-USAQUEN | E60: 0 | F60: 0 | G60: 0 | H60: 0 | S60: 0 | T60: 0.0% | U60: 0
A61: PEDIATRAS | B61: PEDIATRAS | C61: DRA. LIA SAN MIGUEL | D61: 01-USAQUEN | E61: 0 | F61: 0 | G61: 0 | H61: 0 | S61: 0 | T61: 0.0% | U61: 0
A62: PEDIATRAS | B62: PEDIATRAS | C62: DRA. LIBIA SEGURA | D62: 01-USAQUEN | E62: 0 | F62: 0 | G62: 2 | H62: 0 | S62: 2 | T62: 0.0%
A63: PEDIATRAS | B63: PEDIATRAS | C63: DRA. MARÍA JOSÉ PEDRAZA | D63: 01-USAQUEN | E63: 0 | F63: 0 | G63: 0 | H63: 0 | S63: 0 | T63: 0.0% | U63: 0
A64: PEDIATRAS | B64: PEDIATRAS | C64: DRA. MARTHA LUCIA SANCHEZ | D64: 01-USAQUEN | E64: 0 | F64: 0 | G64: 0 | H64: 0 | S64: 0 | T64: 0.0% | U64: 0
A65: PEDIATRAS | B65: PEDIATRAS | C65: DRA. OLGA LUCÍA SÁNCHEZ | D65: 01-USAQUEN | E65: 0 | F65: 0 | G65: 0 | H65: 0 | S65: 0 | T65: 0.0% | U65: 0
A66: PEDIATRAS | B66: PEDIATRAS | C66: DRA. SANDRA BELTRAN | D66: 01-USAQUEN | E66: 0 | F66: 0 | G66: 1 | H66: 1 | S66: 2 | T66: =IF(E66=0,0,+S66/E66) -> 0.0% | U66: =IF(COUNT(G66:R66)*(E66/12)-S66<0,"",COUNT(G66:R66)*(E66/12)-S66) -> 
A67: PEDIATRAS | B67: PEDIATRAS | C67: DRA. IVANA CABRERA | D67: 01-USAQUEN | E67: 0 | F67: =+E67/12 -> 0 | G67: 0 | H67: 0 | S67: =SUM(G67:R67) -> 0 | T67: 0.0% | U67: 0
A68: PEDIATRAS | B68: PEDIATRAS | C68: DRA. NAYITA ALARCON | D68: 01-USAQUEN | E68: 0 | F68: 0 | G68: 0 | H68: 0 | S68: 0 | T68: 0.0% | U68: 0
A69: PEDIATRAS | B69: PEDIATRAS | C69: DRA. ELIZABETH GARCIA | D69: 01-USAQUEN | E69: 0 | F69: 0 | G69: 0 | H69: 0 | S69: 0 | T69: 0.0% | U69: 0
A70: PEDIATRAS | B70: PEDIATRAS | C70: DRA. BERTHA CALDERON DE RAMOS | D70: 01-USAQUEN | E70: 0 | F70: 0 | G70: 0 | H70: 0 | S70: 0 | T70: 0.0% | U70: 0
A71: PEDIATRAS | B71: PEDIATRAS | C71: DRA. MIRYAM CORREA | D71: 01-USAQUEN | E71: 0 | F71: 0 | G71: 0 | H71: 1 | S71: 1 | T71: 0.0%
A72: 01-USAQUEN | B72: UNICAJAS | C72: UPA SAN CRISTOBAL | D72: 01-USAQUEN | E72: 6 | F72: 1 | G72: 1 | H72: 0 | S72: 1 | T72: 16.7% | U72: 0
A73: UNICAJAS | B73: UNICAJAS | C73: UPA USAQUEN | D73: 01-USAQUEN | E73: 9 | F73: 1 | G73: 0 | H73: 0 | S73: 0 | T73: 0.0% | U73: 2
A74: UNICAJAS | B74: UNICAJAS | C74: UPA ORQUIDEAS | D74: 01-USAQUEN | E74: 6 | F74: 1 | G74: 0 | H74: 0 | S74: 0 | T74: 0.0% | U74: 1
A75: UNICAJAS | B75: UNICAJAS | C75: UPA CODITO | D75: 01-USAQUEN | E75: 5 | F75: 0 | G75: 0 | H75: 0 | S75: 0 | T75: 0.0% | U75: 1
A76: UNICAJAS | B76: UNICAJAS | C76: CAMI VERBENAL | D76: 01-USAQUEN | E76: 6 | F76: 1 | G76: 0 | H76: 0 | S76: 0 | T76: 0.0% | U76: 1
A77: 01-USAQUEN | B77: UNICAJAS | C77: HOSPITAL SIMON BOLIVAR | D77: 01-USAQUEN | E77: 6 | F77: 1 | G77: 1 | H77: 1 | S77: 2 | T77: 33.3%
A78: 01-USAQUEN | B78: OTROS | C78: UPA SAN CRISTOBAL | D78: 01-USAQUEN | E78: 300 | F78: 25 | G78: 1 | H78: 3 | S78: 4 | T78: 1.3% | U78: 46
A79: 01-USAQUEN | B79: OTROS | C79: UPA USAQUEN | D79: 01-USAQUEN | E79: 100 | F79: 8 | G79: 0 | H79: 0 | S79: 0 | T79: 0.0% | U79: 17
A80: 01-USAQUEN | B80: OTROS | C80: UPA ORQUIDEAS | D80: 01-USAQUEN | E80: 120 | F80: 10 | G80: 1 | H80: 0 | S80: 1 | T80: 0.8% | U80: 19
A81: 01-USAQUEN | B81: OTROS | C81: UPA CODITO | D81: 01-USAQUEN | E81: 218 | F81: 18 | G81: 4 | H81: 0 | S81: 4 | T81: 1.8% | U81: 32
A82: 01-USAQUEN | B82: OTROS | C82: CAMI VERBENAL | D82: 01-USAQUEN | E82: 309 | F82: 26 | G82: 4 | H82: 3 | S82: 7 | T82: 2.3% | U82: 45
A83: 01-USAQUEN | B83: OTROS | C83: HOSPITAL SIMON BOLIVAR | D83: 01-USAQUEN | E83: 480 | F83: 40 | G83: 8 | H83: 11 | S83: 19 | T83: 4.0% | U83: 61
A84: 01-USAQUEN | B84: DEMAS EAPB | C84: UPA SAN CRISTOBAL | D84: 01-USAQUEN | E84: 0 | F84: 0 | G84: 10 | H84: 8 | S84: 18 | T84: 0.0%
A85: 01-USAQUEN | B85: DEMAS EAPB | C85: UPA USAQUEN | D85: 01-USAQUEN | E85: 0 | F85: 0 | G85: 2 | H85: 0 | S85: 2 | T85: 0.0%
A86: 01-USAQUEN | B86: DEMAS EAPB | C86: UPA ORQUIDEAS | D86: 01-USAQUEN | E86: 0 | F86: 0 | G86: 2 | H86: 2 | S86: 4 | T86: 0.0%
A87: 01-USAQUEN | B87: DEMAS EAPB | C87: UPA CODITO | D87: 01-USAQUEN | E87: 0 | F87: 0 | G87: 7 | H87: 11 | S87: 18 | T87: 0.0%
A88: 01-USAQUEN | B88: DEMAS EAPB | C88: CAMI VERBENAL | D88: 01-USAQUEN | E88: 0 | F88: 0 | G88: 4 | H88: 12 | S88: 16 | T88: 0.0%
A89: 01-USAQUEN | B89: DEMAS EAPB | C89: HOSPITAL SIMON BOLIVAR | D89: 01-USAQUEN | E89: 0 | F89: 0 | G89: 16 | H89: 20 | S89: 36 | T89: 0.0%
A90: MEDIMAS | B90: MEDIMAS | C90: Corvesalud S.A.S - I P S Chico | D90: 01-USAQUEN | E90: 320 | F90: 27 | G90: 5 | H90: 5 | S90: 10 | T90: 3.1% | U90: 43
A91: FAMISANAR | B91: COLSUBSIDIO | C91: Sura PAC Santa Bárbara | D91: 01-USAQUEN | E91: 0 | F91: 0 | S91: 0 | T91: 0.0% | U91: 0
A92: CAPITAL SALUD | B92: CAPITAL SALUD | C92: UPA SAN LUIS | D92: 02-CHAPINERO | E92: 12 | F92: 1 | G92: 4 | H92: 2 | S92: 6 | T92: 50.0%
A93: 02-CHAPINERO | B93: 02-CHAPINERO | C93: EXTRAMURAL CHAPINERO | D93: 02-CHAPINERO | E93: 0 | F93: 0 | G93: 1 | H93: 1 | S93: 2 | T93: 0.0%
A94: COMPENSAR | B94: COMPENSAR | C94: USS CALLE 42 | D94: 02-CHAPINERO | E94: 612 | F94: 51 | G94: 29 | H94: 43 | S94: 72 | T94: 11.8% | U94: 30
A95: COMPENSAR | B95: COMPENSAR | C95: USS CALLE 67 | D95: 02-CHAPINERO | E95: 0 | F95: 0 | G95: 0 | H95: 0 | S95: 0 | T95: 0.0% | U95: 0
A96: COMPENSAR | B96: COMPENSAR | C96: USS CALLE 94 | D96: 02-CHAPINERO | E96: 369 | F96: 31 | G96: 35 | H96: 41 | S96: 76 | T96: 20.6%
A97: COMPENSAR | B97: COMPENSAR | C97: VIVA 1A IPS CHAPINERO | D97: 02-CHAPINERO | E97: 73 | F97: 6 | G97: 4 | H97: 6 | S97: 10 | T97: 13.7% | U97: 2
A98: COOMEVA | B98: COOMEVA | C98: SINERGIA UNIDAD BASICA LOURDES | D98: 02-CHAPINERO | E98: 217 | F98: 18 | G98: 9 | H98: 10 | S98: 19 | T98: 8.8% | U98: 17
A99: FAMISANAR | B99: FAMI- CAFAM | C99: CENTRO DE ATENCION EN SALUD CAFAM CALLE 48 | D99: 02-CHAPINERO | E99: 1050 | F99: 88 | G99: 31 | H99: 35 | S99: 66 | T99: 6.3% | U99: 109
A100: FAMISANAR | B100: FAMI- CAFAM | C100: CENTRO DE ATENCION EN SALUD CAFAM CALLE 90 | D100: 02-CHAPINERO | E100: 200 | F100: 17 | G100: 11 | H100: 7 | S100: 18 | T100: 9.0% | U100: 15
A101: FAMISANAR | B101: FAMI- COLSB | C101: CLINICA COLSUBSIDIO EL LAGO | D101: 02-CHAPINERO | E101: 392 | F101: 33 | G101: 10 | H101: 11 | S101: 21 | T101: 5.4% | U101: 44
A102: MILITAR | B102: MILITAR | C102: HOSPITAL MILITAR CENTRAL | D102: 02-CHAPINERO | E102: 70 | F102: 6 | G102: 10 | H102: 11 | S102: 21 | T102: 30.0%
A103: POLICIA | B103: POLICIA | C103: POLICIA NACIONAL ESPAM CHAPINERO | D103: 02-CHAPINERO | E103: 117 | F103: 10 | G103: 4 | H103: 0 | S103: 4 | T103: 3.4% | U103: 16
A104: NUEVA EPS | B104: NUEVA EPS | C104: IPS VIVA 1A SEDE MARLY | D104: 02-CHAPINERO | E104: 131 | F104: 11 | G104: 9 | H104: 5 | S104: 14 | T104: 10.7% | U104: 8
A105: SANITAS | B105: SANITAS | C105: EPS SANITAS CENTRO MEDICO TEUSAQUILLO | D105: 02-CHAPINERO | E105: 579 | F105: 48 | G105: 28 | H105: 23 | S105: 51 | T105: 8.8% | U105: 46
A106: SALUD TOTAL | B106: SALUD TOTAL | C106: VIRREY SOLIS CHAPINERO | D106: 02-CHAPINERO | E106: 337 | F106: 28 | G106: 16 | H106: 13 | S106: 29 | T106: 8.6% | U106: 27
A107: SURA | B107: SURA | C107: PUNTO DE SALUD CHAPINERO | D107: 02-CHAPINERO | E107: 237 | F107: 20 | G107: 13 | H107: 9 | S107: 22 | T107: 9.3% | U107: 18
A108: SURA | B108: SURA | C108: SALUD SURA | D108: 02-CHAPINERO | E108: 454 | F108: 38 | G108: 47 | H108: 29 | S108: 76 | T108: 16.7%
A109: PARTICULAR | B109: PARTICULAR | C109: CENTRO MEDICO COLSANITAS CALLE 96 | D109: 02-CHAPINERO | E109: 24 | F109: 2 | G109: 2 | H109: 1 | S109: 3 | T109: 12.5% | U109: 1
A110: PARTICULAR | B110: PARTICULAR | C110: CENTRO DE ESPECIALISTAS MEDICOS AXA COLPATRIA | D110: 02-CHAPINERO | E110: 0 | F110: 0 | G110: 5 | H110: 6 | S110: 11 | T110: 0.0%
A111: PARTICULAR | B111: PARTICULAR | C111: CLINICA DE LA MUJER | D111: 02-CHAPINERO | E111: 0 | F111: 0 | G111: 46 | H111: 39 | S111: 85 | T111: 0.0%
A112: PARTICULAR | B112: PARTICULAR | C112: VACUNARTE IPS | D112: 02-CHAPINERO | E112: 0 | F112: 0 | G112: 0 | H112: 3 | S112: 3 | T112: 0.0%
A113: PARTICULAR | B113: PARTICULAR | C113: UNIMARLY | D113: 02-CHAPINERO | E113: 0 | F113: 0 | G113: 0 | H113: 0 | S113: 0 | T113: 0.0% | U113: 0
A114: PARTICULAR | B114: PARTICULAR | C114: HOSPITAL SAN IGNACIO | D114: 02-CHAPINERO | E114: 0 | F114: 0 | G114: 13 | H114: 7 | S114: 20 | T114: 0.0%
A115: PARTICULAR | B115: PARTICULAR | C115: PROGRAMA MADRE CANGURO HOSPITAL SAN IGNACIO | D115: 02-CHAPINERO | E115: 0 | F115: 0 | G115: 92 | H115: 100 | S115: 192 | T115: 0.0%
A116: PARTICULAR | B116: PARTICULAR | C116: IPS AVENIR | D116: 02-CHAPINERO | E116: 0 | F116: 0 | G116: 0 | H116: 0 | S116: 0 | T116: 0.0% | U116: 0
A117: PARTICULAR | B117: PARTICULAR | C117: IPS INMUNOLOGIA Y DIAGNOSTICO ESPECIALIZADO | D117: 02-CHAPINERO | E117: 0 | F117: 0 | G117: 0 | H117: 1 | S117: 1 | T117: 0.0%
A118: PARTICULAR | B118: PARTICULAR | C118: ASOCIACION PEDIATRICA DE LOS ANDES | D118: 02-CHAPINERO | E118: 0 | F118: 0 | G118: 1 | H118: 0 | S118: 1 | T118: 0.0%
A119: PARTICULAR | B119: PARTICULAR | C119: CRUZ ROJA SEDE ANDINO | D119: 02-CHAPINERO | E119: 0 | F119: 0 | G119: 0 | H119: 0 | S119: 0 | T119: 0.0% | U119: 0
A120: PARTICULAR | B120: PARTICULAR | C120: CENTRO MEDICO SANTA MONICA | D120: 02-CHAPINERO | E120: 0 | F120: 0 | G120: 0 | H120: 0 | S120: 0 | T120: 0.0% | U120: 0
A121: PEDIATRAS | B121: PEDIATRAS | C121: DR. JUAN OSCAR TAMAYO | D121: 02-CHAPINERO | E121: 0 | F121: 0 | G121: 0 | H121: 0 | S121: 0 | T121: 0.0% | U121: 0
A122: PEDIATRAS | B122: PEDIATRAS | C122: DR. ROBERTO SUAREZ | D122: 02-CHAPINERO | E122: 0 | F122: 0 | G122: 0 | H122: 0 | S122: 0 | T122: 0.0% | U122: 0
A123: PEDIATRAS | B123: PEDIATRAS | C123: DR. WILLIAM RICARDO CABRA | D123: 02-CHAPINERO | E123: 0 | F123: 0 | G123: 3 | H123: 2 | S123: 5 | T123: 0.0%
A124: PEDIATRAS | B124: PEDIATRAS | C124: DR. EDGAR CASTRO | D124: 02-CHAPINERO | E124: 0 | F124: 0 | G124: 5 | H124: 2 | S124: 7 | T124: 0.0%
A125: PEDIATRAS | B125: PEDIATRAS | C125: DR. PABLO KRAUSS | D125: 02-CHAPINERO | E125: 0 | F125: 0 | G125: 3 | H125: 1 | S125: 4 | T125: 0.0%
A126: PEDIATRAS | B126: PEDIATRAS | C126: DR. HERNAN ROBLES | D126: 02-CHAPINERO | E126: 0 | F126: 0 | G126: 4 | H126: 3 | S126: 7 | T126: 0.0%
A127: PEDIATRAS | B127: PEDIATRAS | C127: DR. RAFAEL GAMBOA CASABLANCA | D127: 02-CHAPINERO | E127: 0 | F127: 0 | G127: 13 | H127: 5 | S127: 18 | T127: 0.0%
A128: PEDIATRAS | B128: PEDIATRAS | C128: DR. JAVIER MEJIA | D128: 02-CHAPINERO | E128: 0 | F128: 0 | G128: 2 | H128: 2 | S128: 4 | T128: 0.0%
A129: PEDIATRAS | B129: PEDIATRAS | C129: DR. CARLOS CORTAZAR | D129: 02-CHAPINERO | E129: 0 | F129: 0 | G129: 0 | H129: 0 | S129: 0 | T129: 0.0% | U129: 0
A130: PEDIATRAS | B130: PEDIATRAS | C130: DR. NELSON PARDO | D130: 02-CHAPINERO | E130: 0 | F130: 0 | G130: 2 | H130: 1 | S130: 3 | T130: =IF(E130=0,0,+S130/E130) -> 0.0% | U130: =IF(COUNT(G130:R130)*(E130/12)-S130<0,"",COUNT(G130:R130)*(E130/12)-S130) -> 
A131: PEDIATRAS | B131: PEDIATRAS | C131: DR. ALVARO JACOME | D131: 02-CHAPINERO | E131: 0 | F131: =+E131/12 -> 0 | G131: 3 | H131: 1 | S131: =SUM(G131:R131) -> 4 | T131: 0.0%
A132: PEDIATRAS | B132: PEDIATRAS | C132: DR. SILVIO COPO | D132: 02-CHAPINERO | E132: 0 | F132: 0 | G132: 0 | H132: 1 | S132: 1 | T132: 0.0%
A133: PEDIATRAS | B133: PEDIATRAS | C133: DR. HECTOR FERNANDO MENDOZA | D133: 02-CHAPINERO | E133: 0 | F133: 0 | G133: 0 | H133: 0 | S133: 0 | T133: 0.0% | U133: 0
A134: PEDIATRAS | B134: PEDIATRAS | C134: DR. DIMITRIOS | D134: 02-CHAPINERO | E134: 0 | F134: 0 | G134: 0 | H134: 1 | S134: 1 | T134: 0.0%
A135: PEDIATRAS | B135: PEDIATRAS | C135: DR. ALVARO MARIÑO | D135: 02-CHAPINERO | E135: 0 | F135: 0 | G135: 0 | H135: 1 | S135: 1 | T135: 0.0%
A136: PEDIATRAS | B136: PEDIATRAS | C136: DR. ANDRES VARGAS | D136: 02-CHAPINERO | E136: 0 | F136: 0 | G136: 2 | H136: 1 | S136: 3 | T136: 0.0%
A137: PEDIATRAS | B137: PEDIATRAS | C137: DR. JORGE CAMILO LUNA | D137: 02-CHAPINERO | E137: 0 | F137: 0 | G137: 1 | H137: 5 | S137: 6 | T137: 0.0%
A138: PEDIATRAS | B138: PEDIATRAS | C138: DR. BERNARDO HUERTAS | D138: 02-CHAPINERO | E138: 0 | F138: 0 | G138: 6 | H138: 10 | S138: 16 | T138: 0.0%
A139: PEDIATRAS | B139: PEDIATRAS | C139: DR. CARLOS M CASTILLO | D139: 02-CHAPINERO | E139: 0 | F139: 0 | G139: 0 | H139: 0 | S139: 0 | T139: 0.0% | U139: 0
A140: PEDIATRAS | B140: PEDIATRAS | C140: DR. HEINZ OTTO PFALZGRAF | D140: 02-CHAPINERO | E140: 0 | F140: 0 | G140: 0 | H140: 0 | S140: 0 | T140: 0.0% | U140: 0
A141: PEDIATRAS | B141: PEDIATRAS | C141: DR. GONZALEZ BALLESTEROS | D141: 02-CHAPINERO | E141: 0 | F141: 0 | G141: 0 | H141: 0 | S141: 0 | T141: 0.0% | U141: 0
A142: PEDIATRAS | B142: PEDIATRAS | C142: DR. NORBERTO SALAMANCA | D142: 02-CHAPINERO | E142: 0 | F142: 0 | G142: 0 | H142: 0 | S142: 0 | T142: 0.0% | U142: 0
A143: PEDIATRAS | B143: PEDIATRAS | C143: DR. CAMILO ENRIQUE SOTOMAYOR | D143: 02-CHAPINERO | E143: 0 | F143: 0 | G143: 0 | H143: 2 | S143: 2 | T143: 0.0%
A144: PEDIATRAS | B144: PEDIATRAS | C144: DR. SANTIAGO RUEDA SAIZ | D144: 02-CHAPINERO | E144: 0 | F144: 0 | G144: 0 | H144: 2 | S144: 2 | T144: 0.0%
A145: PEDIATRAS | B145: PEDIATRAS | C145: DR. HENRY HERNANDO SANCHEZ ESCOBAR | D145: 02-CHAPINERO | E145: 0 | F145: 0 | G145: 1 | H145: 1 | S145: 2 | T145: 0.0%
A146: PEDIATRAS | B146: PEDIATRAS | C146: DR. RUBEN DARIO TAMAYO | D146: 02-CHAPINERO | E146: 0 | F146: 0 | G146: 2 | H146: 2 | S146: 4 | T146: 0.0%
A147: PEDIATRAS | B147: PEDIATRAS | C147: DR. JAIME MAURICIO MATALLANA | D147: 02-CHAPINERO | E147: 0 | F147: 0 | G147: 6 | H147: 4 | S147: 10 | T147: 0.0%
A148: PEDIATRAS | B148: PEDIATRAS | C148: DR. RODRIGO GARCIA | D148: 02-CHAPINERO | E148: 0 | F148: 0 | G148: 0 | H148: 0 | S148: 0 | T148: 0.0% | U148: 0
A149: PEDIATRAS | B149: PEDIATRAS | C149: DR. FELIPE ROBAYO | D149: 02-CHAPINERO | E149: 0 | F149: 0 | G149: 0 | H149: 0 | S149: 0 | T149: 0.0% | U149: 0
A150: PEDIATRAS | B150: PEDIATRAS | C150: DR. RUBEN FRANCO | D150: 02-CHAPINERO | E150: 0 | F150: 0 | G150: 0 | H150: 0 | S150: 0 | T150: 0.0% | U150: 0
A151: PEDIATRAS | B151: PEDIATRAS | C151: DR. ORLANDO RODRIGUEZ RAMIREZ | D151: 02-CHAPINERO | E151: 0 | F151: 0 | G151: 2 | H151: 0 | S151: 2 | T151: 0.0%
A152: PEDIATRAS | B152: PEDIATRAS | C152: DR. ARTURO MORENO | D152: 02-CHAPINERO | E152: 0 | F152: 0 | G152: 0 | H152: 0 | S152: 0 | T152: 0.0% | U152: 0
A153: PEDIATRAS | B153: PEDIATRAS | C153: DR. FRANCISCO LEAL QUEVEDO | D153: 02-CHAPINERO | E153: 0 | F153: 0 | G153: 0 | H153: 0 | S153: 0 | T153: 0.0% | U153: 0
A154: PEDIATRAS | B154: PEDIATRAS | C154: DR. CARLOS DIAZ PUENTES | D154: 02-CHAPINERO | E154: 0 | F154: 0 | G154: 0 | H154: 0 | S154: 0 | T154: 0.0% | U154: 0
A155: PEDIATRAS | B155: PEDIATRAS | C155: DR. PEDRO ERASMO MENDOZA | D155: 02-CHAPINERO | E155: 0 | F155: 0 | G155: 0 | H155: 0 | S155: 0 | T155: 0.0% | U155: 0
A156: PEDIATRAS | B156: PEDIATRAS | C156: DR. DIMAS ROSAS | D156: 02-CHAPINERO | E156: 0 | F156: 0 | G156: 0 | H156: 0 | S156: 0 | T156: 0.0% | U156: 0
A157: PEDIATRAS | B157: PEDIATRAS | C157: DR. JAVIER BRITO MORENO | D157: 02-CHAPINERO | E157: 0 | F157: 0 | G157: 0 | H157: 0 | S157: 0 | T157: 0.0% | U157: 0
A158: PEDIATRAS | B158: PEDIATRAS | C158: DR. GUSTAVO CORTÉS | D158: 02-CHAPINERO | E158: 0 | F158: 0 | G158: 0 | H158: 0 | S158: 0 | T158: 0.0% | U158: 0
A159: PEDIATRAS | B159: PEDIATRAS | C159: DR. CARLOS VELASQUEZ | D159: 02-CHAPINERO | E159: 0 | F159: 0 | G159: 0 | H159: 0 | S159: 0 | T159: 0.0% | U159: 0
A160: PEDIATRAS | B160: PEDIATRAS | C160: DR. RICARDO GOMEZ | D160: 02-CHAPINERO | E160: 0 | F160: 0 | G160: 0 | H160: 0 | S160: 0 | T160: 0.0% | U160: 0
A161: PEDIATRAS | B161: PEDIATRAS | C161: DR. SARA BERNAL | D161: 02-CHAPINERO | E161: 0 | F161: 0 | G161: 1 | H161: 2 | S161: 3 | T161: 0.0%
A162: PEDIATRAS | B162: PEDIATRAS | C162: DRA. MARIA PATRICIA AGUALIMPIA | D162: 02-CHAPINERO | E162: 0 | F162: 0 | G162: 0 | H162: 0 | S162: 0 | T162: 0.0% | U162: 0
A163: PEDIATRAS | B163: PEDIATRAS | C163: DRA. LUISA FERNANDA FORERO ACOSTA | D163: 02-CHAPINERO | E163: 0 | F163: 0 | G163: 0 | H163: 0 | S163: 0 | T163: 0.0% | U163: 0
A164: PEDIATRAS | B164: PEDIATRAS | C164: DRA. MARIA CLARA CASAS PARDO | D164: 02-CHAPINERO | E164: 0 | F164: 0 | G164: 0 | H164: 0 | S164: 0 | T164: 0.0% | U164: 0
A165: PEDIATRAS | B165: PEDIATRAS | C165: DRA. MARTHA EUGENIA RONDEROS DE FORERO | D165: 02-CHAPINERO | E165: 0 | F165: 0 | G165: 0 | H165: 0 | S165: 0 | T165: 0.0% | U165: 0
A166: PEDIATRAS | B166: PEDIATRAS | C166: DRA. MARIA ISABEL USCHER | D166: 02-CHAPINERO | E166: 0 | F166: 0 | G166: 4 | H166: 3 | S166: 7 | T166: 0.0%
A167: PEDIATRAS | B167: PEDIATRAS | C167: DRA. MARIA DE LOS ANGELES MUÑOZ | D167: 02-CHAPINERO | E167: 0 | F167: 0 | G167: 3 | H167: 0 | S167: 3 | T167: 0.0%
A168: PEDIATRAS | B168: PEDIATRAS | C168: DRA. CLARA ABELLO REYES | D168: 02-CHAPINERO | E168: 0 | F168: 0 | G168: 2 | H168: 1 | S168: 3 | T168: 0.0%
A169: PEDIATRAS | B169: PEDIATRAS | C169: DRA. PATRICIA CONTRERAS | D169: 02-CHAPINERO | E169: 0 | F169: 0 | G169: 0 | H169: 0 | S169: 0 | T169: 0.0% | U169: 0
A170: PEDIATRAS | B170: PEDIATRAS | C170: DRA. CLAUDIA ZOPPI | D170: 02-CHAPINERO | E170: 0 | F170: 0 | G170: 0 | H170: 0 | S170: 0 | T170: 0.0% | U170: 0
A171: PEDIATRAS | B171: PEDIATRAS | C171: DRA. MARIA DE LOS ANGELES FERNANDEZ LUQUE | D171: 02-CHAPINERO | E171: 0 | F171: 0 | G171: 0 | H171: 3 | S171: 3 | T171: 0.0%
A172: PEDIATRAS | B172: PEDIATRAS | C172: DRA. RUTH CORDOBA CORDOBA | D172: 02-CHAPINERO | E172: 0 | F172: 0 | G172: 0 | H172: 0 | S172: 0 | T172: 0.0% | U172: 0
A173: PEDIATRAS | B173: PEDIATRAS | C173: DRA. LUZ ESTELA CORTES | D173: 02-CHAPINERO | E173: 0 | F173: 0 | G173: 0 | H173: 0 | S173: 0 | T173: 0.0% | U173: 0
A174: UNICAJAS | B174: UNICAJAS | C174: UPA SAN LUIS | D174: 02-CHAPINERO | E174: 18 | F174: 2 | G174: 0 | H174: 0 | S174: 0 | T174: 0.0% | U174: 3
A175: 02-CHAPINERO | B175: OTROS | C175: UPA SAN LUIS | D175: 02-CHAPINERO | E175: 325 | F175: 27 | G175: 2 | H175: 1 | S175: 3 | T175: 0.9% | U175: 51
A176: 02-CHAPINERO | B176: DEMAS EAPB | C176: UPA SAN LUIS | D176: 02-CHAPINERO | E176: 0 | F176: 0 | G176: 6 | H176: 3 | S176: 9 | T176: 0.0%
A177: UNICAJAS | B177: UNICAJAS | C177: COMFASALUD SEDE CENTRO | D177: 03-SANTA FE | E177: 50 | F177: 4 | G177: 2 | H177: 1 | S177: 3 | T177: 6.0% | U177: 5
A178: MEDIMAS | B178: MEDIMAS | C178: CORVESALUD TEUSAQUILLO | D178: 03-SANTA FE | E178: 193 | F178: 16 | G178: 6 | H178: 7 | S178: 13 | T178: 6.7% | U178: 19
A179: 03-SANTA FE | B179: CAPITAL SALUD | C179: EXTRAMURAL SANTA FE | D179: 03-SANTA FE | E179: 0 | F179: 0 | G179: 7 | H179: 2 | S179: 9 | T179: 0.0%
A180: 03-SANTA FE | B180: DEMAS EAPB | C180: EXTRAMURAL SANTA FE | D180: 03-SANTA FE | E180: 0 | F180: 0 | G180: 0 | H180: 1 | S180: 1 | T180: 0.0%
A181: 03-SANTA FE | B181: OTROS | C181: EXTRAMURAL SANTA FE | D181: 03-SANTA FE | E181: 0 | F181: 0 | G181: 9 | H181: 8 | S181: 17 | T181: 0.0%
A182: 03-SANTA FE | B182: UNICAJAS | C182: EXTRAMURAL SANTA FE | D182: 03-SANTA FE | E182: 0 | F182: 0 | G182: 0 | H182: 0 | S182: 0 | T182: 0.0% | U182: 0
A183: 03-SANTA FE | B183: CAPITAL SALUD | C183: USS LACHES | D183: 03-SANTA FE | E183: 54 | F183: 5 | G183: 7 | H183: 12 | S183: 19 | T183: 35.2%
A184: 03-SANTA FE | B184: DEMAS EAPB | C184: USS LACHES | D184: 03-SANTA FE | E184: 0 | F184: 0 | G184: 7 | H184: 6 | S184: 13 | T184: 0.0%
A185: 03-SANTA FE | B185: OTROS | C185: USS LACHES | D185: 03-SANTA FE | E185: 260 | F185: 22 | G185: 4 | H185: 4 | S185: 8 | T185: 3.1% | U185: 35
A186: 03-SANTA FE | B186: UNICAJAS | C186: USS LACHES | D186: 03-SANTA FE | E186: 17 | F186: 1 | G186: 1 | H186: 0 | S186: 1 | T186: 5.9% | U186: 2
A187: 03-SANTA FE | B187: CAPITAL SALUD | C187: USS LAS CRUCES | D187: 03-SANTA FE | E187: 44 | F187: 4 | G187: 6 | H187: 8 | S187: 14 | T187: 31.8%
A188: 03-SANTA FE | B188: DEMAS EAPB | C188: USS LAS CRUCES | D188: 03-SANTA FE | E188: 0 | F188: 0 | G188: 4 | H188: 5 | S188: 9 | T188: 0.0%
A189: 03-SANTA FE | B189: OTROS | C189: USS LAS CRUCES | D189: 03-SANTA FE | E189: 211 | F189: 18 | G189: 3 | H189: 2 | S189: 5 | T189: 2.4% | U189: 30
A190: 03-SANTA FE | B190: UNICAJAS | C190: USS LAS CRUCES | D190: 03-SANTA FE | E190: 14 | F190: 1 | G190: 1 | H190: 1 | S190: 2 | T190: 14.3% | U190: 0
A191: 03-SANTA FE | B191: CAPITAL SALUD | C191: USS PERSEVERANCIA | D191: 03-SANTA FE | E191: 6 | F191: 1 | G191: 1 | H191: 1 | S191: 2 | T191: 33.3%
A192: 03-SANTA FE | B192: DEMAS EAPB | C192: USS PERSEVERANCIA | D192: 03-SANTA FE | E192: 0 | F192: 0 | G192: 1 | H192: 2 | S192: 3 | T192: 0.0%
A193: 03-SANTA FE | B193: OTROS | C193: USS PERSEVERANCIA | D193: 03-SANTA FE | E193: 30 | F193: 3 | G193: 1 | H193: 1 | S193: 2 | T193: 6.7% | U193: 3
A194: 03-SANTA FE | B194: UNICAJAS | C194: USS PERSEVERANCIA | D194: 03-SANTA FE | E194: 2 | F194: 0 | G194: 0 | H194: 0 | S194: 0 | T194: =IF(E194=0,0,+S194/E194) -> 0.0% | U194: =IF(COUNT(G194:R194)*(E194/12)-S194<0,"",COUNT(G194:R194)*(E194/12)-S194) -> 0
A195: PARTICULAR | B195: PARTICULAR | C195: CLINICA SAN RAFAEL | D195: 04-SAN CRISTOBAL | E195: 375 | F195: =+E195/12 -> 31 | G195: 32 | H195: 52 | S195: =SUM(G195:R195) -> 84 | T195: 22.4%
A196: FAMISANAR | B196: FAMI- COLSB | C196: CENTRO MEDICO COLSUBSIDIO 20 DE JULIO | D196: 04-SAN CRISTOBAL | E196: 0 | F196: 0 | S196: 0 | T196: 0.0% | U196: 0
A197: 04-SAN CRISTOBAL | B197: CAPITAL SALUD | C197: EXTRAMURAL SAN CRISTOBAL | D197: 04-SAN CRISTOBAL | E197: 0 | F197: 0 | G197: 22 | H197: 30 | S197: 52 | T197: 0.0%
A198: 04-SAN CRISTOBAL | B198: DEMAS EAPB | C198: EXTRAMURAL SAN CRISTOBAL | D198: 04-SAN CRISTOBAL | E198: 0 | F198: 0 | G198: 31 | H198: 16 | S198: 47 | T198: 0.0%
A199: 04-SAN CRISTOBAL | B199: OTROS | C199: EXTRAMURAL SAN CRISTOBAL | D199: 04-SAN CRISTOBAL | E199: 0 | F199: 0 | G199: 15 | H199: 10 | S199: 25 | T199: 0.0%
A200: 04-SAN CRISTOBAL | B200: UNICAJAS | C200: EXTRAMURAL SAN CRISTOBAL | D200: 04-SAN CRISTOBAL | E200: 0 | F200: 0 | G200: 3 | H200: 1 | S200: 4 | T200: 0.0%
... 620 more rows

Sheet PENTA2
A1: EAPB | B1: EPS O ESE | C1: IPS | D1: Localidad | E1: Meta Anual Menor de 1 Año | F1: Meta Mensual | G1: Enero | H1: Febrero | I1: Marzo | J1: Abril | K1: Mayo | L1: Junio | M1: Julio | N1: Agosto | O1: Septiembre | P1: Octubre | Q1: Noviembre | R1: Diciembre | S1: Total | T1: % Cobertura | U1: Deficit
A2: CAPITAL SALUD | B2: CAPITAL SALUD | C2: UPA SAN CRISTOBAL | D2: 01-USAQUEN | E2: 124 | F2: =+E2/12 -> 10 | G2: 7 | H2: 3 | S2: =SUM(G2:R2) -> 10 | T2: =IF(E2=0,0,+S2/E2) -> 8.1% | U2: =IF(COUNT(G2:R2)*(E2/12)-S2<0,"",COUNT(G2:R2)*(E2/12)-S2) -> 11
A3: CAPITAL SALUD | B3: CAPITAL SALUD | C3: UPA USAQUEN | D3: 01-USAQUEN | E3: 10 | F3: =+E3/12 -> 1 | G3: 0 | H3: 0 | S3: =SUM(G3:R3) -> 0 | T3: 0.0% | U3: 2
A4: CAPITAL SALUD | B4: CAPITAL SALUD | C4: UPA ORQUIDEAS | D4: 01-USAQUEN | E4: 11 | F4: 1 | G4: 3 | H4: 0 | S4: 3 | T4: 27.3%
A5: CAPITAL SALUD | B5: CAPITAL SALUD | C5: UPA CODITO | D5: 01-USAQUEN | E5: 107 | F5: 9 | G5: 8 | H5: 2 | S5: 10 | T5: 9.3% | U5: 8
A6: CAPITAL SALUD | B6: CAPITAL SALUD | C6: CAMI VERBENAL | D6: 01-USAQUEN | E6: 87 | F6: 7 | G6: 8 | H6: 3 | S6: 11 | T6: 12.6% | U6: 4
A7: CAPITAL SALUD | B7: CAPITAL SALUD | C7: HOSPITAL SIMON BOLIVAR | D7: 01-USAQUEN | E7: 36 | F7: 3 | G7: 9 | H7: 17 | S7: 26 | T7: 72.2%
A8: 01-USAQUEN | B8: 01-USAQUEN | C8: EXTRAMURAL USAQUEN | D8: 01-USAQUEN | E8: 0 | F8: 0 | G8: 12 | H8: 8 | S8: 20 | T8: 0.0%
A9: ALIANSALUD | B9: ALIANSALUD | C9: CENTRO MEDICO COLMEDICA SANTA BARBARA | D9: 01-USAQUEN | E9: 580 | F9: 48 | G9: 79 | H9: 56 | S9: 135 | T9: 23.3%
A10: COMPENSAR | B10: COMPENSAR | C10: USS CALLE 134 | D10: 01-USAQUEN | E10: 372 | F10: 31 | G10: 17 | H10: 16 | S10: 33 | T10: 8.9% | U10: 29
A11: COMPENSAR | B11: COMPENSAR | C11: USS CALLE 145 | D11: 01-USAQUEN | E11: 173 | F11: 14 | G11: 17 | H11: 16 | S11: 33 | T11: 19.1%
A12: COMPENSAR | B12: COMPENSAR | C12: JAVESALUD TOBERIN | D12: 01-USAQUEN | E12: 372 | F12: 31 | G12: 3 | H12: 3 | S12: 6 | T12: 1.6% | U12: 56
A13: COOMEVA | B13: COOMEVA | C13: SINERGIA UNIDAD INTEGRAL EN SALUD | D13: 01-USAQUEN | E13: 44 | F13: 4 | G13: 6 | H13: 5 | S13: 11 | T13: 25.0%
A14: FAMISANAR | B14: FAMI- COLSB | C14: CENTRO MEDICO COLSUBSIDIO USAQUEN | D14: 01-USAQUEN | E14: 298 | F14: 25 | G14: 30 | H14: 31 | S14: 61 | T14: 20.5%
A15: MILITAR | B15: MILITAR | C15: DISPENSARIO MEDICO CANTON NORTE | D15: 01-USAQUEN | E15: 205 | F15: 17 | G15: 3 | H15: 9 | S15: 12 | T15: 5.9% | U15: 22
A16: NUEVA EPS | B16: NUEVA EPS | C16: IPS VIVA 1A SEDE TOBERIN | D16: 01-USAQUEN | E16: 147 | F16: 12 | G16: 6 | H16: 7 | S16: 13 | T16: 8.8% | U16: 12
A17: NUEVA EPS | B17: NUEVA EPS | C17: CAFAM GRANADA HILLS | D17: 01-USAQUEN | E17: 44 | F17: 4 | G17: 6 | H17: 4 | S17: 10 | T17: 22.7%
A18: SANITAS | B18: SANITAS | C18: UAP SANITAS TOBERIN | D18: 01-USAQUEN | E18: 511 | F18: 43 | G18: 56 | H18: 41 | S18: 97 | T18: 19.0%
A19: SANITAS | B19: SANITAS | C19: MEDIKA IPS SANITAS UAP USAQUEN | D19: 01-USAQUEN | E19: 188 | F19: 16 | G19: 3 | H19: 1 | S19: 4 | T19: 2.1% | U19: 27
A20: SANITAS | B20: SANITAS | C20: UAP SANTA BARBARA | D20: 01-USAQUEN | E20: 796 | F20: 66 | G20: 85 | H20: 67 | S20: 152 | T20: 19.1%
A21: SANITAS | B21: SANITAS | C21: SANITAS BANCO DE LA REPUBLICA | D21: 01-USAQUEN | E21: 0 | F21: 0 | G21: 4 | H21: 1 | S21: 5 | T21: 0.0%
A22: SALUD TOTAL | B22: SALUD TOTAL | C22: VIRREY SOLIS TOBERÍN | D22: 01-USAQUEN | E22: 384 | F22: 32 | G22: 21 | H22: 20 | S22: 41 | T22: 10.7% | U22: 23
A23: SURA | B23: SURA | C23: IPS JAVESALUD SANTA BEATRIZ | D23: 01-USAQUEN | E23: 355 | F23: 30 | G23: 12 | H23: 9 | S23: 21 | T23: 5.9% | U23: 38
A24: ECOPETROL | B24: ECOPETROL | C24: IPS CLINICOS PALATINO | D24: 01-USAQUEN | E24: 87 | F24: 7 | G24: 9 | H24: 11 | S24: 20 | T24: 23.0%
A25: PARTICULAR | B25: PARTICULAR | C25: CLINICA PEDIATRICA COLSANITAS | D25: 01-USAQUEN | E25: 830 | F25: 69 | G25: 101 | H25: 91 | S25: 192 | T25: 23.1%
A26: PARTICULAR | B26: PARTICULAR | C26: CENTRO MEDICO COLSANITAS LA CALLEJA | D26: 01-USAQUEN | E26: 120 | F26: 10 | G26: 23 | H26: 16 | S26: 39 | T26: 32.5%
A27: PARTICULAR | B27: PARTICULAR | C27: CENTRO MEDICO COLSANITAS 108 | D27: 01-USAQUEN | E27: 40 | F27: 3 | G27: 4 | H27: 4 | S27: 8 | T27: 20.0%
A28: PARTICULAR | B28: PARTICULAR | C28: CENTRO MEDICO COLSANITAS SANTA ANA | D28: 01-USAQUEN | E28: 4 | F28: 0 | G28: 2 | H28: 0 | S28: 2 | T28: 50.0%
A29: PARTICULAR | B29: PARTICULAR | C29: FUNDACIÓN CARDIO INFANTIL | D29: 01-USAQUEN | E29: 0 | F29: 0 | G29: 11 | H29: 7 | S29: 18 | T29: 0.0%
A30: PARTICULAR | B30: PARTICULAR | C30: ENFASO USAQUEN | D30: 01-USAQUEN | E30: 0 | F30: 0 | G30: 9 | H30: 13 | S30: 22 | T30: 0.0%
A31: PARTICULAR | B31: PARTICULAR | C31: UNIDAD DE VACUNACIÓN INTERNACIONAL | D31: 01-USAQUEN | E31: 0 | F31: 0 | G31: 4 | H31: 7 | S31: 11 | T31: 0.0%
A32: PARTICULAR | B32: PARTICULAR | C32: INMUNOLOGÍA Y DIAGNÓSTICO ESPECIALIZADO LTDA. | D32: 01-USAQUEN | E32: 0 | F32: 0 | G32: 0 | H32: 0 | S32: 0 | T32: 0.0% | U32: 0
A33: PARTICULAR | B33: PARTICULAR | C33: PROTEGER HEALHT CARE | D33: 01-USAQUEN | E33: 0 | F33: 0 | G33: 1 | H33: 0 | S33: 1 | T33: 0.0%
A34: PARTICULAR | B34: PARTICULAR | C34: FUNDACION SANTA FE DE BOGOTA | D34: 01-USAQUEN | E34: 0 | F34: 0 | G34: 0 | H34: 0 | S34: 0 | T34: 0.0% | U34: 0
A35: PARTICULAR | B35: PARTICULAR | C35: IPS CRUZ ROJA SEDE UNICENTRO | D35: 01-USAQUEN | E35: 0 | F35: 0 | G35: 0 | H35: 0 | S35: 0 | T35: 0.0% | U35: 0
A36: PARTICULAR | B36: PARTICULAR | C36: IPS CRUZ ROJA SAMU CALLE 145 | D36: 01-USAQUEN | E36: 0 | F36: 0 | G36: 0 | H36: 0 | S36: 0 | T36: 0.0% | U36: 0
A37: PEDIATRAS | B37: PEDIATRAS | C37: DR. ALEJANDRO LÓPEZ | D37: 01-USAQUEN | E37: 0 | F37: 0 | G37: 2 | H37: 0 | S37: 2 | T37: 0.0%
A38: PEDIATRAS | B38: PEDIATRAS | C38: DR. CARLOS NEFTALI TORRES | D38: 01-USAQUEN | E38: 0 | F38: 0 | G38: 6 | H38: 7 | S38: 13 | T38: 0.0%
A39: PEDIATRAS | B39: PEDIATRAS | C39: DR. FRANCISCO NUÑEZ | D39: 01-USAQUEN | E39: 0 | F39: 0 | G39: 0 | H39: 1 | S39: 1 | T39: 0.0%
A40: PEDIATRAS | B40: PEDIATRAS | C40: DR. FERNANDO GOMEZ | D40: 01-USAQUEN | E40: 0 | F40: 0 | G40: 0 | H40: 0 | S40: 0 | T40: 0.0% | U40: 0
A41: PEDIATRAS | B41: PEDIATRAS | C41: DR. FERNANDO ZARATE MORENO | D41: 01-USAQUEN | E41: 0 | F41: 0 | G41: 0 | H41: 2 | S41: 2 | T41: 0.0%
A42: PEDIATRAS | B42: PEDIATRAS | C42: DR. GONZALO GARCIA | D42: 01-USAQUEN | E42: 0 | F42: 0 | G42: 0 | H42: 0 | S42: 0 | T42: 0.0% | U42: 0
A43: PEDIATRAS | B43: PEDIATRAS | C43: DR. GUSTAVO MORALES | D43: 01-USAQUEN | E43: 0 | F43: 0 | G43: 2 | H43: 4 | S43: 6 | T43: 0.0%
A44: PEDIATRAS | B44: PEDIATRAS | C44: DR. JAIME OSPINA | D44: 01-USAQUEN | E44: 0 | F44: 0 | G44: 0 | H44: 0 | S44: 0 | T44: 0.0% | U44: 0
A45: PEDIATRAS | B45: PEDIATRAS | C45: DR. JORGE URIBE | D45: 01-USAQUEN | E45: 0 | F45: 0 | G45: 0 | H45: 0 | S45: 0 | T45: 0.0% | U45: 0
A46: PEDIATRAS | B46: PEDIATRAS | C46: DR. JUAN LUIS FIGUEROA | D46: 01-USAQUEN | E46: 0 | F46: 0 | G46: 1 | H46: 2 | S46: 3 | T46: 0.0%
A47: PEDIATRAS | B47: PEDIATRAS | C47: DR. LUIS AUGUSTO PERNA | D47: 01-USAQUEN | E47: 0 | F47: 0 | G47: 4 | H47: 5 | S47: 9 | T47: 0.0%
A48: PEDIATRAS | B48: PEDIATRAS | C48: DR. LIBARDO ELI TRIANA | D48: 01-USAQUEN | E48: 0 | F48: 0 | G48: 0 | H48: 1 | S48: 1 | T48: 0.0%
A49: PEDIATRAS | B49: PEDIATRAS | C49: DR. OSWALDO MERCADO HOYOS | D49: 01-USAQUEN | E49: 0 | F49: 0 | G49: 2 | H49: 3 | S49: 5 | T49: 0.0%
A50: PEDIATRAS | B50: PEDIATRAS | C50: DR. ROBERTO BENIRO | D50: 01-USAQUEN | E50: 0 | F50: 0 | G50: 0 | H50: 0 | S50: 0 | T50: 0.0% | U50: 0
A51: PEDIATRAS | B51: PEDIATRAS | C51: DR. SERGIO ISAZA | D51: 01-USAQUEN | E51: 0 | F51: 0 | G51: 2 | H51: 0 | S51: 2 | T51: 0.0%
A52: PEDIATRAS | B52: PEDIATRAS | C52: DR. SANTIAGO UCROS | D52: 01-USAQUEN | E52: 0 | F52: 0 | G52: 0 | H52: 0 | S52: 0 | T52: 0.0% | U52: 0
A53: PEDIATRAS | B53: PEDIATRAS | C53: DR. GERMAN SILVA | D53: 01-USAQUEN | E53: 0 | F53: 0 | G53: 0 | H53: 0 | S53: 0 | T53: 0.0% | U53: 0
A54: PEDIATRAS | B54: PEDIATRAS | C54: DR. DANIEL ABRIL | D54: 01-USAQUEN | E54: 0 | F54: 0 | G54: 0 | H54: 0 | S54: 0 | T54: 0.0% | U54: 0
A55: PEDIATRAS | B55: PEDIATRAS | C55: DR. CARLOS EDUARDO OLMOS | D55: 01-USAQUEN | E55: 0 | F55: 0 | G55: 0 | H55: 0 | S55: 0 | T55: 0.0% | U55: 0
A56: PEDIATRAS | B56: PEDIATRAS | C56: DR. EDGARDO CHATMAN | D56: 01-USAQUEN | E56: 0 | F56: 0 | G56: 0 | H56: 0 | S56: 0 | T56: 0.0% | U56: 0
A57: PEDIATRAS | B57: PEDIATRAS | C57: DR. JORGE FLOREZ OTERO | D57: 01-USAQUEN | E57: 0 | F57: 0 | G57: 0 | H57: 0 | S57: 0 | T57: 0.0% | U57: 0
A58: PEDIATRAS | B58: PEDIATRAS | C58: DRA. ALEJANDRA MARIA VALENCIA | D58: 01-USAQUEN | E58: 0 | F58: 0 | G58: 0 | H58: 0 | S58: 0 | T58: 0.0% | U58: 0
A59: PEDIATRAS | B59: PEDIATRAS | C59: DRA. ANA MARIA GOYENECHE | D59: 01-USAQUEN | E59: 0 | F59: 0 | G59: 0 | H59: 0 | S59: 0 | T59: 0.0% | U59: 0
A60: PEDIATRAS | B60: PEDIATRAS | C60: DRA. JIMENA VARELA | D60: 01-USAQUEN | E60: 0 | F60: 0 | G60: 0 | H60: 1 | S60: 1 | T60: 0.0%
A61: PEDIATRAS | B61: PEDIATRAS | C61: DRA. LIA SAN MIGUEL | D61: 01-USAQUEN | E61: 0 | F61: 0 | G61: 0 | H61: 0 | S61: 0 | T61: 0.0% | U61: 0
A62: PEDIATRAS | B62: PEDIATRAS | C62: DRA. LIBIA SEGURA | D62: 01-USAQUEN | E62: 0 | F62: 0 | G62: 1 | H62: 1 | S62: 2 | T62: 0.0%
A63: PEDIATRAS | B63: PEDIATRAS | C63: DRA. MARÍA JOSÉ PEDRAZA | D63: 01-USAQUEN | E63: 0 | F63: 0 | G63: 0 | H63: 0 | S63: 0 | T63: 0.0% | U63: 0
A64: PEDIATRAS | B64: PEDIATRAS | C64: DRA. MARTHA LUCIA SANCHEZ | D64: 01-USAQUEN | E64: 0 | F64: 0 | G64: 0 | H64: 0 | S64: 0 | T64: 0.0% | U64: 0
A65: PEDIATRAS | B65: PEDIATRAS | C65: DRA. OLGA LUCÍA SÁNCHEZ | D65: 01-USAQUEN | E65: 0 | F65: 0 | G65: 0 | H65: 0 | S65: 0 | T65: 0.0% | U65: 0
A66: PEDIATRAS | B66: PEDIATRAS | C66: DRA. SANDRA BELTRAN | D66: 01-USAQUEN | E66: 0 | F66: 0 | G66: 0 | H66: 0 | S66: 0 | T66: =IF(E66=0,0,+S66/E66) -> 0.0% | U66: =IF(COUNT(G66:R66)*(E66/12)-S66<0,"",COUNT(G66:R66)*(E66/12)-S66) -> 0
A67: PEDIATRAS | B67: PEDIATRAS | C67: DRA. IVANA CABRERA | D67: 01-USAQUEN | E67: 0 | F67: =+E67/12 -> 0 | G67: 0 | H67: 0 | S67: =SUM(G67:R67) -> 0 | T67: 0.0% | U67: 0
A68: PEDIATRAS | B68: PEDIATRAS | C68: DRA. NAYITA ALARCON | D68: 01-USAQUEN | E68: 0 | F68: 0 | G68: 0 | H68: 0 | S68: 0 | T68: 0.0% | U68: 0
A69: PEDIATRAS | B69: PEDIATRAS | C69: DRA. ELIZABETH GARCIA | D69: 01-USAQUEN | E69: 0 | F69: 0 | G69: 0 | H69: 0 | S69: 0 | T69: 0.0% | U69: 0
A70: PEDIATRAS | B70: PEDIATRAS | C70: DRA. BERTHA CALDERON DE RAMOS | D70: 01-USAQUEN | E70: 0 | F70: 0 | G70: 0 | H70: 0 | S70: 0 | T70: 0.0% | U70: 0
A71: PEDIATRAS | B71: PEDIATRAS | C71: DRA. MIRYAM CORREA | D71: 01-USAQUEN | E71: 0 | F71: 0 | G71: 0 | H71: 1 | S71: 1 | T71: 0.0%
A72: 01-USAQUEN | B72: UNICAJAS | C72: UPA SAN CRISTOBAL | D72: 01-USAQUEN | E72: 6 | F72: 1 | G72: 1 | H72: 0 | S72: 1 | T72: 16.7% | U72: 0
A73: UNICAJAS | B73: UNICAJAS | C73: UPA USAQUEN | D73: 01-USAQUEN | E73: 9 | F73: 1 | G73: 0 | H73: 0 | S73: 0 | T73: 0.0% | U73: 2
A74: UNICAJAS | B74: UNICAJAS | C74: UPA ORQUIDEAS | D74: 01-USAQUEN | E74: 6 | F74: 1 | G74: 0 | H74: 0 | S74: 0 | T74: 0.0% | U74: 1
A75: UNICAJAS | B75: UNICAJAS | C75: UPA CODITO | D75: 01-USAQUEN | E75: 5 | F75: 0 | G75: 1 | H75: 0 | S75: 1 | T75: 20.0%
A76: UNICAJAS | B76: UNICAJAS | C76: CAMI VERBENAL | D76: 01-USAQUEN | E76: 6 | F76: 1 | G76: 2 | H76: 0 | S76: 2 | T76: 33.3%
A77: 01-USAQUEN | B77: UNICAJAS | C77: HOSPITAL SIMON BOLIVAR | D77: 01-USAQUEN | E77: 6 | F77: 1 | H77: 0 | S77: 0 | T77: 0.0% | U77: 1
A78: 01-USAQUEN | B78: OTROS | C78: UPA SAN CRISTOBAL | D78: 01-USAQUEN | E78: 300 | F78: 25 | G78: 9 | H78: 2 | S78: 11 | T78: 3.7% | U78: 39
A79: 01-USAQUEN | B79: OTROS | C79: UPA USAQUEN | D79: 01-USAQUEN | E79: 100 | F79: 8 | G79: 0 | H79: 0 | S79: 0 | T79: 0.0% | U79: 17
A80: 01-USAQUEN | B80: OTROS | C80: UPA ORQUIDEAS | D80: 01-USAQUEN | E80: 120 | F80: 10 | G80: 5 | H80: 0 | S80: 5 | T80: 4.2% | U80: 15
A81: 01-USAQUEN | B81: OTROS | C81: UPA CODITO | D81: 01-USAQUEN | E81: 218 | F81: 18 | G81: 4 | H81: 2 | S81: 6 | T81: 2.8% | U81: 30
A82: 01-USAQUEN | B82: OTROS | C82: CAMI VERBENAL | D82: 01-USAQUEN | E82: 309 | F82: 26 | G82: 5 | H82: 1 | S82: 6 | T82: 1.9% | U82: 46
A83: 01-USAQUEN | B83: OTROS | C83: HOSPITAL SIMON BOLIVAR | D83: 01-USAQUEN | E83: 480 | F83: 40 | G83: 10 | H83: 13 | S83: 23 | T83: 4.8% | U83: 57
A84: 01-USAQUEN | B84: DEMAS EAPB | C84: UPA SAN CRISTOBAL | D84: 01-USAQUEN | F84: 0 | G84: 15 | H84: 7 | S84: 22 | T84: 0.0%
A85: 01-USAQUEN | B85: DEMAS EAPB | C85: UPA USAQUEN | D85: 01-USAQUEN | F85: 0 | G85: 1 | H85: 1 | S85: 2 | T85: 0.0%
A86: 01-USAQUEN | B86: DEMAS EAPB | C86: UPA ORQUIDEAS | D86: 01-USAQUEN | F86: 0 | G86: 1 | H86: 1 | S86: 2 | T86: 0.0%
A87: 01-USAQUEN | B87: DEMAS EAPB | C87: UPA CODITO | D87: 01-USAQUEN | F87: 0 | G87: 12 | H87: 18 | S87: 30 | T87: 0.0%
A88: 01-USAQUEN | B88: DEMAS EAPB | C88: CAMI VERBENAL | D88: 01-USAQUEN | F88: 0 | G88: 15 | H88: 9 | S88: 24 | T88: 0.0%
A89: 01-USAQUEN | B89: DEMAS EAPB | C89: HOSPITAL SIMON BOLIVAR | D89: 01-USAQUEN | F89: 0 | G89: 20 | H89: 21 | S89: 41 | T89: 0.0%
A90: MEDIMAS | B90: MEDIMAS | C90: Corvesalud S.A.S - I P S Chico | D90: 01-USAQUEN | E90: 320 | F90: 27 | G90: 2 | H90: 2 | S90: 4 | T90: 1.3% | U90: 49
A91: FAMISANAR | B91: COLSUBSIDIO | C91: Sura PAC Santa Bárbara | D91: 01-USAQUEN | F91: 0 | S91: 0 | T91: 0.0% | U91: 0
A92: CAPITAL SALUD | B92: CAPITAL SALUD | C92: UPA SAN LUIS | D92: 02-CHAPINERO | E92: 12 | F92: 1 | G92: 6 | H92: 2 | S92: 8 | T92: 66.7%
A93: 02-CHAPINERO | B93: 02-CHAPINERO | C93: EXTRAMURAL CHAPINERO | D93: 02-CHAPINERO | E93: 0 | F93: 0 | G93: 5 | H93: 5 | S93: 10 | T93: 0.0%
A94: COMPENSAR | B94: COMPENSAR | C94: USS CALLE 42 | D94: 02-CHAPINERO | E94: 612 | F94: 51 | G94: 34 | H94: 37 | S94: 71 | T94: 11.6% | U94: 31
A95: COMPENSAR | B95: COMPENSAR | C95: USS CALLE 67 | D95: 02-CHAPINERO | E95: 0 | F95: 0 | G95: 0 | H95: 0 | S95: 0 | T95: 0.0% | U95: 0
A96: COMPENSAR | B96: COMPENSAR | C96: USS CALLE 94 | D96: 02-CHAPINERO | E96: 369 | F96: 31 | G96: 43 | H96: 52 | S96: 95 | T96: 25.7%
A97: COMPENSAR | B97: COMPENSAR | C97: VIVA 1A IPS CHAPINERO | D97: 02-CHAPINERO | E97: 73 | F97: 6 | G97: 4 | H97: 0 | S97: 4 | T97: 5.5% | U97: 8
A98: COOMEVA | B98: COOMEVA | C98: SINERGIA UNIDAD BASICA LOURDES | D98: 02-CHAPINERO | E98: 217 | F98: 18 | G98: 7 | H98: 5 | S98: 12 | T98: 5.5% | U98: 24
A99: FAMISANAR | B99: FAMI- CAFAM | C99: CENTRO DE ATENCION EN SALUD CAFAM CALLE 48 | D99: 02-CHAPINERO | E99: 1050 | F99: 88 | G99: 31 | H99: 23 | S99: 54 | T99: 5.1% | U99: 121
A100: FAMISANAR | B100: FAMI- CAFAM | C100: CENTRO DE ATENCION EN SALUD CAFAM CALLE 90 | D100: 02-CHAPINERO | E100: 200 | F100: 17 | G100: 14 | H100: 8 | S100: 22 | T100: 11.0% | U100: 11
A101: FAMISANAR | B101: FAMI- COLSB | C101: CLINICA COLSUBSIDIO EL LAGO | D101: 02-CHAPINERO | E101: 392 | F101: 33 | G101: 11 | H101: 9 | S101: 20 | T101: 5.1% | U101: 45
A102: MILITAR | B102: MILITAR | C102: HOSPITAL MILITAR CENTRAL | D102: 02-CHAPINERO | E102: 70 | F102: 6 | G102: 15 | H102: 0 | S102: 15 | T102: 21.4%
A103: POLICIA | B103: POLICIA | C103: POLICIA NACIONAL ESPAM CHAPINERO | D103: 02-CHAPINERO | E103: 117 | F103: 10 | G103: 5 | H103: 0 | S103: 5 | T103: 4.3% | U103: 15
A104: NUEVA EPS | B104: NUEVA EPS | C104: IPS VIVA 1A SEDE MARLY | D104: 02-CHAPINERO | E104: 131 | F104: 11 | G104: 10 | H104: 6 | S104: 16 | T104: 12.2% | U104: 6
A105: SANITAS | B105: SANITAS | C105: EPS SANITAS CENTRO MEDICO TEUSAQUILLO | D105: 02-CHAPINERO | E105: 579 | F105: 48 | G105: 30 | H105: 22 | S105: 52 | T105: 9.0% | U105: 45
A106: SALUD TOTAL | B106: SALUD TOTAL | C106: VIRREY SOLIS CHAPINERO | D106: 02-CHAPINERO | E106: 337 | F106: 28 | G106: 20 | H106: 12 | S106: 32 | T106: 9.5% | U106: 24
A107: SURA | B107: SURA | C107: PUNTO DE SALUD CHAPINERO | D107: 02-CHAPINERO | E107: 237 | F107: 20 | G107: 16 | H107: 11 | S107: 27 | T107: 11.4% | U107: 13
A108: SURA | B108: SURA | C108: SALUD SURA | D108: 02-CHAPINERO | E108: 454 | F108: 38 | G108: 50 | H108: 50 | S108: 100 | T108: 22.0%
A109: PARTICULAR | B109: PARTICULAR | C109: CENTRO MEDICO COLSANITAS CALLE 96 | D109: 02-CHAPINERO | E109: 24 | F109: 2 | G109: 0 | H109: 4 | S109: 4 | T109: 16.7% | U109: 0
A110: PARTICULAR | B110: PARTICULAR | C110: CENTRO DE ESPECIALISTAS MEDICOS AXA COLPATRIA | D110: 02-CHAPINERO | E110: 0 | F110: 0 | G110: 2 | H110: 4 | S110: 6 | T110: 0.0%
A111: PARTICULAR | B111: PARTICULAR | C111: CLINICA DE LA MUJER | D111: 02-CHAPINERO | E111: 0 | F111: 0 | G111: 62 | H111: 36 | S111: 98 | T111: 0.0%
A112: PARTICULAR | B112: PARTICULAR | C112: VACUNARTE IPS | D112: 02-CHAPINERO | E112: 0 | F112: 0 | G112: 5 | H112: 2 | S112: 7 | T112: 0.0%
A113: PARTICULAR | B113: PARTICULAR | C113: UNIMARLY | D113: 02-CHAPINERO | E113: 0 | F113: 0 | G113: 0 | H113: 0 | S113: 0 | T113: 0.0% | U113: 0
A114: PARTICULAR | B114: PARTICULAR | C114: HOSPITAL SAN IGNACIO | D114: 02-CHAPINERO | E114: 0 | F114: 0 | G114: 2 | H114: 10 | S114: 12 | T114: 0.0%
A115: PARTICULAR | B115: PARTICULAR | C115: PROGRAMA MADRE CANGURO HOSPITAL SAN IGNACIO | D115: 02-CHAPINERO | E115: 0 | F115: 0 | G115: 92 | H115: 104 | S115: 196 | T115: 0.0%
A116: PARTICULAR | B116: PARTICULAR | C116: IPS AVENIR | D116: 02-CHAPINERO | E116: 0 | F116: 0 | G116: 0 | H116: 0 | S116: 0 | T116: 0.0% | U116: 0
A117: PARTICULAR | B117: PARTICULAR | C117: IPS INMUNOLOGIA Y DIAGNOSTICO ESPECIALIZADO | D117: 02-CHAPINERO | E117: 0 | F117: 0 | G117: 1 | H117: 0 | S117: 1 | T117: 0.0%
A118: PARTICULAR | B118: PARTICULAR | C118: ASOCIACION PEDIATRICA DE LOS ANDES | D118: 02-CHAPINERO | E118: 0 | F118: 0 | G118: 0 | H118: 0 | S118: 0 | T118: 0.0% | U118: 0
A119: PARTICULAR | B119: PARTICULAR | C119: CRUZ ROJA SEDE ANDINO | D119: 02-CHAPINERO | E119: 0 | F119: 0 | G119: 0 | H119: 0 | S119: 0 | T119: 0.0% | U119: 0
A120: PARTICULAR | B120: PARTICULAR | C120: CENTRO MEDICO SANTA MONICA | D120: 02-CHAPINERO | E120: 0 | F120: 0 | H120: 0 | S120: 0 | T120: 0.0% | U120: 0
A121: PEDIATRAS | B121: PEDIATRAS | C121: DR. JUAN OSCAR TAMAYO | D121: 02-CHAPINERO | E121: 0 | F121: 0 | G121: 1 | H121: 2 | S121: 3 | T121: 0.0%
A122: PEDIATRAS | B122: PEDIATRAS | C122: DR. ROBERTO SUAREZ | D122: 02-CHAPINERO | E122: 0 | F122: 0 | G122: 0 | H122: 0 | S122: 0 | T122: 0.0% | U122: 0
A123: PEDIATRAS | B123: PEDIATRAS | C123: DR. WILLIAM RICARDO CABRA | D123: 02-CHAPINERO | E123: 0 | F123: 0 | G123: 3 | H123: 5 | S123: 8 | T123: 0.0%
A124: PEDIATRAS | B124: PEDIATRAS | C124: DR. EDGAR CASTRO | D124: 02-CHAPINERO | E124: 0 | F124: 0 | G124: 2 | H124: 2 | S124: 4 | T124: 0.0%
A125: PEDIATRAS | B125: PEDIATRAS | C125: DR. PABLO KRAUSS | D125: 02-CHAPINERO | E125: 0 | F125: 0 | G125: 5 | H125: 1 | S125: 6 | T125: 0.0%
A126: PEDIATRAS | B126: PEDIATRAS | C126: DR. HERNAN ROBLES | D126: 02-CHAPINERO | E126: 0 | F126: 0 | G126: 4 | H126: 4 | S126: 8 | T126: 0.0%
A127: PEDIATRAS | B127: PEDIATRAS | C127: DR. RAFAEL GAMBOA CASABLANCA | D127: 02-CHAPINERO | E127: 0 | F127: 0 | G127: 7 | H127: 4 | S127: 11 | T127: 0.0%
A128: PEDIATRAS | B128: PEDIATRAS | C128: DR. JAVIER MEJIA | D128: 02-CHAPINERO | E128: 0 | F128: 0 | G128: 2 | H128: 1 | S128: 3 | T128: 0.0%
A129: PEDIATRAS | B129: PEDIATRAS | C129: DR. CARLOS CORTAZAR | D129: 02-CHAPINERO | E129: 0 | F129: 0 | G129: 0 | H129: 0 | S129: 0 | T129: 0.0% | U129: 0
A130: PEDIATRAS | B130: PEDIATRAS | C130: DR. NELSON PARDO | D130: 02-CHAPINERO | E130: 0 | F130: 0 | G130: 2 | H130: 0 | S130: 2 | T130: =IF(E130=0,0,+S130/E130) -> 0.0% | U130: =IF(COUNT(G130:R130)*(E130/12)-S130<0,"",COUNT(G130:R130)*(E130/12)-S130) -> 
A131: PEDIATRAS | B131: PEDIATRAS | C131: DR. ALVARO JACOME | D131: 02-CHAPINERO | E131: 0 | F131: =+E131/12 -> 0 | G131: 0 | H131: 1 | S131: =SUM(G131:R131) -> 1 | T131: 0.0%
A132: PEDIATRAS | B132: PEDIATRAS | C132: DR. SILVIO COPO | D132: 02-CHAPINERO | E132: 0 | F132: 0 | G132: 0 | H132: 0 | S132: 0 | T132: 0.0% | U132: 0
A133: PEDIATRAS | B133: PEDIATRAS | C133: DR. HECTOR FERNANDO MENDOZA | D133: 02-CHAPINERO | E133: 0 | F133: 0 | G133: 1 | H133: 0 | S133: 1 | T133: 0.0%
A134: PEDIATRAS | B134: PEDIATRAS | C134: DR. DIMITRIOS | D134: 02-CHAPINERO | E134: 0 | F134: 0 | G134: 1 | H134: 2 | S134: 3 | T134: 0.0%
A135: PEDIATRAS | B135: PEDIATRAS | C135: DR. ALVARO MARIÑO | D135: 02-CHAPINERO | E135: 0 | F135: 0 | G135: 0 | H135: 0 | S135: 0 | T135: 0.0% | U135: 0
A136: PEDIATRAS | B136: PEDIATRAS | C136: DR. ANDRES VARGAS | D136: 02-CHAPINERO | E136: 0 | F136: 0 | G136: 1 | H136: 1 | S136: 2 | T136: 0.0%
A137: PEDIATRAS | B137: PEDIATRAS | C137: DR. JORGE CAMILO LUNA | D137: 02-CHAPINERO | E137: 0 | F137: 0 | G137: 0 | H137: 13 | S137: 13 | T137: 0.0%
A138: PEDIATRAS | B138: PEDIATRAS | C138: DR. BERNARDO HUERTAS | D138: 02-CHAPINERO | E138: 0 | F138: 0 | G138: 13 | H138: 11 | S138: 24 | T138: 0.0%
A139: PEDIATRAS | B139: PEDIATRAS | C139: DR. CARLOS M CASTILLO | D139: 02-CHAPINERO | E139: 0 | F139: 0 | G139: 0 | H139: 0 | S139: 0 | T139: 0.0% | U139: 0
A140: PEDIATRAS | B140: PEDIATRAS | C140: DR. HEINZ OTTO PFALZGRAF | D140: 02-CHAPINERO | E140: 0 | F140: 0 | G140: 0 | H140: 0 | S140: 0 | T140: 0.0% | U140: 0
A141: PEDIATRAS | B141: PEDIATRAS | C141: DR. GONZALEZ BALLESTEROS | D141: 02-CHAPINERO | E141: 0 | F141: 0 | G141: 1 | H141: 0 | S141: 1 | T141: 0.0%
A142: PEDIATRAS | B142: PEDIATRAS | C142: DR. NORBERTO SALAMANCA | D142: 02-CHAPINERO | E142: 0 | F142: 0 | G142: 0 | H142: 0 | S142: 0 | T142: 0.0% | U142: 0
A143: PEDIATRAS | B143: PEDIATRAS | C143: DR. CAMILO ENRIQUE SOTOMAYOR | D143: 02-CHAPINERO | E143: 0 | F143: 0 | G143: 2 | H143: 1 | S143: 3 | T143: 0.0%
A144: PEDIATRAS | B144: PEDIATRAS | C144: DR. SANTIAGO RUEDA SAIZ | D144: 02-CHAPINERO | E144: 0 | F144: 0 | G144: 0 | H144: 2 | S144: 2 | T144: 0.0%
A145: PEDIATRAS | B145: PEDIATRAS | C145: DR. HENRY HERNANDO SANCHEZ ESCOBAR | D145: 02-CHAPINERO | E145: 0 | F145: 0 | G145: 0 | H145: 1 | S145: 1 | T145: 0.0%
A146: PEDIATRAS | B146: PEDIATRAS | C146: DR. RUBEN DARIO TAMAYO | D146: 02-CHAPINERO | E146: 0 | F146: 0 | G146: 1 | H146: 2 | S146: 3 | T146: 0.0%
A147: PEDIATRAS | B147: PEDIATRAS | C147: DR. JAIME MAURICIO MATALLANA | D147: 02-CHAPINERO | E147: 0 | F147: 0 | G147: 2 | H147: 5 | S147: 7 | T147: 0.0%
A148: PEDIATRAS | B148: PEDIATRAS | C148: DR. RODRIGO GARCIA | D148: 02-CHAPINERO | E148: 0 | F148: 0 | G148: 0 | H148: 0 | S148: 0 | T148: 0.0% | U148: 0
A149: PEDIATRAS | B149: PEDIATRAS | C149: DR. FELIPE ROBAYO | D149: 02-CHAPINERO | E149: 0 | F149: 0 | G149: 0 | H149: 0 | S149: 0 | T149: 0.0% | U149: 0
A150: PEDIATRAS | B150: PEDIATRAS | C150: DR. RUBEN FRANCO | D150: 02-CHAPINERO | E150: 0 | F150: 0 | G150: 0 | H150: 0 | S150: 0 | T150: 0.0% | U150: 0
A151: PEDIATRAS | B151: PEDIATRAS | C151: DR. ORLANDO RODRIGUEZ RAMIREZ | D151: 02-CHAPINERO | E151: 0 | F151: 0 | G151: 0 | H151: 1 | S151: 1 | T151: 0.0%
A152: PEDIATRAS | B152: PEDIATRAS | C152: DR. ARTURO MORENO | D152: 02-CHAPINERO | E152: 0 | F152: 0 | G152: 0 | H152: 0 | S152: 0 | T152: 0.0% | U152: 0
A153: PEDIATRAS | B153: PEDIATRAS | C153: DR. FRANCISCO LEAL QUEVEDO | D153: 02-CHAPINERO | E153: 0 | F153: 0 | G153: 0 | H153: 0 | S153: 0 | T153: 0.0% | U153: 0
A154: PEDIATRAS | B154: PEDIATRAS | C154: DR. CARLOS DIAZ PUENTES | D154: 02-CHAPINERO | E154: 0 | F154: 0 | G154: 0 | H154: 0 | S154: 0 | T154: 0.0% | U154: 0
A155: PEDIATRAS | B155: PEDIATRAS | C155: DR. PEDRO ERASMO MENDOZA | D155: 02-CHAPINERO | E155: 0 | F155: 0 | G155: 0 | H155: 0 | S155: 0 | T155: 0.0% | U155: 0
A156: PEDIATRAS | B156: PEDIATRAS | C156: DR. DIMAS ROSAS | D156: 02-CHAPINERO | E156: 0 | F156: 0 | G156: 0 | H156: 0 | S156: 0 | T156: 0.0% | U156: 0
A157: PEDIATRAS | B157: PEDIATRAS | C157: DR. JAVIER BRITO MORENO | D157: 02-CHAPINERO | E157: 0 | F157: 0 | G157: 0 | H157: 0 | S157: 0 | T157: 0.0% | U157: 0
A158: PEDIATRAS | B158: PEDIATRAS | C158: DR. GUSTAVO CORTÉS | D158: 02-CHAPINERO | E158: 0 | F158: 0 | G158: 0 | H158: 0 | S158: 0 | T158: 0.0% | U158: 0
A159: PEDIATRAS | B159: PEDIATRAS | C159: DR. CARLOS VELASQUEZ | D159: 02-CHAPINERO | E159: 0 | F159: 0 | G159: 0 | H159: 0 | S159: 0 | T159: 0.0% | U159: 0
A160: PEDIATRAS | B160: PEDIATRAS | C160: DR. RICARDO GOMEZ | D160: 02-CHAPINERO | E160: 0 | F160: 0 | G160: 0 | H160: 0 | S160: 0 | T160: 0.0% | U160: 0
A161: PEDIATRAS | B161: PEDIATRAS | C161: DR. SARA BERNAL | D161: 02-CHAPINERO | E161: 0 | F161: 0 | G161: 2 | H161: 2 | S161: 4 | T161: 0.0%
A162: PEDIATRAS | B162: PEDIATRAS | C162: DRA. MARIA PATRICIA AGUALIMPIA | D162: 02-CHAPINERO | E162: 0 | F162: 0 | G162: 0 | H162: 0 | S162: 0 | T162: 0.0% | U162: 0
A163: PEDIATRAS | B163: PEDIATRAS | C163: DRA. LUISA FERNANDA FORERO ACOSTA | D163: 02-CHAPINERO | E163: 0 | F163: 0 | G163: 0 | H163: 0 | S163: 0 | T163: 0.0% | U163: 0
A164: PEDIATRAS | B164: PEDIATRAS | C164: DRA. MARIA CLARA CASAS PARDO | D164: 02-CHAPINERO | E164: 0 | F164: 0 | G164: 0 | H164: 0 | S164: 0 | T164: 0.0% | U164: 0
A165: PEDIATRAS | B165: PEDIATRAS | C165: DRA. MARTHA EUGENIA RONDEROS DE FORERO | D165: 02-CHAPINERO | E165: 0 | F165: 0 | G165: 0 | H165: 0 | S165: 0 | T165: 0.0% | U165: 0
A166: PEDIATRAS | B166: PEDIATRAS | C166: DRA. MARIA ISABEL USCHER | D166: 02-CHAPINERO | E166: 0 | F166: 0 | G166: 1 | H166: 2 | S166: 3 | T166: 0.0%
A167: PEDIATRAS | B167: PEDIATRAS | C167: DRA. MARIA DE LOS ANGELES MUÑOZ | D167: 02-CHAPINERO | E167: 0 | F167: 0 | G167: 1 | H167: 0 | S167: 1 | T167: 0.0%
A168: PEDIATRAS | B168: PEDIATRAS | C168: DRA. CLARA ABELLO REYES | D168: 02-CHAPINERO | E168: 0 | F168: 0 | H168: 0 | S168: 0 | T168: 0.0% | U168: 0
A169: PEDIATRAS | B169: PEDIATRAS | C169: DRA. PATRICIA CONTRERAS | D169: 02-CHAPINERO | E169: 0 | F169: 0 | H169: 1 | S169: 1 | T169: 0.0%
A170: PEDIATRAS | B170: PEDIATRAS | C170: DRA. CLAUDIA ZOPPI | D170: 02-CHAPINERO | E170: 0 | F170: 0 | G170: 0 | H170: 0 | S170: 0 | T170: 0.0% | U170: 0
A171: PEDIATRAS | B171: PEDIATRAS | C171: DRA. MARIA DE LOS ANGELES FERNANDEZ LUQUE | D171: 02-CHAPINERO | E171: 0 | F171: 0 | G171: 0 | H171: 0 | S171: 0 | T171: 0.0% | U171: 0
A172: PEDIATRAS | B172: PEDIATRAS | C172: DRA. RUTH CORDOBA CORDOBA | D172: 02-CHAPINERO | E172: 0 | F172: 0 | G172: 0 | H172: 0 | S172: 0 | T172: 0.0% | U172: 0
A173: PEDIATRAS | B173: PEDIATRAS | C173: DRA. LUZ ESTELA CORTES | D173: 02-CHAPINERO | E173: 0 | F173: 0 | G173: 0 | H173: 1 | S173: 1 | T173: 0.0%
A174: UNICAJAS | B174: UNICAJAS | C174: UPA SAN LUIS | D174: 02-CHAPINERO | E174: 18 | F174: 2 | G174: 1 | H174: 0 | S174: 1 | T174: 5.6% | U174: 2
A175: 02-CHAPINERO | B175: OTROS | C175: UPA SAN LUIS | D175: 02-CHAPINERO | E175: 325 | F175: 27 | G175: 0 | H175: 2 | S175: 2 | T175: 0.6% | U175: 52
A176: 02-CHAPINERO | B176: DEMAS EAPB | C176: UPA SAN LUIS | D176: 02-CHAPINERO | F176: 0 | G176: 7 | H176: 2 | S176: 9 | T176: 0.0%
A177: UNICAJAS | B177: UNICAJAS | C177: COMFASALUD SEDE CENTRO | D177: 03-SANTA FE | E177: 50 | F177: 4 | G177: 4 | H177: 2 | S177: 6 | T177: 12.0% | U177: 2
A178: MEDIMAS | B178: MEDIMAS | C178: CORVESALUD TEUSAQUILLO | D178: 03-SANTA FE | E178: 193 | F178: 16 | G178: 6 | H178: 4 | S178: 10 | T178: 5.2% | U178: 22
A179: 03-SANTA FE | B179: CAPITAL SALUD | C179: EXTRAMURAL SANTA FE | D179: 03-SANTA FE | E179: 0 | F179: 0 | G179: 2 | H179: 5 | S179: 7 | T179: 0.0%
A180: 03-SANTA FE | B180: DEMAS EAPB | C180: EXTRAMURAL SANTA FE | D180: 03-SANTA FE | E180: 0 | F180: 0 | G180: 6 | H180: 4 | S180: 10 | T180: 0.0%
A181: 03-SANTA FE | B181: OTROS | C181: EXTRAMURAL SANTA FE | D181: 03-SANTA FE | E181: 0 | F181: 0 | G181: 16 | H181: 9 | S181: 25 | T181: 0.0%
A182: 03-SANTA FE | B182: UNICAJAS | C182: EXTRAMURAL SANTA FE | D182: 03-SANTA FE | E182: 0 | F182: 0 | G182: 0 | H182: 0 | S182: 0 | T182: 0.0% | U182: 0
A183: 03-SANTA FE | B183: CAPITAL SALUD | C183: USS LACHES | D183: 03-SANTA FE | E183: 54 | F183: 5 | G183: 9 | H183: 3 | S183: 12 | T183: 22.2%
A184: 03-SANTA FE | B184: DEMAS EAPB | C184: USS LACHES | D184: 03-SANTA FE | E184: 0 | F184: 0 | G184: 12 | H184: 2 | S184: 14 | T184: 0.0%
A185: 03-SANTA FE | B185: OTROS | C185: USS LACHES | D185: 03-SANTA FE | E185: 260 | F185: 22 | G185: 6 | H185: 0 | S185: 6 | T185: 2.3% | U185: 37
A186: 03-SANTA FE | B186: UNICAJAS | C186: USS LACHES | D186: 03-SANTA FE | E186: 17 | F186: 1 | G186: 0 | H186: 2 | S186: 2 | T186: 11.8% | U186: 1
A187: 03-SANTA FE | B187: CAPITAL SALUD | C187: USS LAS CRUCES | D187: 03-SANTA FE | E187: 44 | F187: 4 | G187: 7 | H187: 5 | S187: 12 | T187: 27.3%
A188: 03-SANTA FE | B188: DEMAS EAPB | C188: USS LAS CRUCES | D188: 03-SANTA FE | E188: 0 | F188: 0 | G188: 6 | H188: 1 | S188: 7 | T188: 0.0%
A189: 03-SANTA FE | B189: OTROS | C189: USS LAS CRUCES | D189: 03-SANTA FE | E189: 211 | F189: 18 | G189: 5 | H189: 4 | S189: 9 | T189: 4.3% | U189: 26
A190: 03-SANTA FE | B190: UNICAJAS | C190: USS LAS CRUCES | D190: 03-SANTA FE | E190: 14 | F190: 1 | G190: 7 | H190: 0 | S190: 7 | T190: 50.0%
A191: 03-SANTA FE | B191: CAPITAL SALUD | C191: USS PERSEVERANCIA | D191: 03-SANTA FE | E191: 6 | F191: 1 | G191: 2 | H191: 0 | S191: 2 | T191: 33.3%
A192: 03-SANTA FE | B192: DEMAS EAPB | C192: USS PERSEVERANCIA | D192: 03-SANTA FE | E192: 0 | F192: 0 | G192: 0 | H192: 0 | S192: 0 | T192: 0.0% | U192: 0
A193: 03-SANTA FE | B193: OTROS | C193: USS PERSEVERANCIA | D193: 03-SANTA FE | E193: 30 | F193: 3 | G193: 2 | H193: 0 | S193: 2 | T193: 6.7% | U193: 3
A194: 03-SANTA FE | B194: UNICAJAS | C194: USS PERSEVERANCIA | D194: 03-SANTA FE | E194: 2 | F194: 0 | G194: 0 | H194: 0 | S194: 0 | T194: =IF(E194=0,0,+S194/E194) -> 0.0% | U194: =IF(COUNT(G194:R194)*(E194/12)-S194<0,"",COUNT(G194:R194)*(E194/12)-S194) -> 0
A195: PARTICULAR | B195: PARTICULAR | C195: CLINICA SAN RAFAEL | D195: 04-SAN CRISTOBAL | E195: 375 | F195: =+E195/12 -> 31 | G195: 35 | H195: 26 | S195: =SUM(G195:R195) -> 61 | T195: 16.3% | U195: 2
A196: FAMISANAR | B196: FAMI- COLSB | C196: CENTRO MEDICO COLSUBSIDIO 20 DE JULIO | D196: 04-SAN CRISTOBAL | F196: 0 | S196: 0 | T196: 0.0% | U196: 0
A197: 04-SAN CRISTOBAL | B197: CAPITAL SALUD | C197: EXTRAMURAL SAN CRISTOBAL | D197: 04-SAN CRISTOBAL | E197: 0 | F197: 0 | G197: 28 | H197: 28 | S197: 56 | T197: 0.0%
A198: 04-SAN CRISTOBAL | B198: DEMAS EAPB | C198: EXTRAMURAL SAN CRISTOBAL | D198: 04-SAN CRISTOBAL | E198: 0 | F198: 0 | G198: 37 | H198: 26 | S198: 63 | T198: 0.0%
A199: 04-SAN CRISTOBAL | B199: OTROS | C199: EXTRAMURAL SAN CRISTOBAL | D199: 04-SAN CRISTOBAL | E199: 0 | F199: 0 | G199: 12 | H199: 7 | S199: 19 | T199: 0.0%
A200: 04-SAN CRISTOBAL | B200: UNICAJAS | C200: EXTRAMURAL SAN CRISTOBAL | D200: 04-SAN CRISTOBAL | E200: 0 | F200: 0 | G200: 0 | H200: 2 | S200: 2 | T200: 0.0%
... 620 more rows

Sheet PENTA3
A1: EAPB | B1: EPS O ESE | C1: IPS | D1: Localidad | E1: Meta Anual Menor de 1 Año | F1: Meta Mensual | G1: Enero | H1: Febrero | I1: Marzo | J1: Abril | K1: Mayo | L1: Junio | M1: Julio | N1: Agosto | O1: Septiembre | P1: Octubre | Q1: Noviembre | R1: Diciembre | S1: Total | T1: % Cobertura | U1: Deficit
A2: CAPITAL SALUD | B2: CAPITAL SALUD | C2: UPA SAN CRISTOBAL | D2: 01-USAQUEN | E2: 124 | F2: =+E2/12 -> 10 | G2: 6 | H2: 3 | S2: =SUM(G2:R2) -> 9 | T2: =IF(E2=0,0,+S2/E2) -> 7.3% | U2: =IF(COUNT(G2:R2)*(E2/12)-S2<0,"",COUNT(G2:R2)*(E2/12)-S2) -> 12
A3: CAPITAL SALUD | B3: CAPITAL SALUD | C3: UPA USAQUEN | D3: 01-USAQUEN | E3: 10 | F3: =+E3/12 -> 1 | G3: 0 | H3: 0 | S3: =SUM(G3:R3) -> 0 | T3: 0.0% | U3: 2
A4: CAPITAL SALUD | B4: CAPITAL SALUD | C4: UPA ORQUIDEAS | D4: 01-USAQUEN | E4: 11 | F4: 1 | G4: 0 | H4: 0 | S4: 0 | T4: 0.0% | U4: 2
A5: CAPITAL SALUD | B5: CAPITAL SALUD | C5: UPA CODITO | D5: 01-USAQUEN | E5: 107 | F5: 9 | G5: 7 | H5: 2 | S5: 9 | T5: 8.4% | U5: 9
A6: CAPITAL SALUD | B6: CAPITAL SALUD | C6: CAMI VERBENAL | D6: 01-USAQUEN | E6: 87 | F6: 7 | G6: 7 | H6: 10 | S6: 17 | T6: 19.5%
A7: CAPITAL SALUD | B7: CAPITAL SALUD | C7: HOSPITAL SIMON BOLIVAR | D7: 01-USAQUEN | E7: 36 | F7: 3 | G7: 10 | H7: 6 | S7: 16 | T7: 44.4%
A8: 01-USAQUEN | B8: 01-USAQUEN | C8: EXTRAMURAL USAQUEN | D8: 01-USAQUEN | E8: 0 | F8: 0 | G8: 21 | H8: 34 | S8: 55 | T8: 0.0%
A9: ALIANSALUD | B9: ALIANSALUD | C9: CENTRO MEDICO COLMEDICA SANTA BARBARA | D9: 01-USAQUEN | E9: 580 | F9: 48 | G9: 71 | H9: 69 | S9: 140 | T9: 24.1%
A10: COMPENSAR | B10: COMPENSAR | C10: USS CALLE 134 | D10: 01-USAQUEN | E10: 372 | F10: 31 | G10: 20 | H10: 9 | S10: 29 | T10: 7.8% | U10: 33
A11: COMPENSAR | B11: COMPENSAR | C11: USS CALLE 145 | D11: 01-USAQUEN | E11: 173 | F11: 14 | G11: 22 | H11: 14 | S11: 36 | T11: 20.8%
A12: COMPENSAR | B12: COMPENSAR | C12: JAVESALUD TOBERIN | D12: 01-USAQUEN | E12: 372 | F12: 31 | G12: 0 | H12: 9 | S12: 9 | T12: 2.4% | U12: 53
A13: COOMEVA | B13: COOMEVA | C13: SINERGIA UNIDAD INTEGRAL EN SALUD | D13: 01-USAQUEN | E13: 44 | F13: 4 | G13: 12 | H13: 13 | S13: 25 | T13: 56.8%
A14: FAMISANAR | B14: FAMI- COLSB | C14: CENTRO MEDICO COLSUBSIDIO USAQUEN | D14: 01-USAQUEN | E14: 298 | F14: 25 | G14: 26 | H14: 25 | S14: 51 | T14: 17.1%
A15: MILITAR | B15: MILITAR | C15: DISPENSARIO MEDICO CANTON NORTE | D15: 01-USAQUEN | E15: 205 | F15: 17 | G15: 8 | H15: 6 | S15: 14 | T15: 6.8% | U15: 20
A16: NUEVA EPS | B16: NUEVA EPS | C16: IPS VIVA 1A SEDE TOBERIN | D16: 01-USAQUEN | E16: 147 | F16: 12 | G16: 11 | H16: 7 | S16: 18 | T16: 12.2% | U16: 7
A17: NUEVA EPS | B17: NUEVA EPS | C17: CAFAM GRANADA HILLS | D17: 01-USAQUEN | E17: 44 | F17: 4 | G17: 0 | H17: 3 | S17: 3 | T17: 6.8% | U17: 4
A18: SANITAS | B18: SANITAS | C18: UAP SANITAS TOBERIN | D18: 01-USAQUEN | E18: 511 | F18: 43 | G18: 33 | H18: 27 | S18: 60 | T18: 11.7% | U18: 25
A19: SANITAS | B19: SANITAS | C19: MEDIKA IPS SANITAS UAP USAQUEN | D19: 01-USAQUEN | E19: 188 | F19: 16 | G19: 1 | H19: 2 | S19: 3 | T19: 1.6% | U19: 28
A20: SANITAS | B20: SANITAS | C20: UAP SANTA BARBARA | D20: 01-USAQUEN | E20: 796 | F20: 66 | G20: 77 | H20: 69 | S20: 146 | T20: 18.3%
A21: SANITAS | B21: SANITAS | C21: SANITAS BANCO DE LA REPUBLICA | D21: 01-USAQUEN | E21: 0 | F21: 0 | G21: 1 | H21: 5 | S21: 6 | T21: 0.0%
A22: SALUD TOTAL | B22: SALUD TOTAL | C22: VIRREY SOLIS TOBERÍN | D22: 01-USAQUEN | E22: 384 | F22: 32 | G22: 18 | H22: 19 | S22: 37 | T22: 9.6% | U22: 27
A23: SURA | B23: SURA | C23: IPS JAVESALUD SANTA BEATRIZ | D23: 01-USAQUEN | E23: 355 | F23: 30 | G23: 10 | H23: 18 | S23: 28 | T23: 7.9% | U23: 31
A24: ECOPETROL | B24: ECOPETROL | C24: IPS CLINICOS PALATINO | D24: 01-USAQUEN | E24: 87 | F24: 7 | G24: 4 | H24: 9 | S24: 13 | T24: 14.9% | U24: 2
A25: PARTICULAR | B25: PARTICULAR | C25: CLINICA PEDIATRICA COLSANITAS | D25: 01-USAQUEN | E25: 830 | F25: 69 | G25: 88 | H25: 58 | S25: 146 | T25: 17.6%
A26: PARTICULAR | B26: PARTICULAR | C26: CENTRO MEDICO COLSANITAS LA CALLEJA | D26: 01-USAQUEN | E26: 120 | F26: 10 | G26: 10 | H26: 18 | S26: 28 | T26: 23.3%
A27: PARTICULAR | B27: PARTICULAR | C27: CENTRO MEDICO COLSANITAS 108 | D27: 01-USAQUEN | E27: 40 | F27: 3 | G27: 3 | H27: 3 | S27: 6 | T27: 15.0% | U27: 1
A28: PARTICULAR | B28: PARTICULAR | C28: CENTRO MEDICO COLSANITAS SANTA ANA | D28: 01-USAQUEN | E28: 4 | F28: 0 | G28: 2 | H28: 3 | S28: 5 | T28: 125.0%
A29: PARTICULAR | B29: PARTICULAR | C29: FUNDACIÓN CARDIO INFANTIL | D29: 01-USAQUEN | E29: 0 | F29: 0 | G29: 10 | H29: 12 | S29: 22 | T29: 0.0%
A30: PARTICULAR | B30: PARTICULAR | C30: ENFASO USAQUEN | D30: 01-USAQUEN | E30: 0 | F30: 0 | G30: 9 | H30: 8 | S30: 17 | T30: 0.0%
A31: PARTICULAR | B31: PARTICULAR | C31: UNIDAD DE VACUNACIÓN INTERNACIONAL | D31: 01-USAQUEN | E31: 0 | F31: 0 | G31: 5 | H31: 5 | S31: 10 | T31: 0.0%
A32: PARTICULAR | B32: PARTICULAR | C32: INMUNOLOGÍA Y DIAGNÓSTICO ESPECIALIZADO LTDA. | D32: 01-USAQUEN | E32: 0 | F32: 0 | G32: 1 | H32: 0 | S32: 1 | T32: 0.0%
A33: PARTICULAR | B33: PARTICULAR | C33: PROTEGER HEALHT CARE | D33: 01-USAQUEN | E33: 0 | F33: 0 | G33: 1 | H33: 1 | S33: 2 | T33: 0.0%
A34: PARTICULAR | B34: PARTICULAR | C34: FUNDACION SANTA FE DE BOGOTA | D34: 01-USAQUEN | E34: 0 | F34: 0 | G34: 0 | H34: 0 | S34: 0 | T34: 0.0% | U34: 0
A35: PARTICULAR | B35: PARTICULAR | C35: IPS CRUZ ROJA SEDE UNICENTRO | D35: 01-USAQUEN | E35: 0 | F35: 0 | G35: 0 | H35: 1 | S35: 1 | T35: 0.0%
A36: PARTICULAR | B36: PARTICULAR | C36: IPS CRUZ ROJA SAMU CALLE 145 | D36: 01-USAQUEN | E36: 0 | F36: 0 | G36: 0 | H36: 0 | S36: 0 | T36: 0.0% | U36: 0
A37: PEDIATRAS | B37: PEDIATRAS | C37: DR. ALEJANDRO LÓPEZ | D37: 01-USAQUEN | E37: 0 | F37: 0 | G37: 4 | H37: 2 | S37: 6 | T37: 0.0%
A38: PEDIATRAS | B38: PEDIATRAS | C38: DR. CARLOS NEFTALI TORRES | D38: 01-USAQUEN | E38: 0 | F38: 0 | G38: 5 | H38: 7 | S38: 12 | T38: 0.0%
A39: PEDIATRAS | B39: PEDIATRAS | C39: DR. FRANCISCO NUÑEZ | D39: 01-USAQUEN | E39: 0 | F39: 0 | G39: 0 | H39: 0 | S39: 0 | T39: 0.0% | U39: 0
A40: PEDIATRAS | B40: PEDIATRAS | C40: DR. FERNANDO GOMEZ | D40: 01-USAQUEN | E40: 0 | F40: 0 | G40: 0 | H40: 0 | S40: 0 | T40: 0.0% | U40: 0
A41: PEDIATRAS | B41: PEDIATRAS | C41: DR. FERNANDO ZARATE MORENO | D41: 01-USAQUEN | E41: 0 | F41: 0 | G41: 0 | H41: 1 | S41: 1 | T41: 0.0%
A42: PEDIATRAS | B42: PEDIATRAS | C42: DR. GONZALO GARCIA | D42: 01-USAQUEN | E42: 0 | F42: 0 | G42: 1 | H42: 0 | S42: 1 | T42: 0.0%
A43: PEDIATRAS | B43: PEDIATRAS | C43: DR. GUSTAVO MORALES | D43: 01-USAQUEN | E43: 0 | F43: 0 | G43: 2 | H43: 3 | S43: 5 | T43: 0.0%
A44: PEDIATRAS | B44: PEDIATRAS | C44: DR. JAIME OSPINA | D44: 01-USAQUEN | E44: 0 | F44: 0 | G44: 6 | H44: 0 | S44: 6 | T44: 0.0%
A45: PEDIATRAS | B45: PEDIATRAS | C45: DR. JORGE URIBE | D45: 01-USAQUEN | E45: 0 | F45: 0 | G45: 0 | H45: 0 | S45: 0 | T45: 0.0% | U45: 0
A46: PEDIATRAS | B46: PEDIATRAS | C46: DR. JUAN LUIS FIGUEROA | D46: 01-USAQUEN | E46: 0 | F46: 0 | G46: 1 | H46: 3 | S46: 4 | T46: 0.0%
A47: PEDIATRAS | B47: PEDIATRAS | C47: DR. LUIS AUGUSTO PERNA | D47: 01-USAQUEN | E47: 0 | F47: 0 | G47: 6 | H47: 3 | S47: 9 | T47: 0.0%
A48: PEDIATRAS | B48: PEDIATRAS | C48: DR. LIBARDO ELI TRIANA | D48: 01-USAQUEN | E48: 0 | F48: 0 | G48: 0 | H48: 0 | S48: 0 | T48: 0.0% | U48: 0
A49: PEDIATRAS | B49: PEDIATRAS | C49: DR. OSWALDO MERCADO HOYOS | D49: 01-USAQUEN | E49: 0 | F49: 0 | G49: 0 | H49: 0 | S49: 0 | T49: 0.0% | U49: 0
A50: PEDIATRAS | B50: PEDIATRAS | C50: DR. ROBERTO BENIRO | D50: 01-USAQUEN | E50: 0 | F50: 0 | G50: 0 | H50: 0 | S50: 0 | T50: 0.0% | U50: 0
A51: PEDIATRAS | B51: PEDIATRAS | C51: DR. SERGIO ISAZA | D51: 01-USAQUEN | E51: 0 | F51: 0 | G51: 0 | H51: 0 | S51: 0 | T51: 0.0% | U51: 0
A52: PEDIATRAS | B52: PEDIATRAS | C52: DR. SANTIAGO UCROS | D52: 01-USAQUEN | E52: 0 | F52: 0 | G52: 0 | H52: 0 | S52: 0 | T52: 0.0% | U52: 0
A53: PEDIATRAS | B53: PEDIATRAS | C53: DR. GERMAN SILVA | D53: 01-USAQUEN | E53: 0 | F53: 0 | G53: 0 | H53: 0 | S53: 0 | T53: 0.0% | U53: 0
A54: PEDIATRAS | B54: PEDIATRAS | C54: DR. DANIEL ABRIL | D54: 01-USAQUEN | E54: 0 | F54: 0 | G54: 0 | H54: 0 | S54: 0 | T54: 0.0% | U54: 0
A55: PEDIATRAS | B55: PEDIATRAS | C55: DR. CARLOS EDUARDO OLMOS | D55: 01-USAQUEN | E55: 0 | F55: 0 | G55: 0 | H55: 0 | S55: 0 | T55: 0.0% | U55: 0
A56: PEDIATRAS | B56: PEDIATRAS | C56: DR. EDGARDO CHATMAN | D56: 01-USAQUEN | E56: 0 | F56: 0 | G56: 0 | H56: 0 | S56: 0 | T56: 0.0% | U56: 0
A57: PEDIATRAS | B57: PEDIATRAS | C57: DR. JORGE FLOREZ OTERO | D57: 01-USAQUEN | E57: 0 | F57: 0 | G57: 0 | H57: 0 | S57: 0 | T57: 0.0% | U57: 0
A58: PEDIATRAS | B58: PEDIATRAS | C58: DRA. ALEJANDRA MARIA VALENCIA | D58: 01-USAQUEN | E58: 0 | F58: 0 | G58: 0 | H58: 0 | S58: 0 | T58: 0.0% | U58: 0
A59: PEDIATRAS | B59: PEDIATRAS | C59: DRA. ANA MARIA GOYENECHE | D59: 01-USAQUEN | E59: 0 | F59: 0 | G59: 0 | H59: 0 | S59: 0 | T59: 0.0% | U59: 0
A60: PEDIATRAS | B60: PEDIATRAS | C60: DRA. JIMENA VARELA | D60: 01-USAQUEN | E60: 0 | F60: 0 | G60: 1 | H60: 0 | S60: 1 | T60: 0.0%
A61: PEDIATRAS | B61: PEDIATRAS | C61: DRA. LIA SAN MIGUEL | D61: 01-USAQUEN | E61: 0 | F61: 0 | G61: 0 | H61: 0 | S61: 0 | T61: 0.0% | U61: 0
A62: PEDIATRAS | B62: PEDIATRAS | C62: DRA. LIBIA SEGURA | D62: 01-USAQUEN | E62: 0 | F62: 0 | G62: 0 | H62: 0 | S62: 0 | T62: 0.0% | U62: 0
A63: PEDIATRAS | B63: PEDIATRAS | C63: DRA. MARÍA JOSÉ PEDRAZA | D63: 01-USAQUEN | E63: 0 | F63: 0 | G63: 0 | H63: 0 | S63: 0 | T63: 0.0% | U63: 0
A64: PEDIATRAS | B64: PEDIATRAS | C64: DRA. MARTHA LUCIA SANCHEZ | D64: 01-USAQUEN | E64: 0 | F64: 0 | G64: 0 | H64: 0 | S64: 0 | T64: 0.0% | U64: 0
A65: PEDIATRAS | B65: PEDIATRAS | C65: DRA. OLGA LUCÍA SÁNCHEZ | D65: 01-USAQUEN | E65: 0 | F65: 0 | G65: 0 | H65: 0 | S65: 0 | T65: 0.0% | U65: 0
A66: PEDIATRAS | B66: PEDIATRAS | C66: DRA. SANDRA BELTRAN | D66: 01-USAQUEN | E66: 0 | F66: 0 | G66: 0 | H66: 0 | S66: 0 | T66: =IF(E66=0,0,+S66/E66) -> 0.0% | U66: =IF(COUNT(G66:R66)*(E66/12)-S66<0,"",COUNT(G66:R66)*(E66/12)-S66) -> 0
A67: PEDIATRAS | B67: PEDIATRAS | C67: DRA. IVANA CABRERA | D67: 01-USAQUEN | E67: 0 | F67: =+E67/12 -> 0 | G67: 0 | H67: 0 | S67: =SUM(G67:R67) -> 0 | T67: 0.0% | U67: 0
A68: PEDIATRAS | B68: PEDIATRAS | C68: DRA. NAYITA ALARCON | D68: 01-USAQUEN | E68: 0 | F68: 0 | G68: 0 | H68: 0 | S68: 0 | T68: 0.0% | U68: 0
A69: PEDIATRAS | B69: PEDIATRAS | C69: DRA. ELIZABETH GARCIA | D69: 01-USAQUEN | E69: 0 | F69: 0 | G69: 0 | H69: 0 | S69: 0 | T69: 0.0% | U69: 0
A70: PEDIATRAS | B70: PEDIATRAS | C70: DRA. BERTHA CALDERON DE RAMOS | D70: 01-USAQUEN | E70: 0 | F70: 0 | G70: 0 | H70: 0 | S70: 0 | T70: 0.0% | U70: 0
A71: PEDIATRAS | B71: PEDIATRAS | C71: DRA. MIRYAM CORREA | D71: 01-USAQUEN | E71: 0 | F71: 0 | G71: 0 | H71: 0 | S71: 0 | T71: 0.0% | U71: 0
A72: 01-USAQUEN | B72: UNICAJAS | C72: UPA SAN CRISTOBAL | D72: 01-USAQUEN | E72: 6 | F72: 1 | G72: 0 | H72: 1 | S72: 1 | T72: 16.7% | U72: 0
A73: UNICAJAS | B73: UNICAJAS | C73: UPA USAQUEN | D73: 01-USAQUEN | E73: 9 | F73: 1 | G73: 0 | H73: 0 | S73: 0 | T73: 0.0% | U73: 2
A74: UNICAJAS | B74: UNICAJAS | C74: UPA ORQUIDEAS | D74: 01-USAQUEN | E74: 6 | F74: 1 | G74: 0 | H74: 0 | S74: 0 | T74: 0.0% | U74: 1
A75: UNICAJAS | B75: UNICAJAS | C75: UPA CODITO | D75: 01-USAQUEN | E75: 5 | F75: 0 | G75: 1 | H75: 0 | S75: 1 | T75: 20.0%
A76: UNICAJAS | B76: UNICAJAS | C76: CAMI VERBENAL | D76: 01-USAQUEN | E76: 6 | F76: 1 | G76: 2 | H76: 1 | S76: 3 | T76: 50.0%
A77: 01-USAQUEN | B77: UNICAJAS | C77: HOSPITAL SIMON BOLIVAR | D77: 01-USAQUEN | E77: 6 | F77: 1 | G77: 1 | H77: 0 | S77: 1 | T77: 16.7% | U77: 0
A78: 01-USAQUEN | B78: OTROS | C78: UPA SAN CRISTOBAL | D78: 01-USAQUEN | E78: 300 | F78: 25 | G78: 5 | H78: 1 | S78: 6 | T78: 2.0% | U78: 44
A79: 01-USAQUEN | B79: OTROS | C79: UPA USAQUEN | D79: 01-USAQUEN | E79: 100 | F79: 8 | G79: 0 | H79: 0 | S79: 0 | T79: 0.0% | U79: 17
A80: 01-USAQUEN | B80: OTROS | C80: UPA ORQUIDEAS | D80: 01-USAQUEN | E80: 120 | F80: 10 | G80: 0 | H80: 1 | S80: 1 | T80: 0.8% | U80: 19
A81: 01-USAQUEN | B81: OTROS | C81: UPA CODITO | D81: 01-USAQUEN | E81: 218 | F81: 18 | G81: 4 | H81: 1 | S81: 5 | T81: 2.3% | U81: 31
A82: 01-USAQUEN | B82: OTROS | C82: CAMI VERBENAL | D82: 01-USAQUEN | E82: 309 | F82: 26 | G82: 5 | H82: 1 | S82: 6 | T82: 1.9% | U82: 46
A83: 01-USAQUEN | B83: OTROS | C83: HOSPITAL SIMON BOLIVAR | D83: 01-USAQUEN | E83: 480 | F83: 40 | G83: 5 | H83: 9 | S83: 14 | T83: 2.9% | U83: 66
A84: 01-USAQUEN | B84: DEMAS EAPB | C84: UPA SAN CRISTOBAL | D84: 01-USAQUEN | F84: 0 | G84: 8 | H84: 10 | S84: 18 | T84: 0.0%
A85: 01-USAQUEN | B85: DEMAS EAPB | C85: UPA USAQUEN | D85: 01-USAQUEN | F85: 0 | G85: 1 | H85: 1 | S85: 2 | T85: 0.0%
A86: 01-USAQUEN | B86: DEMAS EAPB | C86: UPA ORQUIDEAS | D86: 01-USAQUEN | F86: 0 | G86: 2 | H86: 0 | S86: 2 | T86: 0.0%
A87: 01-USAQUEN | B87: DEMAS EAPB | C87: UPA CODITO | D87: 01-USAQUEN | F87: 0 | G87: 11 | H87: 15 | S87: 26 | T87: 0.0%
A88: 01-USAQUEN | B88: DEMAS EAPB | C88: CAMI VERBENAL | D88: 01-USAQUEN | F88: 0 | G88: 26 | H88: 11 | S88: 37 | T88: 0.0%
A89: 01-USAQUEN | B89: DEMAS EAPB | C89: HOSPITAL SIMON BOLIVAR | D89: 01-USAQUEN | F89: 0 | G89: 15 | H89: 11 | S89: 26 | T89: 0.0%
A90: MEDIMAS | B90: MEDIMAS | C90: Corvesalud S.A.S - I P S Chico | D90: 01-USAQUEN | E90: 320 | F90: 27 | G90: 3 | H90: 2 | S90: 5 | T90: 1.6% | U90: 48
A91: FAMISANAR | B91: COLSUBSIDIO | C91: Sura PAC Santa Bárbara | D91: 01-USAQUEN | F91: 0 | S91: 0 | T91: 0.0% | U91: 0
A92: CAPITAL SALUD | B92: CAPITAL SALUD | C92: UPA SAN LUIS | D92: 02-CHAPINERO | E92: 12 | F92: 1 | G92: 2 | H92: 3 | S92: 5 | T92: 41.7%
A93: 02-CHAPINERO | B93: 02-CHAPINERO | C93: EXTRAMURAL CHAPINERO | D93: 02-CHAPINERO | E93: 0 | F93: 0 | G93: 0 | H93: 3 | S93: 3 | T93: 0.0%
A94: COMPENSAR | B94: COMPENSAR | C94: USS CALLE 42 | D94: 02-CHAPINERO | E94: 612 | F94: 51 | G94: 29 | H94: 31 | S94: 60 | T94: 9.8% | U94: 42
A95: COMPENSAR | B95: COMPENSAR | C95: USS CALLE 67 | D95: 02-CHAPINERO | E95: 0 | F95: 0 | G95: 0 | H95: 0 | S95: 0 | T95: 0.0% | U95: 0
A96: COMPENSAR | B96: COMPENSAR | C96: USS CALLE 94 | D96: 02-CHAPINERO | E96: 369 | F96: 31 | G96: 57 | H96: 54 | S96: 111 | T96: 30.1%
A97: COMPENSAR | B97: COMPENSAR | C97: VIVA 1A IPS CHAPINERO | D97: 02-CHAPINERO | E97: 73 | F97: 6 | G97: 1 | H97: 2 | S97: 3 | T97: 4.1% | U97: 9
A98: COOMEVA | B98: COOMEVA | C98: SINERGIA UNIDAD BASICA LOURDES | D98: 02-CHAPINERO | E98: 217 | F98: 18 | G98: 7 | H98: 6 | S98: 13 | T98: 6.0% | U98: 23
A99: FAMISANAR | B99: FAMI- CAFAM | C99: CENTRO DE ATENCION EN SALUD CAFAM CALLE 48 | D99: 02-CHAPINERO | E99: 1050 | F99: 88 | G99: 23 | H99: 19 | S99: 42 | T99: 4.0% | U99: 133
A100: FAMISANAR | B100: FAMI- CAFAM | C100: CENTRO DE ATENCION EN SALUD CAFAM CALLE 90 | D100: 02-CHAPINERO | E100: 200 | F100: 17 | G100: 16 | H100: 11 | S100: 27 | T100: 13.5% | U100: 6
A101: FAMISANAR | B101: FAMI- COLSB | C101: CLINICA COLSUBSIDIO EL LAGO | D101: 02-CHAPINERO | E101: 392 | F101: 33 | G101: 4 | H101: 5 | S101: 9 | T101: 2.3% | U101: 56
A102: MILITAR | B102: MILITAR | C102: HOSPITAL MILITAR CENTRAL | D102: 02-CHAPINERO | E102: 70 | F102: 6 | G102: 6 | H102: 7 | S102: 13 | T102: 18.6%
A103: POLICIA | B103: POLICIA | C103: POLICIA NACIONAL ESPAM CHAPINERO | D103: 02-CHAPINERO | E103: 117 | F103: 10 | G103: 1 | H103: 0 | S103: 1 | T103: 0.9% | U103: 19
A104: NUEVA EPS | B104: NUEVA EPS | C104: IPS VIVA 1A SEDE MARLY | D104: 02-CHAPINERO | E104: 131 | F104: 11 | G104: 2 | H104: 6 | S104: 8 | T104: 6.1% | U104: 14
A105: SANITAS | B105: SANITAS | C105: EPS SANITAS CENTRO MEDICO TEUSAQUILLO | D105: 02-CHAPINERO | E105: 579 | F105: 48 | G105: 20 | H105: 24 | S105: 44 | T105: 7.6% | U105: 53
A106: SALUD TOTAL | B106: SALUD TOTAL | C106: VIRREY SOLIS CHAPINERO | D106: 02-CHAPINERO | E106: 337 | F106: 28 | G106: 13 | H106: 11 | S106: 24 | T106: 7.1% | U106: 32
A107: SURA | B107: SURA | C107: PUNTO DE SALUD CHAPINERO | D107: 02-CHAPINERO | E107: 237 | F107: 20 | G107: 13 | H107: 25 | S107: 38 | T107: 16.0% | U107: 2
A108: SURA | B108: SURA | C108: SALUD SURA | D108: 02-CHAPINERO | E108: 454 | F108: 38 | G108: 52 | H108: 46 | S108: 98 | T108: 21.6%
A109: PARTICULAR | B109: PARTICULAR | C109: CENTRO MEDICO COLSANITAS CALLE 96 | D109: 02-CHAPINERO | E109: 24 | F109: 2 | G109: 2 | H109: 3 | S109: 5 | T109: 20.8%
A110: PARTICULAR | B110: PARTICULAR | C110: CENTRO DE ESPECIALISTAS MEDICOS AXA COLPATRIA | D110: 02-CHAPINERO | E110: 0 | F110: 0 | G110: 4 | H110: 1 | S110: 5 | T110: 0.0%
A111: PARTICULAR | B111: PARTICULAR | C111: CLINICA DE LA MUJER | D111: 02-CHAPINERO | E111: 0 | F111: 0 | G111: 39 | H111: 35 | S111: 74 | T111: 0.0%
A112: PARTICULAR | B112: PARTICULAR | C112: VACUNARTE IPS | D112: 02-CHAPINERO | E112: 0 | F112: 0 | G112: 2 | H112: 2 | S112: 4 | T112: 0.0%
A113: PARTICULAR | B113: PARTICULAR | C113: UNIMARLY | D113: 02-CHAPINERO | E113: 0 | F113: 0 | G113: 0 | H113: 0 | S113: 0 | T113: 0.0% | U113: 0
A114: PARTICULAR | B114: PARTICULAR | C114: HOSPITAL SAN IGNACIO | D114: 02-CHAPINERO | E114: 0 | F114: 0 | G114: 2 | H114: 6 | S114: 8 | T114: 0.0%
A115: PARTICULAR | B115: PARTICULAR | C115: PROGRAMA MADRE CANGURO HOSPITAL SAN IGNACIO | D115: 02-CHAPINERO | E115: 0 | F115: 0 | G115: 25 | H115: 23 | S115: 48 | T115: 0.0%
A116: PARTICULAR | B116: PARTICULAR | C116: IPS AVENIR | D116: 02-CHAPINERO | E116: 0 | F116: 0 | G116: 0 | H116: 0 | S116: 0 | T116: 0.0% | U116: 0
A117: PARTICULAR | B117: PARTICULAR | C117: IPS INMUNOLOGIA Y DIAGNOSTICO ESPECIALIZADO | D117: 02-CHAPINERO | E117: 0 | F117: 0 | G117: 0 | H117: 0 | S117: 0 | T117: 0.0% | U117: 0
A118: PARTICULAR | B118: PARTICULAR | C118: ASOCIACION PEDIATRICA DE LOS ANDES | D118: 02-CHAPINERO | E118: 0 | F118: 0 | G118: 1 | H118: 0 | S118: 1 | T118: 0.0%
A119: PARTICULAR | B119: PARTICULAR | C119: CRUZ ROJA SEDE ANDINO | D119: 02-CHAPINERO | E119: 0 | F119: 0 | G119: 0 | H119: 0 | S119: 0 | T119: 0.0% | U119: 0
A120: PARTICULAR | B120: PARTICULAR | C120: CENTRO MEDICO SANTA MONICA | D120: 02-CHAPINERO | E120: 0 | F120: 0 | H120: 0 | S120: 0 | T120: 0.0% | U120: 0
A121: PEDIATRAS | B121: PEDIATRAS | C121: DR. JUAN OSCAR TAMAYO | D121: 02-CHAPINERO | E121: 0 | F121: 0 | G121: 0 | H121: 0 | S121: 0 | T121: 0.0% | U121: 0
A122: PEDIATRAS | B122: PEDIATRAS | C122: DR. ROBERTO SUAREZ | D122: 02-CHAPINERO | E122: 0 | F122: 0 | G122: 0 | H122: 0 | S122: 0 | T122: 0.0% | U122: 0
A123: PEDIATRAS | B123: PEDIATRAS | C123: DR. WILLIAM RICARDO CABRA | D123: 02-CHAPINERO | E123: 0 | F123: 0 | G123: 1 | H123: 2 | S123: 3 | T123: 0.0%
A124: PEDIATRAS | B124: PEDIATRAS | C124: DR. EDGAR CASTRO | D124: 02-CHAPINERO | E124: 0 | F124: 0 | G124: 3 | H124: 2 | S124: 5 | T124: 0.0%
A125: PEDIATRAS | B125: PEDIATRAS | C125: DR. PABLO KRAUSS | D125: 02-CHAPINERO | E125: 0 | F125: 0 | G125: 3 | H125: 4 | S125: 7 | T125: 0.0%
A126: PEDIATRAS | B126: PEDIATRAS | C126: DR. HERNAN ROBLES | D126: 02-CHAPINERO | E126: 0 | F126: 0 | G126: 5 | H126: 1 | S126: 6 | T126: 0.0%
A127: PEDIATRAS | B127: PEDIATRAS | C127: DR. RAFAEL GAMBOA CASABLANCA | D127: 02-CHAPINERO | E127: 0 | F127: 0 | G127: 2 | H127: 0 | S127: 2 | T127: 0.0%
A128: PEDIATRAS | B128: PEDIATRAS | C128: DR. JAVIER MEJIA | D128: 02-CHAPINERO | E128: 0 | F128: 0 | G128: 3 | H128: 4 | S128: 7 | T128: 0.0%
A129: PEDIATRAS | B129: PEDIATRAS | C129: DR. CARLOS CORTAZAR | D129: 02-CHAPINERO | E129: 0 | F129: 0 | G129: 0 | H129: 0 | S129: 0 | T129: 0.0% | U129: 0
A130: PEDIATRAS | B130: PEDIATRAS | C130: DR. NELSON PARDO | D130: 02-CHAPINERO | E130: 0 | F130: 0 | G130: 1 | H130: 1 | S130: 2 | T130: =IF(E130=0,0,+S130/E130) -> 0.0% | U130: =IF(COUNT(G130:R130)*(E130/12)-S130<0,"",COUNT(G130:R130)*(E130/12)-S130) -> 
A131: PEDIATRAS | B131: PEDIATRAS | C131: DR. ALVARO JACOME | D131: 02-CHAPINERO | E131: 0 | F131: =+E131/12 -> 0 | G131: 0 | H131: 1 | S131: =SUM(G131:R131) -> 1 | T131: 0.0%
A132: PEDIATRAS | B132: PEDIATRAS | C132: DR. SILVIO COPO | D132: 02-CHAPINERO | E132: 0 | F132: 0 | G132: 0 | H132: 1 | S132: 1 | T132: 0.0%
A133: PEDIATRAS | B133: PEDIATRAS | C133: DR. HECTOR FERNANDO MENDOZA | D133: 02-CHAPINERO | E133: 0 | F133: 0 | G133: 1 | H133: 1 | S133: 2 | T133: 0.0%
A134: PEDIATRAS | B134: PEDIATRAS | C134: DR. DIMITRIOS | D134: 02-CHAPINERO | E134: 0 | F134: 0 | G134: 0 | H134: 0 | S134: 0 | T134: 0.0% | U134: 0
A135: PEDIATRAS | B135: PEDIATRAS | C135: DR. ALVARO MARIÑO | D135: 02-CHAPINERO | E135: 0 | F135: 0 | G135: 0 | H135: 0 | S135: 0 | T135: 0.0% | U135: 0
A136: PEDIATRAS | B136: PEDIATRAS | C136: DR. ANDRES VARGAS | D136: 02-CHAPINERO | E136: 0 | F136: 0 | G136: 0 | H136: 1 | S136: 1 | T136: 0.0%
A137: PEDIATRAS | B137: PEDIATRAS | C137: DR. JORGE CAMILO LUNA | D137: 02-CHAPINERO | E137: 0 | F137: 0 | G137: 0 | H137: 4 | S137: 4 | T137: 0.0%
A138: PEDIATRAS | B138: PEDIATRAS | C138: DR. BERNARDO HUERTAS | D138: 02-CHAPINERO | E138: 0 | F138: 0 | G138: 9 | H138: 7 | S138: 16 | T138: 0.0%
A139: PEDIATRAS | B139: PEDIATRAS | C139: DR. CARLOS M CASTILLO | D139: 02-CHAPINERO | E139: 0 | F139: 0 | G139: 0 | H139: 0 | S139: 0 | T139: 0.0% | U139: 0
A140: PEDIATRAS | B140: PEDIATRAS | C140: DR. HEINZ OTTO PFALZGRAF | D140: 02-CHAPINERO | E140: 0 | F140: 0 | G140: 0 | H140: 0 | S140: 0 | T140: 0.0% | U140: 0
A141: PEDIATRAS | B141: PEDIATRAS | C141: DR. GONZALEZ BALLESTEROS | D141: 02-CHAPINERO | E141: 0 | F141: 0 | G141: 0 | H141: 0 | S141: 0 | T141: 0.0% | U141: 0
A142: PEDIATRAS | B142: PEDIATRAS | C142: DR. NORBERTO SALAMANCA | D142: 02-CHAPINERO | E142: 0 | F142: 0 | G142: 0 | H142: 0 | S142: 0 | T142: 0.0% | U142: 0
A143: PEDIATRAS | B143: PEDIATRAS | C143: DR. CAMILO ENRIQUE SOTOMAYOR | D143: 02-CHAPINERO | E143: 0 | F143: 0 | G143: 1 | H143: 0 | S143: 1 | T143: 0.0%
A144: PEDIATRAS | B144: PEDIATRAS | C144: DR. SANTIAGO RUEDA SAIZ | D144: 02-CHAPINERO | E144: 0 | F144: 0 | G144: 5 | H144: 1 | S144: 6 | T144: 0.0%
A145: PEDIATRAS | B145: PEDIATRAS | C145: DR. HENRY HERNANDO SANCHEZ ESCOBAR | D145: 02-CHAPINERO | E145: 0 | F145: 0 | G145: 1 | H145: 1 | S145: 2 | T145: 0.0%
A146: PEDIATRAS | B146: PEDIATRAS | C146: DR. RUBEN DARIO TAMAYO | D146: 02-CHAPINERO | E146: 0 | F146: 0 | G146: 1 | H146: 0 | S146: 1 | T146: 0.0%
A147: PEDIATRAS | B147: PEDIATRAS | C147: DR. JAIME MAURICIO MATALLANA | D147: 02-CHAPINERO | E147: 0 | F147: 0 | G147: 5 | H147: 4 | S147: 9 | T147: 0.0%
A148: PEDIATRAS | B148: PEDIATRAS | C148: DR. RODRIGO GARCIA | D148: 02-CHAPINERO | E148: 0 | F148: 0 | G148: 0 | H148: 0 | S148: 0 | T148: 0.0% | U148: 0
A149: PEDIATRAS | B149: PEDIATRAS | C149: DR. FELIPE ROBAYO | D149: 02-CHAPINERO | E149: 0 | F149: 0 | G149: 0 | H149: 0 | S149: 0 | T149: 0.0% | U149: 0
A150: PEDIATRAS | B150: PEDIATRAS | C150: DR. RUBEN FRANCO | D150: 02-CHAPINERO | E150: 0 | F150: 0 | G150: 0 | H150: 0 | S150: 0 | T150: 0.0% | U150: 0
A151: PEDIATRAS | B151: PEDIATRAS | C151: DR. ORLANDO RODRIGUEZ RAMIREZ | D151: 02-CHAPINERO | E151: 0 | F151: 0 | G151: 2 | H151: 0 | S151: 2 | T151: 0.0%
A152: PEDIATRAS | B152: PEDIATRAS | C152: DR. ARTURO MORENO | D152: 02-CHAPINERO | E152: 0 | F152: 0 | G152: 0 | H152: 0 | S152: 0 | T152: 0.0% | U152: 0
A153: PEDIATRAS | B153: PEDIATRAS | C153: DR. FRANCISCO LEAL QUEVEDO | D153: 02-CHAPINERO | E153: 0 | F153: 0 | G153: 0 | H153: 0 | S153: 0 | T153: 0.0% | U153: 0
A154: PEDIATRAS | B154: PEDIATRAS | C154: DR. CARLOS DIAZ PUENTES | D154: 02-CHAPINERO | E154: 0 | F154: 0 | G154: 0 | H154: 0 | S154: 0 | T154: 0.0% | U154: 0
A155: PEDIATRAS | B155: PEDIATRAS | C155: DR. PEDRO ERASMO MENDOZA | D155: 02-CHAPINERO | E155: 0 | F155: 0 | G155: 0 | H155: 0 | S155: 0 | T155: 0.0% | U155: 0
A156: PEDIATRAS | B156: PEDIATRAS | C156: DR. DIMAS ROSAS | D156: 02-CHAPINERO | E156: 0 | F156: 0 | G156: 0 | H156: 0 | S156: 0 | T156: 0.0% | U156: 0
A157: PEDIATRAS | B157: PEDIATRAS | C157: DR. JAVIER BRITO MORENO | D157: 02-CHAPINERO | E157: 0 | F157: 0 | G157: 0 | H157: 0 | S157: 0 | T157: 0.0% | U157: 0
A158: PEDIATRAS | B158: PEDIATRAS | C158: DR. GUSTAVO CORTÉS | D158: 02-CHAPINERO | E158: 0 | F158: 0 | G158: 0 | H158: 0 | S158: 0 | T158: 0.0% | U158: 0
A159: PEDIATRAS | B159: PEDIATRAS | C159: DR. CARLOS VELASQUEZ | D159: 02-CHAPINERO | E159: 0 | F159: 0 | G159: 0 | H159: 0 | S159: 0 | T159: 0.0% | U159: 0
A160: PEDIATRAS | B160: PEDIATRAS | C160: DR. RICARDO GOMEZ | D160: 02-CHAPINERO | E160: 0 | F160: 0 | G160: 0 | H160: 0 | S160: 0 | T160: 0.0% | U160: 0
A161: PEDIATRAS | B161: PEDIATRAS | C161: DR. SARA BERNAL | D161: 02-CHAPINERO | E161: 0 | F161: 0 | G161: 1 | H161: 0 | S161: 1 | T161: 0.0%
A162: PEDIATRAS | B162: PEDIATRAS | C162: DRA. MARIA PATRICIA AGUALIMPIA | D162: 02-CHAPINERO | E162: 0 | F162: 0 | G162: 0 | H162: 0 | S162: 0 | T162: 0.0% | U162: 0
A163: PEDIATRAS | B163: PEDIATRAS | C163: DRA. LUISA FERNANDA FORERO ACOSTA | D163: 02-CHAPINERO | E163: 0 | F163: 0 | G163: 0 | H163: 0 | S163: 0 | T163: 0.0% | U163: 0
A164: PEDIATRAS | B164: PEDIATRAS | C164: DRA. MARIA CLARA CASAS PARDO | D164: 02-CHAPINERO | E164: 0 | F164: 0 | G164: 0 | H164: 0 | S164: 0 | T164: 0.0% | U164: 0
A165: PEDIATRAS | B165: PEDIATRAS | C165: DRA. MARTHA EUGENIA RONDEROS DE FORERO | D165: 02-CHAPINERO | E165: 0 | F165: 0 | G165: 0 | H165: 0 | S165: 0 | T165: 0.0% | U165: 0
A166: PEDIATRAS | B166: PEDIATRAS | C166: DRA. MARIA ISABEL USCHER | D166: 02-CHAPINERO | E166: 0 | F166: 0 | G166: 5 | H166: 5 | S166: 10 | T166: 0.0%
A167: PEDIATRAS | B167: PEDIATRAS | C167: DRA. MARIA DE LOS ANGELES MUÑOZ | D167: 02-CHAPINERO | E167: 0 | F167: 0 | G167: 2 | H167: 0 | S167: 2 | T167: 0.0%
A168: PEDIATRAS | B168: PEDIATRAS | C168: DRA. CLARA ABELLO REYES | D168: 02-CHAPINERO | E168: 0 | F168: 0 | G168: 1 | H168: 1 | S168: 2 | T168: 0.0%
A169: PEDIATRAS | B169: PEDIATRAS | C169: DRA. PATRICIA CONTRERAS | D169: 02-CHAPINERO | E169: 0 | F169: 0 | G169: 1 | H169: 1 | S169: 2 | T169: 0.0%
A170: PEDIATRAS | B170: PEDIATRAS | C170: DRA. CLAUDIA ZOPPI | D170: 02-CHAPINERO | E170: 0 | F170: 0 | G170: 0 | H170: 0 | S170: 0 | T170: 0.0% | U170: 0
A171: PEDIATRAS | B171: PEDIATRAS | C171: DRA. MARIA DE LOS ANGELES FERNANDEZ LUQUE | D171: 02-CHAPINERO | E171: 0 | F171: 0 | G171: 0 | H171: 0 | S171: 0 | T171: 0.0% | U171: 0
A172: PEDIATRAS | B172: PEDIATRAS | C172: DRA. RUTH CORDOBA CORDOBA | D172: 02-CHAPINERO | E172: 0 | F172: 0 | G172: 0 | H172: 0 | S172: 0 | T172: 0.0% | U172: 0
A173: PEDIATRAS | B173: PEDIATRAS | C173: DRA. LUZ ESTELA CORTES | D173: 02-CHAPINERO | E173: 0 | F173: 0 | G173: 0 | H173: 0 | S173: 0 | T173: 0.0% | U173: 0
A174: UNICAJAS | B174: UNICAJAS | C174: UPA SAN LUIS | D174: 02-CHAPINERO | E174: 18 | F174: 2 | G174: 0 | H174: 0 | S174: 0 | T174: 0.0% | U174: 3
A175: 02-CHAPINERO | B175: OTROS | C175: UPA SAN LUIS | D175: 02-CHAPINERO | E175: 325 | F175: 27 | G175: 0 | H175: 4 | S175: 4 | T175: 1.2% | U175: 50
A176: 02-CHAPINERO | B176: DEMAS EAPB | C176: UPA SAN LUIS | D176: 02-CHAPINERO | F176: 0 | G176: 5 | H176: 1 | S176: 6 | T176: 0.0%
A177: UNICAJAS | B177: UNICAJAS | C177: COMFASALUD SEDE CENTRO | D177: 03-SANTA FE | E177: 50 | F177: 4 | G177: 5 | H177: 1 | S177: 6 | T177: 12.0% | U177: 2
A178: MEDIMAS | B178: MEDIMAS | C178: CORVESALUD TEUSAQUILLO | D178: 03-SANTA FE | E178: 193 | F178: 16 | G178: 4 | H178: 1 | S178: 5 | T178: 2.6% | U178: 27
A179: 03-SANTA FE | B179: CAPITAL SALUD | C179: EXTRAMURAL SANTA FE | D179: 03-SANTA FE | E179: 0 | F179: 0 | G179: 6 | H179: 11 | S179: 17 | T179: 0.0%
A180: 03-SANTA FE | B180: DEMAS EAPB | C180: EXTRAMURAL SANTA FE | D180: 03-SANTA FE | E180: 0 | F180: 0 | G180: 8 | H180: 12 | S180: 20 | T180: 0.0%
A181: 03-SANTA FE | B181: OTROS | C181: EXTRAMURAL SANTA FE | D181: 03-SANTA FE | E181: 0 | F181: 0 | G181: 4 | H181: 9 | S181: 13 | T181: 0.0%
A182: 03-SANTA FE | B182: UNICAJAS | C182: EXTRAMURAL SANTA FE | D182: 03-SANTA FE | E182: 0 | F182: 0 | G182: 0 | H182: 0 | S182: 0 | T182: 0.0% | U182: 0
A183: 03-SANTA FE | B183: CAPITAL SALUD | C183: USS LACHES | D183: 03-SANTA FE | E183: 54 | F183: 5 | G183: 6 | H183: 5 | S183: 11 | T183: 20.4%
A184: 03-SANTA FE | B184: DEMAS EAPB | C184: USS LACHES | D184: 03-SANTA FE | E184: 0 | F184: 0 | G184: 9 | H184: 7 | S184: 16 | T184: 0.0%
A185: 03-SANTA FE | B185: OTROS | C185: USS LACHES | D185: 03-SANTA FE | E185: 260 | F185: 22 | G185: 0 | H185: 0 | S185: 0 | T185: 0.0% | U185: 43
A186: 03-SANTA FE | B186: UNICAJAS | C186: USS LACHES | D186: 03-SANTA FE | E186: 17 | F186: 1 | G186: 4 | H186: 0 | S186: 4 | T186: 23.5%
A187: 03-SANTA FE | B187: CAPITAL SALUD | C187: USS LAS CRUCES | D187: 03-SANTA FE | E187: 44 | F187: 4 | G187: 5 | H187: 4 | S187: 9 | T187: 20.5%
A188: 03-SANTA FE | B188: DEMAS EAPB | C188: USS LAS CRUCES | D188: 03-SANTA FE | E188: 0 | F188: 0 | G188: 4 | H188: 4 | S188: 8 | T188: 0.0%
A189: 03-SANTA FE | B189: OTROS | C189: USS LAS CRUCES | D189: 03-SANTA FE | E189: 211 | F189: 18 | G189: 2 | H189: 2 | S189: 4 | T189: 1.9% | U189: 31
A190: 03-SANTA FE | B190: UNICAJAS | C190: USS LAS CRUCES | D190: 03-SANTA FE | E190: 14 | F190: 1 | G190: 1 | H190: 0 | S190: 1 | T190: 7.1% | U190: 1
A191: 03-SANTA FE | B191: CAPITAL SALUD | C191: USS PERSEVERANCIA | D191: 03-SANTA FE | E191: 6 | F191: 1 | G191: 1 | H191: 2 | S191: 3 | T191: 50.0%
A192: 03-SANTA FE | B192: DEMAS EAPB | C192: USS PERSEVERANCIA | D192: 03-SANTA FE | E192: 0 | F192: 0 | G192: 3 | H192: 2 | S192: 5 | T192: 0.0%
A193: 03-SANTA FE | B193: OTROS | C193: USS PERSEVERANCIA | D193: 03-SANTA FE | E193: 30 | F193: 3 | G193: 1 | H193: 1 | S193: 2 | T193: 6.7% | U193: 3
A194: 03-SANTA FE | B194: UNICAJAS | C194: USS PERSEVERANCIA | D194: 03-SANTA FE | E194: 2 | F194: 0 | G194: 1 | H194: 0 | S194: 1 | T194: =IF(E194=0,0,+S194/E194) -> 50.0% | U194: =IF(COUNT(G194:R194)*(E194/12)-S194<0,"",COUNT(G194:R194)*(E194/12)-S194) -> 
A195: PARTICULAR | B195: PARTICULAR | C195: CLINICA SAN RAFAEL | D195: 04-SAN CRISTOBAL | E195: 375 | F195: =+E195/12 -> 31 | G195: 19 | H195: 13 | S195: =SUM(G195:R195) -> 32 | T195: 8.5% | U195: 31
A196: FAMISANAR | B196: FAMI- COLSB | C196: CENTRO MEDICO COLSUBSIDIO 20 DE JULIO | D196: 04-SAN CRISTOBAL | F196: 0 | S196: 0 | T196: 0.0% | U196: 0
A197: 04-SAN CRISTOBAL | B197: CAPITAL SALUD | C197: EXTRAMURAL SAN CRISTOBAL | D197: 04-SAN CRISTOBAL | E197: 0 | F197: 0 | G197: 39 | H197: 36 | S197: 75 | T197: 0.0%
A198: 04-SAN CRISTOBAL | B198: DEMAS EAPB | C198: EXTRAMURAL SAN CRISTOBAL | D198: 04-SAN CRISTOBAL | E198: 0 | F198: 0 | G198: 73 | H198: 51 | S198: 124 | T198: 0.0%
A199: 04-SAN CRISTOBAL | B199: OTROS | C199: EXTRAMURAL SAN CRISTOBAL | D199: 04-SAN CRISTOBAL | E199: 0 | F199: 0 | G199: 5 | H199: 14 | S199: 19 | T199: 0.0%
A200: 04-SAN CRISTOBAL | B200: UNICAJAS | C200: EXTRAMURAL SAN CRISTOBAL | D200: 04-SAN CRISTOBAL | E200: 0 | F200: 0 | G200: 4 | H200: 2 | S200: 6 | T200: 0.0%
... 620 more rows

Sheet ROTAVIRUS1
A1: EAPB | B1: EPS O ESE | C1: IPS | D1: Localidad | E1: Meta Anual Menor de 1 Año | F1: Meta Mensual | G1: Enero | H1: Febrero | I1: Marzo | J1: Abril | K1: Mayo | L1: Junio | M1: Julio | N1: Agosto | O1: Septiembre | P1: Octubre | Q1: Noviembre | R1: Diciembre | S1: Total | T1: % Cobertura | U1: Deficit
A2: CAPITAL SALUD | B2: CAPITAL SALUD | C2: UPA SAN CRISTOBAL | D2: 01-USAQUEN | E2: 124 | F2: =+E2/12 -> 10 | G2: 6 | H2: 7 | S2: =SUM(G2:R2) -> 13 | T2: =IF(E2=0,0,+S2/E2) -> 10.5% | U2: =IF(COUNT(G2:R2)*(E2/12)-S2<0,"",COUNT(G2:R2)*(E2/12)-S2) -> 8
A3: CAPITAL SALUD | B3: CAPITAL SALUD | C3: UPA USAQUEN | D3: 01-USAQUEN | E3: 10 | F3: =+E3/12 -> 1 | G3: 0 | H3: 1 | S3: =SUM(G3:R3) -> 1 | T3: 10.0% | U3: 1
A4: CAPITAL SALUD | B4: CAPITAL SALUD | C4: UPA ORQUIDEAS | D4: 01-USAQUEN | E4: 11 | F4: 1 | G4: 1 | H4: 3 | S4: 4 | T4: 36.4%
A5: CAPITAL SALUD | B5: CAPITAL SALUD | C5: UPA CODITO | D5: 01-USAQUEN | E5: 107 | F5: 9 | G5: 7 | H5: 4 | S5: 11 | T5: 10.3% | U5: 7
A6: CAPITAL SALUD | B6: CAPITAL SALUD | C6: CAMI VERBENAL | D6: 01-USAQUEN | E6: 87 | F6: 7 | G6: 10 | H6: 4 | S6: 14 | T6: 16.1% | U6: 1
A7: CAPITAL SALUD | B7: CAPITAL SALUD | C7: HOSPITAL SIMON BOLIVAR | D7: 01-USAQUEN | E7: 36 | F7: 3 | G7: 22 | H7: 9 | S7: 31 | T7: 86.1%
A8: 01-USAQUEN | B8: 01-USAQUEN | C8: EXTRAMURAL USAQUEN | D8: 01-USAQUEN | E8: 0 | F8: 0 | G8: 5 | H8: 3 | S8: 8 | T8: 0.0%
A9: ALIANSALUD | B9: ALIANSALUD | C9: CENTRO MEDICO COLMEDICA SANTA BARBARA | D9: 01-USAQUEN | E9: 580 | F9: 48 | G9: 63 | H9: 43 | S9: 106 | T9: 18.3%
A10: COMPENSAR | B10: COMPENSAR | C10: USS CALLE 134 | D10: 01-USAQUEN | E10: 372 | F10: 31 | G10: 17 | H10: 21 | S10: 38 | T10: 10.2% | U10: 24
A11: COMPENSAR | B11: COMPENSAR | C11: USS CALLE 145 | D11: 01-USAQUEN | E11: 173 | F11: 14 | G11: 12 | H11: 10 | S11: 22 | T11: 12.7% | U11: 7
A12: COMPENSAR | B12: COMPENSAR | C12: JAVESALUD TOBERIN | D12: 01-USAQUEN | E12: 372 | F12: 31 | G12: 6 | H12: 12 | S12: 18 | T12: 4.8% | U12: 44
A13: COOMEVA | B13: COOMEVA | C13: SINERGIA UNIDAD INTEGRAL EN SALUD | D13: 01-USAQUEN | E13: 44 | F13: 4 | G13: 5 | H13: 4 | S13: 9 | T13: 20.5%
A14: FAMISANAR | B14: FAMI- COLSB | C14: CENTRO MEDICO COLSUBSIDIO USAQUEN | D14: 01-USAQUEN | E14: 298 | F14: 25 | G14: 37 | H14: 45 | S14: 82 | T14: 27.5%
A15: MILITAR | B15: MILITAR | C15: DISPENSARIO MEDICO CANTON NORTE | D15: 01-USAQUEN | E15: 205 | F15: 17 | G15: 8 | H15: 4 | S15: 12 | T15: 5.9% | U15: 22
A16: NUEVA EPS | B16: NUEVA EPS | C16: IPS VIVA 1A SEDE TOBERIN | D16: 01-USAQUEN | E16: 147 | F16: 12 | G16: 9 | H16: 9 | S16: 18 | T16: 12.2% | U16: 7
A17: NUEVA EPS | B17: NUEVA EPS | C17: CAFAM GRANADA HILLS | D17: 01-USAQUEN | E17: 44 | F17: 4 | G17: 2 | H17: 2 | S17: 4 | T17: 9.1% | U17: 3
A18: SANITAS | B18: SANITAS | C18: UAP SANITAS TOBERIN | D18: 01-USAQUEN | E18: 511 | F18: 43 | G18: 25 | H18: 38 | S18: 63 | T18: 12.3% | U18: 22
A19: SANITAS | B19: SANITAS | C19: MEDIKA IPS SANITAS UAP USAQUEN | D19: 01-USAQUEN | E19: 188 | F19: 16 | G19: 4 | H19: 2 | S19: 6 | T19: 3.2% | U19: 25
A20: SANITAS | B20: SANITAS | C20: UAP SANTA BARBARA | D20: 01-USAQUEN | E20: 796 | F20: 66 | G20: 93 | H20: 113 | S20: 206 | T20: 25.9%
A21: SANITAS | B21: SANITAS | C21: SANITAS BANCO DE LA REPUBLICA | D21: 01-USAQUEN | E21: 0 | F21: 0 | G21: 3 | H21: 3 | S21: 6 | T21: 0.0%
A22: SALUD TOTAL | B22: SALUD TOTAL | C22: VIRREY SOLIS TOBERÍN | D22: 01-USAQUEN | E22: 384 | F22: 32 | G22: 24 | H22: 13 | S22: 37 | T22: 9.6% | U22: 27
A23: SURA | B23: SURA | C23: IPS JAVESALUD SANTA BEATRIZ | D23: 01-USAQUEN | E23: 355 | F23: 30 | G23: 20 | H23: 13 | S23: 33 | T23: 9.3% | U23: 26
A24: ECOPETROL | B24: ECOPETROL | C24: IPS CLINICOS PALATINO | D24: 01-USAQUEN | E24: 87 | F24: 7 | G24: 6 | H24: 9 | S24: 15 | T24: 17.2%
A25: PARTICULAR | B25: PARTICULAR | C25: CLINICA PEDIATRICA COLSANITAS | D25: 01-USAQUEN | E25: 830 | F25: 69 | G25: 59 | H25: 57 | S25: 116 | T25: 14.0% | U25: 22
A26: PARTICULAR | B26: PARTICULAR | C26: CENTRO MEDICO COLSANITAS LA CALLEJA | D26: 01-USAQUEN | E26: 120 | F26: 10 | G26: 5 | H26: 15 | S26: 20 | T26: 16.7% | U26: 0
A27: PARTICULAR | B27: PARTICULAR | C27: CENTRO MEDICO COLSANITAS 108 | D27: 01-USAQUEN | E27: 40 | F27: 3 | G27: 4 | H27: 3 | S27: 7 | T27: 17.5%
A28: PARTICULAR | B28: PARTICULAR | C28: CENTRO MEDICO COLSANITAS SANTA ANA | D28: 01-USAQUEN | E28: 4 | F28: 0 | G28: 1 | H28: 3 | S28: 4 | T28: 100.0%
A29: PARTICULAR | B29: PARTICULAR | C29: FUNDACIÓN CARDIO INFANTIL | D29: 01-USAQUEN | E29: 0 | F29: 0 | G29: 5 | H29: 16 | S29: 21 | T29: 0.0%
A30: PARTICULAR | B30: PARTICULAR | C30: ENFASO USAQUEN | D30: 01-USAQUEN | E30: 0 | F30: 0 | G30: 9 | H30: 13 | S30: 22 | T30: 0.0%
A31: PARTICULAR | B31: PARTICULAR | C31: UNIDAD DE VACUNACIÓN INTERNACIONAL | D31: 01-USAQUEN | E31: 0 | F31: 0 | G31: 6 | H31: 5 | S31: 11 | T31: 0.0%
A32: PARTICULAR | B32: PARTICULAR | C32: INMUNOLOGÍA Y DIAGNÓSTICO ESPECIALIZADO LTDA. | D32: 01-USAQUEN | E32: 0 | F32: 0 | G32: 2 | H32: 0 | S32: 2 | T32: 0.0%
A33: PARTICULAR | B33: PARTICULAR | C33: PROTEGER HEALHT CARE | D33: 01-USAQUEN | E33: 0 | F33: 0 | G33: 1 | H33: 6 | S33: 7 | T33: 0.0%
A34: PARTICULAR | B34: PARTICULAR | C34: FUNDACION SANTA FE DE BOGOTA | D34: 01-USAQUEN | E34: 0 | F34: 0 | G34: 0 | H34: 1 | S34: 1 | T34: 0.0%
A35: PARTICULAR | B35: PARTICULAR | C35: IPS CRUZ ROJA SEDE UNICENTRO | D35: 01-USAQUEN | E35: 0 | F35: 0 | G35: 0 | H35: 0 | S35: 0 | T35: 0.0% | U35: 0
A36: PARTICULAR | B36: PARTICULAR | C36: IPS CRUZ ROJA SAMU CALLE 145 | D36: 01-USAQUEN | E36: 0 | F36: 0 | G36: 0 | H36: 0 | S36: 0 | T36: 0.0% | U36: 0
A37: PEDIATRAS | B37: PEDIATRAS | C37: DR. ALEJANDRO LÓPEZ | D37: 01-USAQUEN | E37: 0 | F37: 0 | G37: 0 | H37: 3 | S37: 3 | T37: 0.0%
A38: PEDIATRAS | B38: PEDIATRAS | C38: DR. CARLOS NEFTALI TORRES | D38: 01-USAQUEN | E38: 0 | F38: 0 | G38: 1 | H38: 4 | S38: 5 | T38: 0.0%
A39: PEDIATRAS | B39: PEDIATRAS | C39: DR. FRANCISCO NUÑEZ | D39: 01-USAQUEN | E39: 0 | F39: 0 | G39: 1 | H39: 1 | S39: 2 | T39: 0.0%
A40: PEDIATRAS | B40: PEDIATRAS | C40: DR. FERNANDO GOMEZ | D40: 01-USAQUEN | E40: 0 | F40: 0 | G40: 0 | H40: 0 | S40: 0 | T40: 0.0% | U40: 0
A41: PEDIATRAS | B41: PEDIATRAS | C41: DR. FERNANDO ZARATE MORENO | D41: 01-USAQUEN | E41: 0 | F41: 0 | G41: 1 | H41: 1 | S41: 2 | T41: 0.0%
A42: PEDIATRAS | B42: PEDIATRAS | C42: DR. GONZALO GARCIA | D42: 01-USAQUEN | E42: 0 | F42: 0 | G42: 1 | H42: 0 | S42: 1 | T42: 0.0%
A43: PEDIATRAS | B43: PEDIATRAS | C43: DR. GUSTAVO MORALES | D43: 01-USAQUEN | E43: 0 | F43: 0 | G43: 2 | H43: 1 | S43: 3 | T43: 0.0%
A44: PEDIATRAS | B44: PEDIATRAS | C44: DR. JAIME OSPINA | D44: 01-USAQUEN | E44: 0 | F44: 0 | G44: 1 | H44: 0 | S44: 1 | T44: 0.0%
A45: PEDIATRAS | B45: PEDIATRAS | C45: DR. JORGE URIBE | D45: 01-USAQUEN | E45: 0 | F45: 0 | G45: 0 | H45: 1 | S45: 1 | T45: 0.0%
A46: PEDIATRAS | B46: PEDIATRAS | C46: DR. JUAN LUIS FIGUEROA | D46: 01-USAQUEN | E46: 0 | F46: 0 | G46: 2 | H46: 1 | S46: 3 | T46: 0.0%
A47: PEDIATRAS | B47: PEDIATRAS | C47: DR. LUIS AUGUSTO PERNA | D47: 01-USAQUEN | E47: 0 | F47: 0 | G47: 4 | H47: 2 | S47: 6 | T47: 0.0%
A48: PEDIATRAS | B48: PEDIATRAS | C48: DR. LIBARDO ELI TRIANA | D48: 01-USAQUEN | E48: 0 | F48: 0 | G48: 0 | H48: 1 | S48: 1 | T48: 0.0%
A49: PEDIATRAS | B49: PEDIATRAS | C49: DR. OSWALDO MERCADO HOYOS | D49: 01-USAQUEN | E49: 0 | F49: 0 | G49: 3 | H49: 3 | S49: 6 | T49: 0.0%
A50: PEDIATRAS | B50: PEDIATRAS | C50: DR. ROBERTO BENIRO | D50: 01-USAQUEN | E50: 0 | F50: 0 | G50: 0 | H50: 0 | S50: 0 | T50: 0.0% | U50: 0
A51: PEDIATRAS | B51: PEDIATRAS | C51: DR. SERGIO ISAZA | D51: 01-USAQUEN | E51: 0 | F51: 0 | G51: 0 | H51: 0 | S51: 0 | T51: 0.0% | U51: 0
A52: PEDIATRAS | B52: PEDIATRAS | C52: DR. SANTIAGO UCROS | D52: 01-USAQUEN | E52: 0 | F52: 0 | G52: 0 | H52: 0 | S52: 0 | T52: 0.0% | U52: 0
A53: PEDIATRAS | B53: PEDIATRAS | C53: DR. GERMAN SILVA | D53: 01-USAQUEN | E53: 0 | F53: 0 | G53: 0 | H53: 0 | S53: 0 | T53: 0.0% | U53: 0
A54: PEDIATRAS | B54: PEDIATRAS | C54: DR. DANIEL ABRIL | D54: 01-USAQUEN | E54: 0 | F54: 0 | G54: 0 | H54: 0 | S54: 0 | T54: 0.0% | U54: 0
A55: PEDIATRAS | B55: PEDIATRAS | C55: DR. CARLOS EDUARDO OLMOS | D55: 01-USAQUEN | E55: 0 | F55: 0 | G55: 0 | H55: 0 | S55: 0 | T55: 0.0% | U55: 0
A56: PEDIATRAS | B56: PEDIATRAS | C56: DR. EDGARDO CHATMAN | D56: 01-USAQUEN | E56: 0 | F56: 0 | G56: 0 | H56: 0 | S56: 0 | T56: 0.0% | U56: 0
A57: PEDIATRAS | B57: PEDIATRAS | C57: DR. JORGE FLOREZ OTERO | D57: 01-USAQUEN | E57: 0 | F57: 0 | G57: 0 | H57: 0 | S57: 0 | T57: 0.0% | U57: 0
A58: PEDIATRAS | B58: PEDIATRAS | C58: DRA. ALEJANDRA MARIA VALENCIA | D58: 01-USAQUEN | E58: 0 | F58: 0 | G58: 0 | H58: 0 | S58: 0 | T58: 0.0% | U58: 0
A59: PEDIATRAS | B59: PEDIATRAS | C59: DRA. ANA MARIA GOYENECHE | D59: 01-USAQUEN | E59: 0 | F59: 0 | G59: 0 | H59: 0 | S59: 0 | T59: 0.0% | U59: 0
A60: PEDIATRAS | B60: PEDIATRAS | C60: DRA. JIMENA VARELA | D60: 01-USAQUEN | E60: 0 | F60: 0 | G60: 0 | H60: 0 | S60: 0 | T60: 0.0% | U60: 0
A61: PEDIATRAS | B61: PEDIATRAS | C61: DRA. LIA SAN MIGUEL | D61: 01-USAQUEN | E61: 0 | F61: 0 | G61: 0 | H61: 0 | S61: 0 | T61: 0.0% | U61: 0
A62: PEDIATRAS | B62: PEDIATRAS | C62: DRA. LIBIA SEGURA | D62: 01-USAQUEN | E62: 0 | F62: 0 | G62: 0 | H62: 0 | S62: 0 | T62: 0.0% | U62: 0
A63: PEDIATRAS | B63: PEDIATRAS | C63: DRA. MARÍA JOSÉ PEDRAZA | D63: 01-USAQUEN | E63: 0 | F63: 0 | G63: 0 | H63: 0 | S63: 0 | T63: 0.0% | U63: 0
A64: PEDIATRAS | B64: PEDIATRAS | C64: DRA. MARTHA LUCIA SANCHEZ | D64: 01-USAQUEN | E64: 0 | F64: 0 | G64: 0 | H64: 0 | S64: 0 | T64: 0.0% | U64: 0
A65: PEDIATRAS | B65: PEDIATRAS | C65: DRA. OLGA LUCÍA SÁNCHEZ | D65: 01-USAQUEN | E65: 0 | F65: 0 | G65: 0 | H65: 0 | S65: 0 | T65: 0.0% | U65: 0
A66: PEDIATRAS | B66: PEDIATRAS | C66: DRA. SANDRA BELTRAN | D66: 01-USAQUEN | E66: 0 | F66: 0 | G66: 0 | H66: 0 | S66: 0 | T66: =IF(E66=0,0,+S66/E66) -> 0.0% | U66: =IF(COUNT(G66:R66)*(E66/12)-S66<0,"",COUNT(G66:R66)*(E66/12)-S66) -> 0
A67: PEDIATRAS | B67: PEDIATRAS | C67: DRA. IVANA CABRERA | D67: 01-USAQUEN | E67: 0 | F67: =+E67/12 -> 0 | G67: 0 | H67: 0 | S67: =SUM(G67:R67) -> 0 | T67: 0.0% | U67: 0
A68: PEDIATRAS | B68: PEDIATRAS | C68: DRA. NAYITA ALARCON | D68: 01-USAQUEN | E68: 0 | F68: 0 | G68: 0 | H68: 0 | S68: 0 | T68: 0.0% | U68: 0
A69: PEDIATRAS | B69: PEDIATRAS | C69: DRA. ELIZABETH GARCIA | D69: 01-USAQUEN | E69: 0 | F69: 0 | G69: 0 | H69: 0 | S69: 0 | T69: 0.0% | U69: 0
A70: PEDIATRAS | B70: PEDIATRAS | C70: DRA. BERTHA CALDERON DE RAMOS | D70: 01-USAQUEN | E70: 0 | F70: 0 | G70: 0 | H70: 0 | S70: 0 | T70: 0.0% | U70: 0
A71: PEDIATRAS | B71: PEDIATRAS | C71: DRA. MIRYAM CORREA | D71: 01-USAQUEN | E71: 0 | F71: 0 | G71: 0 | H71: 1 | S71: 1 | T71: 0.0%
A72: 01-USAQUEN | B72: UNICAJAS | C72: UPA SAN CRISTOBAL | D72: 01-USAQUEN | E72: 6 | F72: 1 | G72: 1 | H72: 0 | S72: 1 | T72: 16.7% | U72: 0
A73: UNICAJAS | B73: UNICAJAS | C73: UPA USAQUEN | D73: 01-USAQUEN | E73: 9 | F73: 1 | G73: 0 | H73: 0 | S73: 0 | T73: 0.0% | U73: 2
A74: UNICAJAS | B74: UNICAJAS | C74: UPA ORQUIDEAS | D74: 01-USAQUEN | E74: 6 | F74: 1 | G74: 0 | H74: 0 | S74: 0 | T74: 0.0% | U74: 1
A75: UNICAJAS | B75: UNICAJAS | C75: UPA CODITO | D75: 01-USAQUEN | E75: 5 | F75: 0 | G75: 0 | H75: 0 | S75: 0 | T75: 0.0% | U75: 1
A76: UNICAJAS | B76: UNICAJAS | C76: CAMI VERBENAL | D76: 01-USAQUEN | E76: 6 | F76: 1 | G76: 0 | H76: 0 | S76: 0 | T76: 0.0% | U76: 1
A77: 01-USAQUEN | B77: UNICAJAS | C77: HOSPITAL SIMON BOLIVAR | D77: 01-USAQUEN | E77: 6 | F77: 1 | G77: 1 | H77: 1 | S77: 2 | T77: 33.3%
A78: 01-USAQUEN | B78: OTROS | C78: UPA SAN CRISTOBAL | D78: 01-USAQUEN | E78: 300 | F78: 25 | G78: 0 | H78: 2 | S78: 2 | T78: 0.7% | U78: 48
A79: 01-USAQUEN | B79: OTROS | C79: UPA USAQUEN | D79: 01-USAQUEN | E79: 100 | F79: 8 | G79: 0 | H79: 0 | S79: 0 | T79: 0.0% | U79: 17
A80: 01-USAQUEN | B80: OTROS | C80: UPA ORQUIDEAS | D80: 01-USAQUEN | E80: 120 | F80: 10 | G80: 0 | H80: 0 | S80: 0 | T80: 0.0% | U80: 20
A81: 01-USAQUEN | B81: OTROS | C81: UPA CODITO | D81: 01-USAQUEN | E81: 218 | F81: 18 | G81: 4 | H81: 0 | S81: 4 | T81: 1.8% | U81: 32
A82: 01-USAQUEN | B82: OTROS | C82: CAMI VERBENAL | D82: 01-USAQUEN | E82: 309 | F82: 26 | G82: 4 | H82: 2 | S82: 6 | T82: 1.9% | U82: 46
A83: 01-USAQUEN | B83: OTROS | C83: HOSPITAL SIMON BOLIVAR | D83: 01-USAQUEN | E83: 480 | F83: 40 | G83: 8 | H83: 12 | S83: 20 | T83: 4.2% | U83: 60
A84: 01-USAQUEN | B84: DEMAS EAPB | C84: UPA SAN CRISTOBAL | D84: 01-USAQUEN | F84: 0 | G84: 10 | H84: 9 | S84: 19 | T84: 0.0%
A85: 01-USAQUEN | B85: DEMAS EAPB | C85: UPA USAQUEN | D85: 01-USAQUEN | F85: 0 | G85: 3 | H85: 0 | S85: 3 | T85: 0.0%
A86: 01-USAQUEN | B86: DEMAS EAPB | C86: UPA ORQUIDEAS | D86: 01-USAQUEN | F86: 0 | G86: 2 | H86: 2 | S86: 4 | T86: 0.0%
A87: 01-USAQUEN | B87: DEMAS EAPB | C87: UPA CODITO | D87: 01-USAQUEN | F87: 0 | G87: 7 | H87: 10 | S87: 17 | T87: 0.0%
A88: 01-USAQUEN | B88: DEMAS EAPB | C88: CAMI VERBENAL | D88: 01-USAQUEN | F88: 0 | G88: 3 | H88: 12 | S88: 15 | T88: 0.0%
A89: 01-USAQUEN | B89: DEMAS EAPB | C89: HOSPITAL SIMON BOLIVAR | D89: 01-USAQUEN | F89: 0 | G89: 20 | H89: 20 | S89: 40 | T89: 0.0%
A90: MEDIMAS | B90: MEDIMAS | C90: Corvesalud S.A.S - I P S Chico | D90: 01-USAQUEN | E90: 320 | F90: 27 | G90: 5 | H90: 5 | S90: 10 | T90: 3.1% | U90: 43
A91: FAMISANAR | B91: COLSUBSIDIO | C91: Sura PAC Santa Bárbara | D91: 01-USAQUEN | F91: 0 | S91: 0 | T91: 0.0% | U91: 0
A92: CAPITAL SALUD | B92: CAPITAL SALUD | C92: UPA SAN LUIS | D92: 02-CHAPINERO | E92: 12 | F92: 1 | G92: 4 | H92: 2 | S92: 6 | T92: 50.0%
A93: 02-CHAPINERO | B93: 02-CHAPINERO | C93: EXTRAMURAL CHAPINERO | D93: 02-CHAPINERO | E93: 0 | F93: 0 | G93: 1 | H93: 0 | S93: 1 | T93: 0.0%
A94: COMPENSAR | B94: COMPENSAR | C94: USS CALLE 42 | D94: 02-CHAPINERO | E94: 612 | F94: 51 | G94: 29 | H94: 43 | S94: 72 | T94: 11.8% | U94: 30
A95: COMPENSAR | B95: COMPENSAR | C95: USS CALLE 67 | D95: 02-CHAPINERO | E95: 0 | F95: 0 | G95: 0 | H95: 0 | S95: 0 | T95: 0.0% | U95: 0
A96: COMPENSAR | B96: COMPENSAR | C96: USS CALLE 94 | D96: 02-CHAPINERO | E96: 369 | F96: 31 | G96: 35 | H96: 41 | S96: 76 | T96: 20.6%
A97: COMPENSAR | B97: COMPENSAR | C97: VIVA 1A IPS CHAPINERO | D97: 02-CHAPINERO | E97: 73 | F97: 6 | G97: 4 | H97: 6 | S97: 10 | T97: 13.7% | U97: 2
A98: COOMEVA | B98: COOMEVA | C98: SINERGIA UNIDAD BASICA LOURDES | D98: 02-CHAPINERO | E98: 217 | F98: 18 | G98: 9 | H98: 10 | S98: 19 | T98: 8.8% | U98: 17
A99: FAMISANAR | B99: FAMI- CAFAM | C99: CENTRO DE ATENCION EN SALUD CAFAM CALLE 48 | D99: 02-CHAPINERO | E99: 1050 | F99: 88 | G99: 31 | H99: 36 | S99: 67 | T99: 6.4% | U99: 108
A100: FAMISANAR | B100: FAMI- CAFAM | C100: CENTRO DE ATENCION EN SALUD CAFAM CALLE 90 | D100: 02-CHAPINERO | E100: 200 | F100: 17 | G100: 11 | H100: 7 | S100: 18 | T100: 9.0% | U100: 15
A101: FAMISANAR | B101: FAMI- COLSB | C101: CLINICA COLSUBSIDIO EL LAGO | D101: 02-CHAPINERO | E101: 392 | F101: 33 | G101: 8 | H101: 11 | S101: 19 | T101: 4.8% | U101: 46
A102: MILITAR | B102: MILITAR | C102: HOSPITAL MILITAR CENTRAL | D102: 02-CHAPINERO | E102: 70 | F102: 6 | G102: 10 | H102: 11 | S102: 21 | T102: 30.0%
A103: POLICIA | B103: POLICIA | C103: POLICIA NACIONAL ESPAM CHAPINERO | D103: 02-CHAPINERO | E103: 117 | F103: 10 | G103: 4 | H103: 0 | S103: 4 | T103: 3.4% | U103: 16
A104: NUEVA EPS | B104: NUEVA EPS | C104: IPS VIVA 1A SEDE MARLY | D104: 02-CHAPINERO | E104: 131 | F104: 11 | G104: 9 | H104: 5 | S104: 14 | T104: 10.7% | U104: 8
A105: SANITAS | B105: SANITAS | C105: EPS SANITAS CENTRO MEDICO TEUSAQUILLO | D105: 02-CHAPINERO | E105: 579 | F105: 48 | G105: 28 | H105: 22 | S105: 50 | T105: 8.6% | U105: 47
A106: SALUD TOTAL | B106: SALUD TOTAL | C106: VIRREY SOLIS CHAPINERO | D106: 02-CHAPINERO | E106: 337 | F106: 28 | G106: 16 | H106: 13 | S106: 29 | T106: 8.6% | U106: 27
A107: SURA | B107: SURA | C107: PUNTO DE SALUD CHAPINERO | D107: 02-CHAPINERO | E107: 237 | F107: 20 | G107: 13 | H107: 10 | S107: 23 | T107: 9.7% | U107: 17
A108: SURA | B108: SURA | C108: SALUD SURA | D108: 02-CHAPINERO | E108: 454 | F108: 38 | G108: 46 | H108: 30 | S108: 76 | T108: 16.7%
A109: PARTICULAR | B109: PARTICULAR | C109: CENTRO MEDICO COLSANITAS CALLE 96 | D109: 02-CHAPINERO | E109: 24 | F109: 2 | G109: 2 | H109: 0 | S109: 2 | T109: 8.3% | U109: 2
A110: PARTICULAR | B110: PARTICULAR | C110: CENTRO DE ESPECIALISTAS MEDICOS AXA COLPATRIA | D110: 02-CHAPINERO | E110: 0 | F110: 0 | G110: 5 | H110: 6 | S110: 11 | T110: 0.0%
A111: PARTICULAR | B111: PARTICULAR | C111: CLINICA DE LA MUJER | D111: 02-CHAPINERO | E111: 0 | F111: 0 | G111: 54 | H111: 42 | S111: 96 | T111: 0.0%
A112: PARTICULAR | B112: PARTICULAR | C112: VACUNARTE IPS | D112: 02-CHAPINERO | E112: 0 | F112: 0 | G112: 1 | H112: 3 | S112: 4 | T112: 0.0%
A113: PARTICULAR | B113: PARTICULAR | C113: UNIMARLY | D113: 02-CHAPINERO | E113: 0 | F113: 0 | G113: 0 | H113: 0 | S113: 0 | T113: 0.0% | U113: 0
A114: PARTICULAR | B114: PARTICULAR | C114: HOSPITAL SAN IGNACIO | D114: 02-CHAPINERO | E114: 0 | F114: 0 | G114: 9 | H114: 5 | S114: 14 | T114: 0.0%
A115: PARTICULAR | B115: PARTICULAR | C115: PROGRAMA MADRE CANGURO HOSPITAL SAN IGNACIO | D115: 02-CHAPINERO | E115: 0 | F115: 0 | G115: 96 | H115: 100 | S115: 196 | T115: 0.0%
A116: PARTICULAR | B116: PARTICULAR | C116: IPS AVENIR | D116: 02-CHAPINERO | E116: 0 | F116: 0 | G116: 0 | H116: 0 | S116: 0 | T116: 0.0% | U116: 0
A117: PARTICULAR | B117: PARTICULAR | C117: IPS INMUNOLOGIA Y DIAGNOSTICO ESPECIALIZADO | D117: 02-CHAPINERO | E117: 0 | F117: 0 | G117: 0 | H117: 0 | S117: 0 | T117: 0.0% | U117: 0
A118: PARTICULAR | B118: PARTICULAR | C118: ASOCIACION PEDIATRICA DE LOS ANDES | D118: 02-CHAPINERO | E118: 0 | F118: 0 | G118: 1 | H118: 0 | S118: 1 | T118: 0.0%
A119: PARTICULAR | B119: PARTICULAR | C119: CRUZ ROJA SEDE ANDINO | D119: 02-CHAPINERO | E119: 0 | F119: 0 | G119: 0 | H119: 0 | S119: 0 | T119: 0.0% | U119: 0
A120: PARTICULAR | B120: PARTICULAR | C120: CENTRO MEDICO SANTA MONICA | D120: 02-CHAPINERO | E120: 0 | F120: 0 | H120: 0 | S120: 0 | T120: 0.0% | U120: 0
A121: PEDIATRAS | B121: PEDIATRAS | C121: DR. JUAN OSCAR TAMAYO | D121: 02-CHAPINERO | E121: 0 | F121: 0 | G121: 0 | H121: 0 | S121: 0 | T121: 0.0% | U121: 0
A122: PEDIATRAS | B122: PEDIATRAS | C122: DR. ROBERTO SUAREZ | D122: 02-CHAPINERO | E122: 0 | F122: 0 | G122: 0 | H122: 0 | S122: 0 | T122: 0.0% | U122: 0
A123: PEDIATRAS | B123: PEDIATRAS | C123: DR. WILLIAM RICARDO CABRA | D123: 02-CHAPINERO | E123: 0 | F123: 0 | G123: 3 | H123: 2 | S123: 5 | T123: 0.0%
A124: PEDIATRAS | B124: PEDIATRAS | C124: DR. EDGAR CASTRO | D124: 02-CHAPINERO | E124: 0 | F124: 0 | G124: 5 | H124: 2 | S124: 7 | T124: 0.0%
A125: PEDIATRAS | B125: PEDIATRAS | C125: DR. PABLO KRAUSS | D125: 02-CHAPINERO | E125: 0 | F125: 0 | G125: 4 | H125: 1 | S125: 5 | T125: 0.0%
A126: PEDIATRAS | B126: PEDIATRAS | C126: DR. HERNAN ROBLES | D126: 02-CHAPINERO | E126: 0 | F126: 0 | G126: 5 | H126: 3 | S126: 8 | T126: 0.0%
A127: PEDIATRAS | B127: PEDIATRAS | C127: DR. RAFAEL GAMBOA CASABLANCA | D127: 02-CHAPINERO | E127: 0 | F127: 0 | G127: 15 | H127: 11 | S127: 26 | T127: 0.0%
A128: PEDIATRAS | B128: PEDIATRAS | C128: DR. JAVIER MEJIA | D128: 02-CHAPINERO | E128: 0 | F128: 0 | G128: 2 | H128: 2 | S128: 4 | T128: 0.0%
A129: PEDIATRAS | B129: PEDIATRAS | C129: DR. CARLOS CORTAZAR | D129: 02-CHAPINERO | E129: 0 | F129: 0 | G129: 0 | H129: 0 | S129: 0 | T129: 0.0% | U129: 0
A130: PEDIATRAS | B130: PEDIATRAS | C130: DR. NELSON PARDO | D130: 02-CHAPINERO | E130: 0 | F130: 0 | G130: 2 | H130: 1 | S130: 3 | T130: =IF(E130=0,0,+S130/E130) -> 0.0% | U130: =IF(COUNT(G130:R130)*(E130/12)-S130<0,"",COUNT(G130:R130)*(E130/12)-S130) -> 
A131: PEDIATRAS | B131: PEDIATRAS | C131: DR. ALVARO JACOME | D131: 02-CHAPINERO | E131: 0 | F131: =+E131/12 -> 0 | G131: 2 | H131: 1 | S131: =SUM(G131:R131) -> 3 | T131: 0.0%
A132: PEDIATRAS | B132: PEDIATRAS | C132: DR. SILVIO COPO | D132: 02-CHAPINERO | E132: 0 | F132: 0 | G132: 0 | H132: 1 | S132: 1 | T132: 0.0%
A133: PEDIATRAS | B133: PEDIATRAS | C133: DR. HECTOR FERNANDO MENDOZA | D133: 02-CHAPINERO | E133: 0 | F133: 0 | G133: 0 | H133: 0 | S133: 0 | T133: 0.0% | U133: 0
A134: PEDIATRAS | B134: PEDIATRAS | C134: DR. DIMITRIOS | D134: 02-CHAPINERO | E134: 0 | F134: 0 | G134: 0 | H134: 1 | S134: 1 | T134: 0.0%
A135: PEDIATRAS | B135: PEDIATRAS | C135: DR. ALVARO MARIÑO | D135: 02-CHAPINERO | E135: 0 | F135: 0 | G135: 0 | H135: 1 | S135: 1 | T135: 0.0%
A136: PEDIATRAS | B136: PEDIATRAS | C136: DR. ANDRES VARGAS | D136: 02-CHAPINERO | E136: 0 | F136: 0 | G136: 2 | H136: 1 | S136: 3 | T136: 0.0%
A137: PEDIATRAS | B137: PEDIATRAS | C137: DR. JORGE CAMILO LUNA | D137: 02-CHAPINERO | E137: 0 | F137: 0 | G137: 1 | H137: 7 | S137: 8 | T137: 0.0%
A138: PEDIATRAS | B138: PEDIATRAS | C138: DR. BERNARDO HUERTAS | D138: 02-CHAPINERO | E138: 0 | F138: 0 | G138: 13 | H138: 13 | S138: 26 | T138: 0.0%
A139: PEDIATRAS | B139: PEDIATRAS | C139: DR. CARLOS M CASTILLO | D139: 02-CHAPINERO | E139: 0 | F139: 0 | G139: 0 | H139: 0 | S139: 0 | T139: 0.0% | U139: 0
A140: PEDIATRAS | B140: PEDIATRAS | C140: DR. HEINZ OTTO PFALZGRAF | D140: 02-CHAPINERO | E140: 0 | F140: 0 | G140: 0 | H140: 0 | S140: 0 | T140: 0.0% | U140: 0
A141: PEDIATRAS | B141: PEDIATRAS | C141: DR. GONZALEZ BALLESTEROS | D141: 02-CHAPINERO | E141: 0 | F141: 0 | G141: 0 | H141: 0 | S141: 0 | T141: 0.0% | U141: 0
A142: PEDIATRAS | B142: PEDIATRAS | C142: DR. NORBERTO SALAMANCA | D142: 02-CHAPINERO | E142: 0 | F142: 0 | G142: 0 | H142: 0 | S142: 0 | T142: 0.0% | U142: 0
A143: PEDIATRAS | B143: PEDIATRAS | C143: DR. CAMILO ENRIQUE SOTOMAYOR | D143: 02-CHAPINERO | E143: 0 | F143: 0 | G143: 0 | H143: 2 | S143: 2 | T143: 0.0%
A144: PEDIATRAS | B144: PEDIATRAS | C144: DR. SANTIAGO RUEDA SAIZ | D144: 02-CHAPINERO | E144: 0 | F144: 0 | G144: 0 | H144: 1 | S144: 1 | T144: 0.0%
A145: PEDIATRAS | B145: PEDIATRAS | C145: DR. HENRY HERNANDO SANCHEZ ESCOBAR | D145: 02-CHAPINERO | E145: 0 | F145: 0 | G145: 1 | H145: 1 | S145: 2 | T145: 0.0%
A146: PEDIATRAS | B146: PEDIATRAS | C146: DR. RUBEN DARIO TAMAYO | D146: 02-CHAPINERO | E146: 0 | F146: 0 | G146: 2 | H146: 2 | S146: 4 | T146: 0.0%
A147: PEDIATRAS | B147: PEDIATRAS | C147: DR. JAIME MAURICIO MATALLANA | D147: 02-CHAPINERO | E147: 0 | F147: 0 | G147: 5 | H147: 4 | S147: 9 | T147: 0.0%
A148: PEDIATRAS | B148: PEDIATRAS | C148: DR. RODRIGO GARCIA | D148: 02-CHAPINERO | E148: 0 | F148: 0 | G148: 0 | H148: 0 | S148: 0 | T148: 0.0% | U148: 0
A149: PEDIATRAS | B149: PEDIATRAS | C149: DR. FELIPE ROBAYO | D149: 02-CHAPINERO | E149: 0 | F149: 0 | G149: 0 | H149: 0 | S149: 0 | T149: 0.0% | U149: 0
A150: PEDIATRAS | B150: PEDIATRAS | C150: DR. RUBEN FRANCO | D150: 02-CHAPINERO | E150: 0 | F150: 0 | G150: 0 | H150: 0 | S150: 0 | T150: 0.0% | U150: 0
A151: PEDIATRAS | B151: PEDIATRAS | C151: DR. ORLANDO RODRIGUEZ RAMIREZ | D151: 02-CHAPINERO | E151: 0 | F151: 0 | G151: 2 | H151: 0 | S151: 2 | T151: 0.0%
A152: PEDIATRAS | B152: PEDIATRAS | C152: DR. ARTURO MORENO | D152: 02-CHAPINERO | E152: 0 | F152: 0 | G152: 0 | H152: 0 | S152: 0 | T152: 0.0% | U152: 0
A153: PEDIATRAS | B153: PEDIATRAS | C153: DR. FRANCISCO LEAL QUEVEDO | D153: 02-CHAPINERO | E153: 0 | F153: 0 | G153: 0 | H153: 0 | S153: 0 | T153: 0.0% | U153: 0
A154: PEDIATRAS | B154: PEDIATRAS | C154: DR. CARLOS DIAZ PUENTES | D154: 02-CHAPINERO | E154: 0 | F154: 0 | G154: 0 | H154: 0 | S154: 0 | T154: 0.0% | U154: 0
A155: PEDIATRAS | B155: PEDIATRAS | C155: DR. PEDRO ERASMO MENDOZA | D155: 02-CHAPINERO | E155: 0 | F155: 0 | G155: 0 | H155: 0 | S155: 0 | T155: 0.0% | U155: 0
A156: PEDIATRAS | B156: PEDIATRAS | C156: DR. DIMAS ROSAS | D156: 02-CHAPINERO | E156: 0 | F156: 0 | G156: 0 | H156: 0 | S156: 0 | T156: 0.0% | U156: 0
A157: PEDIATRAS | B157: PEDIATRAS | C157: DR. JAVIER BRITO MORENO | D157: 02-CHAPINERO | E157: 0 | F157: 0 | G157: 0 | H157: 0 | S157: 0 | T157: 0.0% | U157: 0
A158: PEDIATRAS | B158: PEDIATRAS | C158: DR. GUSTAVO CORTÉS | D158: 02-CHAPINERO | E158: 0 | F158: 0 | G158: 0 | H158: 0 | S158: 0 | T158: 0.0% | U158: 0
A159: PEDIATRAS | B159: PEDIATRAS | C159: DR. CARLOS VELASQUEZ | D159: 02-CHAPINERO | E159: 0 | F159: 0 | G159: 0 | H159: 0 | S159: 0 | T159: 0.0% | U159: 0
A160: PEDIATRAS | B160: PEDIATRAS | C160: DR. RICARDO GOMEZ | D160: 02-CHAPINERO | E160: 0 | F160: 0 | G160: 0 | H160: 0 | S160: 0 | T160: 0.0% | U160: 0
A161: PEDIATRAS | B161: PEDIATRAS | C161: DR. SARA BERNAL | D161: 02-CHAPINERO | E161: 0 | F161: 0 | G161: 0 | H161: 2 | S161: 2 | T161: 0.0%
A162: PEDIATRAS | B162: PEDIATRAS | C162: DRA. MARIA PATRICIA AGUALIMPIA | D162: 02-CHAPINERO | E162: 0 | F162: 0 | G162: 0 | H162: 0 | S162: 0 | T162: 0.0% | U162: 0
A163: PEDIATRAS | B163: PEDIATRAS | C163: DRA. LUISA FERNANDA FORERO ACOSTA | D163: 02-CHAPINERO | E163: 0 | F163: 0 | G163: 0 | H163: 0 | S163: 0 | T163: 0.0% | U163: 0
A164: PEDIATRAS | B164: PEDIATRAS | C164: DRA. MARIA CLARA CASAS PARDO | D164: 02-CHAPINERO | E164: 0 | F164: 0 | G164: 0 | H164: 0 | S164: 0 | T164: 0.0% | U164: 0
A165: PEDIATRAS | B165: PEDIATRAS | C165: DRA. MARTHA EUGENIA RONDEROS DE FORERO | D165: 02-CHAPINERO | E165: 0 | F165: 0 | G165: 0 | H165: 0 | S165: 0 | T165: 0.0% | U165: 0
A166: PEDIATRAS | B166: PEDIATRAS | C166: DRA. MARIA ISABEL USCHER | D166: 02-CHAPINERO | E166: 0 | F166: 0 | G166: 0 | H166: 0 | S166: 0 | T166: 0.0% | U166: 0
A167: PEDIATRAS | B167: PEDIATRAS | C167: DRA. MARIA DE LOS ANGELES MUÑOZ | D167: 02-CHAPINERO | E167: 0 | F167: 0 | G167: 3 | H167: 0 | S167: 3 | T167: 0.0%
A168: PEDIATRAS | B168: PEDIATRAS | C168: DRA. CLARA ABELLO REYES | D168: 02-CHAPINERO | E168: 0 | F168: 0 | G168: 2 | H168: 1 | S168: 3 | T168: 0.0%
A169: PEDIATRAS | B169: PEDIATRAS | C169: DRA. PATRICIA CONTRERAS | D169: 02-CHAPINERO | E169: 0 | F169: 0 | G169: 0 | H169: 0 | S169: 0 | T169: 0.0% | U169: 0
A170: PEDIATRAS | B170: PEDIATRAS | C170: DRA. CLAUDIA ZOPPI | D170: 02-CHAPINERO | E170: 0 | F170: 0 | G170: 0 | H170: 0 | S170: 0 | T170: 0.0% | U170: 0
A171: PEDIATRAS | B171: PEDIATRAS | C171: DRA. MARIA DE LOS ANGELES FERNANDEZ LUQUE | D171: 02-CHAPINERO | E171: 0 | F171: 0 | G171: 0 | H171: 3 | S171: 3 | T171: 0.0%
A172: PEDIATRAS | B172: PEDIATRAS | C172: DRA. RUTH CORDOBA CORDOBA | D172: 02-CHAPINERO | E172: 0 | F172: 0 | G172: 0 | H172: 0 | S172: 0 | T172: 0.0% | U172: 0
A173: PEDIATRAS | B173: PEDIATRAS | C173: DRA. LUZ ESTELA CORTES | D173: 02-CHAPINERO | E173: 0 | F173: 0 | G173: 0 | H173: 0 | S173: 0 | T173: 0.0% | U173: 0
A174: UNICAJAS | B174: UNICAJAS | C174: UPA SAN LUIS | D174: 02-CHAPINERO | E174: 18 | F174: 2 | G174: 0 | H174: 0 | S174: 0 | T174: 0.0% | U174: 3
A175: 02-CHAPINERO | B175: OTROS | C175: UPA SAN LUIS | D175: 02-CHAPINERO | E175: 325 | F175: 27 | G175: 2 | H175: 1 | S175: 3 | T175: 0.9% | U175: 51
A176: 02-CHAPINERO | B176: DEMAS EAPB | C176: UPA SAN LUIS | D176: 02-CHAPINERO | F176: 0 | G176: 6 | H176: 3 | S176: 9 | T176: 0.0%
A177: UNICAJAS | B177: UNICAJAS | C177: COMFASALUD SEDE CENTRO | D177: 03-SANTA FE | E177: 50 | F177: 4 | G177: 2 | H177: 1 | S177: 3 | T177: 6.0% | U177: 5
A178: MEDIMAS | B178: MEDIMAS | C178: CORVESALUD TEUSAQUILLO | D178: 03-SANTA FE | E178: 193 | F178: 16 | G178: 6 | H178: 7 | S178: 13 | T178: 6.7% | U178: 19
A179: 03-SANTA FE | B179: CAPITAL SALUD | C179: EXTRAMURAL SANTA FE | D179: 03-SANTA FE | E179: 0 | F179: 0 | G179: 7 | H179: 2 | S179: 9 | T179: 0.0%
A180: 03-SANTA FE | B180: DEMAS EAPB | C180: EXTRAMURAL SANTA FE | D180: 03-SANTA FE | E180: 0 | F180: 0 | G180: 0 | H180: 1 | S180: 1 | T180: 0.0%
A181: 03-SANTA FE | B181: OTROS | C181: EXTRAMURAL SANTA FE | D181: 03-SANTA FE | E181: 0 | F181: 0 | G181: 8 | H181: 6 | S181: 14 | T181: 0.0%
A182: 03-SANTA FE | B182: UNICAJAS | C182: EXTRAMURAL SANTA FE | D182: 03-SANTA FE | E182: 0 | F182: 0 | G182: 0 | H182: 0 | S182: 0 | T182: 0.0% | U182: 0
A183: 03-SANTA FE | B183: CAPITAL SALUD | C183: USS LACHES | D183: 03-SANTA FE | E183: 54 | F183: 5 | G183: 7 | H183: 12 | S183: 19 | T183: 35.2%
A184: 03-SANTA FE | B184: DEMAS EAPB | C184: USS LACHES | D184: 03-SANTA FE | E184: 0 | F184: 0 | G184: 7 | H184: 6 | S184: 13 | T184: 0.0%
A185: 03-SANTA FE | B185: OTROS | C185: USS LACHES | D185: 03-SANTA FE | E185: 260 | F185: 22 | G185: 2 | H185: 3 | S185: 5 | T185: 1.9% | U185: 38
A186: 03-SANTA FE | B186: UNICAJAS | C186: USS LACHES | D186: 03-SANTA FE | E186: 17 | F186: 1 | G186: 1 | H186: 0 | S186: 1 | T186: 5.9% | U186: 2
A187: 03-SANTA FE | B187: CAPITAL SALUD | C187: USS LAS CRUCES | D187: 03-SANTA FE | E187: 44 | F187: 4 | G187: 6 | H187: 8 | S187: 14 | T187: 31.8%
A188: 03-SANTA FE | B188: DEMAS EAPB | C188: USS LAS CRUCES | D188: 03-SANTA FE | E188: 0 | F188: 0 | G188: 4 | H188: 5 | S188: 9 | T188: 0.0%
A189: 03-SANTA FE | B189: OTROS | C189: USS LAS CRUCES | D189: 03-SANTA FE | E189: 211 | F189: 18 | G189: 2 | H189: 2 | S189: 4 | T189: 1.9% | U189: 31
A190: 03-SANTA FE | B190: UNICAJAS | C190: USS LAS CRUCES | D190: 03-SANTA FE | E190: 14 | F190: 1 | G190: 1 | H190: 1 | S190: 2 | T190: 14.3% | U190: 0
A191: 03-SANTA FE | B191: CAPITAL SALUD | C191: USS PERSEVERANCIA | D191: 03-SANTA FE | E191: 6 | F191: 1 | G191: 1 | H191: 1 | S191: 2 | T191: 33.3%
A192: 03-SANTA FE | B192: DEMAS EAPB | C192: USS PERSEVERANCIA | D192: 03-SANTA FE | E192: 0 | F192: 0 | G192: 1 | H192: 2 | S192: 3 | T192: 0.0%
A193: 03-SANTA FE | B193: OTROS | C193: USS PERSEVERANCIA | D193: 03-SANTA FE | E193: 30 | F193: 3 | G193: 1 | H193: 0 | S193: 1 | T193: 3.3% | U193: 4
A194: 03-SANTA FE | B194: UNICAJAS | C194: USS PERSEVERANCIA | D194: 03-SANTA FE | E194: 2 | F194: 0 | G194: 0 | H194: 0 | S194: 0 | T194: =IF(E194=0,0,+S194/E194) -> 0.0% | U194: =IF(COUNT(G194:R194)*(E194/12)-S194<0,"",COUNT(G194:R194)*(E194/12)-S194) -> 0
A195: PARTICULAR | B195: PARTICULAR | C195: CLINICA SAN RAFAEL | D195: 04-SAN CRISTOBAL | E195: 375 | F195: =+E195/12 -> 31 | G195: 31 | H195: 52 | S195: =SUM(G195:R195) -> 83 | T195: 22.1%
A196: FAMISANAR | B196: FAMI- COLSB | C196: CENTRO MEDICO COLSUBSIDIO 20 DE JULIO | D196: 04-SAN CRISTOBAL | F196: 0 | S196: 0 | T196: 0.0% | U196: 0
A197: 04-SAN CRISTOBAL | B197: CAPITAL SALUD | C197: EXTRAMURAL SAN CRISTOBAL | D197: 04-SAN CRISTOBAL | E197: 0 | F197: 0 | G197: 22 | H197: 30 | S197: 52 | T197: 0.0%
A198: 04-SAN CRISTOBAL | B198: DEMAS EAPB | C198: EXTRAMURAL SAN CRISTOBAL | D198: 04-SAN CRISTOBAL | E198: 0 | F198: 0 | G198: 31 | H198: 16 | S198: 47 | T198: 0.0%
A199: 04-SAN CRISTOBAL | B199: OTROS | C199: EXTRAMURAL SAN CRISTOBAL | D199: 04-SAN CRISTOBAL | E199: 0 | F199: 0 | G199: 14 | H199: 10 | S199: 24 | T199: 0.0%
A200: 04-SAN CRISTOBAL | B200: UNICAJAS | C200: EXTRAMURAL SAN CRISTOBAL | D200: 04-SAN CRISTOBAL | E200: 0 | F200: 0 | G200: 3 | H200: 1 | S200: 4 | T200: 0.0%
... 620 more rows

Sheet ROTAVIRUS2
A1: EAPB | B1: EPS O ESE | C1: IPS | D1: Localidad | E1: Meta Anual Menor de 1 Año | F1: Meta Mensual | G1: Enero | H1: Febrero | I1: Marzo | J1: Abril | K1: Mayo | L1: Junio | M1: Julio | N1: Agosto | O1: Septiembre | P1: Octubre | Q1: Noviembre | R1: Diciembre | S1: Total | T1: % Cobertura | U1: Deficit
A2: CAPITAL SALUD | B2: CAPITAL SALUD | C2: UPA SAN CRISTOBAL | D2: 01-USAQUEN | E2: 124 | F2: =+E2/12 -> 10 | G2: 6 | H2: 3 | S2: =SUM(G2:R2) -> 9 | T2: =IF(E2=0,0,+S2/E2) -> 7.3% | U2: =IF(COUNT(G2:R2)*(E2/12)-S2<0,"",COUNT(G2:R2)*(E2/12)-S2) -> 12
A3: CAPITAL SALUD | B3: CAPITAL SALUD | C3: UPA USAQUEN | D3: 01-USAQUEN | E3: 10 | F3: =+E3/12 -> 1 | G3: 0 | H3: 0 | S3: =SUM(G3:R3) -> 0 | T3: 0.0% | U3: 2
A4: CAPITAL SALUD | B4: CAPITAL SALUD | C4: UPA ORQUIDEAS | D4: 01-USAQUEN | E4: 11 | F4: 1 | G4: 3 | H4: 0 | S4: 3 | T4: 27.3%
A5: CAPITAL SALUD | B5: CAPITAL SALUD | C5: UPA CODITO | D5: 01-USAQUEN | E5: 107 | F5: 9 | G5: 8 | H5: 2 | S5: 10 | T5: 9.3% | U5: 8
A6: CAPITAL SALUD | B6: CAPITAL SALUD | C6: CAMI VERBENAL | D6: 01-USAQUEN | E6: 87 | F6: 7 | G6: 8 | H6: 4 | S6: 12 | T6: 13.8% | U6: 3
A7: CAPITAL SALUD | B7: CAPITAL SALUD | C7: HOSPITAL SIMON BOLIVAR | D7: 01-USAQUEN | E7: 36 | F7: 3 | G7: 9 | H7: 18 | S7: 27 | T7: 75.0%
A8: 01-USAQUEN | B8: 01-USAQUEN | C8: EXTRAMURAL USAQUEN | D8: 01-USAQUEN | E8: 0 | F8: 0 | G8: 10 | H8: 7 | S8: 17 | T8: 0.0%
A9: ALIANSALUD | B9: ALIANSALUD | C9: CENTRO MEDICO COLMEDICA SANTA BARBARA | D9: 01-USAQUEN | E9: 580 | F9: 48 | G9: 89 | H9: 61 | S9: 150 | T9: 25.9%
A10: COMPENSAR | B10: COMPENSAR | C10: USS CALLE 134 | D10: 01-USAQUEN | E10: 372 | F10: 31 | G10: 16 | H10: 18 | S10: 34 | T10: 9.1% | U10: 28
A11: COMPENSAR | B11: COMPENSAR | C11: USS CALLE 145 | D11: 01-USAQUEN | E11: 173 | F11: 14 | G11: 15 | H11: 17 | S11: 32 | T11: 18.5%
A12: COMPENSAR | B12: COMPENSAR | C12: JAVESALUD TOBERIN | D12: 01-USAQUEN | E12: 372 | F12: 31 | G12: 3 | H12: 3 | S12: 6 | T12: 1.6% | U12: 56
A13: COOMEVA | B13: COOMEVA | C13: SINERGIA UNIDAD INTEGRAL EN SALUD | D13: 01-USAQUEN | E13: 44 | F13: 4 | G13: 7 | H13: 6 | S13: 13 | T13: 29.5%
A14: FAMISANAR | B14: FAMI- COLSB | C14: CENTRO MEDICO COLSUBSIDIO USAQUEN | D14: 01-USAQUEN | E14: 298 | F14: 25 | G14: 30 | H14: 30 | S14: 60 | T14: 20.1%
A15: MILITAR | B15: MILITAR | C15: DISPENSARIO MEDICO CANTON NORTE | D15: 01-USAQUEN | E15: 205 | F15: 17 | G15: 3 | H15: 9 | S15: 12 | T15: 5.9% | U15: 22
A16: NUEVA EPS | B16: NUEVA EPS | C16: IPS VIVA 1A SEDE TOBERIN | D16: 01-USAQUEN | E16: 147 | F16: 12 | G16: 6 | H16: 7 | S16: 13 | T16: 8.8% | U16: 12
A17: NUEVA EPS | B17: NUEVA EPS | C17: CAFAM GRANADA HILLS | D17: 01-USAQUEN | E17: 44 | F17: 4 | G17: 6 | H17: 4 | S17: 10 | T17: 22.7%
A18: SANITAS | B18: SANITAS | C18: UAP SANITAS TOBERIN | D18: 01-USAQUEN | E18: 511 | F18: 43 | G18: 56 | H18: 41 | S18: 97 | T18: 19.0%
A19: SANITAS | B19: SANITAS | C19: MEDIKA IPS SANITAS UAP USAQUEN | D19: 01-USAQUEN | E19: 188 | F19: 16 | G19: 3 | H19: 1 | S19: 4 | T19: 2.1% | U19: 27
A20: SANITAS | B20: SANITAS | C20: UAP SANTA BARBARA | D20: 01-USAQUEN | E20: 796 | F20: 66 | G20: 87 | H20: 70 | S20: 157 | T20: 19.7%
A21: SANITAS | B21: SANITAS | C21: SANITAS BANCO DE LA REPUBLICA | D21: 01-USAQUEN | E21: 0 | F21: 0 | G21: 4 | H21: 1 | S21: 5 | T21: 0.0%
A22: SALUD TOTAL | B22: SALUD TOTAL | C22: VIRREY SOLIS TOBERÍN | D22: 01-USAQUEN | E22: 384 | F22: 32 | G22: 21 | H22: 20 | S22: 41 | T22: 10.7% | U22: 23
A23: SURA | B23: SURA | C23: IPS JAVESALUD SANTA BEATRIZ | D23: 01-USAQUEN | E23: 355 | F23: 30 | G23: 12 | H23: 9 | S23: 21 | T23: 5.9% | U23: 38
A24: ECOPETROL | B24: ECOPETROL | C24: IPS CLINICOS PALATINO | D24: 01-USAQUEN | E24: 87 | F24: 7 | G24: 9 | H24: 12 | S24: 21 | T24: 24.1%
A25: PARTICULAR | B25: PARTICULAR | C25: CLINICA PEDIATRICA COLSANITAS | D25: 01-USAQUEN | E25: 830 | F25: 69 | G25: 106 | H25: 92 | S25: 198 | T25: 23.9%
A26: PARTICULAR | B26: PARTICULAR | C26: CENTRO MEDICO COLSANITAS LA CALLEJA | D26: 01-USAQUEN | E26: 120 | F26: 10 | G26: 23 | H26: 16 | S26: 39 | T26: 32.5%
A27: PARTICULAR | B27: PARTICULAR | C27: CENTRO MEDICO COLSANITAS 108 | D27: 01-USAQUEN | E27: 40 | F27: 3 | G27: 2 | H27: 1 | S27: 3 | T27: 7.5% | U27: 4
A28: PARTICULAR | B28: PARTICULAR | C28: CENTRO MEDICO COLSANITAS SANTA ANA | D28: 01-USAQUEN | E28: 4 | F28: 0 | G28: 1 | H28: 2 | S28: 3 | T28: 75.0%
A29: PARTICULAR | B29: PARTICULAR | C29: FUNDACIÓN CARDIO INFANTIL | D29: 01-USAQUEN | E29: 0 | F29: 0 | G29: 8 | H29: 8 | S29: 16 | T29: 0.0%
A30: PARTICULAR | B30: PARTICULAR | C30: ENFASO USAQUEN | D30: 01-USAQUEN | E30: 0 | F30: 0 | G30: 9 | H30: 15 | S30: 24 | T30: 0.0%
A31: PARTICULAR | B31: PARTICULAR | C31: UNIDAD DE VACUNACIÓN INTERNACIONAL | D31: 01-USAQUEN | E31: 0 | F31: 0 | G31: 2 | H31: 4 | S31: 6 | T31: 0.0%
A32: PARTICULAR | B32: PARTICULAR | C32: INMUNOLOGÍA Y DIAGNÓSTICO ESPECIALIZADO LTDA. | D32: 01-USAQUEN | E32: 0 | F32: 0 | G32: 0 | H32: 0 | S32: 0 | T32: 0.0% | U32: 0
A33: PARTICULAR | B33: PARTICULAR | C33: PROTEGER HEALHT CARE | D33: 01-USAQUEN | E33: 0 | F33: 0 | G33: 0 | H33: 0 | S33: 0 | T33: 0.0% | U33: 0
A34: PARTICULAR | B34: PARTICULAR | C34: FUNDACION SANTA FE DE BOGOTA | D34: 01-USAQUEN | E34: 0 | F34: 0 | G34: 0 | H34: 0 | S34: 0 | T34: 0.0% | U34: 0
A35: PARTICULAR | B35: PARTICULAR | C35: IPS CRUZ ROJA SEDE UNICENTRO | D35: 01-USAQUEN | E35: 0 | F35: 0 | G35: 0 | H35: 0 | S35: 0 | T35: 0.0% | U35: 0
A36: PARTICULAR | B36: PARTICULAR | C36: IPS CRUZ ROJA SAMU CALLE 145 | D36: 01-USAQUEN | E36: 0 | F36: 0 | G36: 0 | H36: 0 | S36: 0 | T36: 0.0% | U36: 0
A37: PEDIATRAS | B37: PEDIATRAS | C37: DR. ALEJANDRO LÓPEZ | D37: 01-USAQUEN | E37: 0 | F37: 0 | G37: 3 | H37: 2 | S37: 5 | T37: 0.0%
A38: PEDIATRAS | B38: PEDIATRAS | C38: DR. CARLOS NEFTALI TORRES | D38: 01-USAQUEN | E38: 0 | F38: 0 | G38: 0 | H38: 9 | S38: 9 | T38: 0.0%
A39: PEDIATRAS | B39: PEDIATRAS | C39: DR. FRANCISCO NUÑEZ | D39: 01-USAQUEN | E39: 0 | F39: 0 | G39: 2 | H39: 1 | S39: 3 | T39: 0.0%
A40: PEDIATRAS | B40: PEDIATRAS | C40: DR. FERNANDO GOMEZ | D40: 01-USAQUEN | E40: 0 | F40: 0 | G40: 0 | H40: 0 | S40: 0 | T40: 0.0% | U40: 0
A41: PEDIATRAS | B41: PEDIATRAS | C41: DR. FERNANDO ZARATE MORENO | D41: 01-USAQUEN | E41: 0 | F41: 0 | G41: 0 | H41: 1 | S41: 1 | T41: 0.0%
A42: PEDIATRAS | B42: PEDIATRAS | C42: DR. GONZALO GARCIA | D42: 01-USAQUEN | E42: 0 | F42: 0 | G42: 1 | H42: 0 | S42: 1 | T42: 0.0%
A43: PEDIATRAS | B43: PEDIATRAS | C43: DR. GUSTAVO MORALES | D43: 01-USAQUEN | E43: 0 | F43: 0 | G43: 2 | H43: 7 | S43: 9 | T43: 0.0%
A44: PEDIATRAS | B44: PEDIATRAS | C44: DR. JAIME OSPINA | D44: 01-USAQUEN | E44: 0 | F44: 0 | G44: 6 | H44: 0 | S44: 6 | T44: 0.0%
A45: PEDIATRAS | B45: PEDIATRAS | C45: DR. JORGE URIBE | D45: 01-USAQUEN | E45: 0 | F45: 0 | G45: 0 | H45: 0 | S45: 0 | T45: 0.0% | U45: 0
A46: PEDIATRAS | B46: PEDIATRAS | C46: DR. JUAN LUIS FIGUEROA | D46: 01-USAQUEN | E46: 0 | F46: 0 | G46: 2 | H46: 3 | S46: 5 | T46: 0.0%
A47: PEDIATRAS | B47: PEDIATRAS | C47: DR. LUIS AUGUSTO PERNA | D47: 01-USAQUEN | E47: 0 | F47: 0 | G47: 1 | H47: 2 | S47: 3 | T47: 0.0%
A48: PEDIATRAS | B48: PEDIATRAS | C48: DR. LIBARDO ELI TRIANA | D48: 01-USAQUEN | E48: 0 | F48: 0 | G48: 0 | H48: 0 | S48: 0 | T48: 0.0% | U48: 0
A49: PEDIATRAS | B49: PEDIATRAS | C49: DR. OSWALDO MERCADO HOYOS | D49: 01-USAQUEN | E49: 0 | F49: 0 | G49: 0 | H49: 0 | S49: 0 | T49: 0.0% | U49: 0
A50: PEDIATRAS | B50: PEDIATRAS | C50: DR. ROBERTO BENIRO | D50: 01-USAQUEN | E50: 0 | F50: 0 | G50: 0 | H50: 0 | S50: 0 | T50: 0.0% | U50: 0
A51: PEDIATRAS | B51: PEDIATRAS | C51: DR. SERGIO ISAZA | D51: 01-USAQUEN | E51: 0 | F51: 0 | G51: 0 | H51: 0 | S51: 0 | T51: 0.0% | U51: 0
A52: PEDIATRAS | B52: PEDIATRAS | C52: DR. SANTIAGO UCROS | D52: 01-USAQUEN | E52: 0 | F52: 0 | G52: 0 | H52: 0 | S52: 0 | T52: 0.0% | U52: 0
A53: PEDIATRAS | B53: PEDIATRAS | C53: DR. GERMAN SILVA | D53: 01-USAQUEN | E53: 0 | F53: 0 | G53: 0 | H53: 0 | S53: 0 | T53: 0.0% | U53: 0
A54: PEDIATRAS | B54: PEDIATRAS | C54: DR. DANIEL ABRIL | D54: 01-USAQUEN | E54: 0 | F54: 0 | G54: 0 | H54: 0 | S54: 0 | T54: 0.0% | U54: 0
A55: PEDIATRAS | B55: PEDIATRAS | C55: DR. CARLOS EDUARDO OLMOS | D55: 01-USAQUEN | E55: 0 | F55: 0 | G55: 0 | H55: 0 | S55: 0 | T55: 0.0% | U55: 0
A56: PEDIATRAS | B56: PEDIATRAS | C56: DR. EDGARDO CHATMAN | D56: 01-USAQUEN | E56: 0 | F56: 0 | G56: 0 | H56: 0 | S56: 0 | T56: 0.0% | U56: 0
A57: PEDIATRAS | B57: PEDIATRAS | C57: DR. JORGE FLOREZ OTERO | D57: 01-USAQUEN | E57: 0 | F57: 0 | G57: 0 | H57: 0 | S57: 0 | T57: 0.0% | U57: 0
A58: PEDIATRAS | B58: PEDIATRAS | C58: DRA. ALEJANDRA MARIA VALENCIA | D58: 01-USAQUEN | E58: 0 | F58: 0 | G58: 0 | H58: 0 | S58: 0 | T58: 0.0% | U58: 0
A59: PEDIATRAS | B59: PEDIATRAS | C59: DRA. ANA MARIA GOYENECHE | D59: 01-USAQUEN | E59: 0 | F59: 0 | G59: 0 | H59: 0 | S59: 0 | T59: 0.0% | U59: 0
A60: PEDIATRAS | B60: PEDIATRAS | C60: DRA. JIMENA VARELA | D60: 01-USAQUEN | E60: 0 | F60: 0 | G60: 1 | H60: 0 | S60: 1 | T60: 0.0%
A61: PEDIATRAS | B61: PEDIATRAS | C61: DRA. LIA SAN MIGUEL | D61: 01-USAQUEN | E61: 0 | F61: 0 | G61: 0 | H61: 0 | S61: 0 | T61: 0.0% | U61: 0
A62: PEDIATRAS | B62: PEDIATRAS | C62: DRA. LIBIA SEGURA | D62: 01-USAQUEN | E62: 0 | F62: 0 | G62: 0 | H62: 0 | S62: 0 | T62: 0.0% | U62: 0
A63: PEDIATRAS | B63: PEDIATRAS | C63: DRA. MARÍA JOSÉ PEDRAZA | D63: 01-USAQUEN | E63: 0 | F63: 0 | G63: 0 | H63: 0 | S63: 0 | T63: 0.0% | U63: 0
A64: PEDIATRAS | B64: PEDIATRAS | C64: DRA. MARTHA LUCIA SANCHEZ | D64: 01-USAQUEN | E64: 0 | F64: 0 | G64: 0 | H64: 0 | S64: 0 | T64: 0.0% | U64: 0
A65: PEDIATRAS | B65: PEDIATRAS | C65: DRA. OLGA LUCÍA SÁNCHEZ | D65: 01-USAQUEN | E65: 0 | F65: 0 | G65: 0 | H65: 0 | S65: 0 | T65: 0.0% | U65: 0
A66: PEDIATRAS | B66: PEDIATRAS | C66: DRA. SANDRA BELTRAN | D66: 01-USAQUEN | E66: 0 | F66: 0 | G66: 0 | H66: 0 | S66: 0 | T66: =IF(E66=0,0,+S66/E66) -> 0.0% | U66: =IF(COUNT(G66:R66)*(E66/12)-S66<0,"",COUNT(G66:R66)*(E66/12)-S66) -> 0
A67: PEDIATRAS | B67: PEDIATRAS | C67: DRA. IVANA CABRERA | D67: 01-USAQUEN | E67: 0 | F67: =+E67/12 -> 0 | G67: 0 | H67: 0 | S67: =SUM(G67:R67) -> 0 | T67: 0.0% | U67: 0
A68: PEDIATRAS | B68: PEDIATRAS | C68: DRA. NAYITA ALARCON | D68: 01-USAQUEN | E68: 0 | F68: 0 | G68: 0 | H68: 0 | S68: 0 | T68: 0.0% | U68: 0
A69: PEDIATRAS | B69: PEDIATRAS | C69: DRA. ELIZABETH GARCIA | D69: 01-USAQUEN | E69: 0 | F69: 0 | G69: 0 | H69: 0 | S69: 0 | T69: 0.0% | U69: 0
A70: PEDIATRAS | B70: PEDIATRAS | C70: DRA. BERTHA CALDERON DE RAMOS | D70: 01-USAQUEN | E70: 0 | F70: 0 | G70: 0 | H70: 0 | S70: 0 | T70: 0.0% | U70: 0
A71: PEDIATRAS | B71: PEDIATRAS | C71: DRA. MIRYAM CORREA | D71: 01-USAQUEN | E71: 0 | F71: 0 | G71: 0 | H71: 0 | S71: 0 | T71: 0.0% | U71: 0
A72: 01-USAQUEN | B72: UNICAJAS | C72: UPA SAN CRISTOBAL | D72: 01-USAQUEN | E72: 6 | F72: 1 | G72: 1 | H72: 0 | S72: 1 | T72: 16.7% | U72: 0
A73: UNICAJAS | B73: UNICAJAS | C73: UPA USAQUEN | D73: 01-USAQUEN | E73: 9 | F73: 1 | H73: 0 | S73: 0 | T73: 0.0% | U73: 1
A74: UNICAJAS | B74: UNICAJAS | C74: UPA ORQUIDEAS | D74: 01-USAQUEN | E74: 6 | F74: 1 | G74: 0 | H74: 0 | S74: 0 | T74: 0.0% | U74: 1
A75: UNICAJAS | B75: UNICAJAS | C75: UPA CODITO | D75: 01-USAQUEN | E75: 5 | F75: 0 | G75: 1 | H75: 0 | S75: 1 | T75: 20.0%
A76: UNICAJAS | B76: UNICAJAS | C76: CAMI VERBENAL | D76: 01-USAQUEN | E76: 6 | F76: 1 | G76: 2 | H76: 0 | S76: 2 | T76: 33.3%
A77: 01-USAQUEN | B77: UNICAJAS | C77: HOSPITAL SIMON BOLIVAR | D77: 01-USAQUEN | E77: 6 | F77: 1 | G77: 0 | H77: 0 | S77: 0 | T77: 0.0% | U77: 1
A78: 01-USAQUEN | B78: OTROS | C78: UPA SAN CRISTOBAL | D78: 01-USAQUEN | E78: 300 | F78: 25 | G78: 9 | H78: 2 | S78: 11 | T78: 3.7% | U78: 39
A79: 01-USAQUEN | B79: OTROS | C79: UPA USAQUEN | D79: 01-USAQUEN | E79: 100 | F79: 8 | H79: 0 | S79: 0 | T79: 0.0% | U79: 8
A80: 01-USAQUEN | B80: OTROS | C80: UPA ORQUIDEAS | D80: 01-USAQUEN | E80: 120 | F80: 10 | G80: 5 | H80: 0 | S80: 5 | T80: 4.2% | U80: 15
A81: 01-USAQUEN | B81: OTROS | C81: UPA CODITO | D81: 01-USAQUEN | E81: 218 | F81: 18 | G81: 3 | H81: 2 | S81: 5 | T81: 2.3% | U81: 31
A82: 01-USAQUEN | B82: OTROS | C82: CAMI VERBENAL | D82: 01-USAQUEN | E82: 309 | F82: 26 | G82: 5 | H82: 1 | S82: 6 | T82: 1.9% | U82: 46
A83: 01-USAQUEN | B83: OTROS | C83: HOSPITAL SIMON BOLIVAR | D83: 01-USAQUEN | E83: 480 | F83: 40 | G83: 10 | H83: 12 | S83: 22 | T83: 4.6% | U83: 58
A84: 01-USAQUEN | B84: DEMAS EAPB | C84: UPA SAN CRISTOBAL | D84: 01-USAQUEN | F84: 0 | G84: 15 | H84: 7 | S84: 22 | T84: 0.0%
A85: 01-USAQUEN | B85: DEMAS EAPB | C85: UPA USAQUEN | D85: 01-USAQUEN | F85: 0 | G85: 7 | H85: 3 | S85: 10 | T85: 0.0%
A86: 01-USAQUEN | B86: DEMAS EAPB | C86: UPA ORQUIDEAS | D86: 01-USAQUEN | F86: 0 | G86: 1 | H86: 1 | S86: 2 | T86: 0.0%
A87: 01-USAQUEN | B87: DEMAS EAPB | C87: UPA CODITO | D87: 01-USAQUEN | F87: 0 | G87: 12 | H87: 16 | S87: 28 | T87: 0.0%
A88: 01-USAQUEN | B88: DEMAS EAPB | C88: CAMI VERBENAL | D88: 01-USAQUEN | F88: 0 | G88: 13 | H88: 8 | S88: 21 | T88: 0.0%
A89: 01-USAQUEN | B89: DEMAS EAPB | C89: HOSPITAL SIMON BOLIVAR | D89: 01-USAQUEN | F89: 0 | G89: 20 | H89: 22 | S89: 42 | T89: 0.0%
A90: MEDIMAS | B90: MEDIMAS | C90: Corvesalud S.A.S - I P S Chico | D90: 01-USAQUEN | E90: 320 | F90: 27 | G90: 2 | H90: 2 | S90: 4 | T90: 1.3% | U90: 49
A91: FAMISANAR | B91: COLSUBSIDIO | C91: Sura PAC Santa Bárbara | D91: 01-USAQUEN | F91: 0 | S91: 0 | T91: 0.0% | U91: 0
A92: CAPITAL SALUD | B92: CAPITAL SALUD | C92: UPA SAN LUIS | D92: 02-CHAPINERO | E92: 12 | F92: 1 | G92: 6 | H92: 2 | S92: 8 | T92: 66.7%
A93: 02-CHAPINERO | B93: 02-CHAPINERO | C93: EXTRAMURAL CHAPINERO | D93: 02-CHAPINERO | E93: 0 | F93: 0 | G93: 4 | H93: 3 | S93: 7 | T93: 0.0%
A94: COMPENSAR | B94: COMPENSAR | C94: USS CALLE 42 | D94: 02-CHAPINERO | E94: 612 | F94: 51 | G94: 32 | H94: 38 | S94: 70 | T94: 11.4% | U94: 32
A95: COMPENSAR | B95: COMPENSAR | C95: USS CALLE 67 | D95: 02-CHAPINERO | E95: 0 | F95: 0 | G95: 0 | H95: 0 | S95: 0 | T95: 0.0% | U95: 0
A96: COMPENSAR | B96: COMPENSAR | C96: USS CALLE 94 | D96: 02-CHAPINERO | E96: 369 | F96: 31 | G96: 47 | H96: 57 | S96: 104 | T96: 28.2%
A97: COMPENSAR | B97: COMPENSAR | C97: VIVA 1A IPS CHAPINERO | D97: 02-CHAPINERO | E97: 73 | F97: 6 | G97: 4 | H97: 0 | S97: 4 | T97: 5.5% | U97: 8
A98: COOMEVA | B98: COOMEVA | C98: SINERGIA UNIDAD BASICA LOURDES | D98: 02-CHAPINERO | E98: 217 | F98: 18 | G98: 7 | H98: 5 | S98: 12 | T98: 5.5% | U98: 24
A99: FAMISANAR | B99: FAMI- CAFAM | C99: CENTRO DE ATENCION EN SALUD CAFAM CALLE 48 | D99: 02-CHAPINERO | E99: 1050 | F99: 88 | G99: 31 | H99: 23 | S99: 54 | T99: 5.1% | U99: 121
A100: FAMISANAR | B100: FAMI- CAFAM | C100: CENTRO DE ATENCION EN SALUD CAFAM CALLE 90 | D100: 02-CHAPINERO | E100: 200 | F100: 17 | G100: 12 | H100: 8 | S100: 20 | T100: 10.0% | U100: 13
A101: FAMISANAR | B101: FAMI- COLSB | C101: CLINICA COLSUBSIDIO EL LAGO | D101: 02-CHAPINERO | E101: 392 | F101: 33 | G101: 11 | H101: 9 | S101: 20 | T101: 5.1% | U101: 45
A102: MILITAR | B102: MILITAR | C102: HOSPITAL MILITAR CENTRAL | D102: 02-CHAPINERO | E102: 70 | F102: 6 | G102: 13 | H102: 2 | S102: 15 | T102: 21.4%
A103: POLICIA | B103: POLICIA | C103: POLICIA NACIONAL ESPAM CHAPINERO | D103: 02-CHAPINERO | E103: 117 | F103: 10 | G103: 5 | H103: 0 | S103: 5 | T103: 4.3% | U103: 15
A104: NUEVA EPS | B104: NUEVA EPS | C104: IPS VIVA 1A SEDE MARLY | D104: 02-CHAPINERO | E104: 131 | F104: 11 | G104: 10 | H104: 6 | S104: 16 | T104: 12.2% | U104: 6
A105: SANITAS | B105: SANITAS | C105: EPS SANITAS CENTRO MEDICO TEUSAQUILLO | D105: 02-CHAPINERO | E105: 579 | F105: 48 | G105: 29 | H105: 22 | S105: 51 | T105: 8.8% | U105: 46
A106: SALUD TOTAL | B106: SALUD TOTAL | C106: VIRREY SOLIS CHAPINERO | D106: 02-CHAPINERO | E106: 337 | F106: 28 | G106: 19 | H106: 12 | S106: 31 | T106: 9.2% | U106: 25
A107: SURA | B107: SURA | C107: PUNTO DE SALUD CHAPINERO | D107: 02-CHAPINERO | E107: 237 | F107: 20 | G107: 16 | H107: 13 | S107: 29 | T107: 12.2% | U107: 11
A108: SURA | B108: SURA | C108: SALUD SURA | D108: 02-CHAPINERO | E108: 454 | F108: 38 | G108: 56 | H108: 55 | S108: 111 | T108: 24.4%
A109: PARTICULAR | B109: PARTICULAR | C109: CENTRO MEDICO COLSANITAS CALLE 96 | D109: 02-CHAPINERO | E109: 24 | F109: 2 | G109: 3 | H109: 1 | S109: 4 | T109: 16.7% | U109: 0
A110: PARTICULAR | B110: PARTICULAR | C110: CENTRO DE ESPECIALISTAS MEDICOS AXA COLPATRIA | D110: 02-CHAPINERO | E110: 0 | F110: 0 | G110: 3 | H110: 4 | S110: 7 | T110: 0.0%
A111: PARTICULAR | B111: PARTICULAR | C111: CLINICA DE LA MUJER | D111: 02-CHAPINERO | E111: 0 | F111: 0 | G111: 72 | H111: 42 | S111: 114 | T111: 0.0%
A112: PARTICULAR | B112: PARTICULAR | C112: VACUNARTE IPS | D112: 02-CHAPINERO | E112: 0 | F112: 0 | G112: 2 | H112: 2 | S112: 4 | T112: 0.0%
A113: PARTICULAR | B113: PARTICULAR | C113: UNIMARLY | D113: 02-CHAPINERO | E113: 0 | F113: 0 | G113: 0 | H113: 0 | S113: 0 | T113: 0.0% | U113: 0
A114: PARTICULAR | B114: PARTICULAR | C114: HOSPITAL SAN IGNACIO | D114: 02-CHAPINERO | E114: 0 | F114: 0 | G114: 2 | H114: 8 | S114: 10 | T114: 0.0%
A115: PARTICULAR | B115: PARTICULAR | C115: PROGRAMA MADRE CANGURO HOSPITAL SAN IGNACIO | D115: 02-CHAPINERO | E115: 0 | F115: 0 | G115: 90 | H115: 102 | S115: 192 | T115: 0.0%
A116: PARTICULAR | B116: PARTICULAR | C116: IPS AVENIR | D116: 02-CHAPINERO | E116: 0 | F116: 0 | G116: 0 | H116: 0 | S116: 0 | T116: 0.0% | U116: 0
A117: PARTICULAR | B117: PARTICULAR | C117: IPS INMUNOLOGIA Y DIAGNOSTICO ESPECIALIZADO | D117: 02-CHAPINERO | E117: 0 | F117: 0 | G117: 0 | H117: 0 | S117: 0 | T117: 0.0% | U117: 0
A118: PARTICULAR | B118: PARTICULAR | C118: ASOCIACION PEDIATRICA DE LOS ANDES | D118: 02-CHAPINERO | E118: 0 | F118: 0 | G118: 1 | H118: 0 | S118: 1 | T118: 0.0%
A119: PARTICULAR | B119: PARTICULAR | C119: CRUZ ROJA SEDE ANDINO | D119: 02-CHAPINERO | E119: 0 | F119: 0 | G119: 0 | H119: 0 | S119: 0 | T119: 0.0% | U119: 0
A120: PARTICULAR | B120: PARTICULAR | C120: CENTRO MEDICO SANTA MONICA | D120: 02-CHAPINERO | E120: 0 | F120: 0 | H120: 0 | S120: 0 | T120: 0.0% | U120: 0
A121: PEDIATRAS | B121: PEDIATRAS | C121: DR. JUAN OSCAR TAMAYO | D121: 02-CHAPINERO | E121: 0 | F121: 0 | G121: 0 | H121: 0 | S121: 0 | T121: 0.0% | U121: 0
A122: PEDIATRAS | B122: PEDIATRAS | C122: DR. ROBERTO SUAREZ | D122: 02-CHAPINERO | E122: 0 | F122: 0 | G122: 0 | H122: 0 | S122: 0 | T122: 0.0% | U122: 0
A123: PEDIATRAS | B123: PEDIATRAS | C123: DR. WILLIAM RICARDO CABRA | D123: 02-CHAPINERO | E123: 0 | F123: 0 | G123: 1 | H123: 2 | S123: 3 | T123: 0.0%
A124: PEDIATRAS | B124: PEDIATRAS | C124: DR. EDGAR CASTRO | D124: 02-CHAPINERO | E124: 0 | F124: 0 | G124: 7 | H124: 4 | S124: 11 | T124: 0.0%
A125: PEDIATRAS | B125: PEDIATRAS | C125: DR. PABLO KRAUSS | D125: 02-CHAPINERO | E125: 0 | F125: 0 | G125: 6 | H125: 1 | S125: 7 | T125: 0.0%
A126: PEDIATRAS | B126: PEDIATRAS | C126: DR. HERNAN ROBLES | D126: 02-CHAPINERO | E126: 0 | F126: 0 | G126: 4 | H126: 1 | S126: 5 | T126: 0.0%
A127: PEDIATRAS | B127: PEDIATRAS | C127: DR. RAFAEL GAMBOA CASABLANCA | D127: 02-CHAPINERO | E127: 0 | F127: 0 | G127: 5 | H127: 9 | S127: 14 | T127: 0.0%
A128: PEDIATRAS | B128: PEDIATRAS | C128: DR. JAVIER MEJIA | D128: 02-CHAPINERO | E128: 0 | F128: 0 | G128: 2 | H128: 5 | S128: 7 | T128: 0.0%
A129: PEDIATRAS | B129: PEDIATRAS | C129: DR. CARLOS CORTAZAR | D129: 02-CHAPINERO | E129: 0 | F129: 0 | G129: 0 | H129: 0 | S129: 0 | T129: 0.0% | U129: 0
A130: PEDIATRAS | B130: PEDIATRAS | C130: DR. NELSON PARDO | D130: 02-CHAPINERO | E130: 0 | F130: 0 | G130: 0 | H130: 2 | S130: 2 | T130: =IF(E130=0,0,+S130/E130) -> 0.0% | U130: =IF(COUNT(G130:R130)*(E130/12)-S130<0,"",COUNT(G130:R130)*(E130/12)-S130) -> 
A131: PEDIATRAS | B131: PEDIATRAS | C131: DR. ALVARO JACOME | D131: 02-CHAPINERO | E131: 0 | F131: =+E131/12 -> 0 | G131: 0 | H131: 1 | S131: =SUM(G131:R131) -> 1 | T131: 0.0%
A132: PEDIATRAS | B132: PEDIATRAS | C132: DR. SILVIO COPO | D132: 02-CHAPINERO | E132: 0 | F132: 0 | G132: 0 | H132: 2 | S132: 2 | T132: 0.0%
A133: PEDIATRAS | B133: PEDIATRAS | C133: DR. HECTOR FERNANDO MENDOZA | D133: 02-CHAPINERO | E133: 0 | F133: 0 | G133: 1 | H133: 1 | S133: 2 | T133: 0.0%
A134: PEDIATRAS | B134: PEDIATRAS | C134: DR. DIMITRIOS | D134: 02-CHAPINERO | E134: 0 | F134: 0 | G134: 0 | H134: 1 | S134: 1 | T134: 0.0%
A135: PEDIATRAS | B135: PEDIATRAS | C135: DR. ALVARO MARIÑO | D135: 02-CHAPINERO | E135: 0 | F135: 0 | G135: 0 | H135: 1 | S135: 1 | T135: 0.0%
A136: PEDIATRAS | B136: PEDIATRAS | C136: DR. ANDRES VARGAS | D136: 02-CHAPINERO | E136: 0 | F136: 0 | G136: 1 | H136: 0 | S136: 1 | T136: 0.0%
A137: PEDIATRAS | B137: PEDIATRAS | C137: DR. JORGE CAMILO LUNA | D137: 02-CHAPINERO | E137: 0 | F137: 0 | G137: 0 | H137: 1 | S137: 1 | T137: 0.0%
A138: PEDIATRAS | B138: PEDIATRAS | C138: DR. BERNARDO HUERTAS | D138: 02-CHAPINERO | E138: 0 | F138: 0 | G138: 4 | H138: 8 | S138: 12 | T138: 0.0%
A139: PEDIATRAS | B139: PEDIATRAS | C139: DR. CARLOS M CASTILLO | D139: 02-CHAPINERO | E139: 0 | F139: 0 | G139: 0 | H139: 0 | S139: 0 | T139: 0.0% | U139: 0
A140: PEDIATRAS | B140: PEDIATRAS | C140: DR. HEINZ OTTO PFALZGRAF | D140: 02-CHAPINERO | E140: 0 | F140: 0 | G140: 0 | H140: 0 | S140: 0 | T140: 0.0% | U140: 0
A141: PEDIATRAS | B141: PEDIATRAS | C141: DR. GONZALEZ BALLESTEROS | D141: 02-CHAPINERO | E141: 0 | F141: 0 | G141: 0 | H141: 0 | S141: 0 | T141: 0.0% | U141: 0
A142: PEDIATRAS | B142: PEDIATRAS | C142: DR. NORBERTO SALAMANCA | D142: 02-CHAPINERO | E142: 0 | F142: 0 | G142: 0 | H142: 0 | S142: 0 | T142: 0.0% | U142: 0
A143: PEDIATRAS | B143: PEDIATRAS | C143: DR. CAMILO ENRIQUE SOTOMAYOR | D143: 02-CHAPINERO | E143: 0 | F143: 0 | G143: 0 | H143: 2 | S143: 2 | T143: 0.0%
A144: PEDIATRAS | B144: PEDIATRAS | C144: DR. SANTIAGO RUEDA SAIZ | D144: 02-CHAPINERO | E144: 0 | F144: 0 | G144: 5 | H144: 3 | S144: 8 | T144: 0.0%
A145: PEDIATRAS | B145: PEDIATRAS | C145: DR. HENRY HERNANDO SANCHEZ ESCOBAR | D145: 02-CHAPINERO | E145: 0 | F145: 0 | G145: 0 | H145: 1 | S145: 1 | T145: 0.0%
A146: PEDIATRAS | B146: PEDIATRAS | C146: DR. RUBEN DARIO TAMAYO | D146: 02-CHAPINERO | E146: 0 | F146: 0 | G146: 0 | H146: 0 | S146: 0 | T146: 0.0% | U146: 0
A147: PEDIATRAS | B147: PEDIATRAS | C147: DR. JAIME MAURICIO MATALLANA | D147: 02-CHAPINERO | E147: 0 | F147: 0 | G147: 6 | H147: 3 | S147: 9 | T147: 0.0%
A148: PEDIATRAS | B148: PEDIATRAS | C148: DR. RODRIGO GARCIA | D148: 02-CHAPINERO | E148: 0 | F148: 0 | G148: 0 | H148: 0 | S148: 0 | T148: 0.0% | U148: 0
A149: PEDIATRAS | B149: PEDIATRAS | C149: DR. FELIPE ROBAYO | D149: 02-CHAPINERO | E149: 0 | F149: 0 | G149: 0 | H149: 0 | S149: 0 | T149: 0.0% | U149: 0
A150: PEDIATRAS | B150: PEDIATRAS | C150: DR. RUBEN FRANCO | D150: 02-CHAPINERO | E150: 0 | F150: 0 | G150: 0 | H150: 0 | S150: 0 | T150: 0.0% | U150: 0
A151: PEDIATRAS | B151: PEDIATRAS | C151: DR. ORLANDO RODRIGUEZ RAMIREZ | D151: 02-CHAPINERO | E151: 0 | F151: 0 | G151: 0 | H151: 1 | S151: 1 | T151: 0.0%
A152: PEDIATRAS | B152: PEDIATRAS | C152: DR. ARTURO MORENO | D152: 02-CHAPINERO | E152: 0 | F152: 0 | G152: 0 | H152: 0 | S152: 0 | T152: 0.0% | U152: 0
A153: PEDIATRAS | B153: PEDIATRAS | C153: DR. FRANCISCO LEAL QUEVEDO | D153: 02-CHAPINERO | E153: 0 | F153: 0 | G153: 0 | H153: 0 | S153: 0 | T153: 0.0% | U153: 0
A154: PEDIATRAS | B154: PEDIATRAS | C154: DR. CARLOS DIAZ PUENTES | D154: 02-CHAPINERO | E154: 0 | F154: 0 | G154: 0 | H154: 0 | S154: 0 | T154: 0.0% | U154: 0
A155: PEDIATRAS | B155: PEDIATRAS | C155: DR. PEDRO ERASMO MENDOZA | D155: 02-CHAPINERO | E155: 0 | F155: 0 | G155: 0 | H155: 0 | S155: 0 | T155: 0.0% | U155: 0
A156: PEDIATRAS | B156: PEDIATRAS | C156: DR. DIMAS ROSAS | D156: 02-CHAPINERO | E156: 0 | F156: 0 | G156: 0 | H156: 0 | S156: 0 | T156: 0.0% | U156: 0
A157: PEDIATRAS | B157: PEDIATRAS | C157: DR. JAVIER BRITO MORENO | D157: 02-CHAPINERO | E157: 0 | F157: 0 | G157: 0 | H157: 0 | S157: 0 | T157: 0.0% | U157: 0
A158: PEDIATRAS | B158: PEDIATRAS | C158: DR. GUSTAVO CORTÉS | D158: 02-CHAPINERO | E158: 0 | F158: 0 | G158: 0 | H158: 0 | S158: 0 | T158: 0.0% | U158: 0
A159: PEDIATRAS | B159: PEDIATRAS | C159: DR. CARLOS VELASQUEZ | D159: 02-CHAPINERO | E159: 0 | F159: 0 | G159: 0 | H159: 0 | S159: 0 | T159: 0.0% | U159: 0
A160: PEDIATRAS | B160: PEDIATRAS | C160: DR. RICARDO GOMEZ | D160: 02-CHAPINERO | E160: 0 | F160: 0 | G160: 0 | H160: 0 | S160: 0 | T160: 0.0% | U160: 0
A161: PEDIATRAS | B161: PEDIATRAS | C161: DR. SARA BERNAL | D161: 02-CHAPINERO | E161: 0 | F161: 0 | G161: 1 | H161: 0 | S161: 1 | T161: 0.0%
A162: PEDIATRAS | B162: PEDIATRAS | C162: DRA. MARIA PATRICIA AGUALIMPIA | D162: 02-CHAPINERO | E162: 0 | F162: 0 | G162: 0 | H162: 0 | S162: 0 | T162: 0.0% | U162: 0
A163: PEDIATRAS | B163: PEDIATRAS | C163: DRA. LUISA FERNANDA FORERO ACOSTA | D163: 02-CHAPINERO | E163: 0 | F163: 0 | G163: 0 | H163: 0 | S163: 0 | T163: 0.0% | U163: 0
A164: PEDIATRAS | B164: PEDIATRAS | C164: DRA. MARIA CLARA CASAS PARDO | D164: 02-CHAPINERO | E164: 0 | F164: 0 | G164: 0 | H164: 0 | S164: 0 | T164: 0.0% | U164: 0
A165: PEDIATRAS | B165: PEDIATRAS | C165: DRA. MARTHA EUGENIA RONDEROS DE FORERO | D165: 02-CHAPINERO | E165: 0 | F165: 0 | G165: 0 | H165: 0 | S165: 0 | T165: 0.0% | U165: 0
A166: PEDIATRAS | B166: PEDIATRAS | C166: DRA. MARIA ISABEL USCHER | D166: 02-CHAPINERO | E166: 0 | F166: 0 | G166: 1 | H166: 0 | S166: 1 | T166: 0.0%
A167: PEDIATRAS | B167: PEDIATRAS | C167: DRA. MARIA DE LOS ANGELES MUÑOZ | D167: 02-CHAPINERO | E167: 0 | F167: 0 | G167: 2 | H167: 0 | S167: 2 | T167: 0.0%
A168: PEDIATRAS | B168: PEDIATRAS | C168: DRA. CLARA ABELLO REYES | D168: 02-CHAPINERO | E168: 0 | F168: 0 | G168: 1 | H168: 1 | S168: 2 | T168: 0.0%
A169: PEDIATRAS | B169: PEDIATRAS | C169: DRA. PATRICIA CONTRERAS | D169: 02-CHAPINERO | E169: 0 | F169: 0 | G169: 3 | H169: 0 | S169: 3 | T169: 0.0%
A170: PEDIATRAS | B170: PEDIATRAS | C170: DRA. CLAUDIA ZOPPI | D170: 02-CHAPINERO | E170: 0 | F170: 0 | G170: 0 | H170: 0 | S170: 0 | T170: 0.0% | U170: 0
A171: PEDIATRAS | B171: PEDIATRAS | C171: DRA. MARIA DE LOS ANGELES FERNANDEZ LUQUE | D171: 02-CHAPINERO | E171: 0 | F171: 0 | G171: 0 | H171: 0 | S171: 0 | T171: 0.0% | U171: 0
A172: PEDIATRAS | B172: PEDIATRAS | C172: DRA. RUTH CORDOBA CORDOBA | D172: 02-CHAPINERO | E172: 0 | F172: 0 | G172: 0 | H172: 0 | S172: 0 | T172: 0.0% | U172: 0
A173: PEDIATRAS | B173: PEDIATRAS | C173: DRA. LUZ ESTELA CORTES | D173: 02-CHAPINERO | E173: 0 | F173: 0 | G173: 0 | H173: 0 | S173: 0 | T173: 0.0% | U173: 0
A174: UNICAJAS | B174: UNICAJAS | C174: UPA SAN LUIS | D174: 02-CHAPINERO | E174: 18 | F174: 2 | G174: 1 | H174: 0 | S174: 1 | T174: 5.6% | U174: 2
A175: 02-CHAPINERO | B175: OTROS | C175: UPA SAN LUIS | D175: 02-CHAPINERO | E175: 325 | F175: 27 | G175: 0 | H175: 2 | S175: 2 | T175: 0.6% | U175: 52
A176: 02-CHAPINERO | B176: DEMAS EAPB | C176: UPA SAN LUIS | D176: 02-CHAPINERO | F176: 0 | G176: 6 | H176: 2 | S176: 8 | T176: 0.0%
A177: UNICAJAS | B177: UNICAJAS | C177: COMFASALUD SEDE CENTRO | D177: 03-SANTA FE | E177: 50 | F177: 4 | G177: 4 | H177: 2 | S177: 6 | T177: 12.0% | U177: 2
A178: MEDIMAS | B178: MEDIMAS | C178: CORVESALUD TEUSAQUILLO | D178: 03-SANTA FE | E178: 193 | F178: 16 | G178: 6 | H178: 4 | S178: 10 | T178: 5.2% | U178: 22
A179: 03-SANTA FE | B179: CAPITAL SALUD | C179: EXTRAMURAL SANTA FE | D179: 03-SANTA FE | E179: 0 | F179: 0 | G179: 2 | H179: 4 | S179: 6 | T179: 0.0%
A180: 03-SANTA FE | B180: DEMAS EAPB | C180: EXTRAMURAL SANTA FE | D180: 03-SANTA FE | E180: 0 | F180: 0 | G180: 6 | H180: 4 | S180: 10 | T180: 0.0%
A181: 03-SANTA FE | B181: OTROS | C181: EXTRAMURAL SANTA FE | D181: 03-SANTA FE | E181: 0 | F181: 0 | G181: 13 | H181: 9 | S181: 22 | T181: 0.0%
A182: 03-SANTA FE | B182: UNICAJAS | C182: EXTRAMURAL SANTA FE | D182: 03-SANTA FE | E182: 0 | F182: 0 | G182: 0 | H182: 0 | S182: 0 | T182: 0.0% | U182: 0
A183: 03-SANTA FE | B183: CAPITAL SALUD | C183: USS LACHES | D183: 03-SANTA FE | E183: 54 | F183: 5 | G183: 9 | H183: 3 | S183: 12 | T183: 22.2%
A184: 03-SANTA FE | B184: DEMAS EAPB | C184: USS LACHES | D184: 03-SANTA FE | E184: 0 | F184: 0 | G184: 12 | H184: 2 | S184: 14 | T184: 0.0%
A185: 03-SANTA FE | B185: OTROS | C185: USS LACHES | D185: 03-SANTA FE | E185: 260 | F185: 22 | G185: 6 | H185: 0 | S185: 6 | T185: 2.3% | U185: 37
A186: 03-SANTA FE | B186: UNICAJAS | C186: USS LACHES | D186: 03-SANTA FE | E186: 17 | F186: 1 | G186: 0 | H186: 2 | S186: 2 | T186: 11.8% | U186: 1
A187: 03-SANTA FE | B187: CAPITAL SALUD | C187: USS LAS CRUCES | D187: 03-SANTA FE | E187: 44 | F187: 4 | G187: 7 | H187: 5 | S187: 12 | T187: 27.3%
A188: 03-SANTA FE | B188: DEMAS EAPB | C188: USS LAS CRUCES | D188: 03-SANTA FE | E188: 0 | F188: 0 | G188: 6 | H188: 1 | S188: 7 | T188: 0.0%
A189: 03-SANTA FE | B189: OTROS | C189: USS LAS CRUCES | D189: 03-SANTA FE | E189: 211 | F189: 18 | G189: 3 | H189: 2 | S189: 5 | T189: 2.4% | U189: 30
A190: 03-SANTA FE | B190: UNICAJAS | C190: USS LAS CRUCES | D190: 03-SANTA FE | E190: 14 | F190: 1 | G190: 7 | H190: 0 | S190: 7 | T190: 50.0%
A191: 03-SANTA FE | B191: CAPITAL SALUD | C191: USS PERSEVERANCIA | D191: 03-SANTA FE | E191: 6 | F191: 1 | G191: 2 | H191: 0 | S191: 2 | T191: 33.3%
A192: 03-SANTA FE | B192: DEMAS EAPB | C192: USS PERSEVERANCIA | D192: 03-SANTA FE | E192: 0 | F192: 0 | G192: 0 | H192: 0 | S192: 0 | T192: 0.0% | U192: 0
A193: 03-SANTA FE | B193: OTROS | C193: USS PERSEVERANCIA | D193: 03-SANTA FE | E193: 30 | F193: 3 | G193: 2 | H193: 0 | S193: 2 | T193: 6.7% | U193: 3
A194: 03-SANTA FE | B194: UNICAJAS | C194: USS PERSEVERANCIA | D194: 03-SANTA FE | E194: 2 | F194: 0 | G194: 0 | H194: 0 | S194: 0 | T194: =IF(E194=0,0,+S194/E194) -> 0.0% | U194: =IF(COUNT(G194:R194)*(E194/12)-S194<0,"",COUNT(G194:R194)*(E194/12)-S194) -> 0
A195: PARTICULAR | B195: PARTICULAR | C195: CLINICA SAN RAFAEL | D195: 04-SAN CRISTOBAL | E195: 375 | F195: =+E195/12 -> 31 | G195: 35 | H195: 26 | S195: =SUM(G195:R195) -> 61 | T195: 16.3% | U195: 2
A196: FAMISANAR | B196: FAMI- COLSB | C196: CENTRO MEDICO COLSUBSIDIO 20 DE JULIO | D196: 04-SAN CRISTOBAL | F196: 0 | S196: 0 | T196: 0.0% | U196: 0
A197: 04-SAN CRISTOBAL | B197: CAPITAL SALUD | C197: EXTRAMURAL SAN CRISTOBAL | D197: 04-SAN CRISTOBAL | E197: 0 | F197: 0 | G197: 25 | H197: 28 | S197: 53 | T197: 0.0%
A198: 04-SAN CRISTOBAL | B198: DEMAS EAPB | C198: EXTRAMURAL SAN CRISTOBAL | D198: 04-SAN CRISTOBAL | E198: 0 | F198: 0 | G198: 36 | H198: 26 | S198: 62 | T198: 0.0%
A199: 04-SAN CRISTOBAL | B199: OTROS | C199: EXTRAMURAL SAN CRISTOBAL | D199: 04-SAN CRISTOBAL | E199: 0 | F199: 0 | G199: 11 | H199: 5 | S199: 16 | T199: 0.0%
A200: 04-SAN CRISTOBAL | B200: UNICAJAS | C200: EXTRAMURAL SAN CRISTOBAL | D200: 04-SAN CRISTOBAL | E200: 0 | F200: 0 | G200: 0 | H200: 2 | S200: 2 | T200: 0.0%
... 620 more rows

Sheet NEUMOCOCO1
A1: EAPB | B1: EPS O ESE | C1: IPS | D1: Localidad | E1: Meta Anual Menor de 1 Año | F1: Meta Mensual | G1: Enero | H1: Febrero | I1: Marzo | J1: Abril | K1: Mayo | L1: Junio | M1: Julio | N1: Agosto | O1: Septiembre | P1: Octubre | Q1: Noviembre | R1: Diciembre | S1: Total | T1: % Cobertura | U1: Deficit
A2: CAPITAL SALUD | B2: CAPITAL SALUD | C2: UPA SAN CRISTOBAL | D2: 01-USAQUEN | E2: 124 | F2: =+E2/12 -> 10 | G2: 6 | H2: 7 | S2: =SUM(G2:R2) -> 13 | T2: =IF(E2=0,0,+S2/E2) -> 10.5% | U2: =IF(COUNT(G2:R2)*(E2/12)-S2<0,"",COUNT(G2:R2)*(E2/12)-S2) -> 8
A3: CAPITAL SALUD | B3: CAPITAL SALUD | C3: UPA USAQUEN | D3: 01-USAQUEN | E3: 10 | F3: =+E3/12 -> 1 | H3: 1 | S3: =SUM(G3:R3) -> 1 | T3: 10.0%
A4: CAPITAL SALUD | B4: CAPITAL SALUD | C4: UPA ORQUIDEAS | D4: 01-USAQUEN | E4: 11 | F4: 1 | G4: 1 | H4: 3 | S4: 4 | T4: 36.4%
A5: CAPITAL SALUD | B5: CAPITAL SALUD | C5: UPA CODITO | D5: 01-USAQUEN | E5: 107 | F5: 9 | G5: 7 | H5: 4 | S5: 11 | T5: 10.3% | U5: 7
A6: CAPITAL SALUD | B6: CAPITAL SALUD | C6: CAMI VERBENAL | D6: 01-USAQUEN | E6: 87 | F6: 7 | G6: 11 | H6: 4 | S6: 15 | T6: 17.2%
A7: CAPITAL SALUD | B7: CAPITAL SALUD | C7: HOSPITAL SIMON BOLIVAR | D7: 01-USAQUEN | E7: 36 | F7: 3 | G7: 22 | H7: 10 | S7: 32 | T7: 88.9%
A8: 01-USAQUEN | B8: 01-USAQUEN | C8: EXTRAMURAL USAQUEN | D8: 01-USAQUEN | E8: 0 | F8: 0 | G8: 6 | H8: 7 | S8: 13 | T8: 0.0%
A9: ALIANSALUD | B9: ALIANSALUD | C9: CENTRO MEDICO COLMEDICA SANTA BARBARA | D9: 01-USAQUEN | E9: 580 | F9: 48 | G9: 63 | H9: 44 | S9: 107 | T9: 18.4%
A10: COMPENSAR | B10: COMPENSAR | C10: USS CALLE 134 | D10: 01-USAQUEN | E10: 372 | F10: 31 | G10: 17 | H10: 21 | S10: 38 | T10: 10.2% | U10: 24
A11: COMPENSAR | B11: COMPENSAR | C11: USS CALLE 145 | D11: 01-USAQUEN | E11: 173 | F11: 14 | G11: 13 | H11: 10 | S11: 23 | T11: 13.3% | U11: 6
A12: COMPENSAR | B12: COMPENSAR | C12: JAVESALUD TOBERIN | D12: 01-USAQUEN | E12: 372 | F12: 31 | G12: 6 | H12: 12 | S12: 18 | T12: 4.8% | U12: 44
A13: COOMEVA | B13: COOMEVA | C13: SINERGIA UNIDAD INTEGRAL EN SALUD | D13: 01-USAQUEN | E13: 44 | F13: 4 | G13: 5 | H13: 5 | S13: 10 | T13: 22.7%
A14: FAMISANAR | B14: FAMI- COLSB | C14: CENTRO MEDICO COLSUBSIDIO USAQUEN | D14: 01-USAQUEN | E14: 298 | F14: 25 | G14: 38 | H14: 45 | S14: 83 | T14: 27.9%
A15: MILITAR | B15: MILITAR | C15: DISPENSARIO MEDICO CANTON NORTE | D15: 01-USAQUEN | E15: 205 | F15: 17 | G15: 8 | H15: 4 | S15: 12 | T15: 5.9% | U15: 22
A16: NUEVA EPS | B16: NUEVA EPS | C16: IPS VIVA 1A SEDE TOBERIN | D16: 01-USAQUEN | E16: 147 | F16: 12 | G16: 9 | H16: 9 | S16: 18 | T16: 12.2% | U16: 7
A17: NUEVA EPS | B17: NUEVA EPS | C17: CAFAM GRANADA HILLS | D17: 01-USAQUEN | E17: 44 | F17: 4 | G17: 2 | H17: 2 | S17: 4 | T17: 9.1% | U17: 3
A18: SANITAS | B18: SANITAS | C18: UAP SANITAS TOBERIN | D18: 01-USAQUEN | E18: 511 | F18: 43 | G18: 27 | H18: 38 | S18: 65 | T18: 12.7% | U18: 20
A19: SANITAS | B19: SANITAS | C19: MEDIKA IPS SANITAS UAP USAQUEN | D19: 01-USAQUEN | E19: 188 | F19: 16 | G19: 4 | H19: 2 | S19: 6 | T19: 3.2% | U19: 25
A20: SANITAS | B20: SANITAS | C20: UAP SANTA BARBARA | D20: 01-USAQUEN | E20: 796 | F20: 66 | G20: 92 | H20: 114 | S20: 206 | T20: 25.9%
A21: SANITAS | B21: SANITAS | C21: SANITAS BANCO DE LA REPUBLICA | D21: 01-USAQUEN | E21: 0 | F21: 0 | G21: 3 | H21: 3 | S21: 6 | T21: 0.0%
A22: SALUD TOTAL | B22: SALUD TOTAL | C22: VIRREY SOLIS TOBERÍN | D22: 01-USAQUEN | E22: 384 | F22: 32 | G22: 24 | H22: 13 | S22: 37 | T22: 9.6% | U22: 27
A23: SURA | B23: SURA | C23: IPS JAVESALUD SANTA BEATRIZ | D23: 01-USAQUEN | E23: 355 | F23: 30 | G23: 20 | H23: 14 | S23: 34 | T23: 9.6% | U23: 25
A24: ECOPETROL | B24: ECOPETROL | C24: IPS CLINICOS PALATINO | D24: 01-USAQUEN | E24: 87 | F24: 7 | G24: 6 | H24: 9 | S24: 15 | T24: 17.2%
A25: PARTICULAR | B25: PARTICULAR | C25: CLINICA PEDIATRICA COLSANITAS | D25: 01-USAQUEN | E25: 830 | F25: 69 | G25: 58 | H25: 57 | S25: 115 | T25: 13.9% | U25: 23
A26: PARTICULAR | B26: PARTICULAR | C26: CENTRO MEDICO COLSANITAS LA CALLEJA | D26: 01-USAQUEN | E26: 120 | F26: 10 | G26: 5 | H26: 15 | S26: 20 | T26: 16.7% | U26: 0
A27: PARTICULAR | B27: PARTICULAR | C27: CENTRO MEDICO COLSANITAS 108 | D27: 01-USAQUEN | E27: 40 | F27: 3 | G27: 4 | H27: 3 | S27: 7 | T27: 17.5%
A28: PARTICULAR | B28: PARTICULAR | C28: CENTRO MEDICO COLSANITAS SANTA ANA | D28: 01-USAQUEN | E28: 4 | F28: 0 | G28: 1 | H28: 3 | S28: 4 | T28: 100.0%
A29: PARTICULAR | B29: PARTICULAR | C29: FUNDACIÓN CARDIO INFANTIL | D29: 01-USAQUEN | E29: 0 | F29: 0 | G29: 8 | H29: 19 | S29: 27 | T29: 0.0%
A30: PARTICULAR | B30: PARTICULAR | C30: ENFASO USAQUEN | D30: 01-USAQUEN | E30: 0 | F30: 0 | G30: 9 | H30: 13 | S30: 22 | T30: 0.0%
A31: PARTICULAR | B31: PARTICULAR | C31: UNIDAD DE VACUNACIÓN INTERNACIONAL | D31: 01-USAQUEN | E31: 0 | F31: 0 | G31: 6 | H31: 6 | S31: 12 | T31: 0.0%
A32: PARTICULAR | B32: PARTICULAR | C32: INMUNOLOGÍA Y DIAGNÓSTICO ESPECIALIZADO LTDA. | D32: 01-USAQUEN | E32: 0 | F32: 0 | G32: 2 | H32: 0 | S32: 2 | T32: 0.0%
A33: PARTICULAR | B33: PARTICULAR | C33: PROTEGER HEALHT CARE | D33: 01-USAQUEN | E33: 0 | F33: 0 | G33: 2 | H33: 6 | S33: 8 | T33: 0.0%
A34: PARTICULAR | B34: PARTICULAR | C34: FUNDACION SANTA FE DE BOGOTA | D34: 01-USAQUEN | E34: 0 | F34: 0 | G34: 4 | H34: 2 | S34: 6 | T34: 0.0%
A35: PARTICULAR | B35: PARTICULAR | C35: IPS CRUZ ROJA SEDE UNICENTRO | D35: 01-USAQUEN | E35: 0 | F35: 0 | G35: 0 | H35: 0 | S35: 0 | T35: 0.0% | U35: 0
A36: PARTICULAR | B36: PARTICULAR | C36: IPS CRUZ ROJA SAMU CALLE 145 | D36: 01-USAQUEN | E36: 0 | F36: 0 | G36: 0 | H36: 0 | S36: 0 | T36: 0.0% | U36: 0
A37: PEDIATRAS | B37: PEDIATRAS | C37: DR. ALEJANDRO LÓPEZ | D37: 01-USAQUEN | E37: 0 | F37: 0 | G37: 0 | H37: 3 | S37: 3 | T37: 0.0%
A38: PEDIATRAS | B38: PEDIATRAS | C38: DR. CARLOS NEFTALI TORRES | D38: 01-USAQUEN | E38: 0 | F38: 0 | G38: 1 | H38: 2 | S38: 3 | T38: 0.0%
A39: PEDIATRAS | B39: PEDIATRAS | C39: DR. FRANCISCO NUÑEZ | D39: 01-USAQUEN | E39: 0 | F39: 0 | G39: 1 | H39: 1 | S39: 2 | T39: 0.0%
A40: PEDIATRAS | B40: PEDIATRAS | C40: DR. FERNANDO GOMEZ | D40: 01-USAQUEN | E40: 0 | F40: 0 | G40: 0 | H40: 0 | S40: 0 | T40: 0.0% | U40: 0
A41: PEDIATRAS | B41: PEDIATRAS | C41: DR. FERNANDO ZARATE MORENO | D41: 01-USAQUEN | E41: 0 | F41: 0 | G41: 1 | H41: 1 | S41: 2 | T41: 0.0%
A42: PEDIATRAS | B42: PEDIATRAS | C42: DR. GONZALO GARCIA | D42: 01-USAQUEN | E42: 0 | F42: 0 | G42: 1 | H42: 0 | S42: 1 | T42: 0.0%
A43: PEDIATRAS | B43: PEDIATRAS | C43: DR. GUSTAVO MORALES | D43: 01-USAQUEN | E43: 0 | F43: 0 | G43: 2 | H43: 1 | S43: 3 | T43: 0.0%
A44: PEDIATRAS | B44: PEDIATRAS | C44: DR. JAIME OSPINA | D44: 01-USAQUEN | E44: 0 | F44: 0 | G44: 1 | H44: 0 | S44: 1 | T44: 0.0%
A45: PEDIATRAS | B45: PEDIATRAS | C45: DR. JORGE URIBE | D45: 01-USAQUEN | E45: 0 | F45: 0 | G45: 0 | H45: 0 | S45: 0 | T45: 0.0% | U45: 0
A46: PEDIATRAS | B46: PEDIATRAS | C46: DR. JUAN LUIS FIGUEROA | D46: 01-USAQUEN | E46: 0 | F46: 0 | G46: 2 | H46: 0 | S46: 2 | T46: 0.0%
A47: PEDIATRAS | B47: PEDIATRAS | C47: DR. LUIS AUGUSTO PERNA | D47: 01-USAQUEN | E47: 0 | F47: 0 | G47: 4 | H47: 2 | S47: 6 | T47: 0.0%
A48: PEDIATRAS | B48: PEDIATRAS | C48: DR. LIBARDO ELI TRIANA | D48: 01-USAQUEN | E48: 0 | F48: 0 | G48: 0 | H48: 1 | S48: 1 | T48: 0.0%
A49: PEDIATRAS | B49: PEDIATRAS | C49: DR. OSWALDO MERCADO HOYOS | D49: 01-USAQUEN | E49: 0 | F49: 0 | G49: 2 | H49: 3 | S49: 5 | T49: 0.0%
A50: PEDIATRAS | B50: PEDIATRAS | C50: DR. ROBERTO BENIRO | D50: 01-USAQUEN | E50: 0 | F50: 0 | G50: 0 | H50: 0 | S50: 0 | T50: 0.0% | U50: 0
A51: PEDIATRAS | B51: PEDIATRAS | C51: DR. SERGIO ISAZA | D51: 01-USAQUEN | E51: 0 | F51: 0 | G51: 1 | H51: 0 | S51: 1 | T51: 0.0%
A52: PEDIATRAS | B52: PEDIATRAS | C52: DR. SANTIAGO UCROS | D52: 01-USAQUEN | E52: 0 | F52: 0 | G52: 0 | H52: 0 | S52: 0 | T52: 0.0% | U52: 0
A53: PEDIATRAS | B53: PEDIATRAS | C53: DR. GERMAN SILVA | D53: 01-USAQUEN | E53: 0 | F53: 0 | G53: 0 | H53: 0 | S53: 0 | T53: 0.0% | U53: 0
A54: PEDIATRAS | B54: PEDIATRAS | C54: DR. DANIEL ABRIL | D54: 01-USAQUEN | E54: 0 | F54: 0 | G54: 0 | H54: 0 | S54: 0 | T54: 0.0% | U54: 0
A55: PEDIATRAS | B55: PEDIATRAS | C55: DR. CARLOS EDUARDO OLMOS | D55: 01-USAQUEN | E55: 0 | F55: 0 | G55: 0 | H55: 0 | S55: 0 | T55: 0.0% | U55: 0
A56: PEDIATRAS | B56: PEDIATRAS | C56: DR. EDGARDO CHATMAN | D56: 01-USAQUEN | E56: 0 | F56: 0 | G56: 0 | H56: 0 | S56: 0 | T56: 0.0% | U56: 0
A57: PEDIATRAS | B57: PEDIATRAS | C57: DR. JORGE FLOREZ OTERO | D57: 01-USAQUEN | E57: 0 | F57: 0 | G57: 0 | H57: 0 | S57: 0 | T57: 0.0% | U57: 0
A58: PEDIATRAS | B58: PEDIATRAS | C58: DRA. ALEJANDRA MARIA VALENCIA | D58: 01-USAQUEN | E58: 0 | F58: 0 | G58: 0 | H58: 0 | S58: 0 | T58: 0.0% | U58: 0
A59: PEDIATRAS | B59: PEDIATRAS | C59: DRA. ANA MARIA GOYENECHE | D59: 01-USAQUEN | E59: 0 | F59: 0 | G59: 0 | H59: 0 | S59: 0 | T59: 0.0% | U59: 0
A60: PEDIATRAS | B60: PEDIATRAS | C60: DRA. JIMENA VARELA | D60: 01-USAQUEN | E60: 0 | F60: 0 | G60: 0 | H60: 0 | S60: 0 | T60: 0.0% | U60: 0
A61: PEDIATRAS | B61: PEDIATRAS | C61: DRA. LIA SAN MIGUEL | D61: 01-USAQUEN | E61: 0 | F61: 0 | G61: 0 | H61: 0 | S61: 0 | T61: 0.0% | U61: 0
A62: PEDIATRAS | B62: PEDIATRAS | C62: DRA. LIBIA SEGURA | D62: 01-USAQUEN | E62: 0 | F62: 0 | G62: 0 | H62: 0 | S62: 0 | T62: 0.0% | U62: 0
A63: PEDIATRAS | B63: PEDIATRAS | C63: DRA. MARÍA JOSÉ PEDRAZA | D63: 01-USAQUEN | E63: 0 | F63: 0 | G63: 0 | H63: 0 | S63: 0 | T63: 0.0% | U63: 0
A64: PEDIATRAS | B64: PEDIATRAS | C64: DRA. MARTHA LUCIA SANCHEZ | D64: 01-USAQUEN | E64: 0 | F64: 0 | G64: 0 | H64: 0 | S64: 0 | T64: 0.0% | U64: 0
A65: PEDIATRAS | B65: PEDIATRAS | C65: DRA. OLGA LUCÍA SÁNCHEZ | D65: 01-USAQUEN | E65: 0 | F65: 0 | G65: 0 | H65: 0 | S65: 0 | T65: 0.0% | U65: 0
A66: PEDIATRAS | B66: PEDIATRAS | C66: DRA. SANDRA BELTRAN | D66: 01-USAQUEN | E66: 0 | F66: 0 | G66: 0 | H66: 1 | S66: 1 | T66: =IF(E66=0,0,+S66/E66) -> 0.0% | U66: =IF(COUNT(G66:R66)*(E66/12)-S66<0,"",COUNT(G66:R66)*(E66/12)-S66) -> 
A67: PEDIATRAS | B67: PEDIATRAS | C67: DRA. IVANA CABRERA | D67: 01-USAQUEN | E67: 0 | F67: =+E67/12 -> 0 | G67: 0 | H67: 0 | S67: =SUM(G67:R67) -> 0 | T67: 0.0% | U67: 0
A68: PEDIATRAS | B68: PEDIATRAS | C68: DRA. NAYITA ALARCON | D68: 01-USAQUEN | E68: 0 | F68: 0 | G68: 0 | H68: 0 | S68: 0 | T68: 0.0% | U68: 0
A69: PEDIATRAS | B69: PEDIATRAS | C69: DRA. ELIZABETH GARCIA | D69: 01-USAQUEN | E69: 0 | F69: 0 | G69: 0 | H69: 0 | S69: 0 | T69: 0.0% | U69: 0
A70: PEDIATRAS | B70: PEDIATRAS | C70: DRA. BERTHA CALDERON DE RAMOS | D70: 01-USAQUEN | E70: 0 | F70: 0 | G70: 0 | H70: 0 | S70: 0 | T70: 0.0% | U70: 0
A71: PEDIATRAS | B71: PEDIATRAS | C71: DRA. MIRYAM CORREA | D71: 01-USAQUEN | E71: 0 | F71: 0 | G71: 0 | H71: 1 | S71: 1 | T71: 0.0%
A72: 01-USAQUEN | B72: UNICAJAS | C72: UPA SAN CRISTOBAL | D72: 01-USAQUEN | E72: 6 | F72: 1 | G72: 1 | H72: 0 | S72: 1 | T72: 16.7% | U72: 0
A73: UNICAJAS | B73: UNICAJAS | C73: UPA USAQUEN | D73: 01-USAQUEN | E73: 9 | F73: 1 | H73: 0 | S73: 0 | T73: 0.0% | U73: 1
A74: UNICAJAS | B74: UNICAJAS | C74: UPA ORQUIDEAS | D74: 01-USAQUEN | E74: 6 | F74: 1 | G74: 0 | H74: 0 | S74: 0 | T74: 0.0% | U74: 1
A75: UNICAJAS | B75: UNICAJAS | C75: UPA CODITO | D75: 01-USAQUEN | E75: 5 | F75: 0 | G75: 0 | H75: 0 | S75: 0 | T75: 0.0% | U75: 1
A76: UNICAJAS | B76: UNICAJAS | C76: CAMI VERBENAL | D76: 01-USAQUEN | E76: 6 | F76: 1 | G76: 0 | H76: 0 | S76: 0 | T76: 0.0% | U76: 1
A77: 01-USAQUEN | B77: UNICAJAS | C77: HOSPITAL SIMON BOLIVAR | D77: 01-USAQUEN | E77: 6 | F77: 1 | G77: 1 | H77: 0 | S77: 1 | T77: 16.7% | U77: 0
A78: 01-USAQUEN | B78: OTROS | C78: UPA SAN CRISTOBAL | D78: 01-USAQUEN | E78: 300 | F78: 25 | G78: 1 | H78: 3 | S78: 4 | T78: 1.3% | U78: 46
A79: 01-USAQUEN | B79: OTROS | C79: UPA USAQUEN | D79: 01-USAQUEN | E79: 100 | F79: 8 | H79: 0 | S79: 0 | T79: 0.0% | U79: 8
A80: 01-USAQUEN | B80: OTROS | C80: UPA ORQUIDEAS | D80: 01-USAQUEN | E80: 120 | F80: 10 | G80: 2 | H80: 0 | S80: 2 | T80: 1.7% | U80: 18
A81: 01-USAQUEN | B81: OTROS | C81: UPA CODITO | D81: 01-USAQUEN | E81: 218 | F81: 18 | G81: 4 | H81: 1 | S81: 5 | T81: 2.3% | U81: 31
A82: 01-USAQUEN | B82: OTROS | C82: CAMI VERBENAL | D82: 01-USAQUEN | E82: 309 | F82: 26 | G82: 4 | H82: 3 | S82: 7 | T82: 2.3% | U82: 45
A83: 01-USAQUEN | B83: OTROS | C83: HOSPITAL SIMON BOLIVAR | D83: 01-USAQUEN | E83: 480 | F83: 40 | G83: 9 | H83: 15 | S83: 24 | T83: 5.0% | U83: 56
A84: 01-USAQUEN | B84: DEMAS EAPB | C84: UPA SAN CRISTOBAL | D84: 01-USAQUEN | F84: 0 | G84: 11 | H84: 9 | S84: 20 | T84: 0.0%
A85: 01-USAQUEN | B85: DEMAS EAPB | C85: UPA USAQUEN | D85: 01-USAQUEN | F85: 0 | G85: 2 | H85: 0 | S85: 2 | T85: 0.0%
A86: 01-USAQUEN | B86: DEMAS EAPB | C86: UPA ORQUIDEAS | D86: 01-USAQUEN | F86: 0 | G86: 2 | H86: 2 | S86: 4 | T86: 0.0%
A87: 01-USAQUEN | B87: DEMAS EAPB | C87: UPA CODITO | D87: 01-USAQUEN | F87: 0 | G87: 7 | H87: 13 | S87: 20 | T87: 0.0%
A88: 01-USAQUEN | B88: DEMAS EAPB | C88: CAMI VERBENAL | D88: 01-USAQUEN | F88: 0 | G88: 4 | H88: 15 | S88: 19 | T88: 0.0%
A89: 01-USAQUEN | B89: DEMAS EAPB | C89: HOSPITAL SIMON BOLIVAR | D89: 01-USAQUEN | F89: 0 | G89: 17 | H89: 16 | S89: 33 | T89: 0.0%
A90: MEDIMAS | B90: MEDIMAS | C90: Corvesalud S.A.S - I P S Chico | D90: 01-USAQUEN | E90: 320 | F90: 27 | G90: 5 | H90: 5 | S90: 10 | T90: 3.1% | U90: 43
A91: FAMISANAR | B91: COLSUBSIDIO | C91: Sura PAC Santa Bárbara | D91: 01-USAQUEN | F91: 0 | S91: 0 | T91: 0.0% | U91: 0
A92: CAPITAL SALUD | B92: CAPITAL SALUD | C92: UPA SAN LUIS | D92: 02-CHAPINERO | E92: 12 | F92: 1 | G92: 4 | H92: 2 | S92: 6 | T92: 50.0%
A93: 02-CHAPINERO | B93: 02-CHAPINERO | C93: EXTRAMURAL CHAPINERO | D93: 02-CHAPINERO | E93: 0 | F93: 0 | G93: 2 | H93: 3 | S93: 5 | T93: 0.0%
A94: COMPENSAR | B94: COMPENSAR | C94: USS CALLE 42 | D94: 02-CHAPINERO | E94: 612 | F94: 51 | G94: 29 | H94: 43 | S94: 72 | T94: 11.8% | U94: 30
A95: COMPENSAR | B95: COMPENSAR | C95: USS CALLE 67 | D95: 02-CHAPINERO | E95: 0 | F95: 0 | G95: 0 | H95: 0 | S95: 0 | T95: 0.0% | U95: 0
A96: COMPENSAR | B96: COMPENSAR | C96: USS CALLE 94 | D96: 02-CHAPINERO | E96: 369 | F96: 31 | G96: 35 | H96: 42 | S96: 77 | T96: 20.9%
A97: COMPENSAR | B97: COMPENSAR | C97: VIVA 1A IPS CHAPINERO | D97: 02-CHAPINERO | E97: 73 | F97: 6 | G97: 4 | H97: 6 | S97: 10 | T97: 13.7% | U97: 2
A98: COOMEVA | B98: COOMEVA | C98: SINERGIA UNIDAD BASICA LOURDES | D98: 02-CHAPINERO | E98: 217 | F98: 18 | G98: 9 | H98: 10 | S98: 19 | T98: 8.8% | U98: 17
A99: FAMISANAR | B99: FAMI- CAFAM | C99: CENTRO DE ATENCION EN SALUD CAFAM CALLE 48 | D99: 02-CHAPINERO | E99: 1050 | F99: 88 | G99: 32 | H99: 35 | S99: 67 | T99: 6.4% | U99: 108
A100: FAMISANAR | B100: FAMI- CAFAM | C100: CENTRO DE ATENCION EN SALUD CAFAM CALLE 90 | D100: 02-CHAPINERO | E100: 200 | F100: 17 | G100: 13 | H100: 7 | S100: 20 | T100: 10.0% | U100: 13
A101: FAMISANAR | B101: FAMI- COLSB | C101: CLINICA COLSUBSIDIO EL LAGO | D101: 02-CHAPINERO | E101: 392 | F101: 33 | G101: 10 | H101: 11 | S101: 21 | T101: 5.4% | U101: 44
A102: MILITAR | B102: MILITAR | C102: HOSPITAL MILITAR CENTRAL | D102: 02-CHAPINERO | E102: 70 | F102: 6 | G102: 10 | H102: 11 | S102: 21 | T102: 30.0%
A103: POLICIA | B103: POLICIA | C103: POLICIA NACIONAL ESPAM CHAPINERO | D103: 02-CHAPINERO | E103: 117 | F103: 10 | G103: 4 | H103: 0 | S103: 4 | T103: 3.4% | U103: 16
A104: NUEVA EPS | B104: NUEVA EPS | C104: IPS VIVA 1A SEDE MARLY | D104: 02-CHAPINERO | E104: 131 | F104: 11 | G104: 10 | H104: 5 | S104: 15 | T104: 11.5% | U104: 7
A105: SANITAS | B105: SANITAS | C105: EPS SANITAS CENTRO MEDICO TEUSAQUILLO | D105: 02-CHAPINERO | E105: 579 | F105: 48 | G105: 28 | H105: 24 | S105: 52 | T105: 9.0% | U105: 45
A106: SALUD TOTAL | B106: SALUD TOTAL | C106: VIRREY SOLIS CHAPINERO | D106: 02-CHAPINERO | E106: 337 | F106: 28 | G106: 17 | H106: 13 | S106: 30 | T106: 8.9% | U106: 26
A107: SURA | B107: SURA | C107: PUNTO DE SALUD CHAPINERO | D107: 02-CHAPINERO | E107: 237 | F107: 20 | G107: 14 | H107: 10 | S107: 24 | T107: 10.1% | U107: 16
A108: SURA | B108: SURA | C108: SALUD SURA | D108: 02-CHAPINERO | E108: 454 | F108: 38 | G108: 46 | H108: 29 | S108: 75 | T108: 16.5% | U108: 1
A109: PARTICULAR | B109: PARTICULAR | C109: CENTRO MEDICO COLSANITAS CALLE 96 | D109: 02-CHAPINERO | E109: 24 | F109: 2 | G109: 2 | H109: 0 | S109: 2 | T109: 8.3% | U109: 2
A110: PARTICULAR | B110: PARTICULAR | C110: CENTRO DE ESPECIALISTAS MEDICOS AXA COLPATRIA | D110: 02-CHAPINERO | E110: 0 | F110: 0 | G110: 5 | H110: 6 | S110: 11 | T110: 0.0%
A111: PARTICULAR | B111: PARTICULAR | C111: CLINICA DE LA MUJER | D111: 02-CHAPINERO | E111: 0 | F111: 0 | G111: 49 | H111: 40 | S111: 89 | T111: 0.0%
A112: PARTICULAR | B112: PARTICULAR | C112: VACUNARTE IPS | D112: 02-CHAPINERO | E112: 0 | F112: 0 | G112: 0 | H112: 3 | S112: 3 | T112: 0.0%
A113: PARTICULAR | B113: PARTICULAR | C113: UNIMARLY | D113: 02-CHAPINERO | E113: 0 | F113: 0 | G113: 0 | H113: 0 | S113: 0 | T113: 0.0% | U113: 0
A114: PARTICULAR | B114: PARTICULAR | C114: HOSPITAL SAN IGNACIO | D114: 02-CHAPINERO | E114: 0 | F114: 0 | G114: 13 | H114: 7 | S114: 20 | T114: 0.0%
A115: PARTICULAR | B115: PARTICULAR | C115: PROGRAMA MADRE CANGURO HOSPITAL SAN IGNACIO | D115: 02-CHAPINERO | E115: 0 | F115: 0 | G115: 92 | H115: 100 | S115: 192 | T115: 0.0%
A116: PARTICULAR | B116: PARTICULAR | C116: IPS AVENIR | D116: 02-CHAPINERO | E116: 0 | F116: 0 | G116: 0 | H116: 0 | S116: 0 | T116: 0.0% | U116: 0
A117: PARTICULAR | B117: PARTICULAR | C117: IPS INMUNOLOGIA Y DIAGNOSTICO ESPECIALIZADO | D117: 02-CHAPINERO | E117: 0 | F117: 0 | G117: 0 | H117: 0 | S117: 0 | T117: 0.0% | U117: 0
A118: PARTICULAR | B118: PARTICULAR | C118: ASOCIACION PEDIATRICA DE LOS ANDES | D118: 02-CHAPINERO | E118: 0 | F118: 0 | G118: 1 | H118: 0 | S118: 1 | T118: 0.0%
A119: PARTICULAR | B119: PARTICULAR | C119: CRUZ ROJA SEDE ANDINO | D119: 02-CHAPINERO | E119: 0 | F119: 0 | G119: 0 | H119: 0 | S119: 0 | T119: 0.0% | U119: 0
A120: PARTICULAR | B120: PARTICULAR | C120: CENTRO MEDICO SANTA MONICA | D120: 02-CHAPINERO | E120: 0 | F120: 0 | H120: 0 | S120: 0 | T120: 0.0% | U120: 0
A121: PEDIATRAS | B121: PEDIATRAS | C121: DR. JUAN OSCAR TAMAYO | D121: 02-CHAPINERO | E121: 0 | F121: 0 | G121: 2 | H121: 0 | S121: 2 | T121: 0.0%
A122: PEDIATRAS | B122: PEDIATRAS | C122: DR. ROBERTO SUAREZ | D122: 02-CHAPINERO | E122: 0 | F122: 0 | G122: 0 | H122: 0 | S122: 0 | T122: 0.0% | U122: 0
A123: PEDIATRAS | B123: PEDIATRAS | C123: DR. WILLIAM RICARDO CABRA | D123: 02-CHAPINERO | E123: 0 | F123: 0 | G123: 3 | H123: 2 | S123: 5 | T123: 0.0%
A124: PEDIATRAS | B124: PEDIATRAS | C124: DR. EDGAR CASTRO | D124: 02-CHAPINERO | E124: 0 | F124: 0 | G124: 5 | H124: 2 | S124: 7 | T124: 0.0%
A125: PEDIATRAS | B125: PEDIATRAS | C125: DR. PABLO KRAUSS | D125: 02-CHAPINERO | E125: 0 | F125: 0 | G125: 1 | H125: 2 | S125: 3 | T125: 0.0%
A126: PEDIATRAS | B126: PEDIATRAS | C126: DR. HERNAN ROBLES | D126: 02-CHAPINERO | E126: 0 | F126: 0 | G126: 4 | H126: 3 | S126: 7 | T126: 0.0%
A127: PEDIATRAS | B127: PEDIATRAS | C127: DR. RAFAEL GAMBOA CASABLANCA | D127: 02-CHAPINERO | E127: 0 | F127: 0 | G127: 0 | H127: 3 | S127: 3 | T127: 0.0%
A128: PEDIATRAS | B128: PEDIATRAS | C128: DR. JAVIER MEJIA | D128: 02-CHAPINERO | E128: 0 | F128: 0 | G128: 2 | H128: 2 | S128: 4 | T128: 0.0%
A129: PEDIATRAS | B129: PEDIATRAS | C129: DR. CARLOS CORTAZAR | D129: 02-CHAPINERO | E129: 0 | F129: 0 | G129: 0 | H129: 0 | S129: 0 | T129: 0.0% | U129: 0
A130: PEDIATRAS | B130: PEDIATRAS | C130: DR. NELSON PARDO | D130: 02-CHAPINERO | E130: 0 | F130: 0 | G130: 2 | H130: 1 | S130: 3 | T130: =IF(E130=0,0,+S130/E130) -> 0.0% | U130: =IF(COUNT(G130:R130)*(E130/12)-S130<0,"",COUNT(G130:R130)*(E130/12)-S130) -> 
A131: PEDIATRAS | B131: PEDIATRAS | C131: DR. ALVARO JACOME | D131: 02-CHAPINERO | E131: 0 | F131: =+E131/12 -> 0 | G131: 2 | H131: 1 | S131: =SUM(G131:R131) -> 3 | T131: 0.0%
A132: PEDIATRAS | B132: PEDIATRAS | C132: DR. SILVIO COPO | D132: 02-CHAPINERO | E132: 0 | F132: 0 | G132: 0 | H132: 1 | S132: 1 | T132: 0.0%
A133: PEDIATRAS | B133: PEDIATRAS | C133: DR. HECTOR FERNANDO MENDOZA | D133: 02-CHAPINERO | E133: 0 | F133: 0 | G133: 0 | H133: 0 | S133: 0 | T133: 0.0% | U133: 0
A134: PEDIATRAS | B134: PEDIATRAS | C134: DR. DIMITRIOS | D134: 02-CHAPINERO | E134: 0 | F134: 0 | G134: 1 | H134: 0 | S134: 1 | T134: 0.0%
A135: PEDIATRAS | B135: PEDIATRAS | C135: DR. ALVARO MARIÑO | D135: 02-CHAPINERO | E135: 0 | F135: 0 | G135: 0 | H135: 1 | S135: 1 | T135: 0.0%
A136: PEDIATRAS | B136: PEDIATRAS | C136: DR. ANDRES VARGAS | D136: 02-CHAPINERO | E136: 0 | F136: 0 | G136: 2 | H136: 1 | S136: 3 | T136: 0.0%
A137: PEDIATRAS | B137: PEDIATRAS | C137: DR. JORGE CAMILO LUNA | D137: 02-CHAPINERO | E137: 0 | F137: 0 | G137: 1 | H137: 6 | S137: 7 | T137: 0.0%
A138: PEDIATRAS | B138: PEDIATRAS | C138: DR. BERNARDO HUERTAS | D138: 02-CHAPINERO | E138: 0 | F138: 0 | G138: 6 | H138: 6 | S138: 12 | T138: 0.0%
A139: PEDIATRAS | B139: PEDIATRAS | C139: DR. CARLOS M CASTILLO | D139: 02-CHAPINERO | E139: 0 | F139: 0 | G139: 0 | H139: 0 | S139: 0 | T139: 0.0% | U139: 0
A140: PEDIATRAS | B140: PEDIATRAS | C140: DR. HEINZ OTTO PFALZGRAF | D140: 02-CHAPINERO | E140: 0 | F140: 0 | G140: 0 | H140: 0 | S140: 0 | T140: 0.0% | U140: 0
A141: PEDIATRAS | B141: PEDIATRAS | C141: DR. GONZALEZ BALLESTEROS | D141: 02-CHAPINERO | E141: 0 | F141: 0 | G141: 0 | H141: 0 | S141: 0 | T141: 0.0% | U141: 0
A142: PEDIATRAS | B142: PEDIATRAS | C142: DR. NORBERTO SALAMANCA | D142: 02-CHAPINERO | E142: 0 | F142: 0 | G142: 0 | H142: 0 | S142: 0 | T142: 0.0% | U142: 0
A143: PEDIATRAS | B143: PEDIATRAS | C143: DR. CAMILO ENRIQUE SOTOMAYOR | D143: 02-CHAPINERO | E143: 0 | F143: 0 | G143: 0 | H143: 2 | S143: 2 | T143: 0.0%
A144: PEDIATRAS | B144: PEDIATRAS | C144: DR. SANTIAGO RUEDA SAIZ | D144: 02-CHAPINERO | E144: 0 | F144: 0 | G144: 2 | H144: 1 | S144: 3 | T144: 0.0%
A145: PEDIATRAS | B145: PEDIATRAS | C145: DR. HENRY HERNANDO SANCHEZ ESCOBAR | D145: 02-CHAPINERO | E145: 0 | F145: 0 | G145: 1 | H145: 1 | S145: 2 | T145: 0.0%
A146: PEDIATRAS | B146: PEDIATRAS | C146: DR. RUBEN DARIO TAMAYO | D146: 02-CHAPINERO | E146: 0 | F146: 0 | G146: 2 | H146: 2 | S146: 4 | T146: 0.0%
A147: PEDIATRAS | B147: PEDIATRAS | C147: DR. JAIME MAURICIO MATALLANA | D147: 02-CHAPINERO | E147: 0 | F147: 0 | G147: 5 | H147: 4 | S147: 9 | T147: 0.0%
A148: PEDIATRAS | B148: PEDIATRAS | C148: DR. RODRIGO GARCIA | D148: 02-CHAPINERO | E148: 0 | F148: 0 | G148: 0 | H148: 0 | S148: 0 | T148: 0.0% | U148: 0
A149: PEDIATRAS | B149: PEDIATRAS | C149: DR. FELIPE ROBAYO | D149: 02-CHAPINERO | E149: 0 | F149: 0 | G149: 0 | H149: 0 | S149: 0 | T149: 0.0% | U149: 0
A150: PEDIATRAS | B150: PEDIATRAS | C150: DR. RUBEN FRANCO | D150: 02-CHAPINERO | E150: 0 | F150: 0 | G150: 0 | H150: 0 | S150: 0 | T150: 0.0% | U150: 0
A151: PEDIATRAS | B151: PEDIATRAS | C151: DR. ORLANDO RODRIGUEZ RAMIREZ | D151: 02-CHAPINERO | E151: 0 | F151: 0 | G151: 2 | H151: 0 | S151: 2 | T151: 0.0%
A152: PEDIATRAS | B152: PEDIATRAS | C152: DR. ARTURO MORENO | D152: 02-CHAPINERO | E152: 0 | F152: 0 | G152: 0 | H152: 0 | S152: 0 | T152: 0.0% | U152: 0
A153: PEDIATRAS | B153: PEDIATRAS | C153: DR. FRANCISCO LEAL QUEVEDO | D153: 02-CHAPINERO | E153: 0 | F153: 0 | G153: 0 | H153: 0 | S153: 0 | T153: 0.0% | U153: 0
A154: PEDIATRAS | B154: PEDIATRAS | C154: DR. CARLOS DIAZ PUENTES | D154: 02-CHAPINERO | E154: 0 | F154: 0 | G154: 0 | H154: 0 | S154: 0 | T154: 0.0% | U154: 0
A155: PEDIATRAS | B155: PEDIATRAS | C155: DR. PEDRO ERASMO MENDOZA | D155: 02-CHAPINERO | E155: 0 | F155: 0 | G155: 0 | H155: 0 | S155: 0 | T155: 0.0% | U155: 0
A156: PEDIATRAS | B156: PEDIATRAS | C156: DR. DIMAS ROSAS | D156: 02-CHAPINERO | E156: 0 | F156: 0 | G156: 0 | H156: 0 | S156: 0 | T156: 0.0% | U156: 0
A157: PEDIATRAS | B157: PEDIATRAS | C157: DR. JAVIER BRITO MORENO | D157: 02-CHAPINERO | E157: 0 | F157: 0 | G157: 0 | H157: 0 | S157: 0 | T157: 0.0% | U157: 0
A158: PEDIATRAS | B158: PEDIATRAS | C158: DR. GUSTAVO CORTÉS | D158: 02-CHAPINERO | E158: 0 | F158: 0 | G158: 0 | H158: 0 | S158: 0 | T158: 0.0% | U158: 0
A159: PEDIATRAS | B159: PEDIATRAS | C159: DR. CARLOS VELASQUEZ | D159: 02-CHAPINERO | E159: 0 | F159: 0 | G159: 0 | H159: 0 | S159: 0 | T159: 0.0% | U159: 0
A160: PEDIATRAS | B160: PEDIATRAS | C160: DR. RICARDO GOMEZ | D160: 02-CHAPINERO | E160: 0 | F160: 0 | G160: 0 | H160: 0 | S160: 0 | T160: 0.0% | U160: 0
A161: PEDIATRAS | B161: PEDIATRAS | C161: DR. SARA BERNAL | D161: 02-CHAPINERO | E161: 0 | F161: 0 | G161: 1 | H161: 2 | S161: 3 | T161: 0.0%
A162: PEDIATRAS | B162: PEDIATRAS | C162: DRA. MARIA PATRICIA AGUALIMPIA | D162: 02-CHAPINERO | E162: 0 | F162: 0 | G162: 0 | H162: 0 | S162: 0 | T162: 0.0% | U162: 0
A163: PEDIATRAS | B163: PEDIATRAS | C163: DRA. LUISA FERNANDA FORERO ACOSTA | D163: 02-CHAPINERO | E163: 0 | F163: 0 | G163: 0 | H163: 0 | S163: 0 | T163: 0.0% | U163: 0
A164: PEDIATRAS | B164: PEDIATRAS | C164: DRA. MARIA CLARA CASAS PARDO | D164: 02-CHAPINERO | E164: 0 | F164: 0 | G164: 0 | H164: 0 | S164: 0 | T164: 0.0% | U164: 0
A165: PEDIATRAS | B165: PEDIATRAS | C165: DRA. MARTHA EUGENIA RONDEROS DE FORERO | D165: 02-CHAPINERO | E165: 0 | F165: 0 | G165: 0 | H165: 0 | S165: 0 | T165: 0.0% | U165: 0
A166: PEDIATRAS | B166: PEDIATRAS | C166: DRA. MARIA ISABEL USCHER | D166: 02-CHAPINERO | E166: 0 | F166: 0 | G166: 4 | H166: 3 | S166: 7 | T166: 0.0%
A167: PEDIATRAS | B167: PEDIATRAS | C167: DRA. MARIA DE LOS ANGELES MUÑOZ | D167: 02-CHAPINERO | E167: 0 | F167: 0 | G167: 3 | H167: 0 | S167: 3 | T167: 0.0%
A168: PEDIATRAS | B168: PEDIATRAS | C168: DRA. CLARA ABELLO REYES | D168: 02-CHAPINERO | E168: 0 | F168: 0 | G168: 2 | H168: 1 | S168: 3 | T168: 0.0%
A169: PEDIATRAS | B169: PEDIATRAS | C169: DRA. PATRICIA CONTRERAS | D169: 02-CHAPINERO | E169: 0 | F169: 0 | G169: 0 | H169: 0 | S169: 0 | T169: 0.0% | U169: 0
A170: PEDIATRAS | B170: PEDIATRAS | C170: DRA. CLAUDIA ZOPPI | D170: 02-CHAPINERO | E170: 0 | F170: 0 | G170: 0 | H170: 0 | S170: 0 | T170: 0.0% | U170: 0
A171: PEDIATRAS | B171: PEDIATRAS | C171: DRA. MARIA DE LOS ANGELES FERNANDEZ LUQUE | D171: 02-CHAPINERO | E171: 0 | F171: 0 | G171: 0 | H171: 3 | S171: 3 | T171: 0.0%
A172: PEDIATRAS | B172: PEDIATRAS | C172: DRA. RUTH CORDOBA CORDOBA | D172: 02-CHAPINERO | E172: 0 | F172: 0 | G172: 0 | H172: 0 | S172: 0 | T172: 0.0% | U172: 0
A173: PEDIATRAS | B173: PEDIATRAS | C173: DRA. LUZ ESTELA CORTES | D173: 02-CHAPINERO | E173: 0 | F173: 0 | G173: 0 | H173: 0 | S173: 0 | T173: 0.0% | U173: 0
A174: UNICAJAS | B174: UNICAJAS | C174: UPA SAN LUIS | D174: 02-CHAPINERO | E174: 18 | F174: 2 | G174: 0 | H174: 0 | S174: 0 | T174: 0.0% | U174: 3
A175: 02-CHAPINERO | B175: OTROS | C175: UPA SAN LUIS | D175: 02-CHAPINERO | E175: 325 | F175: 27 | G175: 2 | H175: 3 | S175: 5 | T175: 1.5% | U175: 49
A176: 02-CHAPINERO | B176: DEMAS EAPB | C176: UPA SAN LUIS | D176: 02-CHAPINERO | F176: 0 | G176: 6 | H176: 3 | S176: 9 | T176: 0.0%
A177: UNICAJAS | B177: UNICAJAS | C177: COMFASALUD SEDE CENTRO | D177: 03-SANTA FE | E177: 50 | F177: 4 | G177: 2 | H177: 1 | S177: 3 | T177: 6.0% | U177: 5
A178: MEDIMAS | B178: MEDIMAS | C178: CORVESALUD TEUSAQUILLO | D178: 03-SANTA FE | E178: 193 | F178: 16 | G178: 6 | H178: 7 | S178: 13 | T178: 6.7% | U178: 19
A179: 03-SANTA FE | B179: CAPITAL SALUD | C179: EXTRAMURAL SANTA FE | D179: 03-SANTA FE | E179: 0 | F179: 0 | G179: 7 | H179: 3 | S179: 10 | T179: 0.0%
A180: 03-SANTA FE | B180: DEMAS EAPB | C180: EXTRAMURAL SANTA FE | D180: 03-SANTA FE | E180: 0 | F180: 0 | G180: 0 | H180: 1 | S180: 1 | T180: 0.0%
A181: 03-SANTA FE | B181: OTROS | C181: EXTRAMURAL SANTA FE | D181: 03-SANTA FE | E181: 0 | F181: 0 | G181: 11 | H181: 11 | S181: 22 | T181: 0.0%
A182: 03-SANTA FE | B182: UNICAJAS | C182: EXTRAMURAL SANTA FE | D182: 03-SANTA FE | E182: 0 | F182: 0 | G182: 0 | H182: 0 | S182: 0 | T182: 0.0% | U182: 0
A183: 03-SANTA FE | B183: CAPITAL SALUD | C183: USS LACHES | D183: 03-SANTA FE | E183: 54 | F183: 5 | G183: 7 | H183: 12 | S183: 19 | T183: 35.2%
A184: 03-SANTA FE | B184: DEMAS EAPB | C184: USS LACHES | D184: 03-SANTA FE | E184: 0 | F184: 0 | G184: 7 | H184: 6 | S184: 13 | T184: 0.0%
A185: 03-SANTA FE | B185: OTROS | C185: USS LACHES | D185: 03-SANTA FE | E185: 260 | F185: 22 | G185: 4 | H185: 4 | S185: 8 | T185: 3.1% | U185: 35
A186: 03-SANTA FE | B186: UNICAJAS | C186: USS LACHES | D186: 03-SANTA FE | E186: 17 | F186: 1 | G186: 1 | H186: 0 | S186: 1 | T186: 5.9% | U186: 2
A187: 03-SANTA FE | B187: CAPITAL SALUD | C187: USS LAS CRUCES | D187: 03-SANTA FE | E187: 44 | F187: 4 | G187: 6 | H187: 8 | S187: 14 | T187: 31.8%
A188: 03-SANTA FE | B188: DEMAS EAPB | C188: USS LAS CRUCES | D188: 03-SANTA FE | E188: 0 | F188: 0 | G188: 4 | H188: 5 | S188: 9 | T188: 0.0%
A189: 03-SANTA FE | B189: OTROS | C189: USS LAS CRUCES | D189: 03-SANTA FE | E189: 211 | F189: 18 | G189: 5 | H189: 3 | S189: 8 | T189: 3.8% | U189: 27
A190: 03-SANTA FE | B190: UNICAJAS | C190: USS LAS CRUCES | D190: 03-SANTA FE | E190: 14 | F190: 1 | G190: 1 | H190: 1 | S190: 2 | T190: 14.3% | U190: 0
A191: 03-SANTA FE | B191: CAPITAL SALUD | C191: USS PERSEVERANCIA | D191: 03-SANTA FE | E191: 6 | F191: 1 | G191: 1 | H191: 1 | S191: 2 | T191: 33.3%
A192: 03-SANTA FE | B192: DEMAS EAPB | C192: USS PERSEVERANCIA | D192: 03-SANTA FE | E192: 0 | F192: 0 | G192: 1 | H192: 2 | S192: 3 | T192: 0.0%
A193: 03-SANTA FE | B193: OTROS | C193: USS PERSEVERANCIA | D193: 03-SANTA FE | E193: 30 | F193: 3 | G193: 2 | H193: 1 | S193: 3 | T193: 10.0% | U193: 2
A194: 03-SANTA FE | B194: UNICAJAS | C194: USS PERSEVERANCIA | D194: 03-SANTA FE | E194: 2 | F194: 0 | G194: 0 | H194: 0 | S194: 0 | T194: =IF(E194=0,0,+S194/E194) -> 0.0% | U194: =IF(COUNT(G194:R194)*(E194/12)-S194<0,"",COUNT(G194:R194)*(E194/12)-S194) -> 0
A195: PARTICULAR | B195: PARTICULAR | C195: CLINICA SAN RAFAEL | D195: 04-SAN CRISTOBAL | E195: 375 | F195: =+E195/12 -> 31 | G195: 32 | H195: 52 | S195: =SUM(G195:R195) -> 84 | T195: 22.4%
A196: FAMISANAR | B196: FAMI- COLSB | C196: CENTRO MEDICO COLSUBSIDIO 20 DE JULIO | D196: 04-SAN CRISTOBAL | F196: 0 | S196: 0 | T196: 0.0% | U196: 0
A197: 04-SAN CRISTOBAL | B197: CAPITAL SALUD | C197: EXTRAMURAL SAN CRISTOBAL | D197: 04-SAN CRISTOBAL | E197: 0 | F197: 0 | G197: 22 | H197: 30 | S197: 52 | T197: 0.0%
A198: 04-SAN CRISTOBAL | B198: DEMAS EAPB | C198: EXTRAMURAL SAN CRISTOBAL | D198: 04-SAN CRISTOBAL | E198: 0 | F198: 0 | G198: 31 | H198: 16 | S198: 47 | T198: 0.0%
A199: 04-SAN CRISTOBAL | B199: OTROS | C199: EXTRAMURAL SAN CRISTOBAL | D199: 04-SAN CRISTOBAL | E199: 0 | F199: 0 | G199: 17 | H199: 12 | S199: 29 | T199: 0.0%
A200: 04-SAN CRISTOBAL | B200: UNICAJAS | C200: EXTRAMURAL SAN CRISTOBAL | D200: 04-SAN CRISTOBAL | E200: 0 | F200: 0 | G200: 3 | H200: 1 | S200: 4 | T200: 0.0%
... 620 more rows

Sheet NEUMOCOCO2
A1: EAPB | B1: EPS O ESE | C1: IPS | D1: Localidad | E1: Meta Anual Menor de 1 Año | F1: Meta Mensual | G1: Enero | H1: Febrero | I1: Marzo | J1: Abril | K1: Mayo | L1: Junio | M1: Julio | N1: Agosto | O1: Septiembre | P1: Octubre | Q1: Noviembre | R1: Diciembre | S1: Total | T1: % Cobertura | U1: Deficit
A2: CAPITAL SALUD | B2: CAPITAL SALUD | C2: UPA SAN CRISTOBAL | D2: 01-USAQUEN | E2: 124 | F2: =+E2/12 -> 10 | G2: 7 | H2: 3 | S2: =SUM(G2:R2) -> 10 | T2: =IF(E2=0,0,+S2/E2) -> 8.1% | U2: =IF(COUNT(G2:R2)*(E2/12)-S2<0,"",COUNT(G2:R2)*(E2/12)-S2) -> 11
A3: CAPITAL SALUD | B3: CAPITAL SALUD | C3: UPA USAQUEN | D3: 01-USAQUEN | E3: 10 | F3: =+E3/12 -> 1 | H3: 0 | S3: =SUM(G3:R3) -> 0 | T3: 0.0% | U3: 1
A4: CAPITAL SALUD | B4: CAPITAL SALUD | C4: UPA ORQUIDEAS | D4: 01-USAQUEN | E4: 11 | F4: 1 | G4: 3 | H4: 1 | S4: 4 | T4: 36.4%
A5: CAPITAL SALUD | B5: CAPITAL SALUD | C5: UPA CODITO | D5: 01-USAQUEN | E5: 107 | F5: 9 | G5: 8 | H5: 2 | S5: 10 | T5: 9.3% | U5: 8
A6: CAPITAL SALUD | B6: CAPITAL SALUD | C6: CAMI VERBENAL | D6: 01-USAQUEN | E6: 87 | F6: 7 | G6: 8 | H6: 4 | S6: 12 | T6: 13.8% | U6: 3
A7: CAPITAL SALUD | B7: CAPITAL SALUD | C7: HOSPITAL SIMON BOLIVAR | D7: 01-USAQUEN | E7: 36 | F7: 3 | G7: 9 | H7: 17 | S7: 26 | T7: 72.2%
A8: 01-USAQUEN | B8: 01-USAQUEN | C8: EXTRAMURAL USAQUEN | D8: 01-USAQUEN | E8: 0 | F8: 0 | G8: 13 | H8: 10 | S8: 23 | T8: 0.0%
A9: ALIANSALUD | B9: ALIANSALUD | C9: CENTRO MEDICO COLMEDICA SANTA BARBARA | D9: 01-USAQUEN | E9: 580 | F9: 48 | G9: 79 | H9: 56 | S9: 135 | T9: 23.3%
A10: COMPENSAR | B10: COMPENSAR | C10: USS CALLE 134 | D10: 01-USAQUEN | E10: 372 | F10: 31 | G10: 16 | H10: 16 | S10: 32 | T10: 8.6% | U10: 30
A11: COMPENSAR | B11: COMPENSAR | C11: USS CALLE 145 | D11: 01-USAQUEN | E11: 173 | F11: 14 | G11: 16 | H11: 16 | S11: 32 | T11: 18.5%
A12: COMPENSAR | B12: COMPENSAR | C12: JAVESALUD TOBERIN | D12: 01-USAQUEN | E12: 372 | F12: 31 | G12: 3 | H12: 3 | S12: 6 | T12: 1.6% | U12: 56
A13: COOMEVA | B13: COOMEVA | C13: SINERGIA UNIDAD INTEGRAL EN SALUD | D13: 01-USAQUEN | E13: 44 | F13: 4 | G13: 6 | H13: 5 | S13: 11 | T13: 25.0%
A14: FAMISANAR | B14: FAMI- COLSB | C14: CENTRO MEDICO COLSUBSIDIO USAQUEN | D14: 01-USAQUEN | E14: 298 | F14: 25 | G14: 30 | H14: 31 | S14: 61 | T14: 20.5%
A15: MILITAR | B15: MILITAR | C15: DISPENSARIO MEDICO CANTON NORTE | D15: 01-USAQUEN | E15: 205 | F15: 17 | G15: 3 | H15: 9 | S15: 12 | T15: 5.9% | U15: 22
A16: NUEVA EPS | B16: NUEVA EPS | C16: IPS VIVA 1A SEDE TOBERIN | D16: 01-USAQUEN | E16: 147 | F16: 12 | G16: 6 | H16: 7 | S16: 13 | T16: 8.8% | U16: 12
A17: NUEVA EPS | B17: NUEVA EPS | C17: CAFAM GRANADA HILLS | D17: 01-USAQUEN | E17: 44 | F17: 4 | G17: 6 | H17: 4 | S17: 10 | T17: 22.7%
A18: SANITAS | B18: SANITAS | C18: UAP SANITAS TOBERIN | D18: 01-USAQUEN | E18: 511 | F18: 43 | G18: 55 | H18: 41 | S18: 96 | T18: 18.8%
A19: SANITAS | B19: SANITAS | C19: MEDIKA IPS SANITAS UAP USAQUEN | D19: 01-USAQUEN | E19: 188 | F19: 16 | G19: 3 | H19: 1 | S19: 4 | T19: 2.1% | U19: 27
A20: SANITAS | B20: SANITAS | C20: UAP SANTA BARBARA | D20: 01-USAQUEN | E20: 796 | F20: 66 | G20: 86 | H20: 68 | S20: 154 | T20: 19.3%
A21: SANITAS | B21: SANITAS | C21: SANITAS BANCO DE LA REPUBLICA | D21: 01-USAQUEN | E21: 0 | F21: 0 | G21: 4 | H21: 1 | S21: 5 | T21: 0.0%
A22: SALUD TOTAL | B22: SALUD TOTAL | C22: VIRREY SOLIS TOBERÍN | D22: 01-USAQUEN | E22: 384 | F22: 32 | G22: 21 | H22: 20 | S22: 41 | T22: 10.7% | U22: 23
A23: SURA | B23: SURA | C23: IPS JAVESALUD SANTA BEATRIZ | D23: 01-USAQUEN | E23: 355 | F23: 30 | G23: 12 | H23: 9 | S23: 21 | T23: 5.9% | U23: 38
A24: ECOPETROL | B24: ECOPETROL | C24: IPS CLINICOS PALATINO | D24: 01-USAQUEN | E24: 87 | F24: 7 | G24: 9 | H24: 12 | S24: 21 | T24: 24.1%
A25: PARTICULAR | B25: PARTICULAR | C25: CLINICA PEDIATRICA COLSANITAS | D25: 01-USAQUEN | E25: 830 | F25: 69 | G25: 100 | H25: 89 | S25: 189 | T25: 22.8%
A26: PARTICULAR | B26: PARTICULAR | C26: CENTRO MEDICO COLSANITAS LA CALLEJA | D26: 01-USAQUEN | E26: 120 | F26: 10 | G26: 23 | H26: 16 | S26: 39 | T26: 32.5%
A27: PARTICULAR | B27: PARTICULAR | C27: CENTRO MEDICO COLSANITAS 108 | D27: 01-USAQUEN | E27: 40 | F27: 3 | G27: 4 | H27: 6 | S27: 10 | T27: 25.0%
A28: PARTICULAR | B28: PARTICULAR | C28: CENTRO MEDICO COLSANITAS SANTA ANA | D28: 01-USAQUEN | E28: 4 | F28: 0 | G28: 2 | H28: 0 | S28: 2 | T28: 50.0%
A29: PARTICULAR | B29: PARTICULAR | C29: FUNDACIÓN CARDIO INFANTIL | D29: 01-USAQUEN | E29: 0 | F29: 0 | G29: 11 | H29: 7 | S29: 18 | T29: 0.0%
A30: PARTICULAR | B30: PARTICULAR | C30: ENFASO USAQUEN | D30: 01-USAQUEN | E30: 0 | F30: 0 | G30: 9 | H30: 13 | S30: 22 | T30: 0.0%
A31: PARTICULAR | B31: PARTICULAR | C31: UNIDAD DE VACUNACIÓN INTERNACIONAL | D31: 01-USAQUEN | E31: 0 | F31: 0 | G31: 4 | H31: 7 | S31: 11 | T31: 0.0%
A32: PARTICULAR | B32: PARTICULAR | C32: INMUNOLOGÍA Y DIAGNÓSTICO ESPECIALIZADO LTDA. | D32: 01-USAQUEN | E32: 0 | F32: 0 | G32: 0 | H32: 0 | S32: 0 | T32: 0.0% | U32: 0
A33: PARTICULAR | B33: PARTICULAR | C33: PROTEGER HEALHT CARE | D33: 01-USAQUEN | E33: 0 | F33: 0 | G33: 1 | H33: 0 | S33: 1 | T33: 0.0%
A34: PARTICULAR | B34: PARTICULAR | C34: FUNDACION SANTA FE DE BOGOTA | D34: 01-USAQUEN | E34: 0 | F34: 0 | G34: 0 | H34: 0 | S34: 0 | T34: 0.0% | U34: 0
A35: PARTICULAR | B35: PARTICULAR | C35: IPS CRUZ ROJA SEDE UNICENTRO | D35: 01-USAQUEN | E35: 0 | F35: 0 | G35: 0 | H35: 0 | S35: 0 | T35: 0.0% | U35: 0
A36: PARTICULAR | B36: PARTICULAR | C36: IPS CRUZ ROJA SAMU CALLE 145 | D36: 01-USAQUEN | E36: 0 | F36: 0 | G36: 0 | H36: 0 | S36: 0 | T36: 0.0% | U36: 0
A37: PEDIATRAS | B37: PEDIATRAS | C37: DR. ALEJANDRO LÓPEZ | D37: 01-USAQUEN | E37: 0 | F37: 0 | G37: 2 | H37: 0 | S37: 2 | T37: 0.0%
A38: PEDIATRAS | B38: PEDIATRAS | C38: DR. CARLOS NEFTALI TORRES | D38: 01-USAQUEN | E38: 0 | F38: 0 | G38: 8 | H38: 9 | S38: 17 | T38: 0.0%
A39: PEDIATRAS | B39: PEDIATRAS | C39: DR. FRANCISCO NUÑEZ | D39: 01-USAQUEN | E39: 0 | F39: 0 | G39: 2 | H39: 1 | S39: 3 | T39: 0.0%
A40: PEDIATRAS | B40: PEDIATRAS | C40: DR. FERNANDO GOMEZ | D40: 01-USAQUEN | E40: 0 | F40: 0 | G40: 0 | H40: 0 | S40: 0 | T40: 0.0% | U40: 0
A41: PEDIATRAS | B41: PEDIATRAS | C41: DR. FERNANDO ZARATE MORENO | D41: 01-USAQUEN | E41: 0 | F41: 0 | G41: 0 | H41: 2 | S41: 2 | T41: 0.0%
A42: PEDIATRAS | B42: PEDIATRAS | C42: DR. GONZALO GARCIA | D42: 01-USAQUEN | E42: 0 | F42: 0 | G42: 0 | H42: 0 | S42: 0 | T42: 0.0% | U42: 0
A43: PEDIATRAS | B43: PEDIATRAS | C43: DR. GUSTAVO MORALES | D43: 01-USAQUEN | E43: 0 | F43: 0 | G43: 2 | H43: 4 | S43: 6 | T43: 0.0%
A44: PEDIATRAS | B44: PEDIATRAS | C44: DR. JAIME OSPINA | D44: 01-USAQUEN | E44: 0 | F44: 0 | G44: 0 | H44: 0 | S44: 0 | T44: 0.0% | U44: 0
A45: PEDIATRAS | B45: PEDIATRAS | C45: DR. JORGE URIBE | D45: 01-USAQUEN | E45: 0 | F45: 0 | G45: 0 | H45: 0 | S45: 0 | T45: 0.0% | U45: 0
A46: PEDIATRAS | B46: PEDIATRAS | C46: DR. JUAN LUIS FIGUEROA | D46: 01-USAQUEN | E46: 0 | F46: 0 | G46: 1 | H46: 2 | S46: 3 | T46: 0.0%
A47: PEDIATRAS | B47: PEDIATRAS | C47: DR. LUIS AUGUSTO PERNA | D47: 01-USAQUEN | E47: 0 | F47: 0 | G47: 4 | H47: 5 | S47: 9 | T47: 0.0%
A48: PEDIATRAS | B48: PEDIATRAS | C48: DR. LIBARDO ELI TRIANA | D48: 01-USAQUEN | E48: 0 | F48: 0 | G48: 0 | H48: 1 | S48: 1 | T48: 0.0%
A49: PEDIATRAS | B49: PEDIATRAS | C49: DR. OSWALDO MERCADO HOYOS | D49: 01-USAQUEN | E49: 0 | F49: 0 | G49: 2 | H49: 3 | S49: 5 | T49: 0.0%
A50: PEDIATRAS | B50: PEDIATRAS | C50: DR. ROBERTO BENIRO | D50: 01-USAQUEN | E50: 0 | F50: 0 | G50: 0 | H50: 0 | S50: 0 | T50: 0.0% | U50: 0
A51: PEDIATRAS | B51: PEDIATRAS | C51: DR. SERGIO ISAZA | D51: 01-USAQUEN | E51: 0 | F51: 0 | G51: 0 | H51: 1 | S51: 1 | T51: 0.0%
A52: PEDIATRAS | B52: PEDIATRAS | C52: DR. SANTIAGO UCROS | D52: 01-USAQUEN | E52: 0 | F52: 0 | G52: 0 | H52: 0 | S52: 0 | T52: 0.0% | U52: 0
A53: PEDIATRAS | B53: PEDIATRAS | C53: DR. GERMAN SILVA | D53: 01-USAQUEN | E53: 0 | F53: 0 | G53: 0 | H53: 0 | S53: 0 | T53: 0.0% | U53: 0
A54: PEDIATRAS | B54: PEDIATRAS | C54: DR. DANIEL ABRIL | D54: 01-USAQUEN | E54: 0 | F54: 0 | G54: 0 | H54: 0 | S54: 0 | T54: 0.0% | U54: 0
A55: PEDIATRAS | B55: PEDIATRAS | C55: DR. CARLOS EDUARDO OLMOS | D55: 01-USAQUEN | E55: 0 | F55: 0 | G55: 0 | H55: 0 | S55: 0 | T55: 0.0% | U55: 0
A56: PEDIATRAS | B56: PEDIATRAS | C56: DR. EDGARDO CHATMAN | D56: 01-USAQUEN | E56: 0 | F56: 0 | G56: 0 | H56: 0 | S56: 0 | T56: 0.0% | U56: 0
A57: PEDIATRAS | B57: PEDIATRAS | C57: DR. JORGE FLOREZ OTERO | D57: 01-USAQUEN | E57: 0 | F57: 0 | G57: 0 | H57: 0 | S57: 0 | T57: 0.0% | U57: 0
A58: PEDIATRAS | B58: PEDIATRAS | C58: DRA. ALEJANDRA MARIA VALENCIA | D58: 01-USAQUEN | E58: 0 | F58: 0 | G58: 0 | H58: 0 | S58: 0 | T58: 0.0% | U58: 0
A59: PEDIATRAS | B59: PEDIATRAS | C59: DRA. ANA MARIA GOYENECHE | D59: 01-USAQUEN | E59: 0 | F59: 0 | G59: 0 | H59: 0 | S59: 0 | T59: 0.0% | U59: 0
A60: PEDIATRAS | B60: PEDIATRAS | C60: DRA. JIMENA VARELA | D60: 01-USAQUEN | E60: 0 | F60: 0 | G60: 0 | H60: 1 | S60: 1 | T60: 0.0%
A61: PEDIATRAS | B61: PEDIATRAS | C61: DRA. LIA SAN MIGUEL | D61: 01-USAQUEN | E61: 0 | F61: 0 | G61: 0 | H61: 0 | S61: 0 | T61: 0.0% | U61: 0
A62: PEDIATRAS | B62: PEDIATRAS | C62: DRA. LIBIA SEGURA | D62: 01-USAQUEN | E62: 0 | F62: 0 | G62: 0 | H62: 1 | S62: 1 | T62: 0.0%
A63: PEDIATRAS | B63: PEDIATRAS | C63: DRA. MARÍA JOSÉ PEDRAZA | D63: 01-USAQUEN | E63: 0 | F63: 0 | G63: 0 | H63: 0 | S63: 0 | T63: 0.0% | U63: 0
A64: PEDIATRAS | B64: PEDIATRAS | C64: DRA. MARTHA LUCIA SANCHEZ | D64: 01-USAQUEN | E64: 0 | F64: 0 | G64: 0 | H64: 0 | S64: 0 | T64: 0.0% | U64: 0
A65: PEDIATRAS | B65: PEDIATRAS | C65: DRA. OLGA LUCÍA SÁNCHEZ | D65: 01-USAQUEN | E65: 0 | F65: 0 | G65: 0 | H65: 0 | S65: 0 | T65: 0.0% | U65: 0
A66: PEDIATRAS | B66: PEDIATRAS | C66: DRA. SANDRA BELTRAN | D66: 01-USAQUEN | E66: 0 | F66: 0 | G66: 1 | H66: 0 | S66: 1 | T66: =IF(E66=0,0,+S66/E66) -> 0.0% | U66: =IF(COUNT(G66:R66)*(E66/12)-S66<0,"",COUNT(G66:R66)*(E66/12)-S66) -> 
A67: PEDIATRAS | B67: PEDIATRAS | C67: DRA. IVANA CABRERA | D67: 01-USAQUEN | E67: 0 | F67: =+E67/12 -> 0 | G67: 0 | H67: 0 | S67: =SUM(G67:R67) -> 0 | T67: 0.0% | U67: 0
A68: PEDIATRAS | B68: PEDIATRAS | C68: DRA. NAYITA ALARCON | D68: 01-USAQUEN | E68: 0 | F68: 0 | G68: 0 | H68: 0 | S68: 0 | T68: 0.0% | U68: 0
A69: PEDIATRAS | B69: PEDIATRAS | C69: DRA. ELIZABETH GARCIA | D69: 01-USAQUEN | E69: 0 | F69: 0 | G69: 0 | H69: 0 | S69: 0 | T69: 0.0% | U69: 0
A70: PEDIATRAS | B70: PEDIATRAS | C70: DRA. BERTHA CALDERON DE RAMOS | D70: 01-USAQUEN | E70: 0 | F70: 0 | G70: 0 | H70: 0 | S70: 0 | T70: 0.0% | U70: 0
A71: PEDIATRAS | B71: PEDIATRAS | C71: DRA. MIRYAM CORREA | D71: 01-USAQUEN | E71: 0 | F71: 0 | G71: 0 | H71: 1 | S71: 1 | T71: 0.0%
A72: 01-USAQUEN | B72: UNICAJAS | C72: UPA SAN CRISTOBAL | D72: 01-USAQUEN | E72: 6 | F72: 1 | G72: 1 | H72: 0 | S72: 1 | T72: 16.7% | U72: 0
A73: UNICAJAS | B73: UNICAJAS | C73: UPA USAQUEN | D73: 01-USAQUEN | E73: 9 | F73: 1 | H73: 0 | S73: 0 | T73: 0.0% | U73: 1
A74: UNICAJAS | B74: UNICAJAS | C74: UPA ORQUIDEAS | D74: 01-USAQUEN | E74: 6 | F74: 1 | G74: 0 | H74: 0 | S74: 0 | T74: 0.0% | U74: 1
A75: UNICAJAS | B75: UNICAJAS | C75: UPA CODITO | D75: 01-USAQUEN | E75: 5 | F75: 0 | G75: 1 | H75: 0 | S75: 1 | T75: 20.0%
A76: UNICAJAS | B76: UNICAJAS | C76: CAMI VERBENAL | D76: 01-USAQUEN | E76: 6 | F76: 1 | G76: 2 | H76: 0 | S76: 2 | T76: 33.3%
A77: 01-USAQUEN | B77: UNICAJAS | C77: HOSPITAL SIMON BOLIVAR | D77: 01-USAQUEN | E77: 6 | F77: 1 | G77: 1 | H77: 1 | S77: 2 | T77: 33.3%
A78: 01-USAQUEN | B78: OTROS | C78: UPA SAN CRISTOBAL | D78: 01-USAQUEN | E78: 300 | F78: 25 | G78: 10 | H78: 2 | S78: 12 | T78: 4.0% | U78: 38
A79: 01-USAQUEN | B79: OTROS | C79: UPA USAQUEN | D79: 01-USAQUEN | E79: 100 | F79: 8 | H79: 0 | S79: 0 | T79: 0.0% | U79: 8
A80: 01-USAQUEN | B80: OTROS | C80: UPA ORQUIDEAS | D80: 01-USAQUEN | E80: 120 | F80: 10 | G80: 4 | H80: 0 | S80: 4 | T80: 3.3% | U80: 16
A81: 01-USAQUEN | B81: OTROS | C81: UPA CODITO | D81: 01-USAQUEN | E81: 218 | F81: 18 | G81: 4 | H81: 2 | S81: 6 | T81: 2.8% | U81: 30
A82: 01-USAQUEN | B82: OTROS | C82: CAMI VERBENAL | D82: 01-USAQUEN | E82: 309 | F82: 26 | G82: 5 | H82: 2 | S82: 7 | T82: 2.3% | U82: 45
A83: 01-USAQUEN | B83: OTROS | C83: HOSPITAL SIMON BOLIVAR | D83: 01-USAQUEN | E83: 480 | F83: 40 | G83: 12 | H83: 12 | S83: 24 | T83: 5.0% | U83: 56
A84: 01-USAQUEN | B84: DEMAS EAPB | C84: UPA SAN CRISTOBAL | D84: 01-USAQUEN | F84: 0 | G84: 15 | H84: 7 | S84: 22 | T84: 0.0%
A85: 01-USAQUEN | B85: DEMAS EAPB | C85: UPA USAQUEN | D85: 01-USAQUEN | F85: 0 | G85: 1 | H85: 1 | S85: 2 | T85: 0.0%
A86: 01-USAQUEN | B86: DEMAS EAPB | C86: UPA ORQUIDEAS | D86: 01-USAQUEN | F86: 0 | G86: 1 | H86: 0 | S86: 1 | T86: 0.0%
A87: 01-USAQUEN | B87: DEMAS EAPB | C87: UPA CODITO | D87: 01-USAQUEN | F87: 0 | G87: 12 | H87: 16 | S87: 28 | T87: 0.0%
A88: 01-USAQUEN | B88: DEMAS EAPB | C88: CAMI VERBENAL | D88: 01-USAQUEN | F88: 0 | G88: 16 | H88: 7 | S88: 23 | T88: 0.0%
A89: 01-USAQUEN | B89: DEMAS EAPB | C89: HOSPITAL SIMON BOLIVAR | D89: 01-USAQUEN | F89: 0 | G89: 21 | H89: 16 | S89: 37 | T89: 0.0%
A90: MEDIMAS | B90: MEDIMAS | C90: Corvesalud S.A.S - I P S Chico | D90: 01-USAQUEN | E90: 320 | F90: 27 | G90: 2 | H90: 2 | S90: 4 | T90: 1.3% | U90: 49
A91: FAMISANAR | B91: COLSUBSIDIO | C91: Sura PAC Santa Bárbara | D91: 01-USAQUEN | F91: 0 | S91: 0 | T91: 0.0% | U91: 0
A92: CAPITAL SALUD | B92: CAPITAL SALUD | C92: UPA SAN LUIS | D92: 02-CHAPINERO | E92: 12 | F92: 1 | G92: 6 | H92: 2 | S92: 8 | T92: 66.7%
A93: 02-CHAPINERO | B93: 02-CHAPINERO | C93: EXTRAMURAL CHAPINERO | D93: 02-CHAPINERO | E93: 0 | F93: 0 | G93: 5 | H93: 4 | S93: 9 | T93: 0.0%
A94: COMPENSAR | B94: COMPENSAR | C94: USS CALLE 42 | D94: 02-CHAPINERO | E94: 612 | F94: 51 | G94: 37 | H94: 37 | S94: 74 | T94: 12.1% | U94: 28
A95: COMPENSAR | B95: COMPENSAR | C95: USS CALLE 67 | D95: 02-CHAPINERO | E95: 0 | F95: 0 | G95: 0 | H95: 0 | S95: 0 | T95: 0.0% | U95: 0
A96: COMPENSAR | B96: COMPENSAR | C96: USS CALLE 94 | D96: 02-CHAPINERO | E96: 369 | F96: 31 | G96: 44 | H96: 52 | S96: 96 | T96: 26.0%
A97: COMPENSAR | B97: COMPENSAR | C97: VIVA 1A IPS CHAPINERO | D97: 02-CHAPINERO | E97: 73 | F97: 6 | G97: 4 | H97: 0 | S97: 4 | T97: 5.5% | U97: 8
A98: COOMEVA | B98: COOMEVA | C98: SINERGIA UNIDAD BASICA LOURDES | D98: 02-CHAPINERO | E98: 217 | F98: 18 | G98: 7 | H98: 5 | S98: 12 | T98: 5.5% | U98: 24
A99: FAMISANAR | B99: FAMI- CAFAM | C99: CENTRO DE ATENCION EN SALUD CAFAM CALLE 48 | D99: 02-CHAPINERO | E99: 1050 | F99: 88 | G99: 31 | H99: 23 | S99: 54 | T99: 5.1% | U99: 121
A100: FAMISANAR | B100: FAMI- CAFAM | C100: CENTRO DE ATENCION EN SALUD CAFAM CALLE 90 | D100: 02-CHAPINERO | E100: 200 | F100: 17 | G100: 12 | H100: 8 | S100: 20 | T100: 10.0% | U100: 13
A101: FAMISANAR | B101: FAMI- COLSB | C101: CLINICA COLSUBSIDIO EL LAGO | D101: 02-CHAPINERO | E101: 392 | F101: 33 | G101: 11 | H101: 7 | S101: 18 | T101: 4.6% | U101: 47
A102: MILITAR | B102: MILITAR | C102: HOSPITAL MILITAR CENTRAL | D102: 02-CHAPINERO | E102: 70 | F102: 6 | G102: 15 | H102: 2 | S102: 17 | T102: 24.3%
A103: POLICIA | B103: POLICIA | C103: POLICIA NACIONAL ESPAM CHAPINERO | D103: 02-CHAPINERO | E103: 117 | F103: 10 | G103: 5 | H103: 0 | S103: 5 | T103: 4.3% | U103: 15
A104: NUEVA EPS | B104: NUEVA EPS | C104: IPS VIVA 1A SEDE MARLY | D104: 02-CHAPINERO | E104: 131 | F104: 11 | G104: 10 | H104: 6 | S104: 16 | T104: 12.2% | U104: 6
A105: SANITAS | B105: SANITAS | C105: EPS SANITAS CENTRO MEDICO TEUSAQUILLO | D105: 02-CHAPINERO | E105: 579 | F105: 48 | G105: 30 | H105: 22 | S105: 52 | T105: 9.0% | U105: 45
A106: SALUD TOTAL | B106: SALUD TOTAL | C106: VIRREY SOLIS CHAPINERO | D106: 02-CHAPINERO | E106: 337 | F106: 28 | G106: 19 | H106: 12 | S106: 31 | T106: 9.2% | U106: 25
A107: SURA | B107: SURA | C107: PUNTO DE SALUD CHAPINERO | D107: 02-CHAPINERO | E107: 237 | F107: 20 | G107: 16 | H107: 10 | S107: 26 | T107: 11.0% | U107: 14
A108: SURA | B108: SURA | C108: SALUD SURA | D108: 02-CHAPINERO | E108: 454 | F108: 38 | G108: 50 | H108: 51 | S108: 101 | T108: 22.2%
A109: PARTICULAR | B109: PARTICULAR | C109: CENTRO MEDICO COLSANITAS CALLE 96 | D109: 02-CHAPINERO | E109: 24 | F109: 2 | G109: 0 | H109: 3 | S109: 3 | T109: 12.5% | U109: 1
A110: PARTICULAR | B110: PARTICULAR | C110: CENTRO DE ESPECIALISTAS MEDICOS AXA COLPATRIA | D110: 02-CHAPINERO | E110: 0 | F110: 0 | G110: 2 | H110: 4 | S110: 6 | T110: 0.0%
A111: PARTICULAR | B111: PARTICULAR | C111: CLINICA DE LA MUJER | D111: 02-CHAPINERO | E111: 0 | F111: 0 | G111: 62 | H111: 36 | S111: 98 | T111: 0.0%
A112: PARTICULAR | B112: PARTICULAR | C112: VACUNARTE IPS | D112: 02-CHAPINERO | E112: 0 | F112: 0 | G112: 5 | H112: 2 | S112: 7 | T112: 0.0%
A113: PARTICULAR | B113: PARTICULAR | C113: UNIMARLY | D113: 02-CHAPINERO | E113: 0 | F113: 0 | G113: 0 | H113: 0 | S113: 0 | T113: 0.0% | U113: 0
A114: PARTICULAR | B114: PARTICULAR | C114: HOSPITAL SAN IGNACIO | D114: 02-CHAPINERO | E114: 0 | F114: 0 | G114: 2 | H114: 10 | S114: 12 | T114: 0.0%
A115: PARTICULAR | B115: PARTICULAR | C115: PROGRAMA MADRE CANGURO HOSPITAL SAN IGNACIO | D115: 02-CHAPINERO | E115: 0 | F115: 0 | G115: 91 | H115: 104 | S115: 195 | T115: 0.0%
A116: PARTICULAR | B116: PARTICULAR | C116: IPS AVENIR | D116: 02-CHAPINERO | E116: 0 | F116: 0 | G116: 0 | H116: 0 | S116: 0 | T116: 0.0% | U116: 0
A117: PARTICULAR | B117: PARTICULAR | C117: IPS INMUNOLOGIA Y DIAGNOSTICO ESPECIALIZADO | D117: 02-CHAPINERO | E117: 0 | F117: 0 | G117: 0 | H117: 0 | S117: 0 | T117: 0.0% | U117: 0
A118: PARTICULAR | B118: PARTICULAR | C118: ASOCIACION PEDIATRICA DE LOS ANDES | D118: 02-CHAPINERO | E118: 0 | F118: 0 | G118: 0 | H118: 0 | S118: 0 | T118: 0.0% | U118: 0
A119: PARTICULAR | B119: PARTICULAR | C119: CRUZ ROJA SEDE ANDINO | D119: 02-CHAPINERO | E119: 0 | F119: 0 | G119: 0 | H119: 0 | S119: 0 | T119: 0.0% | U119: 0
A120: PARTICULAR | B120: PARTICULAR | C120: CENTRO MEDICO SANTA MONICA | D120: 02-CHAPINERO | E120: 0 | F120: 0 | H120: 0 | S120: 0 | T120: 0.0% | U120: 0
A121: PEDIATRAS | B121: PEDIATRAS | C121: DR. JUAN OSCAR TAMAYO | D121: 02-CHAPINERO | E121: 0 | F121: 0 | G121: 2 | H121: 0 | S121: 2 | T121: 0.0%
A122: PEDIATRAS | B122: PEDIATRAS | C122: DR. ROBERTO SUAREZ | D122: 02-CHAPINERO | E122: 0 | F122: 0 | G122: 0 | H122: 0 | S122: 0 | T122: 0.0% | U122: 0
A123: PEDIATRAS | B123: PEDIATRAS | C123: DR. WILLIAM RICARDO CABRA | D123: 02-CHAPINERO | E123: 0 | F123: 0 | G123: 2 | H123: 5 | S123: 7 | T123: 0.0%
A124: PEDIATRAS | B124: PEDIATRAS | C124: DR. EDGAR CASTRO | D124: 02-CHAPINERO | E124: 0 | F124: 0 | G124: 2 | H124: 2 | S124: 4 | T124: 0.0%
A125: PEDIATRAS | B125: PEDIATRAS | C125: DR. PABLO KRAUSS | D125: 02-CHAPINERO | E125: 0 | F125: 0 | G125: 3 | H125: 3 | S125: 6 | T125: 0.0%
A126: PEDIATRAS | B126: PEDIATRAS | C126: DR. HERNAN ROBLES | D126: 02-CHAPINERO | E126: 0 | F126: 0 | G126: 4 | H126: 4 | S126: 8 | T126: 0.0%
A127: PEDIATRAS | B127: PEDIATRAS | C127: DR. RAFAEL GAMBOA CASABLANCA | D127: 02-CHAPINERO | E127: 0 | F127: 0 | G127: 12 | H127: 6 | S127: 18 | T127: 0.0%
A128: PEDIATRAS | B128: PEDIATRAS | C128: DR. JAVIER MEJIA | D128: 02-CHAPINERO | E128: 0 | F128: 0 | G128: 2 | H128: 1 | S128: 3 | T128: 0.0%
A129: PEDIATRAS | B129: PEDIATRAS | C129: DR. CARLOS CORTAZAR | D129: 02-CHAPINERO | E129: 0 | F129: 0 | G129: 0 | H129: 0 | S129: 0 | T129: 0.0% | U129: 0
A130: PEDIATRAS | B130: PEDIATRAS | C130: DR. NELSON PARDO | D130: 02-CHAPINERO | E130: 0 | F130: 0 | G130: 2 | H130: 0 | S130: 2 | T130: =IF(E130=0,0,+S130/E130) -> 0.0% | U130: =IF(COUNT(G130:R130)*(E130/12)-S130<0,"",COUNT(G130:R130)*(E130/12)-S130) -> 
A131: PEDIATRAS | B131: PEDIATRAS | C131: DR. ALVARO JACOME | D131: 02-CHAPINERO | E131: 0 | F131: =+E131/12 -> 0 | G131: 1 | H131: 1 | S131: =SUM(G131:R131) -> 2 | T131: 0.0%
A132: PEDIATRAS | B132: PEDIATRAS | C132: DR. SILVIO COPO | D132: 02-CHAPINERO | E132: 0 | F132: 0 | G132: 0 | H132: 0 | S132: 0 | T132: 0.0% | U132: 0
A133: PEDIATRAS | B133: PEDIATRAS | C133: DR. HECTOR FERNANDO MENDOZA | D133: 02-CHAPINERO | E133: 0 | F133: 0 | G133: 1 | H133: 0 | S133: 1 | T133: 0.0%
A134: PEDIATRAS | B134: PEDIATRAS | C134: DR. DIMITRIOS | D134: 02-CHAPINERO | E134: 0 | F134: 0 | G134: 1 | H134: 1 | S134: 2 | T134: 0.0%
A135: PEDIATRAS | B135: PEDIATRAS | C135: DR. ALVARO MARIÑO | D135: 02-CHAPINERO | E135: 0 | F135: 0 | G135: 0 | H135: 0 | S135: 0 | T135: 0.0% | U135: 0
A136: PEDIATRAS | B136: PEDIATRAS | C136: DR. ANDRES VARGAS | D136: 02-CHAPINERO | E136: 0 | F136: 0 | G136: 1 | H136: 1 | S136: 2 | T136: 0.0%
A137: PEDIATRAS | B137: PEDIATRAS | C137: DR. JORGE CAMILO LUNA | D137: 02-CHAPINERO | E137: 0 | F137: 0 | G137: 0 | H137: 13 | S137: 13 | T137: 0.0%
A138: PEDIATRAS | B138: PEDIATRAS | C138: DR. BERNARDO HUERTAS | D138: 02-CHAPINERO | E138: 0 | F138: 0 | G138: 13 | H138: 11 | S138: 24 | T138: 0.0%
A139: PEDIATRAS | B139: PEDIATRAS | C139: DR. CARLOS M CASTILLO | D139: 02-CHAPINERO | E139: 0 | F139: 0 | G139: 0 | H139: 0 | S139: 0 | T139: 0.0% | U139: 0
A140: PEDIATRAS | B140: PEDIATRAS | C140: DR. HEINZ OTTO PFALZGRAF | D140: 02-CHAPINERO | E140: 0 | F140: 0 | G140: 0 | H140: 0 | S140: 0 | T140: 0.0% | U140: 0
A141: PEDIATRAS | B141: PEDIATRAS | C141: DR. GONZALEZ BALLESTEROS | D141: 02-CHAPINERO | E141: 0 | F141: 0 | G141: 0 | H141: 0 | S141: 0 | T141: 0.0% | U141: 0
A142: PEDIATRAS | B142: PEDIATRAS | C142: DR. NORBERTO SALAMANCA | D142: 02-CHAPINERO | E142: 0 | F142: 0 | G142: 0 | H142: 0 | S142: 0 | T142: 0.0% | U142: 0
A143: PEDIATRAS | B143: PEDIATRAS | C143: DR. CAMILO ENRIQUE SOTOMAYOR | D143: 02-CHAPINERO | E143: 0 | F143: 0 | G143: 2 | H143: 1 | S143: 3 | T143: 0.0%
A144: PEDIATRAS | B144: PEDIATRAS | C144: DR. SANTIAGO RUEDA SAIZ | D144: 02-CHAPINERO | E144: 0 | F144: 0 | G144: 1 | H144: 0 | S144: 1 | T144: 0.0%
A145: PEDIATRAS | B145: PEDIATRAS | C145: DR. HENRY HERNANDO SANCHEZ ESCOBAR | D145: 02-CHAPINERO | E145: 0 | F145: 0 | G145: 0 | H145: 1 | S145: 1 | T145: 0.0%
A146: PEDIATRAS | B146: PEDIATRAS | C146: DR. RUBEN DARIO TAMAYO | D146: 02-CHAPINERO | E146: 0 | F146: 0 | G146: 1 | H146: 2 | S146: 3 | T146: 0.0%
A147: PEDIATRAS | B147: PEDIATRAS | C147: DR. JAIME MAURICIO MATALLANA | D147: 02-CHAPINERO | E147: 0 | F147: 0 | G147: 2 | H147: 3 | S147: 5 | T147: 0.0%
A148: PEDIATRAS | B148: PEDIATRAS | C148: DR. RODRIGO GARCIA | D148: 02-CHAPINERO | E148: 0 | F148: 0 | G148: 0 | H148: 0 | S148: 0 | T148: 0.0% | U148: 0
A149: PEDIATRAS | B149: PEDIATRAS | C149: DR. FELIPE ROBAYO | D149: 02-CHAPINERO | E149: 0 | F149: 0 | G149: 0 | H149: 0 | S149: 0 | T149: 0.0% | U149: 0
A150: PEDIATRAS | B150: PEDIATRAS | C150: DR. RUBEN FRANCO | D150: 02-CHAPINERO | E150: 0 | F150: 0 | G150: 0 | H150: 0 | S150: 0 | T150: 0.0% | U150: 0
A151: PEDIATRAS | B151: PEDIATRAS | C151: DR. ORLANDO RODRIGUEZ RAMIREZ | D151: 02-CHAPINERO | E151: 0 | F151: 0 | G151: 0 | H151: 1 | S151: 1 | T151: 0.0%
A152: PEDIATRAS | B152: PEDIATRAS | C152: DR. ARTURO MORENO | D152: 02-CHAPINERO | E152: 0 | F152: 0 | G152: 0 | H152: 0 | S152: 0 | T152: 0.0% | U152: 0
A153: PEDIATRAS | B153: PEDIATRAS | C153: DR. FRANCISCO LEAL QUEVEDO | D153: 02-CHAPINERO | E153: 0 | F153: 0 | G153: 0 | H153: 0 | S153: 0 | T153: 0.0% | U153: 0
A154: PEDIATRAS | B154: PEDIATRAS | C154: DR. CARLOS DIAZ PUENTES | D154: 02-CHAPINERO | E154: 0 | F154: 0 | G154: 0 | H154: 0 | S154: 0 | T154: 0.0% | U154: 0
A155: PEDIATRAS | B155: PEDIATRAS | C155: DR. PEDRO ERASMO MENDOZA | D155: 02-CHAPINERO | E155: 0 | F155: 0 | G155: 0 | H155: 0 | S155: 0 | T155: 0.0% | U155: 0
A156: PEDIATRAS | B156: PEDIATRAS | C156: DR. DIMAS ROSAS | D156: 02-CHAPINERO | E156: 0 | F156: 0 | G156: 0 | H156: 0 | S156: 0 | T156: 0.0% | U156: 0
A157: PEDIATRAS | B157: PEDIATRAS | C157: DR. JAVIER BRITO MORENO | D157: 02-CHAPINERO | E157: 0 | F157: 0 | G157: 0 | H157: 0 | S157: 0 | T157: 0.0% | U157: 0
A158: PEDIATRAS | B158: PEDIATRAS | C158: DR. GUSTAVO CORTÉS | D158: 02-CHAPINERO | E158: 0 | F158: 0 | G158: 0 | H158: 0 | S158: 0 | T158: 0.0% | U158: 0
A159: PEDIATRAS | B159: PEDIATRAS | C159: DR. CARLOS VELASQUEZ | D159: 02-CHAPINERO | E159: 0 | F159: 0 | G159: 0 | H159: 0 | S159: 0 | T159: 0.0% | U159: 0
A160: PEDIATRAS | B160: PEDIATRAS | C160: DR. RICARDO GOMEZ | D160: 02-CHAPINERO | E160: 0 | F160: 0 | G160: 0 | H160: 0 | S160: 0 | T160: 0.0% | U160: 0
A161: PEDIATRAS | B161: PEDIATRAS | C161: DR. SARA BERNAL | D161: 02-CHAPINERO | E161: 0 | F161: 0 | G161: 2 | H161: 1 | S161: 3 | T161: 0.0%
A162: PEDIATRAS | B162: PEDIATRAS | C162: DRA. MARIA PATRICIA AGUALIMPIA | D162: 02-CHAPINERO | E162: 0 | F162: 0 | G162: 0 | H162: 0 | S162: 0 | T162: 0.0% | U162: 0
A163: PEDIATRAS | B163: PEDIATRAS | C163: DRA. LUISA FERNANDA FORERO ACOSTA | D163: 02-CHAPINERO | E163: 0 | F163: 0 | G163: 0 | H163: 0 | S163: 0 | T163: 0.0% | U163: 0
A164: PEDIATRAS | B164: PEDIATRAS | C164: DRA. MARIA CLARA CASAS PARDO | D164: 02-CHAPINERO | E164: 0 | F164: 0 | G164: 0 | H164: 0 | S164: 0 | T164: 0.0% | U164: 0
A165: PEDIATRAS | B165: PEDIATRAS | C165: DRA. MARTHA EUGENIA RONDEROS DE FORERO | D165: 02-CHAPINERO | E165: 0 | F165: 0 | G165: 0 | H165: 0 | S165: 0 | T165: 0.0% | U165: 0
A166: PEDIATRAS | B166: PEDIATRAS | C166: DRA. MARIA ISABEL USCHER | D166: 02-CHAPINERO | E166: 0 | F166: 0 | G166: 1 | H166: 2 | S166: 3 | T166: 0.0%
A167: PEDIATRAS | B167: PEDIATRAS | C167: DRA. MARIA DE LOS ANGELES MUÑOZ | D167: 02-CHAPINERO | E167: 0 | F167: 0 | G167: 1 | H167: 0 | S167: 1 | T167: 0.0%
A168: PEDIATRAS | B168: PEDIATRAS | C168: DRA. CLARA ABELLO REYES | D168: 02-CHAPINERO | E168: 0 | F168: 0 | G168: 0 | H168: 0 | S168: 0 | T168: 0.0% | U168: 0
A169: PEDIATRAS | B169: PEDIATRAS | C169: DRA. PATRICIA CONTRERAS | D169: 02-CHAPINERO | E169: 0 | F169: 0 | G169: 1 | H169: 1 | S169: 2 | T169: 0.0%
A170: PEDIATRAS | B170: PEDIATRAS | C170: DRA. CLAUDIA ZOPPI | D170: 02-CHAPINERO | E170: 0 | F170: 0 | G170: 0 | H170: 0 | S170: 0 | T170: 0.0% | U170: 0
A171: PEDIATRAS | B171: PEDIATRAS | C171: DRA. MARIA DE LOS ANGELES FERNANDEZ LUQUE | D171: 02-CHAPINERO | E171: 0 | F171: 0 | G171: 0 | H171: 0 | S171: 0 | T171: 0.0% | U171: 0
A172: PEDIATRAS | B172: PEDIATRAS | C172: DRA. RUTH CORDOBA CORDOBA | D172: 02-CHAPINERO | E172: 0 | F172: 0 | G172: 0 | H172: 0 | S172: 0 | T172: 0.0% | U172: 0
A173: PEDIATRAS | B173: PEDIATRAS | C173: DRA. LUZ ESTELA CORTES | D173: 02-CHAPINERO | E173: 0 | F173: 0 | G173: 0 | H173: 1 | S173: 1 | T173: 0.0%
A174: UNICAJAS | B174: UNICAJAS | C174: UPA SAN LUIS | D174: 02-CHAPINERO | E174: 18 | F174: 2 | G174: 1 | H174: 0 | S174: 1 | T174: 5.6% | U174: 2
A175: 02-CHAPINERO | B175: OTROS | C175: UPA SAN LUIS | D175: 02-CHAPINERO | E175: 325 | F175: 27 | G175: 0 | H175: 2 | S175: 2 | T175: 0.6% | U175: 52
A176: 02-CHAPINERO | B176: DEMAS EAPB | C176: UPA SAN LUIS | D176: 02-CHAPINERO | F176: 0 | G176: 6 | H176: 2 | S176: 8 | T176: 0.0%
A177: UNICAJAS | B177: UNICAJAS | C177: COMFASALUD SEDE CENTRO | D177: 03-SANTA FE | E177: 50 | F177: 4 | G177: 4 | H177: 2 | S177: 6 | T177: 12.0% | U177: 2
A178: MEDIMAS | B178: MEDIMAS | C178: CORVESALUD TEUSAQUILLO | D178: 03-SANTA FE | E178: 193 | F178: 16 | G178: 6 | H178: 4 | S178: 10 | T178: 5.2% | U178: 22
A179: 03-SANTA FE | B179: CAPITAL SALUD | C179: EXTRAMURAL SANTA FE | D179: 03-SANTA FE | E179: 0 | F179: 0 | G179: 2 | H179: 5 | S179: 7 | T179: 0.0%
A180: 03-SANTA FE | B180: DEMAS EAPB | C180: EXTRAMURAL SANTA FE | D180: 03-SANTA FE | E180: 0 | F180: 0 | G180: 6 | H180: 4 | S180: 10 | T180: 0.0%
A181: 03-SANTA FE | B181: OTROS | C181: EXTRAMURAL SANTA FE | D181: 03-SANTA FE | E181: 0 | F181: 0 | G181: 15 | H181: 9 | S181: 24 | T181: 0.0%
A182: 03-SANTA FE | B182: UNICAJAS | C182: EXTRAMURAL SANTA FE | D182: 03-SANTA FE | E182: 0 | F182: 0 | G182: 0 | H182: 0 | S182: 0 | T182: 0.0% | U182: 0
A183: 03-SANTA FE | B183: CAPITAL SALUD | C183: USS LACHES | D183: 03-SANTA FE | E183: 54 | F183: 5 | G183: 9 | H183: 3 | S183: 12 | T183: 22.2%
A184: 03-SANTA FE | B184: DEMAS EAPB | C184: USS LACHES | D184: 03-SANTA FE | E184: 0 | F184: 0 | G184: 12 | H184: 2 | S184: 14 | T184: 0.0%
A185: 03-SANTA FE | B185: OTROS | C185: USS LACHES | D185: 03-SANTA FE | E185: 260 | F185: 22 | G185: 7 | H185: 0 | S185: 7 | T185: 2.7% | U185: 36
A186: 03-SANTA FE | B186: UNICAJAS | C186: USS LACHES | D186: 03-SANTA FE | E186: 17 | F186: 1 | G186: 0 | H186: 2 | S186: 2 | T186: 11.8% | U186: 1
A187: 03-SANTA FE | B187: CAPITAL SALUD | C187: USS LAS CRUCES | D187: 03-SANTA FE | E187: 44 | F187: 4 | G187: 7 | H187: 5 | S187: 12 | T187: 27.3%
A188: 03-SANTA FE | B188: DEMAS EAPB | C188: USS LAS CRUCES | D188: 03-SANTA FE | E188: 0 | F188: 0 | G188: 6 | H188: 1 | S188: 7 | T188: 0.0%
A189: 03-SANTA FE | B189: OTROS | C189: USS LAS CRUCES | D189: 03-SANTA FE | E189: 211 | F189: 18 | G189: 4 | H189: 3 | S189: 7 | T189: 3.3% | U189: 28
A190: 03-SANTA FE | B190: UNICAJAS | C190: USS LAS CRUCES | D190: 03-SANTA FE | E190: 14 | F190: 1 | G190: 7 | H190: 0 | S190: 7 | T190: 50.0%
A191: 03-SANTA FE | B191: CAPITAL SALUD | C191: USS PERSEVERANCIA | D191: 03-SANTA FE | E191: 6 | F191: 1 | G191: 2 | H191: 0 | S191: 2 | T191: 33.3%
A192: 03-SANTA FE | B192: DEMAS EAPB | C192: USS PERSEVERANCIA | D192: 03-SANTA FE | E192: 0 | F192: 0 | G192: 0 | H192: 0 | S192: 0 | T192: 0.0% | U192: 0
A193: 03-SANTA FE | B193: OTROS | C193: USS PERSEVERANCIA | D193: 03-SANTA FE | E193: 30 | F193: 3 | G193: 2 | H193: 0 | S193: 2 | T193: 6.7% | U193: 3
A194: 03-SANTA FE | B194: UNICAJAS | C194: USS PERSEVERANCIA | D194: 03-SANTA FE | E194: 2 | F194: 0 | G194: 0 | H194: 0 | S194: 0 | T194: =IF(E194=0,0,+S194/E194) -> 0.0% | U194: =IF(COUNT(G194:R194)*(E194/12)-S194<0,"",COUNT(G194:R194)*(E194/12)-S194) -> 0
A195: PARTICULAR | B195: PARTICULAR | C195: CLINICA SAN RAFAEL | D195: 04-SAN CRISTOBAL | E195: 375 | F195: =+E195/12 -> 31 | G195: 36 | H195: 26 | S195: =SUM(G195:R195) -> 62 | T195: 16.5% | U195: 1
A196: FAMISANAR | B196: FAMI- COLSB | C196: CENTRO MEDICO COLSUBSIDIO 20 DE JULIO | D196: 04-SAN CRISTOBAL | F196: 0 | S196: 0 | T196: 0.0% | U196: 0
A197: 04-SAN CRISTOBAL | B197: CAPITAL SALUD | C197: EXTRAMURAL SAN CRISTOBAL | D197: 04-SAN CRISTOBAL | E197: 0 | F197: 0 | G197: 27 | H197: 29 | S197: 56 | T197: 0.0%
A198: 04-SAN CRISTOBAL | B198: DEMAS EAPB | C198: EXTRAMURAL SAN CRISTOBAL | D198: 04-SAN CRISTOBAL | E198: 0 | F198: 0 | G198: 37 | H198: 26 | S198: 63 | T198: 0.0%
A199: 04-SAN CRISTOBAL | B199: OTROS | C199: EXTRAMURAL SAN CRISTOBAL | D199: 04-SAN CRISTOBAL | E199: 0 | F199: 0 | G199: 12 | H199: 8 | S199: 20 | T199: 0.0%
A200: 04-SAN CRISTOBAL | B200: UNICAJAS | C200: EXTRAMURAL SAN CRISTOBAL | D200: 04-SAN CRISTOBAL | E200: 0 | F200: 0 | G200: 0 | H200: 2 | S200: 2 | T200: 0.0%
... 620 more rows

Sheet TRIPLEVIRAL
A1: EAPB | B1: EPS O ESE | C1: IPS | D1: Localidad | E1: Meta Anual de 1 Año | F1: Meta Mensual | G1: Enero | H1: Febrero | I1: Marzo | J1: Abril | K1: Mayo | L1: Junio | M1: Julio | N1: Agosto | O1: Septiembre | P1: Octubre | Q1: Noviembre | R1: Diciembre | S1: Total | T1: % Cobertura | U1: Deficit
A2: CAPITAL SALUD | B2: CAPITAL SALUD | C2: UPA SAN CRISTOBAL | D2: 01-USAQUEN | E2: 100 | F2: =E2/12 -> 8 | G2: 4 | H2: 4 | S2: =SUM(G2:R2) -> 8 | T2: =IF(E2=0,0,+S2/E2) -> 8.0% | U2: =IF(COUNT(G2:R2)*(E2/12)-S2<0,"",COUNT(G2:R2)*(E2/12)-S2) -> 9
A3: CAPITAL SALUD | B3: CAPITAL SALUD | C3: UPA USAQUEN | D3: 01-USAQUEN | E3: 14 | F3: 1 | G3: 0 | H3: 1 | S3: =SUM(G3:R3) -> 1 | T3: 7.1% | U3: 1
A4: CAPITAL SALUD | B4: CAPITAL SALUD | C4: UPA ORQUIDEAS | D4: 01-USAQUEN | E4: 6 | F4: 1 | G4: 5 | H4: 1 | S4: 6 | T4: 100.0%
A5: CAPITAL SALUD | B5: CAPITAL SALUD | C5: UPA CODITO | D5: 01-USAQUEN | E5: 115 | F5: 10 | G5: 3 | H5: 6 | S5: 9 | T5: 7.8% | U5: 10
A6: CAPITAL SALUD | B6: CAPITAL SALUD | C6: CAMI VERBENAL | D6: 01-USAQUEN | E6: 106 | F6: 9 | G6: 7 | H6: 5 | S6: 12 | T6: 11.3% | U6: 6
A7: CAPITAL SALUD | B7: CAPITAL SALUD | C7: HOSPITAL SIMON BOLIVAR | D7: 01-USAQUEN | E7: 15 | F7: 1 | G7: 12 | H7: 5 | S7: 17 | T7: 113.3%
A8: 01-USAQUEN | B8: 01-USAQUEN | C8: EXTRAMURAL USAQUEN | D8: 01-USAQUEN | F8: 0 | G8: 44 | H8: 44 | S8: 88 | T8: 0.0%
A9: ALIANSALUD | B9: ALIANSALUD | C9: CENTRO MEDICO COLMEDICA SANTA BARBARA | D9: 01-USAQUEN | E9: 794 | F9: 66 | G9: 58 | H9: 53 | S9: 111 | T9: 14.0% | U9: 21
A10: COMPENSAR | B10: COMPENSAR | C10: USS CALLE 134 | D10: 01-USAQUEN | E10: 328 | F10: 27 | G10: 15 | H10: 10 | S10: 25 | T10: 7.6% | U10: 30
A11: COMPENSAR | B11: COMPENSAR | C11: USS CALLE 145 | D11: 01-USAQUEN | E11: 252 | F11: 21 | G11: 36 | H11: 26 | S11: 62 | T11: 24.6%
A12: COMPENSAR | B12: COMPENSAR | C12: JAVESALUD TOBERIN | D12: 01-USAQUEN | E12: 396 | F12: 33 | G12: 3 | H12: 5 | S12: 8 | T12: 2.0% | U12: 58
A13: COOMEVA | B13: COOMEVA | C13: SINERGIA UNIDAD INTEGRAL EN SALUD | D13: 01-USAQUEN | E13: 63 | F13: 5 | G13: 13 | H13: 13 | S13: 26 | T13: 41.3%
A14: FAMISANAR | B14: FAMI- COLSB | C14: CENTRO MEDICO COLSUBSIDIO USAQUEN | D14: 01-USAQUEN | E14: 315 | F14: 26 | G14: 28 | H14: 22 | S14: 50 | T14: 15.9% | U14: 3
A15: MILITAR | B15: MILITAR | C15: DISPENSARIO MEDICO CANTON NORTE | D15: 01-USAQUEN | E15: 287 | F15: 24 | G15: 10 | H15: 8 | S15: 18 | T15: 6.3% | U15: 30
A16: NUEVA EPS | B16: NUEVA EPS | C16: IPS VIVA 1A SEDE TOBERIN | D16: 01-USAQUEN | E16: 130 | F16: 11 | G16: 13 | H16: 7 | S16: 20 | T16: 15.4% | U16: 2
A17: NUEVA EPS | B17: NUEVA EPS | C17: CAFAM GRANADA HILLS | D17: 01-USAQUEN | E17: 58 | F17: 5 | G17: 6 | H17: 3 | S17: 9 | T17: 15.5% | U17: 1
A18: SANITAS | B18: SANITAS | C18: UAP SANITAS TOBERIN | D18: 01-USAQUEN | E18: 629 | F18: 52 | G18: 31 | H18: 37 | S18: 68 | T18: 10.8% | U18: 37
A19: SANITAS | B19: SANITAS | C19: MEDIKA IPS SANITAS UAP USAQUEN | D19: 01-USAQUEN | E19: 183 | F19: 15 | G19: 1 | H19: 2 | S19: 3 | T19: 1.6% | U19: 28
A20: SANITAS | B20: SANITAS | C20: UAP SANTA BARBARA | D20: 01-USAQUEN | E20: 884 | F20: 74 | G20: 75 | H20: 81 | S20: 156 | T20: 17.6%
A21: SANITAS | B21: SANITAS | C21: SANITAS BANCO DE LA REPUBLICA | D21: 01-USAQUEN | E21: 0 | F21: 0 | G21: 1 | H21: 0 | S21: 1 | T21: 0.0%
A22: SALUD TOTAL | B22: SALUD TOTAL | C22: VIRREY SOLIS TOBERÍN | D22: 01-USAQUEN | E22: 418 | F22: 35 | G22: 19 | H22: 19 | S22: 38 | T22: 9.1% | U22: 32
A23: SURA | B23: SURA | C23: IPS JAVESALUD SANTA BEATRIZ | D23: 01-USAQUEN | E23: 366 | F23: 31 | G23: 15 | H23: 10 | S23: 25 | T23: 6.8% | U23: 36
A24: ECOPETROL | B24: ECOPETROL | C24: IPS CLINICOS PALATINO | D24: 01-USAQUEN | E24: 93 | F24: 8 | G24: 5 | H24: 10 | S24: 15 | T24: 16.1% | U24: 1
A25: PARTICULAR | B25: PARTICULAR | C25: CLINICA PEDIATRICA COLSANITAS | D25: 01-USAQUEN | E25: 675 | F25: 56 | G25: 84 | H25: 62 | S25: 146 | T25: 21.6%
A26: PARTICULAR | B26: PARTICULAR | C26: CENTRO MEDICO COLSANITAS LA CALLEJA | D26: 01-USAQUEN | E26: 130 | F26: 11 | G26: 18 | H26: 9 | S26: 27 | T26: 20.8%
A27: PARTICULAR | B27: PARTICULAR | C27: CENTRO MEDICO COLSANITAS 108 | D27: 01-USAQUEN | E27: 26 | F27: 2 | G27: 5 | H27: 1 | S27: 6 | T27: 23.1%
A28: PARTICULAR | B28: PARTICULAR | C28: CENTRO MEDICO COLSANITAS SANTA ANA | D28: 01-USAQUEN | E28: 4 | F28: 0 | G28: 0 | H28: 1 | S28: 1 | T28: 25.0%
A29: PARTICULAR | B29: PARTICULAR | C29: FUNDACIÓN CARDIO INFANTIL | D29: 01-USAQUEN | E29: 0 | F29: 0 | G29: 17 | H29: 11 | S29: 28 | T29: 0.0%
A30: PARTICULAR | B30: PARTICULAR | C30: ENFASO USAQUEN | D30: 01-USAQUEN | E30: 0 | F30: 0 | G30: 5 | H30: 9 | S30: 14 | T30: 0.0%
A31: PARTICULAR | B31: PARTICULAR | C31: UNIDAD DE VACUNACIÓN INTERNACIONAL | D31: 01-USAQUEN | E31: 0 | F31: 0 | G31: 5 | H31: 2 | S31: 7 | T31: 0.0%
A32: PARTICULAR | B32: PARTICULAR | C32: INMUNOLOGÍA Y DIAGNÓSTICO ESPECIALIZADO LTDA. | D32: 01-USAQUEN | E32: 0 | F32: 0 | G32: 1 | H32: 0 | S32: 1 | T32: 0.0%
A33: PARTICULAR | B33: PARTICULAR | C33: PROTEGER HEALHT CARE | D33: 01-USAQUEN | E33: 0 | F33: 0 | G33: 0 | H33: 1 | S33: 1 | T33: 0.0%
A34: PARTICULAR | B34: PARTICULAR | C34: FUNDACION SANTA FE DE BOGOTA | D34: 01-USAQUEN | E34: 0 | F34: 0 | G34: 0 | H34: 0 | S34: 0 | T34: 0.0% | U34: 0
A35: PARTICULAR | B35: PARTICULAR | C35: IPS CRUZ ROJA SEDE UNICENTRO | D35: 01-USAQUEN | E35: 0 | F35: 0 | G35: 0 | H35: 0 | S35: 0 | T35: 0.0% | U35: 0
A36: PARTICULAR | B36: PARTICULAR | C36: IPS CRUZ ROJA SAMU CALLE 145 | D36: 01-USAQUEN | E36: 0 | F36: 0 | G36: 0 | H36: 0 | S36: 0 | T36: 0.0% | U36: 0
A37: PEDIATRAS | B37: PEDIATRAS | C37: DR. ALEJANDRO LÓPEZ | D37: 01-USAQUEN | E37: 0 | F37: 0 | G37: 0 | H37: 0 | S37: 0 | T37: 0.0% | U37: 0
A38: PEDIATRAS | B38: PEDIATRAS | C38: DR. CARLOS NEFTALI TORRES | D38: 01-USAQUEN | E38: 0 | F38: 0 | G38: 3 | H38: 7 | S38: 10 | T38: 0.0%
A39: PEDIATRAS | B39: PEDIATRAS | C39: DR. FRANCISCO NUÑEZ | D39: 01-USAQUEN | E39: 0 | F39: 0 | G39: 0 | H39: 1 | S39: 1 | T39: 0.0%
A40: PEDIATRAS | B40: PEDIATRAS | C40: DR. FERNANDO GOMEZ | D40: 01-USAQUEN | E40: 0 | F40: 0 | G40: 0 | H40: 0 | S40: 0 | T40: 0.0% | U40: 0
A41: PEDIATRAS | B41: PEDIATRAS | C41: DR. FERNANDO ZARATE MORENO | D41: 01-USAQUEN | E41: 0 | F41: 0 | G41: 1 | H41: 1 | S41: 2 | T41: 0.0%
A42: PEDIATRAS | B42: PEDIATRAS | C42: DR. GONZALO GARCIA | D42: 01-USAQUEN | E42: 0 | F42: 0 | G42: 3 | H42: 0 | S42: 3 | T42: 0.0%
A43: PEDIATRAS | B43: PEDIATRAS | C43: DR. GUSTAVO MORALES | D43: 01-USAQUEN | E43: 0 | F43: 0 | G43: 3 | H43: 4 | S43: 7 | T43: 0.0%
A44: PEDIATRAS | B44: PEDIATRAS | C44: DR. JAIME OSPINA | D44: 01-USAQUEN | E44: 0 | F44: 0 | G44: 1 | H44: 0 | S44: 1 | T44: 0.0%
A45: PEDIATRAS | B45: PEDIATRAS | C45: DR. JORGE URIBE | D45: 01-USAQUEN | E45: 0 | F45: 0 | G45: 0 | H45: 1 | S45: 1 | T45: 0.0%
A46: PEDIATRAS | B46: PEDIATRAS | C46: DR. JUAN LUIS FIGUEROA | D46: 01-USAQUEN | E46: 0 | F46: 0 | G46: 1 | H46: 3 | S46: 4 | T46: 0.0%
A47: PEDIATRAS | B47: PEDIATRAS | C47: DR. LUIS AUGUSTO PERNA | D47: 01-USAQUEN | E47: 0 | F47: 0 | G47: 2 | H47: 1 | S47: 3 | T47: 0.0%
A48: PEDIATRAS | B48: PEDIATRAS | C48: DR. LIBARDO ELI TRIANA | D48: 01-USAQUEN | E48: 0 | F48: 0 | G48: 0 | H48: 0 | S48: 0 | T48: 0.0% | U48: 0
A49: PEDIATRAS | B49: PEDIATRAS | C49: DR. OSWALDO MERCADO HOYOS | D49: 01-USAQUEN | E49: 0 | F49: 0 | G49: 1 | H49: 2 | S49: 3 | T49: 0.0%
A50: PEDIATRAS | B50: PEDIATRAS | C50: DR. ROBERTO BENIRO | D50: 01-USAQUEN | E50: 0 | F50: 0 | G50: 0 | H50: 0 | S50: 0 | T50: 0.0% | U50: 0
A51: PEDIATRAS | B51: PEDIATRAS | C51: DR. SERGIO ISAZA | D51: 01-USAQUEN | E51: 0 | F51: 0 | G51: 0 | H51: 0 | S51: 0 | T51: 0.0% | U51: 0
A52: PEDIATRAS | B52: PEDIATRAS | C52: DR. SANTIAGO UCROS | D52: 01-USAQUEN | E52: 0 | F52: 0 | G52: 0 | H52: 0 | S52: 0 | T52: 0.0% | U52: 0
A53: PEDIATRAS | B53: PEDIATRAS | C53: DR. GERMAN SILVA | D53: 01-USAQUEN | E53: 0 | F53: 0 | G53: 0 | H53: 0 | S53: 0 | T53: 0.0% | U53: 0
A54: PEDIATRAS | B54: PEDIATRAS | C54: DR. DANIEL ABRIL | D54: 01-USAQUEN | E54: 0 | F54: 0 | G54: 0 | H54: 0 | S54: 0 | T54: 0.0% | U54: 0
A55: PEDIATRAS | B55: PEDIATRAS | C55: DR. CARLOS EDUARDO OLMOS | D55: 01-USAQUEN | E55: 0 | F55: 0 | G55: 0 | H55: 0 | S55: 0 | T55: 0.0% | U55: 0
A56: PEDIATRAS | B56: PEDIATRAS | C56: DR. EDGARDO CHATMAN | D56: 01-USAQUEN | E56: 0 | F56: 0 | G56: 0 | H56: 0 | S56: 0 | T56: 0.0% | U56: 0
A57: PEDIATRAS | B57: PEDIATRAS | C57: DR. JORGE FLOREZ OTERO | D57: 01-USAQUEN | E57: 0 | F57: 0 | G57: 0 | H57: 0 | S57: 0 | T57: 0.0% | U57: 0
A58: PEDIATRAS | B58: PEDIATRAS | C58: DRA. ALEJANDRA MARIA VALENCIA | D58: 01-USAQUEN | E58: 0 | F58: 0 | G58: 0 | H58: 0 | S58: 0 | T58: 0.0% | U58: 0
A59: PEDIATRAS | B59: PEDIATRAS | C59: DRA. ANA MARIA GOYENECHE | D59: 01-USAQUEN | E59: 0 | F59: 0 | G59: 0 | H59: 0 | S59: 0 | T59: 0.0% | U59: 0
A60: PEDIATRAS | B60: PEDIATRAS | C60: DRA. JIMENA VARELA | D60: 01-USAQUEN | E60: 0 | F60: 0 | G60: 0 | H60: 1 | S60: 1 | T60: 0.0%
A61: PEDIATRAS | B61: PEDIATRAS | C61: DRA. LIA SAN MIGUEL | D61: 01-USAQUEN | E61: 0 | F61: 0 | G61: 0 | H61: 0 | S61: 0 | T61: 0.0% | U61: 0
A62: PEDIATRAS | B62: PEDIATRAS | C62: DRA. LIBIA SEGURA | D62: 01-USAQUEN | E62: 0 | F62: 0 | G62: 0 | H62: 1 | S62: 1 | T62: 0.0%
A63: PEDIATRAS | B63: PEDIATRAS | C63: DRA. MARÍA JOSÉ PEDRAZA | D63: 01-USAQUEN | E63: 0 | F63: 0 | G63: 0 | H63: 0 | S63: 0 | T63: 0.0% | U63: 0
A64: PEDIATRAS | B64: PEDIATRAS | C64: DRA. MARTHA LUCIA SANCHEZ | D64: 01-USAQUEN | E64: 0 | F64: 0 | G64: 0 | H64: 0 | S64: 0 | T64: 0.0% | U64: 0
A65: PEDIATRAS | B65: PEDIATRAS | C65: DRA. OLGA LUCÍA SÁNCHEZ | D65: 01-USAQUEN | E65: 0 | F65: 0 | G65: 0 | H65: 0 | S65: 0 | T65: 0.0% | U65: 0
A66: PEDIATRAS | B66: PEDIATRAS | C66: DRA. SANDRA BELTRAN | D66: 01-USAQUEN | E66: 0 | F66: 0 | G66: 0 | H66: 0 | S66: 0 | T66: =IF(E66=0,0,+S66/E66) -> 0.0% | U66: =IF(COUNT(G66:R66)*(E66/12)-S66<0,"",COUNT(G66:R66)*(E66/12)-S66) -> 0
A67: PEDIATRAS | B67: PEDIATRAS | C67: DRA. IVANA CABRERA | D67: 01-USAQUEN | E67: 0 | F67: 0 | G67: 0 | H67: 0 | S67: =SUM(G67:R67) -> 0 | T67: 0.0% | U67: 0
A68: PEDIATRAS | B68: PEDIATRAS | C68: DRA. NAYITA ALARCON | D68: 01-USAQUEN | E68: 0 | F68: =E68/12 -> 0 | G68: 0 | H68: 0 | S68: 0 | T68: 0.0% | U68: 0
A69: PEDIATRAS | B69: PEDIATRAS | C69: DRA. ELIZABETH GARCIA | D69: 01-USAQUEN | E69: 0 | F69: 0 | G69: 0 | H69: 0 | S69: 0 | T69: 0.0% | U69: 0
A70: PEDIATRAS | B70: PEDIATRAS | C70: DRA. BERTHA CALDERON DE RAMOS | D70: 01-USAQUEN | E70: 0 | F70: 0 | G70: 0 | H70: 0 | S70: 0 | T70: 0.0% | U70: 0
A71: PEDIATRAS | B71: PEDIATRAS | C71: DRA. MIRYAM CORREA | D71: 01-USAQUEN | E71: 0 | F71: 0 | G71: 0 | H71: 1 | S71: 1 | T71: 0.0%
A72: 01-USAQUEN | B72: UNICAJAS | C72: UPA SAN CRISTOBAL | D72: 01-USAQUEN | E72: 6 | F72: 1 | G72: 2 | H72: 0 | S72: 2 | T72: 33.3%
A73: UNICAJAS | B73: UNICAJAS | C73: UPA USAQUEN | D73: 01-USAQUEN | E73: 6 | F73: 1 | G73: 0 | H73: 0 | S73: 0 | T73: 0.0% | U73: 1
A74: UNICAJAS | B74: UNICAJAS | C74: UPA ORQUIDEAS | D74: 01-USAQUEN | E74: 6 | F74: 1 | H74: 0 | S74: 0 | T74: 0.0% | U74: 1
A75: UNICAJAS | B75: UNICAJAS | C75: UPA CODITO | D75: 01-USAQUEN | E75: 6 | F75: 1 | H75: 2 | S75: 2 | T75: 33.3%
A76: UNICAJAS | B76: UNICAJAS | C76: CAMI VERBENAL | D76: 01-USAQUEN | E76: 6 | F76: 1 | G76: 1 | H76: 0 | S76: 1 | T76: 16.7% | U76: 0
A77: 01-USAQUEN | B77: UNICAJAS | C77: HOSPITAL SIMON BOLIVAR | D77: 01-USAQUEN | E77: 6 | F77: 1 | G77: 3 | H77: 0 | S77: 3 | T77: 50.0%
A78: 01-USAQUEN | B78: OTROS | C78: UPA SAN CRISTOBAL | D78: 01-USAQUEN | E78: 205 | F78: 17 | G78: 7 | H78: 2 | S78: 9 | T78: 4.4% | U78: 25
A79: 01-USAQUEN | B79: OTROS | C79: UPA USAQUEN | D79: 01-USAQUEN | E79: 95 | F79: 8 | G79: 0 | H79: 1 | S79: 1 | T79: 1.1% | U79: 15
A80: 01-USAQUEN | B80: OTROS | C80: UPA ORQUIDEAS | D80: 01-USAQUEN | E80: 100 | F80: 8 | G80: 5 | H80: 0 | S80: 5 | T80: 5.0% | U80: 12
A81: 01-USAQUEN | B81: OTROS | C81: UPA CODITO | D81: 01-USAQUEN | E81: 140 | F81: 12 | G81: 7 | H81: 0 | S81: 7 | T81: 5.0% | U81: 16
A82: 01-USAQUEN | B82: OTROS | C82: CAMI VERBENAL | D82: 01-USAQUEN | E82: 290 | F82: 24 | G82: 4 | H82: 2 | S82: 6 | T82: 2.1% | U82: 42
A83: 01-USAQUEN | B83: OTROS | C83: HOSPITAL SIMON BOLIVAR | D83: 01-USAQUEN | E83: 501 | F83: 42 | G83: 19 | H83: 10 | S83: 29 | T83: 5.8% | U83: 55
A84: 01-USAQUEN | B84: DEMAS EAPB | C84: UPA SAN CRISTOBAL | D84: 01-USAQUEN | F84: 0 | G84: 17 | H84: 17 | S84: 34 | T84: 0.0%
A85: 01-USAQUEN | B85: DEMAS EAPB | C85: UPA USAQUEN | D85: 01-USAQUEN | F85: 0 | G85: 3 | H85: 2 | S85: 5 | T85: 0.0%
A86: 01-USAQUEN | B86: DEMAS EAPB | C86: UPA ORQUIDEAS | D86: 01-USAQUEN | F86: 0 | G86: 3 | H86: 4 | S86: 7 | T86: 0.0%
A87: 01-USAQUEN | B87: DEMAS EAPB | C87: UPA CODITO | D87: 01-USAQUEN | F87: 0 | G87: 15 | H87: 16 | S87: 31 | T87: 0.0%
A88: 01-USAQUEN | B88: DEMAS EAPB | C88: CAMI VERBENAL | D88: 01-USAQUEN | F88: 0 | G88: 20 | H88: 18 | S88: 38 | T88: 0.0%
A89: 01-USAQUEN | B89: DEMAS EAPB | C89: HOSPITAL SIMON BOLIVAR | D89: 01-USAQUEN | F89: 0 | G89: 26 | H89: 20 | S89: 46 | T89: 0.0%
A90: MEDIMAS | B90: MEDIMAS | C90: Corvesalud S.A.S - I P S Chico | D90: 01-USAQUEN | E90: 165 | F90: 14 | G90: 0 | H90: 1 | S90: 1 | T90: 0.6% | U90: 27
A91: FAMISANAR | B91: COLSUBSIDIO | C91: Sura PAC Santa Bárbara | D91: 01-USAQUEN | F91: 0 | S91: 0 | T91: 0.0% | U91: 0
A92: CAPITAL SALUD | B92: CAPITAL SALUD | C92: UPA SAN LUIS - CAPITAL SALUD | D92: 02-CHAPINERO | E92: 10 | F92: 1 | G92: 3 | H92: 0 | S92: 3 | T92: 30.0%
A93: 02-CHAPINERO | B93: 02-CHAPINERO | C93: EXTRAMURAL CHAPINERO | D93: 02-CHAPINERO | E93: 0 | F93: 0 | G93: 9 | H93: 10 | S93: 19 | T93: 0.0%
A94: COMPENSAR | B94: COMPENSAR | C94: USS CALLE 42 | D94: 02-CHAPINERO | E94: 796 | F94: 66 | G94: 32 | H94: 26 | S94: 58 | T94: 7.3% | U94: 75
A95: COMPENSAR | B95: COMPENSAR | C95: USS CALLE 67 | D95: 02-CHAPINERO | F95: 0 | G95: 0 | H95: 0 | S95: 0 | T95: 0.0% | U95: 0
A96: COMPENSAR | B96: COMPENSAR | C96: USS CALLE 94 | D96: 02-CHAPINERO | E96: 604 | F96: 50 | G96: 75 | H96: 63 | S96: 138 | T96: 22.8%
A97: COMPENSAR | B97: COMPENSAR | C97: VIVA 1A IPS CHAPINERO | D97: 02-CHAPINERO | E97: 116 | F97: 10 | G97: 4 | H97: 0 | S97: 4 | T97: 3.4% | U97: 15
A98: COOMEVA | B98: COOMEVA | C98: SINERGIA UNIDAD BASICA LOURDES | D98: 02-CHAPINERO | E98: 226 | F98: 19 | G98: 4 | H98: 5 | S98: 9 | T98: 4.0% | U98: 29
A99: FAMISANAR | B99: FAMI- CAFAM | C99: CENTRO DE ATENCION EN SALUD CAFAM CALLE 48 | D99: 02-CHAPINERO | E99: 1150 | F99: 96 | G99: 16 | H99: 26 | S99: 42 | T99: 3.7% | U99: 150
A100: FAMISANAR | B100: FAMI- CAFAM | C100: CENTRO DE ATENCION EN SALUD CAFAM CALLE 90 | D100: 02-CHAPINERO | E100: 230 | F100: 19 | G100: 27 | H100: 13 | S100: 40 | T100: 17.4%
A101: FAMISANAR | B101: FAMI- COLSB | C101: CLINICA COLSUBSIDIO EL LAGO | D101: 02-CHAPINERO | E101: 391 | F101: 33 | G101: 8 | H101: 6 | S101: 14 | T101: 3.6% | U101: 51
A102: MILITAR | B102: MILITAR | C102: HOSPITAL MILITAR CENTRAL | D102: 02-CHAPINERO | E102: 60 | F102: 5 | G102: 10 | H102: 4 | S102: 14 | T102: 23.3%
A103: POLICIA | B103: POLICIA | C103: POLICIA NACIONAL ESPAM CHAPINERO | D103: 02-CHAPINERO | E103: 106 | F103: 9 | G103: 8 | H103: 0 | S103: 8 | T103: 7.5% | U103: 10
A104: NUEVA EPS | B104: NUEVA EPS | C104: IPS VIVA 1A SEDE MARLY | D104: 02-CHAPINERO | E104: 141 | F104: 12 | G104: 9 | H104: 4 | S104: 13 | T104: 9.2% | U104: 11
A105: SANITAS | B105: SANITAS | C105: EPS SANITAS CENTRO MEDICO TEUSAQUILLO | D105: 02-CHAPINERO | E105: 561 | F105: 47 | G105: 27 | H105: 22 | S105: 49 | T105: 8.7% | U105: 45
A106: SALUD TOTAL | B106: SALUD TOTAL | C106: VIRREY SOLIS CHAPINERO | D106: 02-CHAPINERO | E106: 346 | F106: 29 | G106: 12 | H106: 11 | S106: 23 | T106: 6.6% | U106: 35
A107: SURA | B107: SURA | C107: PUNTO DE SALUD CHAPINERO | D107: 02-CHAPINERO | E107: 221 | F107: 18 | G107: 26 | H107: 16 | S107: 42 | T107: 19.0%
A108: SURA | B108: SURA | C108: SALUD SURA | D108: 02-CHAPINERO | E108: 593 | F108: 49 | G108: 39 | H108: 35 | S108: 74 | T108: 12.5% | U108: 25
A109: PARTICULAR | B109: PARTICULAR | C109: CENTRO MEDICO COLSANITAS CALLE 96 | D109: 02-CHAPINERO | E109: 22 | F109: 2 | G109: 0 | H109: 2 | S109: 2 | T109: 9.1% | U109: 2
A110: PARTICULAR | B110: PARTICULAR | C110: CENTRO DE ESPECIALISTAS MEDICOS AXA COLPATRIA | D110: 02-CHAPINERO | E110: 0 | F110: 0 | G110: 2 | H110: 3 | S110: 5 | T110: 0.0%
A111: PARTICULAR | B111: PARTICULAR | C111: CLINICA DE LA MUJER | D111: 02-CHAPINERO | E111: 0 | F111: 0 | G111: 40 | H111: 48 | S111: 88 | T111: 0.0%
A112: PARTICULAR | B112: PARTICULAR | C112: VACUNARTE IPS | D112: 02-CHAPINERO | E112: 0 | F112: 0 | G112: 3 | H112: 3 | S112: 6 | T112: 0.0%
A113: PARTICULAR | B113: PARTICULAR | C113: UNIMARLY | D113: 02-CHAPINERO | E113: 0 | F113: 0 | G113: 0 | H113: 0 | S113: 0 | T113: 0.0% | U113: 0
A114: PARTICULAR | B114: PARTICULAR | C114: HOSPITAL SAN IGNACIO | D114: 02-CHAPINERO | E114: 0 | F114: 0 | G114: 7 | H114: 2 | S114: 9 | T114: 0.0%
A115: PARTICULAR | B115: PARTICULAR | C115: PROGRAMA MADRE CANGURO HOSPITAL SAN IGNACIO | D115: 02-CHAPINERO | E115: 0 | F115: 0 | G115: 15 | H115: 15 | S115: 30 | T115: 0.0%
A116: PARTICULAR | B116: PARTICULAR | C116: IPS AVENIR | D116: 02-CHAPINERO | E116: 0 | F116: 0 | G116: 0 | H116: 0 | S116: 0 | T116: 0.0% | U116: 0
A117: PARTICULAR | B117: PARTICULAR | C117: IPS INMUNOLOGIA Y DIAGNOSTICO ESPECIALIZADO | D117: 02-CHAPINERO | E117: 0 | F117: 0 | G117: 1 | H117: 2 | S117: 3 | T117: 0.0%
A118: PARTICULAR | B118: PARTICULAR | C118: ASOCIACION PEDIATRICA DE LOS ANDES | D118: 02-CHAPINERO | E118: 0 | F118: 0 | G118: 0 | H118: 0 | S118: 0 | T118: 0.0% | U118: 0
A119: PARTICULAR | B119: PARTICULAR | C119: CRUZ ROJA SEDE ANDINO | D119: 02-CHAPINERO | E119: 0 | F119: 0 | G119: 0 | H119: 0 | S119: 0 | T119: 0.0% | U119: 0
A120: PARTICULAR | B120: PARTICULAR | C120: CENTRO MEDICO SANTA MONICA | D120: 02-CHAPINERO | E120: 0 | F120: 0 | H120: 0 | S120: 0 | T120: 0.0% | U120: 0
A121: PEDIATRAS | B121: PEDIATRAS | C121: DR. JUAN OSCAR TAMAYO | D121: 02-CHAPINERO | E121: 0 | F121: 0 | G121: 0 | H121: 3 | S121: 3 | T121: 0.0%
A122: PEDIATRAS | B122: PEDIATRAS | C122: DR. ROBERTO SUAREZ | D122: 02-CHAPINERO | E122: 0 | F122: 0 | G122: 0 | H122: 0 | S122: 0 | T122: 0.0% | U122: 0
A123: PEDIATRAS | B123: PEDIATRAS | C123: DR. WILLIAM RICARDO CABRA | D123: 02-CHAPINERO | E123: 0 | F123: 0 | G123: 4 | H123: 1 | S123: 5 | T123: 0.0%
A124: PEDIATRAS | B124: PEDIATRAS | C124: DR. EDGAR CASTRO | D124: 02-CHAPINERO | E124: 0 | F124: 0 | G124: 5 | H124: 0 | S124: 5 | T124: 0.0%
A125: PEDIATRAS | B125: PEDIATRAS | C125: DR. PABLO KRAUSS | D125: 02-CHAPINERO | E125: 0 | F125: 0 | G125: 3 | H125: 1 | S125: 4 | T125: 0.0%
A126: PEDIATRAS | B126: PEDIATRAS | C126: DR. HERNAN ROBLES | D126: 02-CHAPINERO | E126: 0 | F126: 0 | G126: 7 | H126: 2 | S126: 9 | T126: 0.0%
A127: PEDIATRAS | B127: PEDIATRAS | C127: DR. RAFAEL GAMBOA CASABLANCA | D127: 02-CHAPINERO | E127: 0 | F127: 0 | G127: 4 | H127: 4 | S127: 8 | T127: 0.0%
A128: PEDIATRAS | B128: PEDIATRAS | C128: DR. JAVIER MEJIA | D128: 02-CHAPINERO | E128: 0 | F128: 0 | G128: 1 | H128: 6 | S128: 7 | T128: 0.0%
A129: PEDIATRAS | B129: PEDIATRAS | C129: DR. CARLOS CORTAZAR | D129: 02-CHAPINERO | E129: 0 | F129: 0 | G129: 0 | H129: 0 | S129: 0 | T129: 0.0% | U129: 0
A130: PEDIATRAS | B130: PEDIATRAS | C130: DR. NELSON PARDO | D130: 02-CHAPINERO | E130: 0 | F130: 0 | G130: 0 | H130: 0 | S130: 0 | T130: =IF(E130=0,0,+S130/E130) -> 0.0% | U130: =IF(COUNT(G130:R130)*(E130/12)-S130<0,"",COUNT(G130:R130)*(E130/12)-S130) -> 0
A131: PEDIATRAS | B131: PEDIATRAS | C131: DR. ALVARO JACOME | D131: 02-CHAPINERO | E131: 0 | F131: 0 | G131: 0 | H131: 1 | S131: =SUM(G131:R131) -> 1 | T131: 0.0%
A132: PEDIATRAS | B132: PEDIATRAS | C132: DR. SILVIO COPO | D132: 02-CHAPINERO | E132: 0 | F132: =E132/12 -> 0 | G132: 0 | H132: 2 | S132: 2 | T132: 0.0%
A133: PEDIATRAS | B133: PEDIATRAS | C133: DR. HECTOR FERNANDO MENDOZA | D133: 02-CHAPINERO | E133: 0 | F133: 0 | G133: 2 | H133: 4 | S133: 6 | T133: 0.0%
A134: PEDIATRAS | B134: PEDIATRAS | C134: DR. DIMITRIOS | D134: 02-CHAPINERO | E134: 0 | F134: 0 | G134: 0 | H134: 1 | S134: 1 | T134: 0.0%
A135: PEDIATRAS | B135: PEDIATRAS | C135: DR. ALVARO MARIÑO | D135: 02-CHAPINERO | E135: 0 | F135: 0 | G135: 0 | H135: 0 | S135: 0 | T135: 0.0% | U135: 0
A136: PEDIATRAS | B136: PEDIATRAS | C136: DR. ANDRES VARGAS | D136: 02-CHAPINERO | E136: 0 | F136: 0 | G136: 2 | H136: 0 | S136: 2 | T136: 0.0%
A137: PEDIATRAS | B137: PEDIATRAS | C137: DR. JORGE CAMILO LUNA | D137: 02-CHAPINERO | E137: 0 | F137: 0 | G137: 0 | H137: 12 | S137: 12 | T137: 0.0%
A138: PEDIATRAS | B138: PEDIATRAS | C138: DR. BERNARDO HUERTAS | D138: 02-CHAPINERO | E138: 0 | F138: 0 | G138: 11 | H138: 8 | S138: 19 | T138: 0.0%
A139: PEDIATRAS | B139: PEDIATRAS | C139: DR. CARLOS M CASTILLO | D139: 02-CHAPINERO | E139: 0 | F139: 0 | G139: 0 | H139: 0 | S139: 0 | T139: 0.0% | U139: 0
A140: PEDIATRAS | B140: PEDIATRAS | C140: DR. HEINZ OTTO PFALZGRAF | D140: 02-CHAPINERO | E140: 0 | F140: 0 | G140: 0 | H140: 0 | S140: 0 | T140: 0.0% | U140: 0
A141: PEDIATRAS | B141: PEDIATRAS | C141: DR. GONZALEZ BALLESTEROS | D141: 02-CHAPINERO | E141: 0 | F141: 0 | G141: 0 | H141: 0 | S141: 0 | T141: 0.0% | U141: 0
A142: PEDIATRAS | B142: PEDIATRAS | C142: DR. NORBERTO SALAMANCA | D142: 02-CHAPINERO | E142: 0 | F142: 0 | G142: 2 | H142: 0 | S142: 2 | T142: 0.0%
A143: PEDIATRAS | B143: PEDIATRAS | C143: DR. CAMILO ENRIQUE SOTOMAYOR | D143: 02-CHAPINERO | E143: 0 | F143: 0 | G143: 1 | H143: 1 | S143: 2 | T143: 0.0%
A144: PEDIATRAS | B144: PEDIATRAS | C144: DR. SANTIAGO RUEDA SAIZ | D144: 02-CHAPINERO | E144: 0 | F144: 0 | G144: 0 | H144: 4 | S144: 4 | T144: 0.0%
A145: PEDIATRAS | B145: PEDIATRAS | C145: DR. HENRY HERNANDO SANCHEZ ESCOBAR | D145: 02-CHAPINERO | E145: 0 | F145: 0 | G145: 1 | H145: 1 | S145: 2 | T145: 0.0%
A146: PEDIATRAS | B146: PEDIATRAS | C146: DR. RUBEN DARIO TAMAYO | D146: 02-CHAPINERO | E146: 0 | F146: 0 | G146: 0 | H146: 3 | S146: 3 | T146: 0.0%
A147: PEDIATRAS | B147: PEDIATRAS | C147: DR. JAIME MAURICIO MATALLANA | D147: 02-CHAPINERO | E147: 0 | F147: 0 | G147: 2 | H147: 5 | S147: 7 | T147: 0.0%
A148: PEDIATRAS | B148: PEDIATRAS | C148: DR. RODRIGO GARCIA | D148: 02-CHAPINERO | E148: 0 | F148: 0 | G148: 0 | H148: 0 | S148: 0 | T148: 0.0% | U148: 0
A149: PEDIATRAS | B149: PEDIATRAS | C149: DR. FELIPE ROBAYO | D149: 02-CHAPINERO | E149: 0 | F149: 0 | G149: 0 | H149: 0 | S149: 0 | T149: 0.0% | U149: 0
A150: PEDIATRAS | B150: PEDIATRAS | C150: DR. RUBEN FRANCO | D150: 02-CHAPINERO | E150: 0 | F150: 0 | G150: 0 | H150: 0 | S150: 0 | T150: 0.0% | U150: 0
A151: PEDIATRAS | B151: PEDIATRAS | C151: DR. ORLANDO RODRIGUEZ RAMIREZ | D151: 02-CHAPINERO | E151: 0 | F151: 0 | G151: 6 | H151: 1 | S151: 7 | T151: 0.0%
A152: PEDIATRAS | B152: PEDIATRAS | C152: DR. ARTURO MORENO | D152: 02-CHAPINERO | E152: 0 | F152: 0 | G152: 0 | H152: 0 | S152: 0 | T152: 0.0% | U152: 0
A153: PEDIATRAS | B153: PEDIATRAS | C153: DR. FRANCISCO LEAL QUEVEDO | D153: 02-CHAPINERO | E153: 0 | F153: 0 | G153: 0 | H153: 0 | S153: 0 | T153: 0.0% | U153: 0
A154: PEDIATRAS | B154: PEDIATRAS | C154: DR. CARLOS DIAZ PUENTES | D154: 02-CHAPINERO | E154: 0 | F154: 0 | G154: 0 | H154: 0 | S154: 0 | T154: 0.0% | U154: 0
A155: PEDIATRAS | B155: PEDIATRAS | C155: DR. PEDRO ERASMO MENDOZA | D155: 02-CHAPINERO | E155: 0 | F155: 0 | G155: 0 | H155: 0 | S155: 0 | T155: 0.0% | U155: 0
A156: PEDIATRAS | B156: PEDIATRAS | C156: DR. DIMAS ROSAS | D156: 02-CHAPINERO | E156: 0 | F156: 0 | G156: 0 | H156: 0 | S156: 0 | T156: 0.0% | U156: 0
A157: PEDIATRAS | B157: PEDIATRAS | C157: DR. JAVIER BRITO MORENO | D157: 02-CHAPINERO | E157: 0 | F157: 0 | G157: 0 | H157: 0 | S157: 0 | T157: 0.0% | U157: 0
A158: PEDIATRAS | B158: PEDIATRAS | C158: DR. GUSTAVO CORTÉS | D158: 02-CHAPINERO | E158: 0 | F158: 0 | G158: 0 | H158: 0 | S158: 0 | T158: 0.0% | U158: 0
A159: PEDIATRAS | B159: PEDIATRAS | C159: DR. CARLOS VELASQUEZ | D159: 02-CHAPINERO | E159: 0 | F159: 0 | G159: 0 | H159: 0 | S159: 0 | T159: 0.0% | U159: 0
A160: PEDIATRAS | B160: PEDIATRAS | C160: DR. RICARDO GOMEZ | D160: 02-CHAPINERO | E160: 0 | F160: 0 | G160: 0 | H160: 0 | S160: 0 | T160: 0.0% | U160: 0
A161: PEDIATRAS | B161: PEDIATRAS | C161: DR. SARA BERNAL | D161: 02-CHAPINERO | E161: 0 | F161: 0 | G161: 0 | H161: 0 | S161: 0 | T161: 0.0% | U161: 0
A162: PEDIATRAS | B162: PEDIATRAS | C162: DRA. MARIA PATRICIA AGUALIMPIA | D162: 02-CHAPINERO | E162: 0 | F162: 0 | G162: 0 | H162: 0 | S162: 0 | T162: 0.0% | U162: 0
A163: PEDIATRAS | B163: PEDIATRAS | C163: DRA. LUISA FERNANDA FORERO ACOSTA | D163: 02-CHAPINERO | E163: 0 | F163: 0 | G163: 0 | H163: 0 | S163: 0 | T163: 0.0% | U163: 0
A164: PEDIATRAS | B164: PEDIATRAS | C164: DRA. MARIA CLARA CASAS PARDO | D164: 02-CHAPINERO | E164: 0 | F164: 0 | G164: 0 | H164: 0 | S164: 0 | T164: 0.0% | U164: 0
A165: PEDIATRAS | B165: PEDIATRAS | C165: DRA. MARTHA EUGENIA RONDEROS DE FORERO | D165: 02-CHAPINERO | E165: 0 | F165: 0 | G165: 0 | H165: 0 | S165: 0 | T165: 0.0% | U165: 0
A166: PEDIATRAS | B166: PEDIATRAS | C166: DRA. MARIA ISABEL USCHER | D166: 02-CHAPINERO | E166: 0 | F166: 0 | G166: 1 | H166: 4 | S166: 5 | T166: 0.0%
A167: PEDIATRAS | B167: PEDIATRAS | C167: DRA. MARIA DE LOS ANGELES MUÑOZ | D167: 02-CHAPINERO | E167: 0 | F167: 0 | G167: 0 | H167: 0 | S167: 0 | T167: 0.0% | U167: 0
A168: PEDIATRAS | B168: PEDIATRAS | C168: DRA. CLARA ABELLO REYES | D168: 02-CHAPINERO | E168: 0 | F168: 0 | G168: 0 | H168: 0 | S168: 0 | T168: 0.0% | U168: 0
A169: PEDIATRAS | B169: PEDIATRAS | C169: DRA. PATRICIA CONTRERAS | D169: 02-CHAPINERO | E169: 0 | F169: 0 | G169: 0 | H169: 0 | S169: 0 | T169: 0.0% | U169: 0
A170: PEDIATRAS | B170: PEDIATRAS | C170: DRA. CLAUDIA ZOPPI | D170: 02-CHAPINERO | E170: 0 | F170: 0 | G170: 0 | H170: 0 | S170: 0 | T170: 0.0% | U170: 0
A171: PEDIATRAS | B171: PEDIATRAS | C171: DRA. MARIA DE LOS ANGELES FERNANDEZ LUQUE | D171: 02-CHAPINERO | E171: 0 | F171: 0 | G171: 0 | H171: 0 | S171: 0 | T171: 0.0% | U171: 0
A172: PEDIATRAS | B172: PEDIATRAS | C172: DRA. RUTH CORDOBA CORDOBA | D172: 02-CHAPINERO | E172: 0 | F172: 0 | G172: 0 | H172: 0 | S172: 0 | T172: 0.0% | U172: 0
A173: PEDIATRAS | B173: PEDIATRAS | C173: DRA. LUZ ESTELA CORTES | D173: 02-CHAPINERO | E173: 0 | F173: 0 | G173: 0 | H173: 0 | S173: 0 | T173: 0.0% | U173: 0
A174: UNICAJAS | B174: UNICAJAS | C174: UPA SAN LUIS | D174: 02-CHAPINERO | E174: 6 | F174: 1 | G174: 0 | H174: 0 | S174: 0 | T174: 0.0% | U174: 1
A175: 02-CHAPINERO | B175: OTROS | C175: UPA SAN LUIS | D175: 02-CHAPINERO | E175: 958 | F175: 80 | G175: 6 | H175: 0 | S175: 6 | T175: 0.6% | U175: 154
A176: 02-CHAPINERO | B176: DEMAS EAPB | C176: UPA SAN LUIS | D176: 02-CHAPINERO | F176: 0 | G176: 9 | H176: 1 | S176: 10 | T176: 0.0%
A177: UNICAJAS | B177: UNICAJAS | C177: COMFASALUD SEDE CENTRO | D177: 03-SANTA FE | E177: 93 | F177: 8 | G177: 2 | H177: 5 | S177: 7 | T177: 7.5% | U177: 9
A178: MEDIMAS | B178: MEDIMAS | C178: CORVESALUD TEUSAQUILLO | D178: 03-SANTA FE | E178: 283 | F178: 24 | G178: 4 | H178: 3 | S178: 7 | T178: 2.5% | U178: 40
A179: 03-SANTA FE | B179: CAPITAL SALUD | C179: EXTRAMURAL SANTA FE | D179: 03-SANTA FE | E179: 0 | F179: 0 | G179: 7 | H179: 14 | S179: 21 | T179: 0.0%
A180: 03-SANTA FE | B180: DEMAS EAPB | C180: EXTRAMURAL SANTA FE | D180: 03-SANTA FE | E180: 0 | F180: 0 | G180: 13 | H180: 9 | S180: 22 | T180: 0.0%
A181: 03-SANTA FE | B181: OTROS | C181: EXTRAMURAL SANTA FE | D181: 03-SANTA FE | E181: 0 | F181: 0 | G181: 15 | H181: 12 | S181: 27 | T181: 0.0%
A182: 03-SANTA FE | B182: UNICAJAS | C182: EXTRAMURAL SANTA FE | D182: 03-SANTA FE | E182: 0 | F182: 0 | G182: 2 | H182: 2 | S182: 4 | T182: 0.0%
A183: 03-SANTA FE | B183: CAPITAL SALUD | C183: USS LACHES | D183: 03-SANTA FE | E183: 179 | F183: 15 | G183: 7 | H183: 4 | S183: 11 | T183: 6.1% | U183: 19
A184: 03-SANTA FE | B184: DEMAS EAPB | C184: USS LACHES | D184: 03-SANTA FE | E184: 0 | F184: 0 | G184: 15 | H184: 7 | S184: 22 | T184: 0.0%
A185: 03-SANTA FE | B185: OTROS | C185: USS LACHES | D185: 03-SANTA FE | E185: 82 | F185: 7 | G185: 2 | H185: 3 | S185: 5 | T185: 6.1% | U185: 9
A186: 03-SANTA FE | B186: UNICAJAS | C186: USS LACHES | D186: 03-SANTA FE | E186: 42 | F186: 4 | G186: 4 | H186: 2 | S186: 6 | T186: 14.3% | U186: 1
A187: 03-SANTA FE | B187: CAPITAL SALUD | C187: USS LAS CRUCES | D187: 03-SANTA FE | E187: 156 | F187: 13 | G187: 4 | H187: 1 | S187: 5 | T187: 3.2% | U187: 21
A188: 03-SANTA FE | B188: DEMAS EAPB | C188: USS LAS CRUCES | D188: 03-SANTA FE | E188: 0 | F188: 0 | G188: 8 | H188: 4 | S188: 12 | T188: 0.0%
A189: 03-SANTA FE | B189: OTROS | C189: USS LAS CRUCES | D189: 03-SANTA FE | E189: 71 | F189: 6 | G189: 3 | H189: 5 | S189: 8 | T189: 11.3% | U189: 4
A190: 03-SANTA FE | B190: UNICAJAS | C190: USS LAS CRUCES | D190: 03-SANTA FE | E190: 36 | F190: 3 | G190: 1 | H190: 1 | S190: 2 | T190: 5.6% | U190: 4
A191: 03-SANTA FE | B191: CAPITAL SALUD | C191: USS PERSEVERANCIA | D191: 03-SANTA FE | E191: 30 | F191: 3 | G191: 2 | H191: 3 | S191: 5 | T191: 16.7% | U191: 0
A192: 03-SANTA FE | B192: DEMAS EAPB | C192: USS PERSEVERANCIA | D192: 03-SANTA FE | E192: 0 | F192: 0 | G192: 2 | H192: 1 | S192: 3 | T192: 0.0%
A193: 03-SANTA FE | B193: OTROS | C193: USS PERSEVERANCIA | D193: 03-SANTA FE | E193: 14 | F193: 1 | G193: 4 | H193: 0 | S193: 4 | T193: 28.6%
A194: 03-SANTA FE | B194: UNICAJAS | C194: USS PERSEVERANCIA | D194: 03-SANTA FE | E194: 7 | F194: 1 | G194: 0 | H194: 0 | S194: 0 | T194: =IF(E194=0,0,+S194/E194) -> 0.0% | U194: =IF(COUNT(G194:R194)*(E194/12)-S194<0,"",COUNT(G194:R194)*(E194/12)-S194) -> 1
A195: PARTICULAR | B195: PARTICULAR | C195: CLINICA SAN RAFAEL | D195: 04-SAN CRISTOBAL | E195: 266 | F195: 22 | G195: 22 | H195: 11 | S195: =SUM(G195:R195) -> 33 | T195: 12.4% | U195: 11
A196: FAMISANAR | B196: FAMI- COLSB | C196: CENTRO MEDICO COLSUBSIDIO 20 DE JULIO | D196: 04-SAN CRISTOBAL | F196: =E196/12 -> 0 | S196: 0 | T196: 0.0% | U196: 0
A197: 04-SAN CRISTOBAL | B197: CAPITAL SALUD | C197: EXTRAMURAL SAN CRISTOBAL | D197: 04-SAN CRISTOBAL | E197: 0 | F197: 0 | G197: 31 | H197: 40 | S197: 71 | T197: 0.0%
A198: 04-SAN CRISTOBAL | B198: DEMAS EAPB | C198: EXTRAMURAL SAN CRISTOBAL | D198: 04-SAN CRISTOBAL | E198: 0 | F198: 0 | G198: 66 | H198: 88 | S198: 154 | T198: 0.0%
A199: 04-SAN CRISTOBAL | B199: OTROS | C199: EXTRAMURAL SAN CRISTOBAL | D199: 04-SAN CRISTOBAL | E199: 0 | F199: 0 | G199: 9 | H199: 19 | S199: 28 | T199: 0.0%
A200: 04-SAN CRISTOBAL | B200: UNICAJAS | C200: EXTRAMURAL SAN CRISTOBAL | D200: 04-SAN CRISTOBAL | E200: 0 | F200: 0 | G200: 7 | H200: 3 | S200: 10 | T200: 0.0%
... 620 more rows

Sheet VARICELA
A1: EAPB | B1: EPS O ESE | C1: IPS | D1: Localidad | E1: Meta Anual de 1 Año | F1: Meta Mensual | G1: Enero | H1: Febrero | I1: Marzo | J1: Abril | K1: Mayo | L1: Junio | M1: Julio | N1: Agosto | O1: Septiembre | P1: Octubre | Q1: Noviembre | R1: Diciembre | S1: Total | T1: % Cobertura | U1: Deficit
A2: CAPITAL SALUD | B2: CAPITAL SALUD | C2: UPA SAN CRISTOBAL | D2: 01-USAQUEN | E2: 100 | F2: =E2/12 -> 8 | G2: 4 | H2: 4 | S2: =SUM(G2:R2) -> 8 | T2: =IF(E2=0,0,+S2/E2) -> 8.0% | U2: =IF(COUNT(G2:R2)*(E2/12)-S2<0,"",COUNT(G2:R2)*(E2/12)-S2) -> 9
A3: CAPITAL SALUD | B3: CAPITAL SALUD | C3: UPA USAQUEN | D3: 01-USAQUEN | E3: 14 | F3: 1 | G3: 0 | H3: 1 | S3: =SUM(G3:R3) -> 1 | T3: 7.1% | U3: 1
A4: CAPITAL SALUD | B4: CAPITAL SALUD | C4: UPA ORQUIDEAS | D4: 01-USAQUEN | E4: 6 | F4: 1 | G4: 5 | H4: 1 | S4: 6 | T4: 100.0%
A5: CAPITAL SALUD | B5: CAPITAL SALUD | C5: UPA CODITO | D5: 01-USAQUEN | E5: 115 | F5: 10 | G5: 3 | H5: 6 | S5: 9 | T5: 7.8% | U5: 10
A6: CAPITAL SALUD | B6: CAPITAL SALUD | C6: CAMI VERBENAL | D6: 01-USAQUEN | E6: 106 | F6: 9 | G6: 7 | H6: 5 | S6: 12 | T6: 11.3% | U6: 6
A7: CAPITAL SALUD | B7: CAPITAL SALUD | C7: HOSPITAL SIMON BOLIVAR | D7: 01-USAQUEN | E7: 15 | F7: 1 | G7: 12 | H7: 5 | S7: 17 | T7: 113.3%
A8: 01-USAQUEN | B8: 01-USAQUEN | C8: EXTRAMURAL USAQUEN | D8: 01-USAQUEN | F8: 0 | G8: 45 | H8: 44 | S8: 89 | T8: 0.0%
A9: ALIANSALUD | B9: ALIANSALUD | C9: CENTRO MEDICO COLMEDICA SANTA BARBARA | D9: 01-USAQUEN | E9: 794 | F9: 66 | G9: 58 | H9: 52 | S9: 110 | T9: 13.9% | U9: 22
A10: COMPENSAR | B10: COMPENSAR | C10: USS CALLE 134 | D10: 01-USAQUEN | E10: 328 | F10: 27 | G10: 15 | H10: 10 | S10: 25 | T10: 7.6% | U10: 30
A11: COMPENSAR | B11: COMPENSAR | C11: USS CALLE 145 | D11: 01-USAQUEN | E11: 252 | F11: 21 | G11: 37 | H11: 27 | S11: 64 | T11: 25.4%
A12: COMPENSAR | B12: COMPENSAR | C12: JAVESALUD TOBERIN | D12: 01-USAQUEN | E12: 396 | F12: 33 | G12: 3 | H12: 5 | S12: 8 | T12: 2.0% | U12: 58
A13: COOMEVA | B13: COOMEVA | C13: SINERGIA UNIDAD INTEGRAL EN SALUD | D13: 01-USAQUEN | E13: 63 | F13: 5 | G13: 13 | H13: 13 | S13: 26 | T13: 41.3%
A14: FAMISANAR | B14: FAMI- COLSB | C14: CENTRO MEDICO COLSUBSIDIO USAQUEN | D14: 01-USAQUEN | E14: 315 | F14: 26 | G14: 28 | H14: 23 | S14: 51 | T14: 16.2% | U14: 2
A15: MILITAR | B15: MILITAR | C15: DISPENSARIO MEDICO CANTON NORTE | D15: 01-USAQUEN | E15: 287 | F15: 24 | G15: 9 | H15: 9 | S15: 18 | T15: 6.3% | U15: 30
A16: NUEVA EPS | B16: NUEVA EPS | C16: IPS VIVA 1A SEDE TOBERIN | D16: 01-USAQUEN | E16: 130 | F16: 11 | G16: 13 | H16: 7 | S16: 20 | T16: 15.4% | U16: 2
A17: NUEVA EPS | B17: NUEVA EPS | C17: CAFAM GRANADA HILLS | D17: 01-USAQUEN | E17: 58 | F17: 5 | G17: 6 | H17: 3 | S17: 9 | T17: 15.5% | U17: 1
A18: SANITAS | B18: SANITAS | C18: UAP SANITAS TOBERIN | D18: 01-USAQUEN | E18: 629 | F18: 52 | G18: 31 | H18: 37 | S18: 68 | T18: 10.8% | U18: 37
A19: SANITAS | B19: SANITAS | C19: MEDIKA IPS SANITAS UAP USAQUEN | D19: 01-USAQUEN | E19: 183 | F19: 15 | G19: 1 | H19: 2 | S19: 3 | T19: 1.6% | U19: 28
A20: SANITAS | B20: SANITAS | C20: UAP SANTA BARBARA | D20: 01-USAQUEN | E20: 884 | F20: 74 | G20: 77 | H20: 83 | S20: 160 | T20: 18.1%
A21: SANITAS | B21: SANITAS | C21: SANITAS BANCO DE LA REPUBLICA | D21: 01-USAQUEN | E21: 0 | F21: 0 | G21: 1 | H21: 0 | S21: 1 | T21: 0.0%
A22: SALUD TOTAL | B22: SALUD TOTAL | C22: VIRREY SOLIS TOBERÍN | D22: 01-USAQUEN | E22: 418 | F22: 35 | G22: 19 | H22: 19 | S22: 38 | T22: 9.1% | U22: 32
A23: SURA | B23: SURA | C23: IPS JAVESALUD SANTA BEATRIZ | D23: 01-USAQUEN | E23: 366 | F23: 31 | G23: 15 | H23: 10 | S23: 25 | T23: 6.8% | U23: 36
A24: ECOPETROL | B24: ECOPETROL | C24: IPS CLINICOS PALATINO | D24: 01-USAQUEN | E24: 93 | F24: 8 | G24: 5 | H24: 11 | S24: 16 | T24: 17.2%
A25: PARTICULAR | B25: PARTICULAR | C25: CLINICA PEDIATRICA COLSANITAS | D25: 01-USAQUEN | E25: 675 | F25: 56 | G25: 85 | H25: 64 | S25: 149 | T25: 22.1%
A26: PARTICULAR | B26: PARTICULAR | C26: CENTRO MEDICO COLSANITAS LA CALLEJA | D26: 01-USAQUEN | E26: 130 | F26: 11 | G26: 19 | H26: 9 | S26: 28 | T26: 21.5%
A27: PARTICULAR | B27: PARTICULAR | C27: CENTRO MEDICO COLSANITAS 108 | D27: 01-USAQUEN | E27: 26 | F27: 2 | G27: 5 | H27: 1 | S27: 6 | T27: 23.1%
A28: PARTICULAR | B28: PARTICULAR | C28: CENTRO MEDICO COLSANITAS SANTA ANA | D28: 01-USAQUEN | E28: 4 | F28: 0 | G28: 0 | H28: 1 | S28: 1 | T28: 25.0%
A29: PARTICULAR | B29: PARTICULAR | C29: FUNDACIÓN CARDIO INFANTIL | D29: 01-USAQUEN | E29: 0 | F29: 0 | G29: 17 | H29: 11 | S29: 28 | T29: 0.0%
A30: PARTICULAR | B30: PARTICULAR | C30: ENFASO USAQUEN | D30: 01-USAQUEN | E30: 0 | F30: 0 | G30: 5 | H30: 10 | S30: 15 | T30: 0.0%
A31: PARTICULAR | B31: PARTICULAR | C31: UNIDAD DE VACUNACIÓN INTERNACIONAL | D31: 01-USAQUEN | E31: 0 | F31: 0 | G31: 5 | H31: 2 | S31: 7 | T31: 0.0%
A32: PARTICULAR | B32: PARTICULAR | C32: INMUNOLOGÍA Y DIAGNÓSTICO ESPECIALIZADO LTDA. | D32: 01-USAQUEN | E32: 0 | F32: 0 | G32: 1 | H32: 1 | S32: 2 | T32: 0.0%
A33: PARTICULAR | B33: PARTICULAR | C33: PROTEGER HEALHT CARE | D33: 01-USAQUEN | E33: 0 | F33: 0 | G33: 0 | H33: 1 | S33: 1 | T33: 0.0%
A34: PARTICULAR | B34: PARTICULAR | C34: FUNDACION SANTA FE DE BOGOTA | D34: 01-USAQUEN | E34: 0 | F34: 0 | G34: 0 | H34: 0 | S34: 0 | T34: 0.0% | U34: 0
A35: PARTICULAR | B35: PARTICULAR | C35: IPS CRUZ ROJA SEDE UNICENTRO | D35: 01-USAQUEN | E35: 0 | F35: 0 | G35: 0 | H35: 0 | S35: 0 | T35: 0.0% | U35: 0
A36: PARTICULAR | B36: PARTICULAR | C36: IPS CRUZ ROJA SAMU CALLE 145 | D36: 01-USAQUEN | E36: 0 | F36: 0 | G36: 0 | H36: 0 | S36: 0 | T36: 0.0% | U36: 0
A37: PEDIATRAS | B37: PEDIATRAS | C37: DR. ALEJANDRO LÓPEZ | D37: 01-USAQUEN | E37: 0 | F37: 0 | G37: 0 | H37: 0 | S37: 0 | T37: 0.0% | U37: 0
A38: PEDIATRAS | B38: PEDIATRAS | C38: DR. CARLOS NEFTALI TORRES | D38: 01-USAQUEN | E38: 0 | F38: 0 | G38: 3 | H38: 7 | S38: 10 | T38: 0.0%
A39: PEDIATRAS | B39: PEDIATRAS | C39: DR. FRANCISCO NUÑEZ | D39: 01-USAQUEN | E39: 0 | F39: 0 | G39: 0 | H39: 1 | S39: 1 | T39: 0.0%
A40: PEDIATRAS | B40: PEDIATRAS | C40: DR. FERNANDO GOMEZ | D40: 01-USAQUEN | E40: 0 | F40: 0 | G40: 0 | H40: 0 | S40: 0 | T40: 0.0% | U40: 0
A41: PEDIATRAS | B41: PEDIATRAS | C41: DR. FERNANDO ZARATE MORENO | D41: 01-USAQUEN | E41: 0 | F41: 0 | G41: 1 | H41: 1 | S41: 2 | T41: 0.0%
A42: PEDIATRAS | B42: PEDIATRAS | C42: DR. GONZALO GARCIA | D42: 01-USAQUEN | E42: 0 | F42: 0 | G42: 3 | H42: 0 | S42: 3 | T42: 0.0%
A43: PEDIATRAS | B43: PEDIATRAS | C43: DR. GUSTAVO MORALES | D43: 01-USAQUEN | E43: 0 | F43: 0 | G43: 2 | H43: 4 | S43: 6 | T43: 0.0%
A44: PEDIATRAS | B44: PEDIATRAS | C44: DR. JAIME OSPINA | D44: 01-USAQUEN | E44: 0 | F44: 0 | G44: 1 | H44: 0 | S44: 1 | T44: 0.0%
A45: PEDIATRAS | B45: PEDIATRAS | C45: DR. JORGE URIBE | D45: 01-USAQUEN | E45: 0 | F45: 0 | G45: 0 | H45: 1 | S45: 1 | T45: 0.0%
A46: PEDIATRAS | B46: PEDIATRAS | C46: DR. JUAN LUIS FIGUEROA | D46: 01-USAQUEN | E46: 0 | F46: 0 | G46: 1 | H46: 2 | S46: 3 | T46: 0.0%
A47: PEDIATRAS | B47: PEDIATRAS | C47: DR. LUIS AUGUSTO PERNA | D47: 01-USAQUEN | E47: 0 | F47: 0 | G47: 2 | H47: 1 | S47: 3 | T47: 0.0%
A48: PEDIATRAS | B48: PEDIATRAS | C48: DR. LIBARDO ELI TRIANA | D48: 01-USAQUEN | E48: 0 | F48: 0 | G48: 0 | H48: 0 | S48: 0 | T48: 0.0% | U48: 0
A49: PEDIATRAS | B49: PEDIATRAS | C49: DR. OSWALDO MERCADO HOYOS | D49: 01-USAQUEN | E49: 0 | F49: 0 | G49: 1 | H49: 2 | S49: 3 | T49: 0.0%
A50: PEDIATRAS | B50: PEDIATRAS | C50: DR. ROBERTO BENIRO | D50: 01-USAQUEN | E50: 0 | F50: 0 | G50: 0 | H50: 0 | S50: 0 | T50: 0.0% | U50: 0
A51: PEDIATRAS | B51: PEDIATRAS | C51: DR. SERGIO ISAZA | D51: 01-USAQUEN | E51: 0 | F51: 0 | G51: 1 | H51: 1 | S51: 2 | T51: 0.0%
A52: PEDIATRAS | B52: PEDIATRAS | C52: DR. SANTIAGO UCROS | D52: 01-USAQUEN | E52: 0 | F52: 0 | G52: 0 | H52: 0 | S52: 0 | T52: 0.0% | U52: 0
A53: PEDIATRAS | B53: PEDIATRAS | C53: DR. GERMAN SILVA | D53: 01-USAQUEN | E53: 0 | F53: 0 | G53: 0 | H53: 0 | S53: 0 | T53: 0.0% | U53: 0
A54: PEDIATRAS | B54: PEDIATRAS | C54: DR. DANIEL ABRIL | D54: 01-USAQUEN | E54: 0 | F54: 0 | G54: 0 | H54: 0 | S54: 0 | T54: 0.0% | U54: 0
A55: PEDIATRAS | B55: PEDIATRAS | C55: DR. CARLOS EDUARDO OLMOS | D55: 01-USAQUEN | E55: 0 | F55: 0 | G55: 0 | H55: 0 | S55: 0 | T55: 0.0% | U55: 0
A56: PEDIATRAS | B56: PEDIATRAS | C56: DR. EDGARDO CHATMAN | D56: 01-USAQUEN | E56: 0 | F56: 0 | G56: 0 | H56: 0 | S56: 0 | T56: 0.0% | U56: 0
A57: PEDIATRAS | B57: PEDIATRAS | C57: DR. JORGE FLOREZ OTERO | D57: 01-USAQUEN | E57: 0 | F57: 0 | G57: 0 | H57: 0 | S57: 0 | T57: 0.0% | U57: 0
A58: PEDIATRAS | B58: PEDIATRAS | C58: DRA. ALEJANDRA MARIA VALENCIA | D58: 01-USAQUEN | E58: 0 | F58: 0 | G58: 0 | H58: 0 | S58: 0 | T58: 0.0% | U58: 0
A59: PEDIATRAS | B59: PEDIATRAS | C59: DRA. ANA MARIA GOYENECHE | D59: 01-USAQUEN | E59: 0 | F59: 0 | G59: 0 | H59: 0 | S59: 0 | T59: 0.0% | U59: 0
A60: PEDIATRAS | B60: PEDIATRAS | C60: DRA. JIMENA VARELA | D60: 01-USAQUEN | E60: 0 | F60: 0 | G60: 0 | H60: 1 | S60: 1 | T60: 0.0%
A61: PEDIATRAS | B61: PEDIATRAS | C61: DRA. LIA SAN MIGUEL | D61: 01-USAQUEN | E61: 0 | F61: 0 | G61: 0 | H61: 0 | S61: 0 | T61: 0.0% | U61: 0
A62: PEDIATRAS | B62: PEDIATRAS | C62: DRA. LIBIA SEGURA | D62: 01-USAQUEN | E62: 0 | F62: 0 | G62: 0 | H62: 1 | S62: 1 | T62: 0.0%
A63: PEDIATRAS | B63: PEDIATRAS | C63: DRA. MARÍA JOSÉ PEDRAZA | D63: 01-USAQUEN | E63: 0 | F63: 0 | G63: 0 | H63: 0 | S63: 0 | T63: 0.0% | U63: 0
A64: PEDIATRAS | B64: PEDIATRAS | C64: DRA. MARTHA LUCIA SANCHEZ | D64: 01-USAQUEN | E64: 0 | F64: 0 | G64: 0 | H64: 0 | S64: 0 | T64: 0.0% | U64: 0
A65: PEDIATRAS | B65: PEDIATRAS | C65: DRA. OLGA LUCÍA SÁNCHEZ | D65: 01-USAQUEN | E65: 0 | F65: 0 | G65: 0 | H65: 0 | S65: 0 | T65: 0.0% | U65: 0
A66: PEDIATRAS | B66: PEDIATRAS | C66: DRA. SANDRA BELTRAN | D66: 01-USAQUEN | E66: 0 | F66: 0 | G66: 0 | H66: 0 | S66: 0 | T66: =IF(E66=0,0,+S66/E66) -> 0.0% | U66: =IF(COUNT(G66:R66)*(E66/12)-S66<0,"",COUNT(G66:R66)*(E66/12)-S66) -> 0
A67: PEDIATRAS | B67: PEDIATRAS | C67: DRA. IVANA CABRERA | D67: 01-USAQUEN | E67: 0 | F67: 0 | G67: 0 | H67: 0 | S67: =SUM(G67:R67) -> 0 | T67: 0.0% | U67: 0
A68: PEDIATRAS | B68: PEDIATRAS | C68: DRA. NAYITA ALARCON | D68: 01-USAQUEN | E68: 0 | F68: =E68/12 -> 0 | G68: 0 | H68: 0 | S68: 0 | T68: 0.0% | U68: 0
A69: PEDIATRAS | B69: PEDIATRAS | C69: DRA. ELIZABETH GARCIA | D69: 01-USAQUEN | E69: 0 | F69: 0 | G69: 0 | H69: 0 | S69: 0 | T69: 0.0% | U69: 0
A70: PEDIATRAS | B70: PEDIATRAS | C70: DRA. BERTHA CALDERON DE RAMOS | D70: 01-USAQUEN | E70: 0 | F70: 0 | G70: 0 | H70: 0 | S70: 0 | T70: 0.0% | U70: 0
A71: PEDIATRAS | B71: PEDIATRAS | C71: DRA. MIRYAM CORREA | D71: 01-USAQUEN | E71: 0 | F71: 0 | G71: 0 | H71: 1 | S71: 1 | T71: 0.0%
A72: 01-USAQUEN | B72: UNICAJAS | C72: UPA SAN CRISTOBAL | D72: 01-USAQUEN | E72: 6 | F72: 1 | G72: 2 | H72: 0 | S72: 2 | T72: 33.3%
A73: UNICAJAS | B73: UNICAJAS | C73: UPA USAQUEN | D73: 01-USAQUEN | E73: 6 | F73: 1 | G73: 0 | H73: 0 | S73: 0 | T73: 0.0% | U73: 1
A74: UNICAJAS | B74: UNICAJAS | C74: UPA ORQUIDEAS | D74: 01-USAQUEN | E74: 6 | F74: 1 | G74: 0 | H74: 0 | S74: 0 | T74: 0.0% | U74: 1
A75: UNICAJAS | B75: UNICAJAS | C75: UPA CODITO | D75: 01-USAQUEN | E75: 6 | F75: 1 | H75: 2 | S75: 2 | T75: 33.3%
A76: UNICAJAS | B76: UNICAJAS | C76: CAMI VERBENAL | D76: 01-USAQUEN | E76: 6 | F76: 1 | G76: 1 | H76: 0 | S76: 1 | T76: 16.7% | U76: 0
A77: 01-USAQUEN | B77: UNICAJAS | C77: HOSPITAL SIMON BOLIVAR | D77: 01-USAQUEN | E77: 6 | F77: 1 | G77: 3 | H77: 0 | S77: 3 | T77: 50.0%
A78: 01-USAQUEN | B78: OTROS | C78: UPA SAN CRISTOBAL | D78: 01-USAQUEN | E78: 205 | F78: 17 | G78: 9 | H78: 2 | S78: 11 | T78: 5.4% | U78: 23
A79: 01-USAQUEN | B79: OTROS | C79: UPA USAQUEN | D79: 01-USAQUEN | E79: 95 | F79: 8 | G79: 0 | H79: 1 | S79: 1 | T79: 1.1% | U79: 15
A80: 01-USAQUEN | B80: OTROS | C80: UPA ORQUIDEAS | D80: 01-USAQUEN | E80: 100 | F80: 8 | G80: 5 | H80: 0 | S80: 5 | T80: 5.0% | U80: 12
A81: 01-USAQUEN | B81: OTROS | C81: UPA CODITO | D81: 01-USAQUEN | E81: 140 | F81: 12 | G81: 7 | H81: 1 | S81: 8 | T81: 5.7% | U81: 15
A82: 01-USAQUEN | B82: OTROS | C82: CAMI VERBENAL | D82: 01-USAQUEN | E82: 290 | F82: 24 | G82: 4 | H82: 2 | S82: 6 | T82: 2.1% | U82: 42
A83: 01-USAQUEN | B83: OTROS | C83: HOSPITAL SIMON BOLIVAR | D83: 01-USAQUEN | E83: 501 | F83: 42 | G83: 20 | H83: 13 | S83: 33 | T83: 6.6% | U83: 51
A84: 01-USAQUEN | B84: DEMAS EAPB | C84: UPA SAN CRISTOBAL | D84: 01-USAQUEN | F84: 0 | G84: 17 | H84: 17 | S84: 34 | T84: 0.0%
A85: 01-USAQUEN | B85: DEMAS EAPB | C85: UPA USAQUEN | D85: 01-USAQUEN | F85: 0 | G85: 3 | H85: 2 | S85: 5 | T85: 0.0%
A86: 01-USAQUEN | B86: DEMAS EAPB | C86: UPA ORQUIDEAS | D86: 01-USAQUEN | F86: 0 | G86: 3 | H86: 3 | S86: 6 | T86: 0.0%
A87: 01-USAQUEN | B87: DEMAS EAPB | C87: UPA CODITO | D87: 01-USAQUEN | F87: 0 | G87: 16 | H87: 16 | S87: 32 | T87: 0.0%
A88: 01-USAQUEN | B88: DEMAS EAPB | C88: CAMI VERBENAL | D88: 01-USAQUEN | F88: 0 | G88: 22 | H88: 18 | S88: 40 | T88: 0.0%
A89: 01-USAQUEN | B89: DEMAS EAPB | C89: HOSPITAL SIMON BOLIVAR | D89: 01-USAQUEN | F89: 0 | G89: 28 | H89: 17 | S89: 45 | T89: 0.0%
A90: MEDIMAS | B90: MEDIMAS | C90: Corvesalud S.A.S - I P S Chico | D90: 01-USAQUEN | E90: 165 | F90: 14 | G90: 0 | H90: 1 | S90: 1 | T90: 0.6% | U90: 27
A91: FAMISANAR | B91: COLSUBSIDIO | C91: Sura PAC Santa Bárbara | D91: 01-USAQUEN | F91: 0 | S91: 0 | T91: 0.0% | U91: 0
A92: CAPITAL SALUD | B92: CAPITAL SALUD | C92: UPA SAN LUIS | D92: 02-CHAPINERO | E92: 10 | F92: 1 | G92: 3 | H92: 0 | S92: 3 | T92: 30.0%
A93: 02-CHAPINERO | B93: 02-CHAPINERO | C93: EXTRAMURAL CHAPINERO | D93: 02-CHAPINERO | E93: 0 | F93: 0 | G93: 10 | H93: 11 | S93: 21 | T93: 0.0%
A94: COMPENSAR | B94: COMPENSAR | C94: USS CALLE 42 | D94: 02-CHAPINERO | E94: 796 | F94: 66 | G94: 32 | H94: 29 | S94: 61 | T94: 7.7% | U94: 72
A95: COMPENSAR | B95: COMPENSAR | C95: USS CALLE 67 | D95: 02-CHAPINERO | F95: 0 | G95: 0 | H95: 0 | S95: 0 | T95: 0.0% | U95: 0
A96: COMPENSAR | B96: COMPENSAR | C96: USS CALLE 94 | D96: 02-CHAPINERO | E96: 604 | F96: 50 | G96: 74 | H96: 63 | S96: 137 | T96: 22.7%
A97: COMPENSAR | B97: COMPENSAR | C97: VIVA 1A IPS CHAPINERO | D97: 02-CHAPINERO | E97: 116 | F97: 10 | G97: 4 | H97: 0 | S97: 4 | T97: 3.4% | U97: 15
A98: COOMEVA | B98: COOMEVA | C98: SINERGIA UNIDAD BASICA LOURDES | D98: 02-CHAPINERO | E98: 226 | F98: 19 | G98: 4 | H98: 5 | S98: 9 | T98: 4.0% | U98: 29
A99: FAMISANAR | B99: FAMI- CAFAM | C99: CENTRO DE ATENCION EN SALUD CAFAM CALLE 48 | D99: 02-CHAPINERO | E99: 1150 | F99: 96 | G99: 17 | H99: 26 | S99: 43 | T99: 3.7% | U99: 149
A100: FAMISANAR | B100: FAMI- CAFAM | C100: CENTRO DE ATENCION EN SALUD CAFAM CALLE 90 | D100: 02-CHAPINERO | E100: 230 | F100: 19 | G100: 26 | H100: 13 | S100: 39 | T100: 17.0%
A101: FAMISANAR | B101: FAMI- COLSB | C101: CLINICA COLSUBSIDIO EL LAGO | D101: 02-CHAPINERO | E101: 391 | F101: 33 | G101: 8 | H101: 6 | S101: 14 | T101: 3.6% | U101: 51
A102: MILITAR | B102: MILITAR | C102: HOSPITAL MILITAR CENTRAL | D102: 02-CHAPINERO | E102: 60 | F102: 5 | G102: 11 | H102: 4 | S102: 15 | T102: 25.0%
A103: POLICIA | B103: POLICIA | C103: POLICIA NACIONAL ESPAM CHAPINERO | D103: 02-CHAPINERO | E103: 106 | F103: 9 | G103: 8 | H103: 0 | S103: 8 | T103: 7.5% | U103: 10
A104: NUEVA EPS | B104: NUEVA EPS | C104: IPS VIVA 1A SEDE MARLY | D104: 02-CHAPINERO | E104: 141 | F104: 12 | G104: 9 | H104: 4 | S104: 13 | T104: 9.2% | U104: 11
A105: SANITAS | B105: SANITAS | C105: EPS SANITAS CENTRO MEDICO TEUSAQUILLO | D105: 02-CHAPINERO | E105: 561 | F105: 47 | G105: 27 | H105: 24 | S105: 51 | T105: 9.1% | U105: 43
A106: SALUD TOTAL | B106: SALUD TOTAL | C106: VIRREY SOLIS CHAPINERO | D106: 02-CHAPINERO | E106: 346 | F106: 29 | G106: 12 | H106: 11 | S106: 23 | T106: 6.6% | U106: 35
A107: SURA | B107: SURA | C107: PUNTO DE SALUD CHAPINERO | D107: 02-CHAPINERO | E107: 221 | F107: 18 | G107: 26 | H107: 15 | S107: 41 | T107: 18.6%
A108: SURA | B108: SURA | C108: SALUD SURA | D108: 02-CHAPINERO | E108: 593 | F108: 49 | G108: 41 | H108: 36 | S108: 77 | T108: 13.0% | U108: 22
A109: PARTICULAR | B109: PARTICULAR | C109: CENTRO MEDICO COLSANITAS CALLE 96 | D109: 02-CHAPINERO | E109: 22 | F109: 2 | G109: 0 | H109: 2 | S109: 2 | T109: 9.1% | U109: 2
A110: PARTICULAR | B110: PARTICULAR | C110: CENTRO DE ESPECIALISTAS MEDICOS AXA COLPATRIA | D110: 02-CHAPINERO | E110: 0 | F110: 0 | G110: 2 | H110: 3 | S110: 5 | T110: 0.0%
A111: PARTICULAR | B111: PARTICULAR | C111: CLINICA DE LA MUJER | D111: 02-CHAPINERO | E111: 0 | F111: 0 | G111: 42 | H111: 51 | S111: 93 | T111: 0.0%
A112: PARTICULAR | B112: PARTICULAR | C112: VACUNARTE IPS | D112: 02-CHAPINERO | E112: 0 | F112: 0 | G112: 3 | H112: 3 | S112: 6 | T112: 0.0%
A113: PARTICULAR | B113: PARTICULAR | C113: UNIMARLY | D113: 02-CHAPINERO | E113: 0 | F113: 0 | G113: 0 | H113: 0 | S113: 0 | T113: 0.0% | U113: 0
A114: PARTICULAR | B114: PARTICULAR | C114: HOSPITAL SAN IGNACIO | D114: 02-CHAPINERO | E114: 0 | F114: 0 | G114: 8 | H114: 2 | S114: 10 | T114: 0.0%
A115: PARTICULAR | B115: PARTICULAR | C115: PROGRAMA MADRE CANGURO HOSPITAL SAN IGNACIO | D115: 02-CHAPINERO | E115: 0 | F115: 0 | G115: 15 | H115: 15 | S115: 30 | T115: 0.0%
A116: PARTICULAR | B116: PARTICULAR | C116: IPS AVENIR | D116: 02-CHAPINERO | E116: 0 | F116: 0 | G116: 0 | H116: 0 | S116: 0 | T116: 0.0% | U116: 0
A117: PARTICULAR | B117: PARTICULAR | C117: IPS INMUNOLOGIA Y DIAGNOSTICO ESPECIALIZADO | D117: 02-CHAPINERO | E117: 0 | F117: 0 | G117: 0 | H117: 1 | S117: 1 | T117: 0.0%
A118: PARTICULAR | B118: PARTICULAR | C118: ASOCIACION PEDIATRICA DE LOS ANDES | D118: 02-CHAPINERO | E118: 0 | F118: 0 | G118: 0 | H118: 0 | S118: 0 | T118: 0.0% | U118: 0
A119: PARTICULAR | B119: PARTICULAR | C119: CRUZ ROJA SEDE ANDINO | D119: 02-CHAPINERO | E119: 0 | F119: 0 | G119: 0 | H119: 0 | S119: 0 | T119: 0.0% | U119: 0
A120: PARTICULAR | B120: PARTICULAR | C120: CENTRO MEDICO SANTA MONICA | D120: 02-CHAPINERO | E120: 0 | F120: 0 | H120: 0 | S120: 0 | T120: 0.0% | U120: 0
A121: PEDIATRAS | B121: PEDIATRAS | C121: DR. JUAN OSCAR TAMAYO | D121: 02-CHAPINERO | E121: 0 | F121: 0 | G121: 0 | H121: 3 | S121: 3 | T121: 0.0%
A122: PEDIATRAS | B122: PEDIATRAS | C122: DR. ROBERTO SUAREZ | D122: 02-CHAPINERO | E122: 0 | F122: 0 | G122: 0 | H122: 0 | S122: 0 | T122: 0.0% | U122: 0
A123: PEDIATRAS | B123: PEDIATRAS | C123: DR. WILLIAM RICARDO CABRA | D123: 02-CHAPINERO | E123: 0 | F123: 0 | G123: 2 | H123: 3 | S123: 5 | T123: 0.0%
A124: PEDIATRAS | B124: PEDIATRAS | C124: DR. EDGAR CASTRO | D124: 02-CHAPINERO | E124: 0 | F124: 0 | G124: 6 | H124: 0 | S124: 6 | T124: 0.0%
A125: PEDIATRAS | B125: PEDIATRAS | C125: DR. PABLO KRAUSS | D125: 02-CHAPINERO | E125: 0 | F125: 0 | G125: 3 | H125: 1 | S125: 4 | T125: 0.0%
A126: PEDIATRAS | B126: PEDIATRAS | C126: DR. HERNAN ROBLES | D126: 02-CHAPINERO | E126: 0 | F126: 0 | G126: 7 | H126: 2 | S126: 9 | T126: 0.0%
A127: PEDIATRAS | B127: PEDIATRAS | C127: DR. RAFAEL GAMBOA CASABLANCA | D127: 02-CHAPINERO | E127: 0 | F127: 0 | G127: 3 | H127: 5 | S127: 8 | T127: 0.0%
A128: PEDIATRAS | B128: PEDIATRAS | C128: DR. JAVIER MEJIA | D128: 02-CHAPINERO | E128: 0 | F128: 0 | G128: 1 | H128: 6 | S128: 7 | T128: 0.0%
A129: PEDIATRAS | B129: PEDIATRAS | C129: DR. CARLOS CORTAZAR | D129: 02-CHAPINERO | E129: 0 | F129: 0 | G129: 0 | H129: 0 | S129: 0 | T129: 0.0% | U129: 0
A130: PEDIATRAS | B130: PEDIATRAS | C130: DR. NELSON PARDO | D130: 02-CHAPINERO | E130: 0 | F130: 0 | G130: 0 | H130: 0 | S130: 0 | T130: =IF(E130=0,0,+S130/E130) -> 0.0% | U130: =IF(COUNT(G130:R130)*(E130/12)-S130<0,"",COUNT(G130:R130)*(E130/12)-S130) -> 0
A131: PEDIATRAS | B131: PEDIATRAS | C131: DR. ALVARO JACOME | D131: 02-CHAPINERO | E131: 0 | F131: 0 | G131: 0 | H131: 1 | S131: =SUM(G131:R131) -> 1 | T131: 0.0%
A132: PEDIATRAS | B132: PEDIATRAS | C132: DR. SILVIO COPO | D132: 02-CHAPINERO | E132: 0 | F132: =E132/12 -> 0 | G132: 0 | H132: 3 | S132: 3 | T132: 0.0%
A133: PEDIATRAS | B133: PEDIATRAS | C133: DR. HECTOR FERNANDO MENDOZA | D133: 02-CHAPINERO | E133: 0 | F133: 0 | G133: 1 | H133: 4 | S133: 5 | T133: 0.0%
